Workbook

Sheet Meta data (hidden)
A2: Culture | B2: da-DK
A3: Navn | B3: Fredericia 2017 E&C-regnskab til interface-beskrivelse
A4: Type | B4: Års
A5: Energi Enhed | B5: TJ
A6: CO2 Enhed | B6: kTon
A7: Tab Sum | B7: ='2030'!AS8+'2030'!AS16+'2030'!AS18 -> 3083.856158
A8: CO2 Sum | B8: ='2030'!AT8+'2030'!AT18 -> 443.7202919

Sheet Emissionsfaktorer (hidden)
B1: mio. ton/PJ
A2: El | B2: =Elproduktion!D10 -> 0.09520362851
A3: Residualel (hvor bruges denne faktor?) | B3: =Energi!B43/3.6 -> 0.1111197933
A4: Fjernvarme | B4: =Energi!B44/3.6 -> 0.02387261777
A5: Naturgas | B5: =Energi!B45/3.6 -> 0.057
A6: Olie | B6: =Energi!B46/3.6 -> 0.074
A7: Kul | B7: =Energi!B47/3.6 -> 0.09495
A8: Affald | B8: =B6 -> 0.074
A9: VE | B9: 0
A10: Renset biomasse | B10: 0.1 | C10: 3.6
A13: El år 2030 | B13: =Elproduktion!J10 -> 0.004
A14: El år 2025 | B14: =Elproduktion!H10 -> 0.017

Sheet Størrelse på strømme (hidden)
A3: Niveau 1
B4: Størrelse | C4: Energi | D4: Under kasser | E4: Energi/%
A5: Udgang transport af brændsel | B5: 50 | C5: ='2030'!Y6 -> 5043.680063 | D5: 0 | E5: =(C5)/(B5-D5*4) -> 100.8736013
A6: Indgang On-Grid VE | B6: 14 | C6: ='2030'!Y7 -> 31.85 | E6: =(C6)/(B6-D6*4) -> 2.275
A7: Indgang el, fjernvarme og olieprodukter | B7: 60 | C7: ='2030'!T8*-1 -> 2997.576178 | D7: 7 | E7: 93.67425558
A8: Udgang el, fjernvarme og olieprodukter | B8: 45 | C8: ='2030'!Y8 -> 6464.025622 | D8: 8 | E8: 497.2327402
A9: Under el, fjernvarme og olieprodukter | B9: 5 | C9: =('2030'!C18+'2030'!D18+'2030'!E18+'2030'!F18+'2030'!M18)*-1 -> 2290.932492 | E9: 458.1864985
A10: Indgang transport af el, fjernvarme og olieprodukter | B10: 50 | C10: ='2030'!T16*-1 -> 6464.025622 | E10: 129.2805124
A11: Indgang Off-Grid VE | B11: 10 | C11: ='2030'!Y17 -> 7.158736357 | E11: 0.7158736357
A12: Exit Energy | B12: 60 | C12: ='2030'!T18*-1 -> 8453.281517 | D12: 6 | E12: 234.8133755
A13: Tab konvertering | B13: 24 | C13: ='2030'!AS8 -> 1262.323751 | E13: 52.59682294
A14: Tab slutforbrug | B14: 24 | C14: ='2030'!AS18 -> 1512.697074 | E14: 63.02904475
A15: Tab transport af el mv. | B15: 7.6 | C15: ='2030'!AS16 -> 308.8353337 | E15: 40.63622812
A18: Lokal VE
A19: Udgang On-Grid VE | B19: 14 | C19: ='2030'!Y7 -> 31.85 | D19: 1 | E19: =(C19)/(B19-D19*4) -> 3.185
A20: Udgang Off-Grid VE | B20: 14 | C20: ='2030'!Y17 -> 7.158736357 | E20: 0.5113383112
A22: Transport | B22: 45 | C22: ='2030'!T20*-1 -> 2160.99582 | D22: 6 | E22: 102.9045629
A24: Vejtransport | B24: 45 | C24: ='2030'!T21*-1 -> 1885.194246 | D24: 6 | E24: 89.77115457
A26: Tog | B26: 45 | C26: ='2030'!T28*-1 -> 49.66065601 | D26: 6 | E26: 2.364793143
A28: Fly | B28: 45 | C28: ='2030'!T35*-1 -> 110.833324 | D28: 2 | E28: 2.995495242
A30: Non-road | B30: 45 | C30: ='2030'!T40*-1 -> 96.06150833 | D30: 5 | E30: 3.842460333
A32: Indgang7udgang el, varme og olieprodukter | B32: 45 | C32: ='2030'!Y8 -> 6464.025622 | D32: 8 | E32: 497.2327402
A33: Tab indgang el, varme og olieprodukter | B33: 25 | C33: ='2030'!AS8 -> 1262.323751 | E33: 50.49295002
A34: Udgang energi | B34: 60 | C34: ='2030'!T18*-1 -> 8453.281517 | D34: 6 | E34: 234.8133755
A35: Tab udgang | B35: 25 | C35: ='2030'!AS18 -> 1512.697074 | E35: 60.50788296
A36: Transport brændsler | B36: 50 | C36: ='2030'!T6*-1 -> 5043.680063 | E36: 100.8736013
A37: Tab transport af brændsler | B37: 25 | C37: ='2030'!AS6 -> 0 | E37: 0
A38: Transport af el, varme og olieprodukter | B38: 50 | C38: ='2030'!T16*-1 -> 6464.025622 | E38: 129.2805124
A39: Tab transport af el, varme og olieprodukter | B39: 25 | C39: ='2030'!AS16 -> 308.8353337 | E39: 12.35341335
A41: CO2 | B41: 10 | C41: ='2030'!AT8 -> 110.0191283 | E41: 11.00191283

Sheet 2025 (hidden)
B1: Forbrug | C1: Naturgas | D1: Kul | E1: Affald (ikke-bionedbrydeligt) | F1: Biobrændsler | G1: Ikke-brændsel VE | H1: Sol | I1: Vind | J1: Vand | K1: Geotermisk | L1: Varmepumpe - omgivelsesvarme | M1: Bioolie, biodiesel og bioethanol | N1: Olieprodukter | O1: El | P1: Fjernvarme | Q1: Overskudsvarme | R1: Energitjenester | S1: Total energiforbrug | T1: Brutto brændsel | U1: =Andet!B4 -> Fredericia | X1: Faktor | Y1: Brutto produktion | Z1: Virkningsgrad | AA1: Produktion | AB1: Naturgas | AC1: Kul | AD1: Affald (ikke-bionedbrydeligt) | AE1: Biobrændsler | AF1: Ikke-brændsel VE | AG1: Sol | AH1: Vind | AI1: Vand | AJ1: Geotermisk | AK1: Varmepumpe - omgivelsesvarme | AL1: Bioolie, biodiesel og bioethanol | AM1: Olieprodukter | AN1: El | AO1: Fjernvarme | AP1: Nyttiggjort overskudsvarme | AQ1: Energitjenester | AR1: Total energiforbrug | AS1: Tab | AT1: CO2-udledning
A2: ID | B2: F | C2: FN | D2: FK | E2: FMA | F2: FVB | G2: FLVE | H2: FLVE1 | I2: FLVE2 | J2: FLVE3 | K2: FLVE4 | L2: FLVE5 | M2: FS | N2: FOO | O2: FE | P2: FF | Q2: FOV | R2: FWEN | S2: FTOTAL | T2: fbrbr | V2: ID | W2: ID Parent | X2: factor | Y2: pbrpr | Z2: pvrkg | AA2: P | AB2: PN | AC2: PK | AD2: PMA | AE2: PVB | AF2: PLVE | AG2: PLVE1 | AH2: PLVE2 | AI2: PLVE3 | AJ2: PLVE4 | AK2: PLVE5 | AL2: PS | AM2: POO | AN2: PE | AO2: PF | AP2: POV | AQ2: PWEN | AR2: PTOTAL | AS2: PTAB | AT2: PCO2
A3: ID Parent | C3: F | D3: F | E3: F | F3: F | G3: F | H3: FLVE | I3: FLVE | J3: FLVE | K3: FLVE | L3: FLVE | M3: F | N3: F | O3: F | P3: F | Q3: F | R3: F | S3: F | U3: Structures | AB3: P | AC3: P | AD3: P | AE3: P | AF3: P | AG3: PLVE | AH3: PLVE | AI3: PLVE | AJ3: PLVE | AK3: PLVE | AL3: P | AM3: P | AN3: P | AO3: P | AP3: P | AQ3: P | AR3: P
B4: ='Størrelse på strømme'!E8 -> 497.2327402 | G4: ='Størrelse på strømme'!E19 -> 3.185 | AA4: =B4 -> 497.2327402 | AE4: =F4 -> 0 | AF4: =G4 -> 3.185 | AM4: =N4 -> 0 | AS4: =B4 -> 497.2327402 | AT4: ='Størrelse på strømme'!E41 -> 11.00191283
S5: 0 | T5: =SUM(C5:F5,G5,M5,N5,O5:Q5) -> 0 | U5: Indgang for brændsler (bio, kul mv.) | V5: TP | Y5: =SUM(AB5:AE5,AF5,AL5,AM5,AN5:AQ5) -> 5043.680063 | AB5: =-C6 -> 2916.437408 | AC5: =-D6 -> 173.28 | AD5: =-E6 -> 137.6373786 | AE5: =-F6 -> 1816.325277 | AF5: =AG5+AH5+AI5+AJ5+AK5 -> 0
C6: =-AB6 -> -2916.437408 | D6: =-AC6 -> -173.28 | E6: =-AD6 -> -137.6373786 | F6: =-AE6 -> -1816.325277 | G6: =H6+I6+J6+K6+L6 -> 0 | S6: 0 | T6: -5043.680063 | U6: Transport af brændsler | V6: TRAP | Y6: 5043.680063 | AB6: =-1*(C8+C18) -> 2916.437408 | AC6: =-1*(D8+D18) -> 173.28 | AD6: =-1*(E8+E18) -> 137.6373786 | AE6: =-1*(F8+F18) -> 1816.325277 | AF6: 0
S7: 0 | T7: 0 | U7: Indgang nettilsluttet VE | V7: TLP1 | Y7: 31.85 | AF7: 31.85 | AG7: =H8*-1 -> 19.25 | AH7: =I11*-1 -> 12.6
C8: =SUM(C9:C11,C12:C15) -> -1651.648543 | D8: =SUM(D9:D11,D12:D15) -> 0 | E8: =SUM(E9:E11,E12:E15) -> -137.6373786 | F8: =SUM(F9:F11,F12:F15) -> -963.4616499 | G8: =H8+I8+J8+K8+L8 -> -31.85 | H8: =SUM(H9:H11,H12:H15) -> -19.25 | I8: -12.6 | J8: 0 | K8: 0 | L8: 0 | M8: 0 | N8: 0 | O8: 0 | P8: 0 | Q8: -212.9786074 | R8: 0 | S8: 0 | T8: -2997.576178 | U8: Indgang el, varme og olieprodukter | V8: TS | X8: ='Størrelse på strømme'!E32 -> 497.2327402 | Y8: 6464.025622 | AB8: =SUM(AB9:AB11,AB12:AB15) -> 0 | AC8: =SUM(AC9:AC11,AC12:AC15) -> 0 | AD8: =SUM(AD9:AD11,AD12:AD15) -> 0 | AF8: 0 | AG8: =SUM(AG9:AG11,AG12:AG15) -> 0 | AI8: =SUM(AI9:AI11,AI12:AI15) -> 0 | AJ8: =SUM(AJ9:AJ11,AJ12:AJ15) -> 0 | AK8: =SUM(AK9:AK11,AK12:AK15) -> 0 | AL8: =-M18 -> 0 | AM8: =(N16+N8)*-1 -> 3306.274355 | AN8: =(O16+O8)*-1 -> 1826.634971 | AO8: =P16*-1 -> 1331.116296 | AP8: =SUM(AP9:AP11,AP12:AP15) -> 0 | AQ8: =SUM(AQ9:AQ11,AQ12:AQ15) -> 0 | AR8: =SUM(AR9:AR11,AR12:AR15) -> 0 | AS8: =SUM(AS9:AS11,AS12:AS15) -> 1262.323751 | AT8: =SUM(AT9:AT11,AT12:AT15) -> 128.5116132
S9: 0 | T9: 0 | U9: Netto import/lager | V9: IMP | W9: TS | Y9: 4728.773195 | AF9: 0 | AL9: =IF(AL15-AL8<0,(AL15-AL8)*-1,0) -> 0 | AM9: =IF(AM8-AM15>0,AM8-AM15,0) -> 3306.274355 | AN9: =IF(AN8-AN10-AN11-AN12>0,AN8-AN10-AN11-AN12,0) -> 1422.49884 | AO9: =(AO8-AO15)*Fjernvarmetransmission!H4 -> 0 | AT9: =AN9*Emissionsfaktorer!B14+AL9*PtX!H9/1000 -> 24.18248027
C10: =$Y$10/Fjernvarmeproduktion!$H$25*Fjernvarmeproduktion!$H$5*-1 -> -1518.536913 | D10: =$Y$10/Fjernvarmeproduktion!$H$25*Fjernvarmeproduktion!$H$6*-1 -> 0 | E10: =$Y$10/Fjernvarmeproduktion!$H$25*Fjernvarmeproduktion!$H$7*-1 -> -126.5447428 | F10: =$Y$10/Fjernvarmeproduktion!$H$25*Fjernvarmeproduktion!$H$8*-1 -> -885.8131993 | G10: =H10+I10+J10+K10+L10 -> 0 | M10: =$Y$10/Fjernvarmeproduktion!$H$25*Fjernvarmeproduktion!$H$9*-1 -> 0 | N10: =$Y$10/Fjernvarmeproduktion!$H$25*Fjernvarmeproduktion!$H$10*-1 -> 0 | S10: 0 | T10: -2530.894855 | U10: El og varmeproduktion | V10: ELOGVARME | W10: TS | Y10: 1290.756376 | AF10: 0 | AN10: =AO10*Fjernvarmeproduktion!H22 -> 372.2861318 | AO10: =('2025'!AO8-AO15)*Fjernvarmetransmission!H5 -> 918.4702443 | AS10: =(Y10+T10)*-1 -> 1240.138479 | AT10: =-(C10*Emissionsfaktorer!$B$5+D10*Emissionsfaktorer!$B$7+E10*Emissionsfaktorer!$B$8+N10*Emissionsfaktorer!$B$6)*(1-'CO2-rensning '!H4)+F10*Emissionsfaktorer!B10*'CO2-rensning '!H4 -> 95.92091501
C11: 0 | D11: 0 | E11: 0 | F11: 0 | G11: -12.6 | H11: 0 | I11: =AN11*-1 -> -12.6 | J11: 0 | K11: 0 | L11: 0 | M11: 0 | N11: 0 | O11: 0 | P11: 0 | Q11: 0 | R11: 0 | S11: 0 | T11: -12.6 | U11: Vindmøller | V11: VIND | W11: TS | Y11: 12.6 | AB11: 0 | AC11: 0 | AD11: 0 | AE11: 0 | AF11: 0 | AG11: 0 | AI11: 0 | AJ11: 0 | AK11: 0 | AL11: 0 | AM11: 0 | AN11: =Elproduktion!H5*3.5*3.6 -> 12.6 | AO11: 0 | AP11: 0 | AQ11: 0 | AR11: 0 | AS11: 0 | AT11: =-('2025'!C11*Emissionsfaktorer!$B$5+'2025'!D11*Emissionsfaktorer!$B$7+'2025'!E11*Emissionsfaktorer!$B$8+N11*Emissionsfaktorer!$B$6) -> 0
G12: -19.25 | H12: =AN12*-1 -> -19.25 | S12: 0 | T12: -19.25 | U12: Solceller | V12: SOLSTR | W12: TS | Y12: 19.25 | AF12: =AG12+AH12+AI12+AJ12+AK12 -> 0 | AN12: =Elproduktion!H6*3.5*1.1 -> 19.25 | AS12: =(Y12+T12)*-1 -> 0 | AT12: =-('2025'!C12*Emissionsfaktorer!$B$5+'2025'!D12*Emissionsfaktorer!$B$7+'2025'!E12*Emissionsfaktorer!$B$8+N12*Emissionsfaktorer!$B$6) -> 0
C13: =$Y$13/Fjernvarmeproduktion!$H$26*Fjernvarmeproduktion!$H$12*-1 -> -133.1116296 | D13: =$Y$13/Fjernvarmeproduktion!$H$26*Fjernvarmeproduktion!$H$13*-1 -> 0 | E13: =$Y$13/Fjernvarmeproduktion!$H$26*Fjernvarmeproduktion!$H$14*-1 -> -11.0926358 | F13: =$Y$13/Fjernvarmeproduktion!$H$26*Fjernvarmeproduktion!$H$15*-1 -> -77.6484506 | G13: 0 | M13: =$Y$13/Fjernvarmeproduktion!$H$26*Fjernvarmeproduktion!$H$16*-1 -> 0 | N13: =$Y$13/Fjernvarmeproduktion!$H$26*Fjernvarmeproduktion!$H$17*-1 -> 0 | S13: 0 | T13: -221.852716 | U13: Fjernvarmekedler | V13: KEDLER | W13: TS | Y13: 199.6674444 | AF13: 0 | AO13: =(AO8-AO15)*Fjernvarmetransmission!H6 -> 199.6674444 | AS13: =(Y13+T13)*-1 -> 22.1852716 | AT13: =-(C13*Emissionsfaktorer!$B$5+D13*Emissionsfaktorer!$B$7+E13*Emissionsfaktorer!$B$8+N13*Emissionsfaktorer!$B$6)*(1-'CO2-rensning '!H5)+'CO2-rensning '!H5*Emissionsfaktorer!B10*F13 -> 8.408217937
G14: 0 | H14: =AO14*Fjernvarmeproduktion!H19*-1 -> 0 | L14: =AO14*Fjernvarmeproduktion!H20*(1-1/Fjernvarmeproduktion!H24)*-1 -> 0 | O14: =AO14/Fjernvarmeproduktion!H24*Fjernvarmeproduktion!H20*-1 -> 0 | Q14: =AO14*Fjernvarmeproduktion!H21*-1 -> -212.9786074 | S14: 0 | T14: -212.9786074 | U14: Anden varmeproduktion | V14: ANDENV | W14: TS | Y14: 212.9786074 | AF14: 0 | AO14: =(AO8-AO15)*Fjernvarmetransmission!H7 -> 212.9786074 | AS14: =(Y14+T14)*-1 -> 0 | AT14: =-('2025'!C14*Emissionsfaktorer!$B$5+'2025'!D14*Emissionsfaktorer!$B$7+'2025'!E14*Emissionsfaktorer!$B$8+N14*Emissionsfaktorer!$B$6) -> 0
F15: =(AL15+AO15)/PtX!H5*PtX!H6*-1 -> 0 | G15: 0 | O15: =(AL15+AO15)/PtX!H5*PtX!H7*-1 -> 0 | S15: 0 | T15: 0 | U15: Raffinaderi og PtX | V15: RAF | W15: TS | Y15: 0 | AF15: 0 | AL15: =PtX!H3 -> 0 | AO15: =AL15*PtX!H8 -> 0 | AS15: =(Y15+T15)*-1 -> 0 | AT15: =-('2025'!C15*Emissionsfaktorer!$B$5+'2025'!D15*Emissionsfaktorer!$B$7+'2025'!E15*Emissionsfaktorer!$B$8+N15*Emissionsfaktorer!$B$6) -> 0
N16: =AM16*-1 -> -3306.274355 | O16: =AN16*-1*(1+Elapparater!H8) -> -1826.634971 | P16: =-AO16*(1+Fjernvarmetransmission!H9) -> -1331.116296 | S16: 0 | T16: -6464.025622 | U16: Transport af el, fjernvarme, mv. | V16: TRAS | Y16: 6155.190289 | AF16: 0 | AM16: =N18*-1 -> 3306.274355 | AN16: =O18*-1 -> 1739.652354 | AO16: =P18*-1 -> 1109.26358 | AS16: =(Y16+T16)*-1 -> 308.8353337
S17: 0 | T17: 0 | U17: Indgang ikke-nettilsluttet VE | V17: TLP2 | Y17: 7.158736357 | AF17: 7.158736357 | AG17: =H18*-1 -> 7.158736357 | AK17: =L18*-1 -> 0
C18: =C19+C20+C46+C47+C48 -> -1264.788865 | D18: =D19+D20+D46+D47+D48 -> -173.28 | E18: 0 | F18: -852.8636271 | G18: -7.158736357 | H18: -7.158736357 | J18: 0 | K18: 0 | L18: 0 | M18: =M20+M46+M47+M48 -> 0 | N18: =N20+N46+N47+N48 -> -3306.274355 | O18: =O20+O46+O47+O48 -> -1739.652354 | P18: -1109.26358 | Q18: 0 | R18: 0 | S18: 0 | T18: -8453.281517 | U18: Afgang fra energisystemet | V18: A | X18: ='Størrelse på strømme'!E34 -> 234.8133755 | Y18: 6940.584443 | AB18: =SUM(AB19:AB20,AB46,AB47,AB48) -> 0 | AC18: =SUM(AC19:AC20,AC46,AC47,AC48) -> 0 | AD18: 0 | AE18: 0 | AF18: 0 | AG18: 0 | AH18: 0 | AI18: 0 | AJ18: 0 | AK18: 0 | AL18: 0 | AM18: 0 | AN18: 0 | AO18: 0 | AP18: 0 | AQ18: 6940.584443 | AR18: 0 | AS18: 1512.697074 | AT18: 333.2102036
G19: =H19+I19+J19+K19+L19 -> 0 | M19: =IF(M20+M46+M47+M48+AL15>0,(M20+M46+M47+M48+AL15)*-1,0) -> 0 | N19: =IF(AM8-AM15<0,AM8-AM15,0) -> 0 | O19: =IF(AN8-AN10-AN11-AN12<0,AN8-AN10-AN11-AN12,0) -> 0 | S19: 0 | T19: 0 | U19: Netto eksport/lager | V19: AES | W19: A | Y19: 0 | AF19: =AG19+AH19+AI19+AJ19+AK19 -> 0 | AS19: =(Y19+T19)*-1 -> 0 | AT19: =O19*Emissionsfaktorer!B13+M19*PtX!H9/1000 -> 0
C20: =C21+C28+C35+C38+C39+C40 -> 0 | D20: 0 | E20: 0 | F20: 0 | G20: 0 | H20: 0 | J20: 0 | K20: 0 | L20: 0 | M20: 0 | N20: -2159.257697 | O20: -1.73812296 | P20: 0 | Q20: 0 | R20: 0 | S20: 0 | T20: -2160.99582 | U20: Transport | V20: AT | W20: A | X20: ='Størrelse på strømme'!E22 -> 102.9045629 | Y20: 648.298746 | Z20: 0.3 | AB20: =AB21+AB28+AB35+AB38+AB39+AB40 -> 0 | AC20: 0 | AD20: 0 | AE20: 0 | AF20: 0 | AG20: 0 | AH20: 0 | AI20: 0 | AJ20: 0 | AK20: 0 | AL20: 0 | AM20: 0 | AN20: 0 | AO20: 0 | AP20: 0 | AQ20: =T20*Z20*-1 -> 648.298746 | AR20: 0 | AS20: 1512.697074 | AT20: =-('2025'!C20*Emissionsfaktorer!$B$5+'2025'!D20*Emissionsfaktorer!$B$7+'2025'!E20*Emissionsfaktorer!$B$8+N20*Emissionsfaktorer!$B$6) -> 159.7850696
C21: =SUM(C22:C27) -> 0 | D21: 0 | E21: 0 | F21: 0 | G21: 0 | H21: 0 | J21: 0 | K21: 0 | L21: 0 | M21: 0 | N21: -1885.194246 | O21: 0 | P21: 0 | Q21: 0 | R21: 0 | S21: 0 | T21: -1885.194246 | U21: Vejtrafik | V21: ATV | W21: AT | X21: ='Størrelse på strømme'!E24 -> 89.77115457 | Y21: 565.5582738 | Z21: 0.3 | AB21: =SUM(AB22:AB27) -> 0 | AC21: 0 | AD21: 0 | AE21: 0 | AF21: 0 | AG21: 0 | AH21: 0 | AI21: 0 | AJ21: 0 | AK21: 0 | AL21: 0 | AN21: 0 | AO21: 0 | AP21: 0 | AQ21: 565.5582738 | AR21: 0 | AS21: 1319.635972 | AT21: =-('2025'!C21*Emissionsfaktorer!$B$5+'2025'!D21*Emissionsfaktorer!$B$7+'2025'!E21*Emissionsfaktorer!$B$8+N21*Emissionsfaktorer!$B$6) -> 139.5043742
C22: =-'Transport modes'!$H$5*'Transport modes'!$H$13*'Teknologi til transport'!$H$6 -> 0 | F22: =-'Transport modes'!$H$5*'Transport modes'!$H$13*'Teknologi til transport'!$H$7 -> 0 | G22: =H22+I22+J22+K22+L22 -> 0 | M22: =-'Transport modes'!$H$5*'Transport modes'!$H$13*'Teknologi til transport'!$H$8 -> 0 | N22: =-'Transport modes'!$H$5*'Transport modes'!$H$13*'Teknologi til transport'!$H$9 -> -1319.635972 | O22: =-'Transport modes'!$H$5*'Transport modes'!$H$13*'Teknologi til transport'!$H$10 -> 0 | S22: 0 | T22: -1319.635972 | U22: Personbil | V22: PERSON | W22: ATV | Y22: 395.8907917 | Z22: 0.3 | AF22: 0 | AQ22: 395.8907917 | AS22: 923.7451805 | AT22: =-('2025'!C22*Emissionsfaktorer!$B$5+'2025'!D22*Emissionsfaktorer!$B$7+'2025'!E22*Emissionsfaktorer!$B$8+N22*Emissionsfaktorer!$B$6) -> 97.65306194
C23: =-'Transport modes'!$H$5*'Transport modes'!$H$14*'Teknologi til transport'!$H$12 -> 0 | F23: =-'Transport modes'!$H$5*'Transport modes'!$H$14*'Teknologi til transport'!$H$13 -> 0 | G23: 0 | M23: =-'Transport modes'!$H$5*'Transport modes'!$H$14*'Teknologi til transport'!$H$14 -> 0 | N23: =-'Transport modes'!$H$5*'Transport modes'!$H$14*'Teknologi til transport'!$H$15 -> -490.150504 | O23: =-'Transport modes'!$H$5*'Transport modes'!$H$14*'Teknologi til transport'!$H$16 -> 0 | S23: 0 | T23: -490.150504 | U23: Lastbil | V23: LAST | W23: ATV | Y23: 147.0451512 | Z23: 0.3 | AF23: 0 | AQ23: 147.0451512 | AS23: 343.1053528 | AT23: =-('2025'!C23*Emissionsfaktorer!$B$5+'2025'!D23*Emissionsfaktorer!$B$7+'2025'!E23*Emissionsfaktorer!$B$8+N23*Emissionsfaktorer!$B$6) -> 36.27113729
C24: =-'Transport modes'!$H$5*'Transport modes'!$H$15*'Teknologi til transport'!$H$18 -> 0 | F24: =-'Transport modes'!$H$5*'Transport modes'!$H$15*'Teknologi til transport'!$H$19 -> 0 | G24: 0 | M24: =-'Transport modes'!$H$5*'Transport modes'!$H$15*'Teknologi til transport'!$H$20 -> 0 | N24: =-'Transport modes'!$H$5*'Transport modes'!$H$15*'Teknologi til transport'!$H$21 -> -56.55582738 | O24: =-'Transport modes'!$H$5*'Transport modes'!$H$15*'Teknologi til transport'!$H$22 -> 0 | S24: 0 | T24: -56.55582738 | U24: Varebil | V24: VARE | W24: ATV | Y24: 16.96674821 | Z24: 0.3 | AF24: 0 | AQ24: 16.96674821 | AS24: 39.58907917 | AT24: =-('2025'!C24*Emissionsfaktorer!$B$5+'2025'!D24*Emissionsfaktorer!$B$7+'2025'!E24*Emissionsfaktorer!$B$8+N24*Emissionsfaktorer!$B$6) -> 4.185131226
C25: =-'Transport modes'!$H$5*'Transport modes'!$H$16*'Teknologi til transport'!$H$24 -> 0 | F25: =-'Transport modes'!$H$5*'Transport modes'!$H$16*'Teknologi til transport'!$H$25 -> 0 | G25: 0 | M25: =-'Transport modes'!$H$5*'Transport modes'!$H$16*'Teknologi til transport'!$H$26 -> 0 | N25: =-'Transport modes'!$H$5*'Transport modes'!$H$16*'Teknologi til transport'!$H$27 -> 0 | O25: =-'Transport modes'!$H$5*'Transport modes'!$H$16*'Teknologi til transport'!$H$28 -> 0 | S25: 0 | T25: 0 | U25: Knallert | V25: KNAL | W25: ATV | Y25: 0 | Z25: 0.3 | AF25: 0 | AQ25: 0 | AS25: 0 | AT25: =-('2025'!C25*Emissionsfaktorer!$B$5+'2025'!D25*Emissionsfaktorer!$B$7+'2025'!E25*Emissionsfaktorer!$B$8+N25*Emissionsfaktorer!$B$6) -> 0
C26: =-'Transport modes'!$H$5*'Transport modes'!$H$17*'Teknologi til transport'!$H$30 -> 0 | F26: =-'Transport modes'!$H$5*'Transport modes'!$H$17*'Teknologi til transport'!$H$31 -> 0 | G26: 0 | M26: =-'Transport modes'!$H$5*'Transport modes'!$H$17*'Teknologi til transport'!$H$32 -> 0 | N26: =-'Transport modes'!$H$5*'Transport modes'!$H$17*'Teknologi til transport'!$H$33 -> 0 | O26: =-'Transport modes'!$H$5*'Transport modes'!$H$17*'Teknologi til transport'!$H$34 -> 0 | S26: 0 | T26: 0 | U26: Motorcykel | V26: MC | W26: ATV | Y26: 0 | Z26: 0.3 | AF26: 0 | AQ26: 0 | AS26: 0 | AT26: =-('2025'!C26*Emissionsfaktorer!$B$5+'2025'!D26*Emissionsfaktorer!$B$7+'2025'!E26*Emissionsfaktorer!$B$8+N26*Emissionsfaktorer!$B$6) -> 0
C27: =-'Transport modes'!$H$5*'Transport modes'!$H$18*'Teknologi til transport'!$H$36 -> 0 | F27: =-'Transport modes'!$H$5*'Transport modes'!$H$18*'Teknologi til transport'!$H$37 -> 0 | G27: 0 | M27: =-'Transport modes'!$H$5*'Transport modes'!$H$18*'Teknologi til transport'!$H$38 -> 0 | N27: =-'Transport modes'!$H$5*'Transport modes'!$H$18*'Teknologi til transport'!$H$39 -> -18.85194246 | O27: =-'Transport modes'!$H$5*'Transport modes'!$H$18*'Teknologi til transport'!$H$40 -> 0 | S27: 0 | T27: -18.85194246 | U27: Bus | V27: BUS | W27: ATV | Y27: 5.655582738 | Z27: 0.3 | AF27: 0 | AQ27: 5.655582738 | AS27: 13.19635972 | AT27: =-('2025'!C27*Emissionsfaktorer!$B$5+'2025'!D27*Emissionsfaktorer!$B$7+'2025'!E27*Emissionsfaktorer!$B$8+N27*Emissionsfaktorer!$B$6) -> 1.395043742
C28: =SUM(C29:C34) -> 0 | D28: 0 | E28: 0 | F28: 0 | G28: 0 | H28: 0 | J28: 0 | K28: 0 | L28: 0 | M28: 0 | N28: -47.92253305 | O28: -1.73812296 | P28: 0 | Q28: 0 | R28: 0 | S28: 0 | T28: -49.66065601 | U28: Tog | V28: ATT | W28: AT | X28: ='Størrelse på strømme'!E26 -> 2.364793143 | Y28: 14.8981968 | Z28: 0.3 | AB28: =SUM(AB29:AB34) -> 0 | AC28: 0 | AD28: 0 | AE28: 0 | AF28: 0 | AG28: 0 | AH28: 0 | AI28: 0 | AJ28: 0 | AK28: 0 | AL28: 0 | AM28: 0 | AN28: 0 | AO28: 0 | AP28: 0 | AQ28: 14.8981968 | AR28: 0 | AS28: 34.76245921 | AT28: =-('2025'!C28*Emissionsfaktorer!$B$5+'2025'!D28*Emissionsfaktorer!$B$7+'2025'!E28*Emissionsfaktorer!$B$8+N28*Emissionsfaktorer!$B$6) -> 3.546267446
C29: =-'Transport modes'!$H$6*'Transport modes'!$H$20*'Teknologi til transport'!$H$43 -> 0 | F29: =-'Transport modes'!$H$6*'Transport modes'!$H$20*'Teknologi til transport'!$H$44 -> 0 | G29: =H29+I29+J29+K29+L29 -> 0 | M29: =-'Transport modes'!$H$6*'Transport modes'!$H$20*'Teknologi til transport'!$H$45 -> 0 | N29: =-'Transport modes'!$H$6*'Transport modes'!$H$20*'Teknologi til transport'!$H$46 -> -11.7944058 | O29: =-'Transport modes'!$H$6*'Transport modes'!$H$20*'Teknologi til transport'!$H$47 -> -0.6207582001 | S29: 0 | T29: -12.415164 | U29: Regionaltog | V29: REG | W29: ATT | Y29: 3.724549201 | Z29: 0.3 | AF29: 0 | AQ29: 3.724549201 | AS29: 8.690614801 | AT29: =-('2025'!C29*Emissionsfaktorer!$B$5+'2025'!D29*Emissionsfaktorer!$B$7+'2025'!E29*Emissionsfaktorer!$B$8+N29*Emissionsfaktorer!$B$6) -> 0.8727860293
C30: =-'Transport modes'!$H$6*'Transport modes'!$H$21*'Teknologi til transport'!$H$49 -> 0 | F30: =-'Transport modes'!$H$6*'Transport modes'!$H$21*'Teknologi til transport'!$H$50 -> 0 | G30: 0 | M30: =-'Transport modes'!$H$6*'Transport modes'!$H$21*'Teknologi til transport'!$H$51 -> 0 | N30: =-'Transport modes'!$H$6*'Transport modes'!$H$21*'Teknologi til transport'!$H$52 -> -20.71345962 | O30: =-'Transport modes'!$H$6*'Transport modes'!$H$21*'Teknologi til transport'!$H$53 -> -0.6406224625 | S30: 0 | T30: -21.35408208 | U30: Intercitytog | V30: INTERC | W30: ATT | Y30: 6.406224625 | Z30: 0.3 | AF30: 0 | AQ30: 6.406224625 | AS30: 14.94785746 | AT30: =-('2025'!C30*Emissionsfaktorer!$B$5+'2025'!D30*Emissionsfaktorer!$B$7+'2025'!E30*Emissionsfaktorer!$B$8+N30*Emissionsfaktorer!$B$6) -> 1.532796012
C31: =-'Transport modes'!$H$6*'Transport modes'!$H$22*'Teknologi til transport'!$H$55 -> 0 | F31: =-'Transport modes'!$H$6*'Transport modes'!$H$22*'Teknologi til transport'!$H$56 -> 0 | G31: 0 | M31: =-'Transport modes'!$H$6*'Transport modes'!$H$22*'Teknologi til transport'!$H$57 -> 0 | N31: =-'Transport modes'!$H$6*'Transport modes'!$H$22*'Teknologi til transport'!$H$58 -> -15.41466762 | O31: =-'Transport modes'!$H$6*'Transport modes'!$H$22*'Teknologi til transport'!$H$59 -> -0.4767422977 | S31: 0 | T31: -15.89140992 | U31: Lyntog | V31: LYN | W31: ATT | Y31: 4.767422977 | Z31: 0.3 | AF31: 0 | AQ31: 4.767422977 | AS31: 11.12398695 | AT31: =-('2025'!C31*Emissionsfaktorer!$B$5+'2025'!D31*Emissionsfaktorer!$B$7+'2025'!E31*Emissionsfaktorer!$B$8+N31*Emissionsfaktorer!$B$6) -> 1.140685404
C32: =-'Transport modes'!$H$6*'Transport modes'!$H$23*'Teknologi til transport'!$H$61 -> 0 | F32: =-'Transport modes'!$H$6*'Transport modes'!$H$23*'Teknologi til transport'!$H$62 -> 0 | G32: 0 | M32: =-'Transport modes'!$H$6*'Transport modes'!$H$23*'Teknologi til transport'!$H$63 -> 0 | N32: =-'Transport modes'!$H$6*'Transport modes'!$H$23*'Teknologi til transport'!$H$64 -> 0 | O32: =-'Transport modes'!$H$6*'Transport modes'!$H$23*'Teknologi til transport'!$H$65 -> 0 | S32: 0 | T32: 0 | U32: Lokalbane | V32: LOKAL | W32: ATT | Y32: 0 | Z32: 0.3 | AF32: 0 | AQ32: 0 | AS32: 0 | AT32: =-('2025'!C32*Emissionsfaktorer!$B$5+'2025'!D32*Emissionsfaktorer!$B$7+'2025'!E32*Emissionsfaktorer!$B$8+N32*Emissionsfaktorer!$B$6) -> 0
C33: =-'Transport modes'!$H$6*'Transport modes'!$H$24*'Teknologi til transport'!$H$67 -> 0 | F33: =-'Transport modes'!$H$6*'Transport modes'!$H$24*'Teknologi til transport'!$H$68 -> 0 | G33: 0 | M33: =-'Transport modes'!$H$6*'Transport modes'!$H$24*'Teknologi til transport'!$H$69 -> 0 | N33: =-'Transport modes'!$H$6*'Transport modes'!$H$24*'Teknologi til transport'!$H$70 -> 0 | O33: =-'Transport modes'!$H$6*'Transport modes'!$H$24*'Teknologi til transport'!$H$71 -> 0 | S33: 0 | T33: 0 | U33: S-tog | V33: STOG | W33: ATT | Y33: 0 | Z33: 0.3 | AF33: 0 | AQ33: 0 | AS33: 0 | AT33: =-('2025'!C33*Emissionsfaktorer!$B$5+'2025'!D33*Emissionsfaktorer!$B$7+'2025'!E33*Emissionsfaktorer!$B$8+N33*Emissionsfaktorer!$B$6) -> 0
C34: =-'Transport modes'!$H$6*'Transport modes'!$H$25*'Teknologi til transport'!$H$73 -> 0 | F34: =-'Transport modes'!$H$6*'Transport modes'!$H$25*'Teknologi til transport'!$H$74 -> 0 | G34: 0 | M34: =-'Transport modes'!$H$6*'Transport modes'!$H$25*'Teknologi til transport'!$H$75 -> 0 | N34: =-'Transport modes'!$H$6*'Transport modes'!$H$25*'Teknologi til transport'!$H$76 -> 0 | O34: =-'Transport modes'!$H$6*'Transport modes'!$H$25*'Teknologi til transport'!$H$77 -> 0 | S34: 0 | T34: 0 | U34: Metro | V34: METRO | W34: ATT | Y34: 0 | Z34: 0.3 | AF34: 0 | AQ34: 0 | AS34: 0 | AT34: =-('2025'!C34*Emissionsfaktorer!$B$5+'2025'!D34*Emissionsfaktorer!$B$7+'2025'!E34*Emissionsfaktorer!$B$8+N34*Emissionsfaktorer!$B$6) -> 0
C35: =C36+C37 -> 0 | D35: 0 | E35: 0 | F35: 0 | G35: 0 | H35: 0 | J35: 0 | K35: 0 | L35: 0 | M35: 0 | N35: -110.833324 | O35: 0 | P35: 0 | Q35: 0 | R35: 0 | S35: 0 | T35: -110.833324 | U35: Fly | V35: ATF | W35: AT | X35: ='Størrelse på strømme'!E28 -> 2.995495242 | Y35: 33.24999719 | Z35: 0.3 | AB35: =AB36+AB37 -> 0 | AC35: 0 | AD35: 0 | AE35: 0 | AF35: 0 | AG35: 0 | AH35: 0 | AI35: 0 | AJ35: 0 | AK35: 0 | AL35: 0 | AM35: 0 | AN35: 0 | AO35: 0 | AP35: 0 | AQ35: 33.24999719 | AR35: 0 | AS35: 77.58332678 | AT35: =-('2025'!C35*Emissionsfaktorer!$B$5+'2025'!D35*Emissionsfaktorer!$B$7+'2025'!E35*Emissionsfaktorer!$B$8+N35*Emissionsfaktorer!$B$6) -> 8.201665973
G36: =H36+I36+J36+K36+L36 -> 0 | M36: =-'Transport modes'!$H$7*'Transport modes'!$H$27*'Teknologi til transport'!$H$80 -> 0 | N36: =-'Transport modes'!$H$7*'Transport modes'!$H$27*'Teknologi til transport'!$H$81 -> -3.324999719 | O36: =-'Transport modes'!$H$7*'Transport modes'!$H$27*'Teknologi til transport'!$H$82 -> 0 | S36: 0 | T36: -3.324999719 | U36: Indenrigs | V36: INDEN | W36: ATF | Y36: 0.9974999157 | Z36: 0.3 | AF36: 0 | AQ36: 0.9974999157 | AS36: 2.327499803 | AT36: =-('2025'!C36*Emissionsfaktorer!$B$5+'2025'!D36*Emissionsfaktorer!$B$7+'2025'!E36*Emissionsfaktorer!$B$8+N36*Emissionsfaktorer!$B$6) -> 0.2460499792
G37: =H37+I37+J37+K37+L37 -> 0 | M37: =-'Transport modes'!$H$7*'Transport modes'!$H$28*'Teknologi til transport'!$H$84 -> 0 | N37: =-'Transport modes'!$H$7*'Transport modes'!$H$28*'Teknologi til transport'!$H$85 -> -107.5083242 | O37: =-'Transport modes'!$H$7*'Transport modes'!$H$28*'Teknologi til transport'!$H$86 -> 0 | S37: 0 | T37: -107.5083242 | U37: Udenrigs | V37: UDEN | W37: ATF | Y37: 32.25249727 | Z37: 0.3 | AF37: 0 | AQ37: 32.25249727 | AS37: 75.25582697 | AT37: =-('2025'!C37*Emissionsfaktorer!$B$5+'2025'!D37*Emissionsfaktorer!$B$7+'2025'!E37*Emissionsfaktorer!$B$8+N37*Emissionsfaktorer!$B$6) -> 7.955615994
G38: =H38+I38+J38+K38+L38 -> 0 | M38: =-'Transport modes'!$H$8*'Teknologi til transport'!H88 -> 0 | N38: =-'Transport modes'!$H$8*'Teknologi til transport'!H89 -> 0 | O38: =-'Transport modes'!$H$8*'Teknologi til transport'!H90 -> 0 | S38: 0 | T38: 0 | U38: Færge | V38: ATFÆRGE | W38: AT | Y38: 0 | Z38: 0.3 | AF38: 0 | AQ38: 0 | AS38: 0 | AT38: =-('2025'!C38*Emissionsfaktorer!$B$5+'2025'!D38*Emissionsfaktorer!$B$7+'2025'!E38*Emissionsfaktorer!$B$8+N38*Emissionsfaktorer!$B$6) -> 0
G39: =H39+I39+J39+K39+L39 -> 0 | M39: =-'Transport modes'!$H$9*'Teknologi til transport'!H92 -> 0 | N39: =-'Transport modes'!$H$9*'Teknologi til transport'!H93 -> -19.24608558 | O39: =-'Transport modes'!$H$9*'Teknologi til transport'!H94 -> 0 | S39: 0 | T39: -19.24608558 | U39: Fiskeri | V39: ATFISK | W39: AT | Y39: 5.773825673 | Z39: 0.3 | AF39: 0 | AQ39: 5.773825673 | AS39: 13.4722599 | AT39: =-('2025'!C39*Emissionsfaktorer!$B$5+'2025'!D39*Emissionsfaktorer!$B$7+'2025'!E39*Emissionsfaktorer!$B$8+N39*Emissionsfaktorer!$B$6) -> 1.424210333
C40: =SUM(C41:C45) -> 0 | D40: 0 | E40: 0 | F40: 0 | G40: 0 | H40: 0 | J40: 0 | K40: 0 | L40: 0 | M40: 0 | N40: -96.06150833 | O40: 0 | P40: 0 | Q40: 0 | R40: 0 | S40: 0 | T40: -96.06150833 | U40: Non-Road | V40: ATNONR | W40: AT | X40: ='Størrelse på strømme'!E30 -> 3.842460333 | Y40: 28.8184525 | Z40: 0.3 | AB40: =SUM(AB41:AB45) -> 0 | AC40: 0 | AD40: 0 | AE40: 0 | AF40: 0 | AG40: 0 | AH40: 0 | AI40: 0 | AJ40: 0 | AK40: 0 | AL40: 0 | AM40: 0 | AN40: 0 | AO40: 0 | AP40: 0 | AQ40: 28.8184525 | AR40: 0 | AS40: 67.24305583 | AT40: =-('2025'!C40*Emissionsfaktorer!$B$5+'2025'!D40*Emissionsfaktorer!$B$7+'2025'!E40*Emissionsfaktorer!$B$8+N40*Emissionsfaktorer!$B$6) -> 7.108551617
G41: =H41+I41+J41+K41+L41 -> 0 | M41: =-'Transport modes'!$H$10*'Transport modes'!$H$30*'Teknologi til transport'!$H$97 -> 0 | N41: =-'Transport modes'!$H$10*'Transport modes'!$H$30*'Teknologi til transport'!$H$98 -> -32.66091283 | O41: =-'Transport modes'!$H$10*'Transport modes'!$H$30*'Teknologi til transport'!$H$99 -> 0 | S41: 0 | T41: -32.66091283 | U41: Landbrug | V41: LANDBR | W41: ATNONR | Y41: 9.79827385 | Z41: 0.3 | AF41: 0 | AQ41: 9.79827385 | AS41: 22.86263898 | AT41: =-('2025'!C41*Emissionsfaktorer!$B$5+'2025'!D41*Emissionsfaktorer!$B$7+'2025'!E41*Emissionsfaktorer!$B$8+N41*Emissionsfaktorer!$B$6) -> 2.41690755
G42: 0 | M42: =-'Transport modes'!$H$10*'Transport modes'!$H$31*'Teknologi til transport'!$H$101 -> 0 | N42: =-'Transport modes'!$H$10*'Transport modes'!$H$31*'Teknologi til transport'!$H$102 -> -53.79444467 | O42: =-'Transport modes'!$H$10*'Transport modes'!$H$31*'Teknologi til transport'!$H$103 -> 0 | S42: 0 | T42: -53.79444467 | U42: Byggeri | V42: BYGGERI | W42: ATNONR | Y42: 16.1383334 | Z42: 0.3 | AF42: 0 | AQ42: 16.1383334 | AS42: 37.65611127 | AT42: =-('2025'!C42*Emissionsfaktorer!$B$5+'2025'!D42*Emissionsfaktorer!$B$7+'2025'!E42*Emissionsfaktorer!$B$8+N42*Emissionsfaktorer!$B$6) -> 3.980788905
G43: 0 | M43: =-'Transport modes'!$H$10*'Transport modes'!$H$32*'Teknologi til transport'!$H$105 -> 0 | N43: =-'Transport modes'!$H$10*'Transport modes'!$H$32*'Teknologi til transport'!$H$106 -> -0.9606150833 | O43: =-'Transport modes'!$H$10*'Transport modes'!$H$32*'Teknologi til transport'!$H$107 -> 0 | S43: 0 | T43: -0.9606150833 | U43: Skovbrug | V43: SKOV | W43: ATNONR | Y43: 0.288184525 | Z43: 0.3 | AF43: 0 | AQ43: 0.288184525 | AS43: 0.6724305583 | AT43: =-('2025'!C43*Emissionsfaktorer!$B$5+'2025'!D43*Emissionsfaktorer!$B$7+'2025'!E43*Emissionsfaktorer!$B$8+N43*Emissionsfaktorer!$B$6) -> 0.07108551617
G44: 0 | M44: =-'Transport modes'!$H$10*'Transport modes'!$H$33*'Teknologi til transport'!$H$109 -> 0 | N44: =-'Transport modes'!$H$10*'Transport modes'!$H$33*'Teknologi til transport'!$H$110 -> -2.88184525 | O44: =-'Transport modes'!$H$10*'Transport modes'!$H$33*'Teknologi til transport'!$H$111 -> 0 | S44: 0 | T44: -2.88184525 | U44: Have/park | V44: HAVE | W44: ATNONR | Y44: 0.864553575 | Z44: 0.3 | AF44: 0 | AQ44: 0.864553575 | AS44: 2.017291675 | AT44: =-('2025'!C44*Emissionsfaktorer!$B$5+'2025'!D44*Emissionsfaktorer!$B$7+'2025'!E44*Emissionsfaktorer!$B$8+N44*Emissionsfaktorer!$B$6) -> 0.2132565485
G45: 0 | M45: =-'Transport modes'!$H$10*'Transport modes'!$H$34*'Teknologi til transport'!$H$113 -> 0 | N45: =-'Transport modes'!$H$10*'Transport modes'!$H$34*'Teknologi til transport'!$H$114 -> -5.7636905 | O45: =-'Transport modes'!$H$10*'Transport modes'!$H$34*'Teknologi til transport'!$H$115 -> 0 | S45: 0 | T45: -5.7636905 | U45: Øvrig erhverv | V45: ØVRIGERH | W45: ATNONR | Y45: 1.72910715 | Z45: 0.3 | AF45: 0 | AQ45: 1.72910715 | AS45: 4.03458335 | AT45: =-('2025'!C45*Emissionsfaktorer!$B$5+'2025'!D45*Emissionsfaktorer!$B$7+'2025'!E45*Emissionsfaktorer!$B$8+N45*Emissionsfaktorer!$B$6) -> 0.426513097
C46: ='Opvarmning og proces'!$H$4*'Opvarmning og proces'!$H$9 -> -121.0046329 | D46: ='Opvarmning og proces'!$H$4*'Opvarmning og proces'!$H$10 -> 0 | E46: ='Opvarmning og proces'!$H$4*'Opvarmning og proces'!$H$11 -> 0 | F46: ='Opvarmning og proces'!$H$4*'Opvarmning og proces'!$H$12 -> -357.9720389 | G46: -5.041859703 | H46: ='Opvarmning og proces'!$H$4*'Opvarmning og proces'!$H$13 -> -5.041859703 | L46: ='Opvarmning og proces'!H4*'Opvarmning og proces'!H16*(Fjernvarmeproduktion!H24-1) -> 0 | M46: ='Opvarmning og proces'!$H$4*'Opvarmning og proces'!$H$14 -> 0 | N46: ='Opvarmning og proces'!$H$4*'Opvarmning og proces'!$H$15 -> -20.16743881 | O46: ='Opvarmning og proces'!$H$4*'Opvarmning og proces'!$H$16+Elapparater!H4 -> -273.3900516 | P46: =Fjernvarme!H4 -> -661.7684395 | S46: 0 | T46: -1439.344461 | U46: Husholdninger | V46: AH | W46: A | Y46: 1439.344461 | Z46: 1 | AQ46: =T46/Z46*-1 -> 1439.344461 | AS46: 0 | AT46: =-('2025'!C46*Emissionsfaktorer!$B$5+'2025'!D46*Emissionsfaktorer!$B$7+'2025'!E46*Emissionsfaktorer!$B$8+N46*Emissionsfaktorer!$B$6) -> 8.389654546
C47: ='Opvarmning og proces'!$H$5*'Opvarmning og proces'!$H$18 -> -17.4642324 | D47: ='Opvarmning og proces'!$H$5*'Opvarmning og proces'!$H$19 -> 0 | E47: ='Opvarmning og proces'!$H$5*'Opvarmning og proces'!$H$20 -> 0 | F47: ='Opvarmning og proces'!$H$5*'Opvarmning og proces'!$H$21 -> -32.81158814 | G47: -2.116876654 | H47: ='Opvarmning og proces'!$H$5*'Opvarmning og proces'!$H$22 -> -2.116876654 | L47: ='Opvarmning og proces'!H5*'Opvarmning og proces'!H25*(Fjernvarmeproduktion!H24-1) -> 0 | M47: ='Opvarmning og proces'!$H$5*'Opvarmning og proces'!$H$23 -> 0 | N47: ='Opvarmning og proces'!$H$5*'Opvarmning og proces'!$H$24 -> -0.5292191635 | O47: ='Opvarmning og proces'!$H$5*'Opvarmning og proces'!$H$25+Elapparater!H5 -> -178.585272 | P47: =Fjernvarme!H5 -> -304.8473642 | S47: 0 | T47: -536.3545526 | U47: Offentlig | V47: AO | W47: A | Y47: 536.3545526 | Z47: 1 | AQ47: =T47/Z47*-1 -> 536.3545526 | AS47: 0 | AT47: =-('2025'!C47*Emissionsfaktorer!$B$5+'2025'!D47*Emissionsfaktorer!$B$7+'2025'!E47*Emissionsfaktorer!$B$8+N47*Emissionsfaktorer!$B$6) -> 1.034623465
C48: ='Opvarmning og proces'!$H$6*'Opvarmning og proces'!$H$27 -> -1126.32 | D48: ='Opvarmning og proces'!$H$6*'Opvarmning og proces'!$H$28 -> -173.28 | E48: ='Opvarmning og proces'!$H$6*'Opvarmning og proces'!$H$29 -> 0 | F48: ='Opvarmning og proces'!$H$6*'Opvarmning og proces'!$H$30 -> -462.08 | G48: 0 | H48: ='Opvarmning og proces'!$H$6*'Opvarmning og proces'!$H$31 -> 0 | L48: ='Opvarmning og proces'!H6*'Opvarmning og proces'!H34*(Fjernvarmeproduktion!H24-1) -> 0 | M48: ='Opvarmning og proces'!$H$6*'Opvarmning og proces'!$H$32 -> 0 | N48: ='Opvarmning og proces'!$H$6*'Opvarmning og proces'!$H$33 -> -1126.32 | O48: ='Opvarmning og proces'!$H$6*'Opvarmning og proces'!$H$34+Elapparater!H6 -> -1285.938907 | P48: =Fjernvarme!H6 -> -142.6477764 | S48: 0 | T48: -4316.586684 | U48: Erhverv | V48: AE | W48: A | Y48: 4316.586684 | Z48: 1 | AQ48: =T48/Z48*-1 -> 4316.586684 | AS48: 0 | AT48: =-('2025'!C48*Emissionsfaktorer!$B$5+'2025'!D48*Emissionsfaktorer!$B$7+'2025'!E48*Emissionsfaktorer!$B$8+N48*Emissionsfaktorer!$B$6) -> 164.000856
U49: Energitjenester | V49: EN

Sheet 2030 (hidden)
B1: Forbrug | C1: Naturgas | D1: Kul | E1: Affald (ikke-bionedbrydeligt) | F1: Biobrændsler | G1: Ikke-brændsel VE | H1: Sol | I1: Vind | J1: Vand | K1: Geotermisk | L1: Varmepumpe - omgivelsesvarme | M1: Bioolie, biodiesel og bioethanol | N1: Olieprodukter | O1: El | P1: Fjernvarme | Q1: Overskudsvarme | R1: Energitjenester | S1: Total energiforbrug | T1: Brutto brændsel | U1: =Andet!B4 -> Fredericia | X1: Faktor | Y1: Brutto produktion | Z1: Virkningsgrad | AA1: Produktion | AB1: Naturgas | AC1: Kul | AD1: Affald (ikke-bionedbrydeligt) | AE1: Biobrændsler | AF1: Ikke-brændsel VE | AG1: Sol | AH1: Vind | AI1: Vand | AJ1: Geotermisk | AK1: Varmepumpe - omgivelsesvarme | AL1: Bioolie, biodiesel og bioethanol | AM1: Olieprodukter | AN1: El | AO1: Fjernvarme | AP1: Nyttiggjort overskudsvarme | AQ1: Energitjenester | AR1: Total energiforbrug | AS1: Tab | AT1: CO2-udledning
A2: ID | B2: F | C2: FN | D2: FK | E2: FMA | F2: FVB | G2: FLVE | H2: FLVE1 | I2: FLVE2 | J2: FLVE3 | K2: FLVE4 | L2: FLVE5 | M2: FS | N2: FOO | O2: FE | P2: FF | Q2: FOV | R2: FWEN | S2: FTOTAL | T2: fbrbr | V2: ID | W2: ID Parent | X2: factor | Y2: pbrpr | Z2: pvrkg | AA2: P | AB2: PN | AC2: PK | AD2: PMA | AE2: PVB | AF2: PLVE | AG2: PLVE1 | AH2: PLVE2 | AI2: PLVE3 | AJ2: PLVE4 | AK2: PLVE5 | AL2: PS | AM2: POO | AN2: PE | AO2: PF | AP2: POV | AQ2: PWEN | AR2: PTOTAL | AS2: PTAB | AT2: PCO2
A3: ID Parent | C3: F | D3: F | E3: F | F3: F | G3: F | H3: FLVE | I3: FLVE | J3: FLVE | K3: FLVE | L3: FLVE | M3: F | N3: F | O3: F | P3: F | Q3: F | R3: F | S3: F | U3: Structures | AB3: P | AC3: P | AD3: P | AE3: P | AF3: P | AG3: PLVE | AH3: PLVE | AI3: PLVE | AJ3: PLVE | AK3: PLVE | AL3: P | AM3: P | AN3: P | AO3: P | AP3: P | AQ3: P | AR3: P
B4: ='Størrelse på strømme'!E8 -> 497.2327402 | G4: ='Størrelse på strømme'!E19 -> 3.185 | AA4: =B4 -> 497.2327402 | AE4: =F4 -> 0 | AF4: =G4 -> 3.185 | AM4: =N4 -> 0 | AS4: =B4 -> 497.2327402 | AT4: ='Størrelse på strømme'!E41 -> 11.00191283
S5: 0 | T5: =SUM(C5:F5,G5,M5,N5,O5:Q5) -> 0 | U5: Indgang for brændsler (bio, kul mv.) | V5: TP | Y5: =SUM(AB5:AE5,AF5,AL5,AM5,AN5:AQ5) -> 5043.680063 | AB5: =-C6 -> 2887.557408 | AC5: =-D6 -> 173.28 | AD5: =-E6 -> 166.5173786 | AE5: =-F6 -> 1816.325277 | AF5: =AG5+AH5+AI5+AJ5+AK5 -> 0
C6: =-AB6 -> -2887.557408 | D6: =-AC6 -> -173.28 | E6: =-AD6 -> -166.5173786 | F6: =-AE6 -> -1816.325277 | G6: =H6+I6+J6+K6+L6 -> 0 | S6: 0 | T6: -5043.680063 | U6: Transport af brændsler | V6: TRAP | Y6: 5043.680063 | AB6: =-1*(C8+C18) -> 2887.557408 | AC6: =-1*(D8+D18) -> 173.28 | AD6: =-1*(E8+E18) -> 166.5173786 | AE6: =-1*(F8+F18) -> 1816.325277 | AF6: 0
S7: 0 | T7: 0 | U7: Indgang nettilsluttet VE | V7: TLP1 | Y7: 31.85 | AF7: 31.85 | AG7: =H8*-1 -> 19.25 | AH7: =I11*-1 -> 12.6
C8: =SUM(C9:C11,C12:C15) -> -1651.648543 | D8: =SUM(D9:D11,D12:D15) -> 0 | E8: =SUM(E9:E11,E12:E15) -> -137.6373786 | F8: =SUM(F9:F11,F12:F15) -> -963.4616499 | G8: =H8+I8+J8+K8+L8 -> -31.85 | H8: =SUM(H9:H11,H12:H15) -> -19.25 | I8: -12.6 | J8: 0 | K8: 0 | L8: 0 | M8: 0 | N8: 0 | O8: 0 | P8: 0 | Q8: -212.9786074 | R8: 0 | S8: 0 | T8: -2997.576178 | U8: Indgang el, varme og olieprodukter | V8: TS | X8: ='Størrelse på strømme'!E32 -> 497.2327402 | Y8: 6464.025622 | AB8: =SUM(AB9:AB11,AB12:AB15) -> 0 | AC8: =SUM(AC9:AC11,AC12:AC15) -> 0 | AD8: =SUM(AD9:AD11,AD12:AD15) -> 0 | AF8: 0 | AG8: =SUM(AG9:AG11,AG12:AG15) -> 0 | AI8: =SUM(AI9:AI11,AI12:AI15) -> 0 | AJ8: =SUM(AJ9:AJ11,AJ12:AJ15) -> 0 | AK8: =SUM(AK9:AK11,AK12:AK15) -> 0 | AL8: =M18*-1 -> 0 | AM8: =(N8+N16)*-1 -> 3306.274355 | AN8: =(O16+O8)*-1 -> 1826.634971 | AO8: =P16*-1 -> 1331.116296 | AP8: =SUM(AP9:AP11,AP12:AP15) -> 0 | AQ8: =SUM(AQ9:AQ11,AQ12:AQ15) -> 0 | AR8: =SUM(AR9:AR11,AR12:AR15) -> 0 | AS8: =SUM(AS9:AS11,AS12:AS15) -> 1262.323751 | AT8: =SUM(AT9:AT11,AT12:AT15) -> 110.0191283
S9: 0 | T9: 0 | U9: Netto import/lager | V9: IMP | W9: TS | Y9: 4728.773195 | AF9: 0 | AL9: =IF(AL15-AL8<0,(AL15-AL8)*-1,0) -> 0 | AM9: =IF(AM8-AM15>0,AM8-AM15,0) -> 3306.274355 | AN9: =IF(AN8-AN10-AN11-AN12>0,AN8-AN10-AN11-AN12,0) -> 1422.49884 | AO9: =(AO8-AO15)*Fjernvarmetransmission!J4 -> 0 | AT9: =AN9*Emissionsfaktorer!B13+AL9*PtX!J9/1000 -> 5.689995359
C10: =$Y$10/Fjernvarmeproduktion!$J$25*Fjernvarmeproduktion!$J$5*-1 -> -1518.536913 | D10: =$Y$10/Fjernvarmeproduktion!$J$25*Fjernvarmeproduktion!$J$6*-1 -> 0 | E10: =$Y$10/Fjernvarmeproduktion!$J$25*Fjernvarmeproduktion!$J$7*-1 -> -126.5447428 | F10: =$Y$10/Fjernvarmeproduktion!$J$25*Fjernvarmeproduktion!$J$8*-1 -> -885.8131993 | G10: =H10+I10+J10+K10+L10 -> 0 | M10: =$Y$10/Fjernvarmeproduktion!$J$25*Fjernvarmeproduktion!$J$9*-1 -> 0 | N10: =$Y$10/Fjernvarmeproduktion!$J$25*Fjernvarmeproduktion!$J$10*-1 -> 0 | S10: 0 | T10: -2530.894855 | U10: El og varmeproduktion | V10: ELOGVARME | W10: TS | Y10: 1290.756376 | AF10: 0 | AN10: =AO10*Fjernvarmeproduktion!J22 -> 372.2861318 | AO10: =('2030'!AO8-AO15)*Fjernvarmetransmission!J5 -> 918.4702443 | AS10: =(Y10+T10)*-1 -> 1240.138479 | AT10: =-(C10*Emissionsfaktorer!$B$5+D10*Emissionsfaktorer!$B$7+E10*Emissionsfaktorer!$B$8+N10*Emissionsfaktorer!$B$6)*(1-'CO2-rensning '!J4)+F10*Emissionsfaktorer!B10*'CO2-rensning '!J4 -> 95.92091501
C11: 0 | D11: 0 | E11: 0 | F11: 0 | G11: -12.6 | H11: 0 | I11: =AN11*-1 -> -12.6 | J11: 0 | K11: 0 | L11: 0 | M11: 0 | N11: 0 | O11: 0 | P11: 0 | Q11: 0 | R11: 0 | S11: 0 | T11: -12.6 | U11: Vindmøller | V11: VIND | W11: TS | Y11: 12.6 | AB11: 0 | AC11: 0 | AD11: 0 | AE11: 0 | AF11: 0 | AG11: 0 | AI11: 0 | AJ11: 0 | AK11: 0 | AL11: 0 | AM11: 0 | AN11: =Elproduktion!J5*3.5*3.6 -> 12.6 | AO11: 0 | AP11: 0 | AQ11: 0 | AR11: 0 | AS11: 0 | AT11: =-('2030'!C11*Emissionsfaktorer!$B$5+'2030'!D11*Emissionsfaktorer!$B$7+'2030'!E11*Emissionsfaktorer!$B$8+N11*Emissionsfaktorer!$B$6) -> 0
G12: -19.25 | H12: =AN12*-1 -> -19.25 | S12: 0 | T12: -19.25 | U12: Solceller | V12: SOLSTR | W12: TS | Y12: 19.25 | AF12: =AG12+AH12+AI12+AJ12+AK12 -> 0 | AN12: =Elproduktion!J6*3.5*1.1 -> 19.25 | AS12: =(Y12+T12)*-1 -> 0 | AT12: =-('2030'!C12*Emissionsfaktorer!$B$5+'2030'!D12*Emissionsfaktorer!$B$7+'2030'!E12*Emissionsfaktorer!$B$8+N12*Emissionsfaktorer!$B$6) -> 0
C13: =$Y$13/Fjernvarmeproduktion!$J$26*Fjernvarmeproduktion!$J$12*-1 -> -133.1116296 | D13: =$Y$13/Fjernvarmeproduktion!$J$26*Fjernvarmeproduktion!$J$13*-1 -> 0 | E13: =$Y$13/Fjernvarmeproduktion!$J$26*Fjernvarmeproduktion!$J$14*-1 -> -11.0926358 | F13: =$Y$13/Fjernvarmeproduktion!$J$26*Fjernvarmeproduktion!$J$15*-1 -> -77.6484506 | G13: 0 | M13: =$Y$13/Fjernvarmeproduktion!$J$26*Fjernvarmeproduktion!$J$16*-1 -> 0 | N13: =$Y$13/Fjernvarmeproduktion!$J$26*Fjernvarmeproduktion!$J$17*-1 -> 0 | S13: 0 | T13: -221.852716 | U13: Fjernvarmekedler | V13: KEDLER | W13: TS | Y13: 199.6674444 | AF13: 0 | AO13: =(AO8-AO15)*Fjernvarmetransmission!J6 -> 199.6674444 | AS13: =(Y13+T13)*-1 -> 22.1852716 | AT13: =-(C13*Emissionsfaktorer!$B$5+D13*Emissionsfaktorer!$B$7+E13*Emissionsfaktorer!$B$8+N13*Emissionsfaktorer!$B$6)*(1-'CO2-rensning '!J5)+'CO2-rensning '!J5*Emissionsfaktorer!B10*F13 -> 8.408217937
G14: 0 | H14: =AO14*Fjernvarmeproduktion!J19*-1 -> 0 | L14: =AO14*Fjernvarmeproduktion!J20*(1-1/Fjernvarmeproduktion!J24)*-1 -> 0 | O14: =AO14/Fjernvarmeproduktion!J24*Fjernvarmeproduktion!J20*-1 -> 0 | Q14: =AO14*Fjernvarmeproduktion!J21*-1 -> -212.9786074 | S14: 0 | T14: -212.9786074 | U14: Anden varmeproduktion | V14: ANDENV | W14: TS | Y14: 212.9786074 | Z14: =Y14/T14*-1 -> 1 | AF14: 0 | AO14: =(AO8-AO15)*Fjernvarmetransmission!J7 -> 212.9786074 | AS14: =(Y14+T14)*-1 -> 0 | AT14: =-('2030'!C14*Emissionsfaktorer!$B$5+'2030'!D14*Emissionsfaktorer!$B$7+'2030'!E14*Emissionsfaktorer!$B$8+N14*Emissionsfaktorer!$B$6) -> 0
F15: =(AL15+AO15)/PtX!J5*PtX!J6*-1 -> 0 | G15: 0 | O15: =(AL15+AO15)/PtX!J5*PtX!J7*-1 -> 0 | S15: 0 | T15: 0 | U15: Raffinaderi og PtX | V15: RAF | W15: TS | Y15: 0 | AF15: 0 | AL15: =PtX!J3 -> 0 | AO15: =AL15*PtX!J8 -> 0 | AS15: =(Y15+T15)*-1 -> 0 | AT15: =-('2030'!C15*Emissionsfaktorer!$B$5+'2030'!D15*Emissionsfaktorer!$B$7+'2030'!E15*Emissionsfaktorer!$B$8+N15*Emissionsfaktorer!$B$6) -> 0
N16: =AM16*-1 -> -3306.274355 | O16: =AN16*-1*(1+Elapparater!J8) -> -1826.634971 | P16: =-AO16*(1+Fjernvarmetransmission!J9) -> -1331.116296 | S16: 0 | T16: -6464.025622 | U16: Transport af el, fjernvarme, mv. | V16: TRAS | Y16: 6155.190289 | AF16: 0 | AM16: =N18*-1 -> 3306.274355 | AN16: =O18*-1 -> 1739.652354 | AO16: =P18*-1 -> 1109.26358 | AS16: =(Y16+T16)*-1 -> 308.8353337
S17: 0 | T17: 0 | U17: Indgang ikke-nettilsluttet VE | V17: TLP2 | Y17: 7.158736357 | AF17: 7.158736357 | AG17: =H18*-1 -> 7.158736357 | AK17: =L18*-1 -> 0
C18: =C19+C20+C46+C47+C48 -> -1235.908865 | D18: =D19+D20+D46+D47+D48 -> -173.28 | E18: -28.88 | F18: -852.8636271 | G18: -7.158736357 | H18: -7.158736357 | J18: 0 | K18: 0 | L18: 0 | M18: =M20+M46+M47+M48 -> 0 | N18: =N20+N46+N47+N48 -> -3306.274355 | O18: =O20+O46+O47+O48 -> -1739.652354 | P18: -1109.26358 | Q18: 0 | R18: 0 | S18: 0 | T18: -8453.281517 | U18: Afgang fra energisystemet | V18: A | X18: ='Størrelse på strømme'!E34 -> 234.8133755 | Y18: 6940.584443 | AB18: =SUM(AB19:AB20,AB46,AB47,AB48) -> 0 | AC18: =SUM(AC19:AC20,AC46,AC47,AC48) -> 0 | AD18: 0 | AE18: 0 | AF18: 0 | AG18: 0 | AH18: 0 | AI18: 0 | AJ18: 0 | AK18: 0 | AL18: 0 | AM18: 0 | AN18: 0 | AO18: 0 | AP18: 0 | AQ18: 6940.584443 | AR18: 0 | AS18: 1512.697074 | AT18: 333.7011636
G19: =H19+I19+J19+K19+L19 -> 0 | M19: =IF(M20+M46+M47+M48+AL15>0,(M20+M46+M47+M48+AL15)*-1,0) -> 0 | N19: =IF(AM8-AM15<0,AM8-AM15,0) -> 0 | O19: =IF(AN8-AN10-AN11-AN12<0,AN8-AN10-AN11-AN12,0) -> 0 | S19: 0 | T19: 0 | U19: Netto eksport/lager | V19: AES | W19: A | Y19: 0 | AF19: =AG19+AH19+AI19+AJ19+AK19 -> 0 | AS19: =(Y19+T19)*-1 -> 0 | AT19: =O19*Emissionsfaktorer!B13+M19*PtX!J9/1000 -> 0
C20: =C21+C28+C35+C38+C39+C40 -> 0 | D20: 0 | E20: 0 | F20: 0 | G20: 0 | H20: 0 | J20: 0 | K20: 0 | L20: 0 | M20: 0 | N20: -2159.257697 | O20: -1.73812296 | P20: 0 | Q20: 0 | R20: 0 | S20: 0 | T20: -2160.99582 | U20: Transport | V20: AT | W20: A | X20: ='Størrelse på strømme'!E22 -> 102.9045629 | Y20: 648.298746 | Z20: 0.3 | AB20: =AB21+AB28+AB35+AB38+AB39+AB40 -> 0 | AC20: 0 | AD20: 0 | AE20: 0 | AF20: 0 | AG20: 0 | AH20: 0 | AI20: 0 | AJ20: 0 | AK20: 0 | AL20: 0 | AM20: 0 | AN20: 0 | AO20: 0 | AP20: 0 | AQ20: =T20*Z20*-1 -> 648.298746 | AR20: 0 | AS20: 1512.697074 | AT20: =-('2030'!C20*Emissionsfaktorer!$B$5+'2030'!D20*Emissionsfaktorer!$B$7+'2030'!E20*Emissionsfaktorer!$B$8+N20*Emissionsfaktorer!$B$6) -> 159.7850696
C21: =SUM(C22:C27) -> 0 | D21: 0 | E21: 0 | F21: 0 | G21: 0 | H21: 0 | J21: 0 | K21: 0 | L21: 0 | M21: 0 | N21: -1885.194246 | O21: 0 | P21: 0 | Q21: 0 | R21: 0 | S21: 0 | T21: -1885.194246 | U21: Vejtrafik | V21: ATV | W21: AT | X21: ='Størrelse på strømme'!E24 -> 89.77115457 | Y21: 565.5582738 | Z21: 0.3 | AB21: =SUM(AB22:AB27) -> 0 | AC21: 0 | AD21: 0 | AE21: 0 | AF21: 0 | AG21: 0 | AH21: 0 | AI21: 0 | AJ21: 0 | AK21: 0 | AL21: 0 | AN21: 0 | AO21: 0 | AP21: 0 | AQ21: 565.5582738 | AR21: 0 | AS21: 1319.635972 | AT21: =-('2030'!C21*Emissionsfaktorer!$B$5+'2030'!D21*Emissionsfaktorer!$B$7+'2030'!E21*Emissionsfaktorer!$B$8+N21*Emissionsfaktorer!$B$6) -> 139.5043742
C22: =-'Transport modes'!$J$5*'Transport modes'!$J$13*'Teknologi til transport'!$J$6 -> 0 | F22: =-'Transport modes'!$J$5*'Transport modes'!$J$13*'Teknologi til transport'!$J$7 -> 0 | G22: =H22+I22+J22+K22+L22 -> 0 | M22: =-'Transport modes'!$J$5*'Transport modes'!$J$13*'Teknologi til transport'!$J$8 -> 0 | N22: =-'Transport modes'!$J$5*'Transport modes'!$J$13*'Teknologi til transport'!$J$9 -> -1300.78403 | O22: =-'Transport modes'!$J$5*'Transport modes'!$J$13*'Teknologi til transport'!$J$10 -> 0 | S22: 0 | T22: -1300.78403 | U22: Personbil | V22: PERSON | W22: ATV | Y22: 390.2352089 | Z22: 0.3 | AF22: 0 | AQ22: 390.2352089 | AS22: 910.5488208 | AT22: =-('2030'!C22*Emissionsfaktorer!$B$5+'2030'!D22*Emissionsfaktorer!$B$7+'2030'!E22*Emissionsfaktorer!$B$8+N22*Emissionsfaktorer!$B$6) -> 96.2580182
C23: =-'Transport modes'!$J$5*'Transport modes'!$J$14*'Teknologi til transport'!$J$12 -> 0 | F23: =-'Transport modes'!$J$5*'Transport modes'!$J$14*'Teknologi til transport'!$J$13 -> 0 | G23: 0 | M23: =-'Transport modes'!$J$5*'Transport modes'!$J$14*'Teknologi til transport'!$J$14 -> 0 | N23: =-'Transport modes'!$J$5*'Transport modes'!$J$14*'Teknologi til transport'!$J$15 -> -490.150504 | O23: =-'Transport modes'!$J$5*'Transport modes'!$J$14*'Teknologi til transport'!$J$16 -> 0 | S23: 0 | T23: -490.150504 | U23: Lastbil | V23: LAST | W23: ATV | Y23: 147.0451512 | Z23: 0.3 | AF23: 0 | AQ23: 147.0451512 | AS23: 343.1053528 | AT23: =-('2030'!C23*Emissionsfaktorer!$B$5+'2030'!D23*Emissionsfaktorer!$B$7+'2030'!E23*Emissionsfaktorer!$B$8+N23*Emissionsfaktorer!$B$6) -> 36.27113729
C24: =-'Transport modes'!$J$5*'Transport modes'!$J$15*'Teknologi til transport'!$J$18 -> 0 | F24: =-'Transport modes'!$J$5*'Transport modes'!$J$15*'Teknologi til transport'!$J$19 -> 0 | G24: 0 | M24: =-'Transport modes'!$J$5*'Transport modes'!$J$15*'Teknologi til transport'!$J$20 -> 0 | N24: =-'Transport modes'!$J$5*'Transport modes'!$J$15*'Teknologi til transport'!$J$21 -> -56.55582738 | O24: =-'Transport modes'!$J$5*'Transport modes'!$J$15*'Teknologi til transport'!$J$22 -> 0 | S24: 0 | T24: -56.55582738 | U24: Varebil | V24: VARE | W24: ATV | Y24: 16.96674821 | Z24: 0.3 | AF24: 0 | AQ24: 16.96674821 | AS24: 39.58907917 | AT24: =-('2030'!C24*Emissionsfaktorer!$B$5+'2030'!D24*Emissionsfaktorer!$B$7+'2030'!E24*Emissionsfaktorer!$B$8+N24*Emissionsfaktorer!$B$6) -> 4.185131226
C25: =-'Transport modes'!$J$5*'Transport modes'!$J$16*'Teknologi til transport'!$J$24 -> 0 | F25: =-'Transport modes'!$J$5*'Transport modes'!$J$16*'Teknologi til transport'!$J$25 -> 0 | G25: 0 | M25: =-'Transport modes'!$J$5*'Transport modes'!$J$16*'Teknologi til transport'!$J$26 -> 0 | N25: =-'Transport modes'!$J$5*'Transport modes'!$J$16*'Teknologi til transport'!$J$27 -> 0 | O25: =-'Transport modes'!$J$5*'Transport modes'!$J$16*'Teknologi til transport'!$J$28 -> 0 | S25: 0 | T25: 0 | U25: Knallert | V25: KNAL | W25: ATV | Y25: 0 | Z25: 0.3 | AF25: 0 | AQ25: 0 | AS25: 0 | AT25: =-('2030'!C25*Emissionsfaktorer!$B$5+'2030'!D25*Emissionsfaktorer!$B$7+'2030'!E25*Emissionsfaktorer!$B$8+N25*Emissionsfaktorer!$B$6) -> 0
C26: =-'Transport modes'!$J$5*'Transport modes'!$J$17*'Teknologi til transport'!$J$30 -> 0 | F26: =-'Transport modes'!$J$5*'Transport modes'!$J$17*'Teknologi til transport'!$J$31 -> 0 | G26: 0 | M26: =-'Transport modes'!$J$5*'Transport modes'!$J$17*'Teknologi til transport'!$J$32 -> 0 | N26: =-'Transport modes'!$J$5*'Transport modes'!$J$17*'Teknologi til transport'!$J$33 -> -18.85194246 | O26: =-'Transport modes'!$J$5*'Transport modes'!$J$17*'Teknologi til transport'!$J$34 -> 0 | S26: 0 | T26: -18.85194246 | U26: Motorcykel | V26: MC | W26: ATV | Y26: 5.655582738 | Z26: 0.3 | AF26: 0 | AQ26: 5.655582738 | AS26: 13.19635972 | AT26: =-('2030'!C26*Emissionsfaktorer!$B$5+'2030'!D26*Emissionsfaktorer!$B$7+'2030'!E26*Emissionsfaktorer!$B$8+N26*Emissionsfaktorer!$B$6) -> 1.395043742
C27: =-'Transport modes'!$J$5*'Transport modes'!$J$18*'Teknologi til transport'!$J$36 -> 0 | F27: =-'Transport modes'!$J$5*'Transport modes'!$J$18*'Teknologi til transport'!$J$37 -> 0 | G27: 0 | M27: =-'Transport modes'!$J$5*'Transport modes'!$J$18*'Teknologi til transport'!$J$38 -> 0 | N27: =-'Transport modes'!$J$5*'Transport modes'!$J$18*'Teknologi til transport'!$J$39 -> -18.85194246 | O27: =-'Transport modes'!$J$5*'Transport modes'!$J$18*'Teknologi til transport'!$J$40 -> 0 | S27: 0 | T27: -18.85194246 | U27: Bus | V27: BUS | W27: ATV | Y27: 5.655582738 | Z27: 0.3 | AF27: 0 | AQ27: 5.655582738 | AS27: 13.19635972 | AT27: =-('2030'!C27*Emissionsfaktorer!$B$5+'2030'!D27*Emissionsfaktorer!$B$7+'2030'!E27*Emissionsfaktorer!$B$8+N27*Emissionsfaktorer!$B$6) -> 1.395043742
C28: =SUM(C29:C34) -> 0 | D28: 0 | E28: 0 | F28: 0 | G28: 0 | H28: 0 | J28: 0 | K28: 0 | L28: 0 | M28: 0 | N28: -47.92253305 | O28: -1.73812296 | P28: 0 | Q28: 0 | R28: 0 | S28: 0 | T28: -49.66065601 | U28: Tog | V28: ATT | W28: AT | X28: ='Størrelse på strømme'!E26 -> 2.364793143 | Y28: 14.8981968 | Z28: 0.3 | AB28: =SUM(AB29:AB34) -> 0 | AC28: 0 | AD28: 0 | AE28: 0 | AF28: 0 | AG28: 0 | AH28: 0 | AI28: 0 | AJ28: 0 | AK28: 0 | AL28: 0 | AM28: 0 | AN28: 0 | AO28: 0 | AP28: 0 | AQ28: 14.8981968 | AR28: 0 | AS28: 34.76245921 | AT28: =-('2030'!C28*Emissionsfaktorer!$B$5+'2030'!D28*Emissionsfaktorer!$B$7+'2030'!E28*Emissionsfaktorer!$B$8+N28*Emissionsfaktorer!$B$6) -> 3.546267446
C29: =-'Transport modes'!$J$6*'Transport modes'!$J$20*'Teknologi til transport'!$J$43 -> 0 | F29: =-'Transport modes'!$J$6*'Transport modes'!$J$20*'Teknologi til transport'!$J$44 -> 0 | G29: =H29+I29+J29+K29+L29 -> 0 | M29: =-'Transport modes'!$J$6*'Transport modes'!$J$20*'Teknologi til transport'!$J$45 -> 0 | N29: =-'Transport modes'!$J$6*'Transport modes'!$J$20*'Teknologi til transport'!$J$46 -> -11.7944058 | O29: =-'Transport modes'!$J$6*'Transport modes'!$J$20*'Teknologi til transport'!$J$47 -> -0.6207582001 | S29: 0 | T29: -12.415164 | U29: Regionaltog | V29: REG | W29: ATT | Y29: 3.724549201 | Z29: 0.3 | AF29: 0 | AQ29: 3.724549201 | AS29: 8.690614801 | AT29: =-('2030'!C29*Emissionsfaktorer!$B$5+'2030'!D29*Emissionsfaktorer!$B$7+'2030'!E29*Emissionsfaktorer!$B$8+N29*Emissionsfaktorer!$B$6) -> 0.8727860293
C30: =-'Transport modes'!$J$6*'Transport modes'!$J$21*'Teknologi til transport'!$J$49 -> 0 | F30: =-'Transport modes'!$J$6*'Transport modes'!$J$21*'Teknologi til transport'!$J$50 -> 0 | G30: 0 | M30: =-'Transport modes'!$J$6*'Transport modes'!$J$21*'Teknologi til transport'!$J$51 -> 0 | N30: =-'Transport modes'!$J$6*'Transport modes'!$J$21*'Teknologi til transport'!$J$52 -> -20.71345962 | O30: =-'Transport modes'!$J$6*'Transport modes'!$J$21*'Teknologi til transport'!$J$53 -> -0.6406224625 | S30: 0 | T30: -21.35408208 | U30: Intercitytog | V30: INTERC | W30: ATT | Y30: 6.406224625 | Z30: 0.3 | AF30: 0 | AQ30: 6.406224625 | AS30: 14.94785746 | AT30: =-('2030'!C30*Emissionsfaktorer!$B$5+'2030'!D30*Emissionsfaktorer!$B$7+'2030'!E30*Emissionsfaktorer!$B$8+N30*Emissionsfaktorer!$B$6) -> 1.532796012
C31: =-'Transport modes'!$J$6*'Transport modes'!$J$22*'Teknologi til transport'!$J$55 -> 0 | F31: =-'Transport modes'!$J$6*'Transport modes'!$J$22*'Teknologi til transport'!$J$56 -> 0 | G31: 0 | M31: =-'Transport modes'!$J$6*'Transport modes'!$J$22*'Teknologi til transport'!$J$57 -> 0 | N31: =-'Transport modes'!$J$6*'Transport modes'!$J$22*'Teknologi til transport'!$J$58 -> -15.41466762 | O31: =-'Transport modes'!$J$6*'Transport modes'!$J$22*'Teknologi til transport'!$J$59 -> -0.4767422977 | S31: 0 | T31: -15.89140992 | U31: Lyntog | V31: LYN | W31: ATT | Y31: 4.767422977 | Z31: 0.3 | AF31: 0 | AQ31: 4.767422977 | AS31: 11.12398695 | AT31: =-('2030'!C31*Emissionsfaktorer!$B$5+'2030'!D31*Emissionsfaktorer!$B$7+'2030'!E31*Emissionsfaktorer!$B$8+N31*Emissionsfaktorer!$B$6) -> 1.140685404
C32: =-'Transport modes'!$J$6*'Transport modes'!$J$23*'Teknologi til transport'!$J$61 -> 0 | F32: =-'Transport modes'!$J$6*'Transport modes'!$J$23*'Teknologi til transport'!$J$62 -> 0 | G32: 0 | M32: =-'Transport modes'!$J$6*'Transport modes'!$J$23*'Teknologi til transport'!$J$63 -> 0 | N32: =-'Transport modes'!$J$6*'Transport modes'!$J$23*'Teknologi til transport'!$J$64 -> 0 | O32: =-'Transport modes'!$J$6*'Transport modes'!$J$23*'Teknologi til transport'!$J$65 -> 0 | S32: 0 | T32: 0 | U32: Lokalbane | V32: LOKAL | W32: ATT | Y32: 0 | Z32: 0.3 | AF32: 0 | AQ32: 0 | AS32: 0 | AT32: =-('2030'!C32*Emissionsfaktorer!$B$5+'2030'!D32*Emissionsfaktorer!$B$7+'2030'!E32*Emissionsfaktorer!$B$8+N32*Emissionsfaktorer!$B$6) -> 0
C33: =-'Transport modes'!$J$6*'Transport modes'!$J$24*'Teknologi til transport'!$J$67 -> 0 | F33: =-'Transport modes'!$J$6*'Transport modes'!$J$24*'Teknologi til transport'!$J$68 -> 0 | G33: 0 | M33: =-'Transport modes'!$J$6*'Transport modes'!$J$24*'Teknologi til transport'!$J$69 -> 0 | N33: =-'Transport modes'!$J$6*'Transport modes'!$J$24*'Teknologi til transport'!$J$70 -> 0 | O33: =-'Transport modes'!$J$6*'Transport modes'!$J$24*'Teknologi til transport'!$J$71 -> 0 | S33: 0 | T33: 0 | U33: S-tog | V33: STOG | W33: ATT | Y33: 0 | Z33: 0.3 | AF33: 0 | AQ33: 0 | AS33: 0 | AT33: =-('2030'!C33*Emissionsfaktorer!$B$5+'2030'!D33*Emissionsfaktorer!$B$7+'2030'!E33*Emissionsfaktorer!$B$8+N33*Emissionsfaktorer!$B$6) -> 0
C34: =-'Transport modes'!$J$6*'Transport modes'!$J$25*'Teknologi til transport'!$J$73 -> 0 | F34: =-'Transport modes'!$J$6*'Transport modes'!$J$25*'Teknologi til transport'!$J$74 -> 0 | G34: 0 | M34: =-'Transport modes'!$J$6*'Transport modes'!$J$25*'Teknologi til transport'!$J$75 -> 0 | N34: =-'Transport modes'!$J$6*'Transport modes'!$J$25*'Teknologi til transport'!$J$76 -> 0 | O34: =-'Transport modes'!$J$6*'Transport modes'!$J$25*'Teknologi til transport'!$J$77 -> 0 | S34: 0 | T34: 0 | U34: Metro | V34: METRO | W34: ATT | Y34: 0 | Z34: 0.3 | AF34: 0 | AQ34: 0 | AS34: 0 | AT34: =-('2030'!C34*Emissionsfaktorer!$B$5+'2030'!D34*Emissionsfaktorer!$B$7+'2030'!E34*Emissionsfaktorer!$B$8+N34*Emissionsfaktorer!$B$6) -> 0
C35: =C36+C37 -> 0 | D35: 0 | E35: 0 | F35: 0 | G35: 0 | H35: 0 | J35: 0 | K35: 0 | L35: 0 | M35: 0 | N35: -110.833324 | O35: 0 | P35: 0 | Q35: 0 | R35: 0 | S35: 0 | T35: -110.833324 | U35: Fly | V35: ATF | W35: AT | X35: ='Størrelse på strømme'!E28 -> 2.995495242 | Y35: 33.24999719 | Z35: 0.3 | AB35: =AB36+AB37 -> 0 | AC35: 0 | AD35: 0 | AE35: 0 | AF35: 0 | AG35: 0 | AH35: 0 | AI35: 0 | AJ35: 0 | AK35: 0 | AL35: 0 | AM35: 0 | AN35: 0 | AO35: 0 | AP35: 0 | AQ35: 33.24999719 | AR35: 0 | AS35: 77.58332678 | AT35: =-('2030'!C35*Emissionsfaktorer!$B$5+'2030'!D35*Emissionsfaktorer!$B$7+'2030'!E35*Emissionsfaktorer!$B$8+N35*Emissionsfaktorer!$B$6) -> 8.201665973
G36: =H36+I36+J36+K36+L36 -> 0 | M36: =-'Transport modes'!$J$7*'Transport modes'!$J$27*'Teknologi til transport'!$J$80 -> 0 | N36: =-'Transport modes'!$J$7*'Transport modes'!$J$27*'Teknologi til transport'!$J$81 -> -3.324999719 | O36: =-'Transport modes'!$J$7*'Transport modes'!$J$27*'Teknologi til transport'!$J$82 -> 0 | S36: 0 | T36: -3.324999719 | U36: Indenrigs | V36: INDEN | W36: ATF | Y36: 0.9974999157 | Z36: 0.3 | AF36: 0 | AQ36: 0.9974999157 | AS36: 2.327499803 | AT36: =-('2030'!C36*Emissionsfaktorer!$B$5+'2030'!D36*Emissionsfaktorer!$B$7+'2030'!E36*Emissionsfaktorer!$B$8+N36*Emissionsfaktorer!$B$6) -> 0.2460499792
G37: =H37+I37+J37+K37+L37 -> 0 | M37: =-'Transport modes'!$J$7*'Transport modes'!$J$28*'Teknologi til transport'!$J$84 -> 0 | N37: =-'Transport modes'!$J$7*'Transport modes'!$J$28*'Teknologi til transport'!$J$85 -> -107.5083242 | O37: =-'Transport modes'!$J$7*'Transport modes'!$J$28*'Teknologi til transport'!$J$86 -> 0 | S37: 0 | T37: -107.5083242 | U37: Udenrigs | V37: UDEN | W37: ATF | Y37: 32.25249727 | Z37: 0.3 | AF37: 0 | AQ37: 32.25249727 | AS37: 75.25582697 | AT37: =-('2030'!C37*Emissionsfaktorer!$B$5+'2030'!D37*Emissionsfaktorer!$B$7+'2030'!E37*Emissionsfaktorer!$B$8+N37*Emissionsfaktorer!$B$6) -> 7.955615994
G38: =H38+I38+J38+K38+L38 -> 0 | M38: =-'Transport modes'!$J$8*'Teknologi til transport'!J88 -> 0 | N38: =-'Transport modes'!$J$8*'Teknologi til transport'!J89 -> 0 | O38: =-'Transport modes'!$J$8*'Teknologi til transport'!J90 -> 0 | S38: 0 | T38: 0 | U38: Færge | V38: ATFÆRGE | W38: AT | Y38: 0 | Z38: 0.3 | AF38: 0 | AQ38: 0 | AS38: 0 | AT38: =-('2030'!C38*Emissionsfaktorer!$B$5+'2030'!D38*Emissionsfaktorer!$B$7+'2030'!E38*Emissionsfaktorer!$B$8+N38*Emissionsfaktorer!$B$6) -> 0
G39: =H39+I39+J39+K39+L39 -> 0 | M39: =-'Transport modes'!$J$9*'Teknologi til transport'!J92 -> 0 | N39: =-'Transport modes'!$J$9*'Teknologi til transport'!J93 -> -19.24608558 | O39: =-'Transport modes'!$J$9*'Teknologi til transport'!J94 -> 0 | S39: 0 | T39: -19.24608558 | U39: Fiskeri | V39: ATFISK | W39: AT | Y39: 5.773825673 | Z39: 0.3 | AF39: 0 | AQ39: 5.773825673 | AS39: 13.4722599 | AT39: =-('2030'!C39*Emissionsfaktorer!$B$5+'2030'!D39*Emissionsfaktorer!$B$7+'2030'!E39*Emissionsfaktorer!$B$8+N39*Emissionsfaktorer!$B$6) -> 1.424210333
C40: =SUM(C41:C45) -> 0 | D40: 0 | E40: 0 | F40: 0 | G40: 0 | H40: 0 | J40: 0 | K40: 0 | L40: 0 | M40: 0 | N40: -96.06150833 | O40: 0 | P40: 0 | Q40: 0 | R40: 0 | S40: 0 | T40: -96.06150833 | U40: Non-Road | V40: ATNONR | W40: AT | X40: ='Størrelse på strømme'!E30 -> 3.842460333 | Y40: 28.8184525 | Z40: 0.3 | AB40: =SUM(AB41:AB45) -> 0 | AC40: 0 | AD40: 0 | AE40: 0 | AF40: 0 | AG40: 0 | AH40: 0 | AI40: 0 | AJ40: 0 | AK40: 0 | AL40: 0 | AM40: 0 | AN40: 0 | AO40: 0 | AP40: 0 | AQ40: 28.8184525 | AR40: 0 | AS40: 67.24305583 | AT40: =-('2030'!C40*Emissionsfaktorer!$B$5+'2030'!D40*Emissionsfaktorer!$B$7+'2030'!E40*Emissionsfaktorer!$B$8+N40*Emissionsfaktorer!$B$6) -> 7.108551617
G41: =H41+I41+J41+K41+L41 -> 0 | M41: =-'Transport modes'!$J$10*'Transport modes'!$J$30*'Teknologi til transport'!$J$97 -> 0 | N41: =-'Transport modes'!$J$10*'Transport modes'!$J$30*'Teknologi til transport'!$J$98 -> -32.66091283 | O41: =-'Transport modes'!$J$10*'Transport modes'!$J$30*'Teknologi til transport'!$J$99 -> 0 | S41: 0 | T41: -32.66091283 | U41: Landbrug | V41: LANDBR | W41: ATNONR | Y41: 9.79827385 | Z41: 0.3 | AF41: 0 | AQ41: 9.79827385 | AS41: 22.86263898 | AT41: =-('2030'!C41*Emissionsfaktorer!$B$5+'2030'!D41*Emissionsfaktorer!$B$7+'2030'!E41*Emissionsfaktorer!$B$8+N41*Emissionsfaktorer!$B$6) -> 2.41690755
G42: 0 | M42: =-'Transport modes'!$J$10*'Transport modes'!$J$31*'Teknologi til transport'!$J$101 -> 0 | N42: =-'Transport modes'!$J$10*'Transport modes'!$J$31*'Teknologi til transport'!$J$102 -> -53.79444467 | O42: =-'Transport modes'!$J$10*'Transport modes'!$J$31*'Teknologi til transport'!$J$103 -> 0 | S42: 0 | T42: -53.79444467 | U42: Byggeri | V42: BYGGERI | W42: ATNONR | Y42: 16.1383334 | Z42: 0.3 | AF42: 0 | AQ42: 16.1383334 | AS42: 37.65611127 | AT42: =-('2030'!C42*Emissionsfaktorer!$B$5+'2030'!D42*Emissionsfaktorer!$B$7+'2030'!E42*Emissionsfaktorer!$B$8+N42*Emissionsfaktorer!$B$6) -> 3.980788905
G43: 0 | M43: =-'Transport modes'!$J$10*'Transport modes'!$J$32*'Teknologi til transport'!$J$105 -> 0 | N43: =-'Transport modes'!$J$10*'Transport modes'!$J$32*'Teknologi til transport'!$J$106 -> -0.9606150833 | O43: =-'Transport modes'!$J$10*'Transport modes'!$J$32*'Teknologi til transport'!$J$107 -> 0 | S43: 0 | T43: -0.9606150833 | U43: Skovbrug | V43: SKOV | W43: ATNONR | Y43: 0.288184525 | Z43: 0.3 | AF43: 0 | AQ43: 0.288184525 | AS43: 0.6724305583 | AT43: =-('2030'!C43*Emissionsfaktorer!$B$5+'2030'!D43*Emissionsfaktorer!$B$7+'2030'!E43*Emissionsfaktorer!$B$8+N43*Emissionsfaktorer!$B$6) -> 0.07108551617
G44: 0 | M44: =-'Transport modes'!$J$10*'Transport modes'!$J$33*'Teknologi til transport'!$J$109 -> 0 | N44: =-'Transport modes'!$J$10*'Transport modes'!$J$33*'Teknologi til transport'!$J$110 -> -2.88184525 | O44: =-'Transport modes'!$J$10*'Transport modes'!$J$33*'Teknologi til transport'!$J$111 -> 0 | S44: 0 | T44: -2.88184525 | U44: Have/park | V44: HAVE | W44: ATNONR | Y44: 0.864553575 | Z44: 0.3 | AF44: 0 | AQ44: 0.864553575 | AS44: 2.017291675 | AT44: =-('2030'!C44*Emissionsfaktorer!$B$5+'2030'!D44*Emissionsfaktorer!$B$7+'2030'!E44*Emissionsfaktorer!$B$8+N44*Emissionsfaktorer!$B$6) -> 0.2132565485
G45: 0 | M45: =-'Transport modes'!$J$10*'Transport modes'!$J$34*'Teknologi til transport'!$J$113 -> 0 | N45: =-'Transport modes'!$J$10*'Transport modes'!$J$34*'Teknologi til transport'!$J$114 -> -5.7636905 | O45: =-'Transport modes'!$J$10*'Transport modes'!$J$34*'Teknologi til transport'!$J$115 -> 0 | S45: 0 | T45: -5.7636905 | U45: Øvrig erhverv | V45: ØVRIGERH | W45: ATNONR | Y45: 1.72910715 | Z45: 0.3 | AF45: 0 | AQ45: 1.72910715 | AS45: 4.03458335 | AT45: =-('2030'!C45*Emissionsfaktorer!$B$5+'2030'!D45*Emissionsfaktorer!$B$7+'2030'!E45*Emissionsfaktorer!$B$8+N45*Emissionsfaktorer!$B$6) -> 0.426513097
C46: ='Opvarmning og proces'!$J$4*'Opvarmning og proces'!$J$9 -> -121.0046329 | D46: ='Opvarmning og proces'!$J$4*'Opvarmning og proces'!$J$10 -> 0 | E46: ='Opvarmning og proces'!$J$4*'Opvarmning og proces'!$J$11 -> 0 | F46: ='Opvarmning og proces'!$J$4*'Opvarmning og proces'!$J$12 -> -357.9720389 | G46: -5.041859703 | H46: ='Opvarmning og proces'!$J$4*'Opvarmning og proces'!$J$13 -> -5.041859703 | L46: ='Opvarmning og proces'!J4*'Opvarmning og proces'!J16*(Fjernvarmeproduktion!J24-1) -> 0 | M46: ='Opvarmning og proces'!$J$4*'Opvarmning og proces'!$J$14 -> 0 | N46: ='Opvarmning og proces'!$J$4*'Opvarmning og proces'!$J$15 -> -20.16743881 | O46: ='Opvarmning og proces'!$J$4*'Opvarmning og proces'!$J$16+Elapparater!J4 -> -273.3900516 | P46: =Fjernvarme!J4 -> -661.7684395 | S46: 0 | T46: -1439.344461 | U46: Husholdninger | V46: AH | W46: A | Y46: 1439.344461 | Z46: 1 | AQ46: =T46/Z46*-1 -> 1439.344461 | AS46: 0 | AT46: =-('2030'!C46*Emissionsfaktorer!$B$5+'2030'!D46*Emissionsfaktorer!$B$7+'2030'!E46*Emissionsfaktorer!$B$8+N46*Emissionsfaktorer!$B$6) -> 8.389654546
C47: ='Opvarmning og proces'!$J$5*'Opvarmning og proces'!$J$18 -> -17.4642324 | D47: ='Opvarmning og proces'!$J$5*'Opvarmning og proces'!$J$19 -> 0 | E47: ='Opvarmning og proces'!$J$5*'Opvarmning og proces'!$J$20 -> 0 | F47: ='Opvarmning og proces'!$J$5*'Opvarmning og proces'!$J$21 -> -32.81158814 | G47: -2.116876654 | H47: ='Opvarmning og proces'!$J$5*'Opvarmning og proces'!$J$22 -> -2.116876654 | L47: ='Opvarmning og proces'!J5*'Opvarmning og proces'!J25*(Fjernvarmeproduktion!J24-1) -> 0 | M47: ='Opvarmning og proces'!$J$5*'Opvarmning og proces'!$J$23 -> 0 | N47: ='Opvarmning og proces'!$J$5*'Opvarmning og proces'!$J$24 -> -0.5292191635 | O47: ='Opvarmning og proces'!$J$5*'Opvarmning og proces'!$J$25+Elapparater!J5 -> -178.585272 | P47: =Fjernvarme!J5 -> -304.8473642 | S47: 0 | T47: -536.3545526 | U47: Offentlig | V47: AO | W47: A | Y47: 536.3545526 | Z47: 1 | AQ47: =T47/Z47*-1 -> 536.3545526 | AS47: 0 | AT47: =-('2030'!C47*Emissionsfaktorer!$B$5+'2030'!D47*Emissionsfaktorer!$B$7+'2030'!E47*Emissionsfaktorer!$B$8+N47*Emissionsfaktorer!$B$6) -> 1.034623465
C48: ='Opvarmning og proces'!$J$6*'Opvarmning og proces'!$J$27 -> -1097.44 | D48: ='Opvarmning og proces'!$J$6*'Opvarmning og proces'!$J$28 -> -173.28 | E48: ='Opvarmning og proces'!$J$6*'Opvarmning og proces'!$J$29 -> -28.88 | F48: ='Opvarmning og proces'!$J$6*'Opvarmning og proces'!$J$30 -> -462.08 | G48: 0 | H48: ='Opvarmning og proces'!$J$6*'Opvarmning og proces'!$J$31 -> 0 | L48: ='Opvarmning og proces'!J6*'Opvarmning og proces'!J34*(Fjernvarmeproduktion!J24-1) -> 0 | M48: ='Opvarmning og proces'!$J$6*'Opvarmning og proces'!$J$32 -> 0 | N48: ='Opvarmning og proces'!$J$6*'Opvarmning og proces'!$J$33 -> -1126.32 | O48: ='Opvarmning og proces'!$J$6*'Opvarmning og proces'!$J$34+Elapparater!J6 -> -1285.938907 | P48: =Fjernvarme!J6 -> -142.6477764 | S48: 0 | T48: -4316.586684 | U48: Erhverv | V48: AE | W48: A | Y48: 4316.586684 | Z48: 1 | AQ48: =T48/Z48*-1 -> 4316.586684 | AS48: 0 | AT48: =-('2030'!C48*Emissionsfaktorer!$B$5+'2030'!D48*Emissionsfaktorer!$B$7+'2030'!E48*Emissionsfaktorer!$B$8+N48*Emissionsfaktorer!$B$6) -> 164.491816
U49: Energitjenester | V49: EN

Sheet e2g-format 2017 (hidden)
B1: Forbrug | C1: Naturgas | D1: Kul | E1: Affald (ikke-bionedbrydeligt) | F1: Biobrændsler | G1: Halm | H1: Skovflis | I1: Brænde | J1: Træpiller | K1: Træaffald | L1: Biogas | M1: Biomasse | N1: Affald (bionedbrydeligt) | O1: Ikke-brændsel VE | P1: Sol | Q1: Vind | R1: Havvind | S1: Landvind | T1: Vand | U1: Geotermisk | V1: Varmepumpe - omgivelsesvarme | W1: Bioolie, biodiesel og bioethanol | X1: Olieprodukter | Y1: Raffinaderigas | Z1: LPG | AA1: Flybenzin | AB1: Benzin | AC1: Petroleum / Kerosen | AD1: JP1 | AE1: Gasolie/Dieselolie | AF1: Fuelolie | AG1: Spildolie | AH1: Petrokoks | AI1: Terpentin, smøreolie og bitumen | AJ1: El | AK1: Fjernvarme | AL1: Overskudsvarme | AM1: Energitjenester | AN1: Total energiforbrug | AO1: Brutto brændsel | AP1: =Andet!B4 -> Fredericia | AS1: Faktor | AT1: Brutto produktion | AU1: Virkningsgrad | AV1: Produktion | AW1: Naturgas | AX1: Kul | AY1: Affald (ikke-bionedbrydeligt) | AZ1: Biobrændsler | BA1: Halm | BB1: Skovflis | BC1: Brænde | BD1: Træpiller | BE1: Træaffald | BF1: Biogas | BG1: Biomasse | BH1: Affald (bionedbrydeligt) | BI1: Ikke-brændsel VE | BJ1: Sol | BK1: Vind | BL1: Havvind | BM1: Landvind | BN1: Vand | BO1: Geotermisk | BP1: Varmepumpe - omgivelsesvarme | BQ1: Bioolie, biodiesel og bioethanol | BR1: Olieprodukter | BS1: Raffinaderigas | BT1: LPG | BU1: Flybenzin | BV1: Benzin | BW1: Petroleum / Kerosen | BX1: JP1 | BY1: Gasolie/Dieselolie | BZ1: Fuelolie | CA1: Spildolie | CB1: Petrokoks | CC1: Terpentin, smøreolie og bitumen | CD1: El | CE1: Fjernvarme | CF1: Nyttiggjort overskudsvarme | CG1: Energitjenester | CH1: Total energiforbrug | CI1: Tab | CJ1: CO2-udledning
A2: ID | B2: F | C2: FN | D2: FK | E2: FMA | F2: FVB | G2: FB1 | H2: FB2 | I2: FB3 | J2: FB4 | K2: FB5 | L2: FB6 | M2: FB7 | N2: FB8 | O2: FLVE | P2: FLVE1 | Q2: FLVE2 | R2: FLVE21 | S2: FLVE22 | T2: FLVE3 | U2: FLVE4 | V2: FLVE5 | W2: FS | X2: FOO | Y2: FO1 | Z2: FO2 | AA2: FO3 | AB2: FO4 | AC2: FO5 | AD2: FO6 | AE2: FO7 | AF2: FO8 | AG2: FO9 | AH2: FOO1 | AI2: FOO2 | AJ2: FE | AK2: FF | AL2: FOV | AM2: FWEN | AN2: FTOTAL | AO2: fbrbr | AQ2: ID | AR2: ID Parent | AS2: factor | AT2: pbrpr | AU2: pvrkg | AV2: P | AW2: PN | AX2: PK | AY2: PMA | AZ2: PVB | BA2: PB1 | BB2: PB2 | BC2: PB3 | BD2: PB4 | BE2: PB5 | BF2: PB6 | BG2: PB7 | BH2: PB8 | BI2: PLVE | BJ2: PLVE1 | BK2: PLVE2 | BL2: PLVE21 | BM2: PLVE22 | BN2: PLVE3 | BO2: PLVE4 | BP2: PLVE5 | BQ2: PS | BR2: POO | BS2: PO1 | BT2: PO2 | BU2: PO3 | BV2: PO4 | BW2: PO5 | BX2: PO6 | BY2: PO7 | BZ2: PO8 | CA2: PO9 | CB2: POO1 | CC2: POO2 | CD2: PE | CE2: PF | CF2: POV | CG2: PWEN | CH2: PTOTAL | CI2: PTAB | CJ2: PCO2
A3: ID Parent | C3: F | D3: F | E3: F | F3: F | G3: FVB | H3: FVB | I3: FVB | J3: FVB | K3: FVB | L3: FVB | M3: FVB | N3: FVB | O3: F | P3: FLVE | Q3: FLVE | R3: FLVE2 | S3: FLVE2 | T3: FLVE | U3: FLVE | V3: FLVE | W3: F | X3: F | Y3: FOO | Z3: FOO | AA3: FOO | AB3: FOO | AC3: FOO | AD3: FOO | AE3: FOO | AF3: FOO | AG3: FOO | AH3: FOO | AI3: FOO | AJ3: F | AK3: F | AL3: F | AM3: F | AN3: F | AP3: Structures | AW3: P | AX3: P | AY3: P | AZ3: P | BA3: PVB | BB3: PVB | BC3: PVB | BD3: PVB | BE3: PVB | BF3: PVB | BG3: PVB | BH3: PVB | BI3: P | BJ3: PLVE | BK3: PLVE | BL3: PLVE2 | BM3: PLVE2 | BN3: PLVE | BO3: PLVE | BP3: PLVE | BQ3: P | BR3: P | BS3: POO | BT3: POO | BU3: POO | BV3: POO | BW3: POO | BX3: POO | BY3: POO | BZ3: POO | CA3: POO | CB3: POO | CC3: POO | CD3: P | CE3: P | CF3: P | CG3: P | CH3: P
B4: ='Størrelse på strømme'!E8 -> 497.2327402 | F4: ='Størrelse på strømme'!#REF! ->  | O4: ='Størrelse på strømme'!E19 -> 3.185 | Q4: ='Størrelse på strømme'!E19 -> 3.185 | X4: ='Størrelse på strømme'!#REF! ->  | AV4: =B4 -> 497.2327402 | AZ4: =F4 ->  | BI4: =O4 -> 3.185 | BK4: =Q4 -> 3.185 | BR4: =X4 ->  | CI4: =B4 -> 497.2327402 | CJ4: ='Størrelse på strømme'!E41 -> 11.00191283
F5: =SUM(G5:N5) -> 0 | O5: =P5+Q5+T5+U5+V5 -> 0 | Q5: =R5+S5 -> 0 | X5: =SUM(Y5:AI5) -> 0 | AN5: 0 | AO5: =SUM(C5:F5,O5,W5,X5,AJ5:AL5) -> 0 | AP5: Indgang for brændsler (bio, kul mv.) | AQ5: TP | AS5: ='Størrelse på strømme'!E36 -> 100.8736013 | AT5: =SUM(AW5:AZ5,BI5,BQ5,BR5,CD5:CG5) -> 5028.625485 | AW5: =-C6 -> 2877.019788 | AX5: 176 | AY5: 165.2841675 | AZ5: 1810.321529 | BA5: 0 | BB5: 773.1867815 | BC5: 0 | BD5: 0 | BE5: 1.080684994 | BF5: 12.92896873 | BG5: 0 | BH5: 164.1250936 | BI5: =BJ5+BK5+BN5+BO5+BP5 -> 0 | BK5: =BL5+BM5 -> 0 | BR5: =SUM(BS5:CC5) -> 0
C6: =-AW6 -> -2877.019788 | D6: =-AX6 -> -176 | E6: -165.2841675 | F6: -1810.321529 | G6: 0 | H6: -773.1867815 | I6: 0 | J6: 0 | K6: -1.080684994 | L6: -12.92896873 | M6: 0 | N6: -164.1250936 | O6: =P6+Q6+T6+U6+V6 -> 0 | Q6: 0 | X6: =SUM(Y6:AI6) -> 0 | AN6: 0 | AO6: -5028.625485 | AP6: Transport af brændsler | AQ6: TRAP | AT6: 5028.625485 | AW6: =-1*(C8+C20) -> 2877.019788 | AX6: 176 | AY6: 165.2841675 | AZ6: 1810.321529 | BA6: 0 | BB6: 773.1867815 | BC6: 0 | BD6: 0 | BE6: 1.080684994 | BF6: 12.92896873 | BG6: 0 | BH6: 164.1250936 | BI6: =BJ6+BK6+BN6+BO6+BP6 -> 0 | BK6: 0 | BR6: =SUM(BS6:CC6) -> 0
F7: =SUM(G7:N7) -> 0 | O7: =P7+Q7+T7+U7+V7 -> 0 | Q7: 0 | X7: =SUM(Y7:AI7) -> 0 | AN7: 0 | AO7: 0 | AP7: Indgang nettilsluttet VE | AQ7: TLP1 | AT7: 33.0708 | AZ7: =SUM(BA7:BH7) -> 0 | BI7: =BJ7+BK7+BN7+BO7+BP7 -> 33.0708 | BJ7: =P8*-1 -> 18.9108 | BK7: 14.16 | BL7: =R8*-1 -> 0 | BM7: =S8*-1 -> 14.16 | BR7: =SUM(BS7:CC7) -> 0
C8: =SUM(C9:C11,C14:C17) -> -1664.745086 | D8: 0 | E8: -134.2841675 | F8: -951.3215288 | G8: 0 | H8: -773.1867815 | I8: 0 | J8: 0 | K8: -1.080684994 | L8: -12.92896873 | M8: 0 | N8: -164.1250936 | O8: =P8+Q8+T8+U8+V8 -> -33.0708 | P8: -18.9108 | Q8: -14.16 | R8: 0 | S8: -14.16 | T8: 0 | U8: 0 | V8: 0 | W8: 0 | X8: 0 | Y8: 0 | Z8: 0 | AA8: 0 | AB8: 0 | AC8: 0 | AD8: 0 | AE8: 0 | AF8: 0 | AG8: 0 | AH8: 0 | AI8: 0 | AJ8: 0 | AK8: 0 | AL8: -213.758603 | AM8: =SUM(AM9:AM11,AM14:AM17) -> 0 | AN8: 0 | AO8: -2997.180186 | AP8: Indgang el, varme og olieprodukter | AQ8: TS | AS8: ='Størrelse på strømme'!E32 -> 497.2327402 | AT8: 6481.812207 | AW8: =SUM(AW9:AW11,AW14:AW17) -> 0 | AX8: 0 | AY8: 0 | AZ8: 0 | BA8: 0 | BB8: 0 | BC8: 0 | BD8: 0 | BE8: 0 | BF8: 0 | BG8: 0 | BH8: 0 | BI8: =BJ8+BK8+BN8+BO8+BP8 -> 0 | BJ8: 0 | BK8: 0 | BL8: 0 | BM8: 0 | BN8: 0 | BO8: 0 | BP8: 0 | BQ8: 0 | BR8: 3315.505518 | BS8: 0 | BT8: 0 | BU8: 0 | BV8: 505.2886793 | BW8: 0 | BX8: 110.833324 | BY8: 1542.55033 | BZ8: 0 | CA8: 0 | CB8: 0 | CC8: 0 | CD8: 1835.190393 | CE8: 1331.116296 | CF8: 0 | CG8: 0 | CH8: 0 | CI8: 1261.003788 | CJ8: 240.9810913
F9: 0 | O9: =P9+Q9+T9+U9+V9 -> 0 | Q9: 0 | X9: =SUM(Y9:AI9) -> 0 | AN9: 0 | AO9: 0 | AP9: Netto import/lager | AQ9: IMP | AR9: TS | AT9: 4745.635809 | AZ9: 0 | BI9: =BJ9+BK9+BN9+BO9+BP9 -> 0 | BK9: 0 | BR9: =IF(BR17+X18<0,(BR17+X18)*-1,0) -> 3315.505518 | BV9: =IF(BV17+AB18<0,(BV17+AB18)*-1) -> 505.2886793 | BX9: =IF(BX17+AD18<0,(BX17+AD18)*-1) -> 110.833324 | BY9: =IF(BY17+AE20<0,(BY17+AE20)*-1,0) -> 1542.55033 | CD9: =IF(CD10+CD11+CD14+AJ18<0,(CD10+CD11+CD14+AJ18)*-1,0) -> 1430.130291 | CJ9: =CD9*Emissionsfaktorer!B2+CE9*Emissionsfaktorer!B4 -> 136.1535929
C10: =-'Beregning for konvertering'!D21 -> -1530.493114 | D10: =-'Beregning for konvertering'!B21 -> 0 | E10: =-'Beregning for konvertering'!E21 -> -123.4549334 | F10: -874.6030015 | G10: =-'Beregning for konvertering'!F21 -> 0 | H10: =-'Beregning for konvertering'!G21 -> -710.8337815 | I10: =-'Beregning for konvertering'!H21 -> 0 | J10: =-'Beregning for konvertering'!I21 -> 0 | K10: =-'Beregning for konvertering'!J21 -> -0.9935340582 | L10: =-'Beregning for konvertering'!M21 -> -11.88632288 | M10: =-'Beregning for konvertering'!L21 -> 0 | N10: =-'Beregning for konvertering'!K21 -> -150.889363 | O10: =P10+Q10+T10+U10+V10 -> 0 | P10: =-'Beregning for konvertering'!O21 -> 0 | Q10: 0 | X10: =-'Beregning for konvertering'!C21 -> 0 | AJ10: =-'Beregning for konvertering'!P21 -> 0 | AL10: =-'Beregning for konvertering'!N21 -> 0 | AN10: 0 | AO10: -2528.551049 | AP10: El og varmeproduktion | AQ10: ELOGVARME | AR10: TS | AT10: 1289.727235 | AU10: =AT10/AO10*-1 -> 0.5100657292 | AZ10: 0 | BI10: =BJ10+BK10+BN10+BO10+BP10 -> 0 | BK10: 0 | BR10: =SUM(BS10:CC10) -> 0 | CD10: =SUM('Beregning for konvertering'!B4:Q4)*0.0000036 -> 371.9893019 | CE10: =SUM('Beregning for konvertering'!B6:Q6)*0.0000036 -> 917.7379327 | CI10: =(AT10+AO10)*-1 -> 1238.823814 | CJ10: =-('e2g-format 2019'!C10*Emissionsfaktorer!$B$5+'e2g-format 2019'!D10*Emissionsfaktorer!$B$7+'e2g-format 2019'!E10*Emissionsfaktorer!$B$8+X10*Emissionsfaktorer!$B$6) -> 96.37377257
C11: =C12+C13 -> 0 | D11: 0 | E11: 0 | F11: 0 | G11: 0 | H11: 0 | I11: 0 | J11: 0 | K11: 0 | L11: 0 | M11: 0 | N11: 0 | O11: -14.16 | P11: 0 | Q11: -14.16 | R11: 0 | S11: -14.16 | T11: 0 | U11: 0 | V11: 0 | W11: 0 | X11: =SUM(Y11:AI11) -> 0 | Y11: 0 | Z11: 0 | AA11: 0 | AB11: 0 | AC11: 0 | AD11: 0 | AE11: 0 | AF11: 0 | AG11: 0 | AH11: 0 | AI11: 0 | AJ11: 0 | AK11: 0 | AL11: 0 | AM11: 0 | AN11: 0 | AO11: -14.16 | AP11: Vindmøller | AQ11: VIND | AR11: TS | AS11: ='Størrelse på strømme'!#REF! ->  | AT11: 14.16 | AW11: =AW12+AW13 -> 0 | AX11: 0 | AY11: 0 | AZ11: 0 | BA11: =BA12+BA13 -> 0 | BB11: 0 | BC11: 0 | BD11: 0 | BE11: 0 | BF11: 0 | BG11: 0 | BH11: 0 | BI11: 0 | BJ11: =BJ12+BJ13 -> 0 | BK11: 0 | BL11: =BL12+BL13 -> 0 | BM11: 0 | BN11: 0 | BO11: 0 | BP11: 0 | BQ11: 0 | BR11: 0 | BS11: =BS12+BS13 -> 0 | BT11: 0 | BU11: 0 | BV11: 0 | BW11: 0 | BX11: 0 | BY11: 0 | BZ11: 0 | CA11: 0 | CB11: 0 | CC11: 0 | CD11: 14.16 | CE11: 0 | CF11: 0 | CG11: 0 | CH11: 0 | CI11: 0 | CJ11: 0
F12: 0 | O12: =P12+Q12+T12+U12+V12 -> 0 | Q12: 0 | R12: =CD12*-1 -> 0 | X12: =SUM(Y12:AI12) -> 0 | AN12: 0 | AO12: 0 | AP12: Kystvindmøller | AQ12: KYST | AR12: VIND | AT12: 0 | AZ12: 0 | BI12: =BJ12+BK12+BN12+BO12+BP12 -> 0 | BK12: 0 | BR12: =SUM(BS12:CC12) -> 0 | CD12: =Energi!B34*0.0000036 -> 0 | CI12: =(AT12+AO12)*-1 -> 0 | CJ12: =-('e2g-format 2019'!C12*Emissionsfaktorer!$B$5+'e2g-format 2019'!D12*Emissionsfaktorer!$B$7+'e2g-format 2019'!E12*Emissionsfaktorer!$B$8+X12*Emissionsfaktorer!$B$6) -> 0
F13: 0 | O13: =P13+Q13+T13+U13+V13 -> -14.16 | Q13: -14.16 | S13: =CD13*-1 -> -14.16 | X13: =SUM(Y13:AI13) -> 0 | AN13: 0 | AO13: -14.16 | AP13: Landvindmøller | AQ13: LAND | AR13: VIND | AT13: 14.16 | AZ13: 0 | BI13: =BJ13+BK13+BN13+BO13+BP13 -> 0 | BK13: 0 | BR13: =SUM(BS13:CC13) -> 0 | CD13: =Energi!B35*0.0000036 -> 14.16 | CI13: 0 | CJ13: =-('e2g-format 2019'!C13*Emissionsfaktorer!$B$5+'e2g-format 2019'!D13*Emissionsfaktorer!$B$7+'e2g-format 2019'!E13*Emissionsfaktorer!$B$8+X13*Emissionsfaktorer!$B$6) -> 0
F14: 0 | O14: =P14+Q14+T14+U14+V14 -> -18.9108 | P14: =CD14*-1 -> -18.9108 | Q14: 0 | X14: =SUM(Y14:AI14) -> 0 | AN14: 0 | AO14: -18.9108 | AP14: Solceller | AQ14: SOLSTR | AR14: TS | AT14: 18.9108 | AZ14: 0 | BI14: =BJ14+BK14+BN14+BO14+BP14 -> 0 | BK14: 0 | BR14: =SUM(BS14:CC14) -> 0 | CD14: =Energi!B36*0.0000036 -> 18.9108 | CI14: =(AT14+AO14)*-1 -> 0 | CJ14: =-('e2g-format 2019'!C14*Emissionsfaktorer!$B$5+'e2g-format 2019'!D14*Emissionsfaktorer!$B$7+'e2g-format 2019'!E14*Emissionsfaktorer!$B$8+X14*Emissionsfaktorer!$B$6) -> 0
C15: =-'Beregning for konvertering'!D22 -> -134.2519722 | D15: =-'Beregning for konvertering'!B22 -> 0 | E15: =-'Beregning for konvertering'!E22 -> -10.82923414 | F15: -76.71852734 | G15: =-'Beregning for konvertering'!F22 -> 0 | H15: =-'Beregning for konvertering'!G22 -> -62.35299994 | I15: =-'Beregning for konvertering'!H22 -> 0 | J15: =-'Beregning for konvertering'!I22 -> 0 | K15: =-'Beregning for konvertering'!J22 -> -0.08715093554 | L15: =-'Beregning for konvertering'!M22 -> -1.042645847 | M15: =-'Beregning for konvertering'!L22 -> 0 | N15: =-'Beregning for konvertering'!K22 -> -13.23573061 | O15: 0 | P15: =-'Beregning for konvertering'!O22 -> 0 | Q15: 0 | X15: =-'Beregning for konvertering'!C22 -> 0 | AJ15: =-'Beregning for konvertering'!P22 -> 0 | AL15: =-'Beregning for konvertering'!N22 -> 0 | AN15: 0 | AO15: -221.7997336 | AP15: Fjernvarmekedler | AQ15: KEDLER | AR15: TS | AT15: 199.6197603 | AU15: =AT15/AO15*-1 -> 0.9 | AZ15: 0 | BI15: 0 | BK15: 0 | BR15: 0 | CE15: =SUM('Beregning for konvertering'!B7:Q7)*0.0000036 -> 199.6197603 | CI15: =(AT15+AO15)*-1 -> 22.17997336 | CJ15: =-('e2g-format 2019'!C15*Emissionsfaktorer!$B$5+'e2g-format 2019'!D15*Emissionsfaktorer!$B$7+'e2g-format 2019'!E15*Emissionsfaktorer!$B$8+X15*Emissionsfaktorer!$B$6) -> 8.45372574
C16: =-'Beregning for konvertering'!D23 -> 0 | D16: =-'Beregning for konvertering'!B23 -> 0 | E16: =-'Beregning for konvertering'!E23 -> 0 | F16: 0 | G16: =-'Beregning for konvertering'!F23 -> 0 | H16: =-'Beregning for konvertering'!G23 -> 0 | I16: =-'Beregning for konvertering'!H23 -> 0 | J16: =-'Beregning for konvertering'!I23 -> 0 | K16: =-'Beregning for konvertering'!J23 -> 0 | L16: =-'Beregning for konvertering'!M23 -> 0 | M16: =-'Beregning for konvertering'!L23 -> 0 | N16: =-'Beregning for konvertering'!K23 -> 0 | O16: 0 | P16: =-'Beregning for konvertering'!O23 -> 0 | Q16: 0 | X16: =-'Beregning for konvertering'!C23 -> 0 | AJ16: =-'Beregning for konvertering'!P23 -> 0 | AL16: =-'Beregning for konvertering'!N23 -> -213.758603 | AN16: 0 | AO16: -213.758603 | AP16: Anden varmeproduktion | AQ16: ANDENV | AR16: TS | AT16: 213.758603 | AU16: =AT16/AO16*-1 -> 1 | AZ16: 0 | BI16: 0 | BK16: 0 | BR16: 0 | CE16: =SUM('Beregning for konvertering'!B8:Q8)*0.0000036 -> 213.758603 | CI16: =(AT16+AO16)*-1 -> 2.842170943e-14 | CJ16: =-('e2g-format 2019'!C16*Emissionsfaktorer!$B$5+'e2g-format 2019'!D16*Emissionsfaktorer!$B$7+'e2g-format 2019'!E16*Emissionsfaktorer!$B$8+X16*Emissionsfaktorer!$B$6) -> 0
F17: 0 | O17: 0 | Q17: 0 | X17: 0 | AN17: 0 | AO17: 0 | AP17: Raffinaderi | AQ17: RAF | AR17: TS | AT17: 0 | AZ17: 0 | BI17: 0 | BK17: 0 | BR17: 0 | CI17: =(AT17+AO17)*-1 -> 0 | CJ17: =-('e2g-format 2019'!C17*Emissionsfaktorer!$B$5+'e2g-format 2019'!D17*Emissionsfaktorer!$B$7+'e2g-format 2019'!E17*Emissionsfaktorer!$B$8+X17*Emissionsfaktorer!$B$6) -> 0
F18: 0 | O18: =P18+Q18+T18+U18+V18 -> 0 | Q18: =R18+S18 -> 0 | X18: =BR18*-1 -> -3315.505518 | Y18: =BS18*-1 -> 0 | Z18: =BT18*-1 -> 0 | AA18: 0 | AB18: -505.2886793 | AC18: 0 | AD18: -110.833324 | AE18: -1542.55033 | AF18: 0 | AG18: 0 | AH18: 0 | AI18: 0 | AJ18: =CD18*-1*(1+Energi!B29/100) -> -1835.190393 | AK18: =-SUM('Beregning for konvertering'!B3:Q3)*0.0000036 -> -1331.116296 | AN18: 0 | AO18: -6481.812207 | AP18: Transport af el, fjernvarme, mv. | AQ18: TRAS | AS18: ='Størrelse på strømme'!E38 -> 129.2805124 | AT18: 6164.995038 | AZ18: 0 | BI18: =BJ18+BK18+BN18+BO18+BP18 -> 0 | BK18: =BL18+BM18 -> 0 | BR18: =X20*-1 -> 3315.505518 | BS18: 0 | BT18: 0 | BU18: 0 | BV18: 505.2886793 | BW18: 0 | BX18: 110.833324 | BY18: 1542.55033 | BZ18: 0 | CA18: 0 | CB18: 0 | CC18: 0 | CD18: 1740.22594 | CE18: 1109.26358 | CI18: =(AT18+AO18)*-1 -> 316.8171691
F19: 0 | O19: =P19+Q19+T19+U19+V19 -> 0 | Q19: =R19+S19 -> 0 | X19: =SUM(Y19:AI19) -> 0 | AN19: 0 | AO19: 0 | AP19: Indgang ikke-nettilsluttet VE | AQ19: TLP2 | AT19: 0 | AZ19: 0 | BI19: =BJ19+BK19+BN19+BO19+BP19 -> 0 | BK19: =BL19+BM19 -> 0 | BR19: =SUM(BS19:CC19) -> 0
C20: =SUM(C21:C22,C48,C61,C69,C84,C99) -> -1212.274702 | D20: -176 | E20: -31 | F20: -859 | G20: 0 | H20: 0 | I20: 0 | J20: 0 | K20: 0 | L20: 0 | M20: 0 | N20: 0 | O20: -10 | P20: -10 | Q20: 0 | R20: 0 | S20: 0 | T20: 0 | U20: 0 | V20: 0 | W20: 0 | X20: -3315.505518 | Y20: 0 | Z20: 0 | AA20: 0 | AB20: -505.2886793 | AC20: 0 | AD20: -110.833324 | AE20: -1542.55033 | AF20: 0 | AG20: 0 | AH20: 0 | AI20: 0 | AJ20: -1740.22594 | AK20: -1109.26358 | AL20: 0 | AM20: 0 | AN20: 0 | AO20: -8453.26974 | AP20: Afgang fra energisystemet | AQ20: A | AS20: ='Størrelse på strømme'!E34 -> 234.8133755 | AT20: 6004.71459 | AW20: =SUM(AW21:AW22,AW48,AW61,AW69,AW84,AW99) -> 0 | AX20: =SUM(AX21:AX22,AX48,AX61,AX69,AX84,AX99) -> 0 | AY20: 0 | AZ20: 0 | BA20: 0 | BB20: 0 | BC20: 0 | BD20: 0 | BE20: 0 | BF20: 0 | BG20: 0 | BH20: 0 | BI20: 0 | BJ20: 0 | BK20: 0 | BL20: 0 | BM20: 0 | BN20: 0 | BO20: 0 | BP20: 0 | BQ20: 0 | BR20: 0 | BS20: 0 | BT20: 0 | BU20: 0 | BV20: 0 | BW20: 0 | BX20: 0 | BY20: 0 | BZ20: 0 | CA20: 0 | CB20: 0 | CC20: 0 | CD20: 0 | CE20: 0 | CF20: 0 | CG20: 6004.71459 | CH20: 0 | CI20: 1785.735689 | CJ20: 331.86649
F21: 0 | O21: =P21+Q21+T21+U21+V21 -> 0 | Q21: =R21+S21 -> 0 | X21: =SUM(Y21:AI21) -> 0 | AJ21: =IF(CD10+CD11+CD14+(1+Energi!B29/100)*(AJ22+AJ48+AJ61+AJ69+AJ84)>0,(CD10+CD11+CD14+(1+Energi!B29/100)*(AJ22+AJ48+AJ61+AJ69+AJ84))*-1,0) -> 0 | AN21: 0 | AO21: 0 | AP21: Netto eksport/lager | AQ21: AES | AR21: A | AT21: 0 | AZ21: 0 | BI21: =BJ21+BK21+BN21+BO21+BP21 -> 0 | BK21: =BL21+BM21 -> 0 | BR21: =SUM(BS21:CC21) -> 0 | CI21: =(AT21+AO21)*-1 -> 0 | CJ21: =AJ21*Emissionsfaktorer!B2+AK21*Emissionsfaktorer!B4 -> 0
C22: =C23+C30+C37+C40+C41+C42 -> 0 | D22: 0 | E22: 0 | F22: 0 | G22: 0 | H22: 0 | I22: 0 | J22: 0 | K22: 0 | L22: 0 | M22: 0 | N22: 0 | O22: 0 | P22: 0 | Q22: 0 | R22: 0 | S22: 0 | T22: 0 | U22: 0 | V22: 0 | W22: 0 | X22: -2158.672334 | Y22: 0 | Z22: 0 | AA22: 0 | AB22: -505.2886793 | AC22: 0 | AD22: -110.833324 | AE22: -1542.55033 | AF22: 0 | AG22: 0 | AH22: 0 | AI22: 0 | AJ22: -2.311708908 | AK22: 0 | AL22: 0 | AM22: =AM23+AM30+AM37+AM40+AM41+AM42 -> 0 | AN22: 0 | AO22: -2160.984043 | AP22: Transport | AQ22: AT | AR22: A | AS22: ='Størrelse på strømme'!E22 -> 102.9045629 | AT22: 648.2952128 | AU22: 0.3 | AW22: =AW23+AW30+AW37+AW40+AW41+AW42 -> 0 | AX22: 0 | AY22: 0 | AZ22: 0 | BA22: 0 | BB22: 0 | BC22: 0 | BD22: 0 | BE22: 0 | BF22: 0 | BG22: 0 | BH22: 0 | BI22: 0 | BJ22: 0 | BK22: 0 | BL22: 0 | BM22: 0 | BN22: 0 | BO22: 0 | BP22: 0 | BQ22: 0 | BR22: 0 | BS22: 0 | BT22: 0 | BU22: 0 | BV22: 0 | BW22: 0 | BX22: 0 | BY22: 0 | BZ22: 0 | CA22: 0 | CB22: 0 | CC22: 0 | CD22: 0 | CE22: 0 | CF22: 0 | CG22: =AO22*AU22*-1 -> 648.2952128 | CH22: 0 | CI22: 1512.68883 | CJ22: 159.7417527
C23: =SUM(C24:C29) -> 0 | D23: 0 | E23: 0 | F23: 0 | G23: 0 | H23: 0 | I23: 0 | J23: 0 | K23: 0 | L23: 0 | M23: 0 | N23: 0 | O23: =P23+Q23+T23+U23+V23 -> 0 | P23: 0 | Q23: =R23+S23 -> 0 | R23: 0 | S23: 0 | T23: 0 | U23: 0 | V23: 0 | W23: 0 | X23: =SUM(Y23:AI23) -> -1885.194246 | Y23: 0 | Z23: 0 | AA23: 0 | AB23: -505.2886793 | AC23: 0 | AD23: 0 | AE23: -1379.905567 | AF23: 0 | AG23: 0 | AH23: 0 | AI23: 0 | AJ23: 0 | AK23: 0 | AL23: 0 | AM23: =SUM(AM24:AM29) -> 0 | AN23: 0 | AO23: -1885.194246 | AP23: Vejtrafik | AQ23: ATV | AR23: AT | AS23: ='Størrelse på strømme'!E24 -> 89.77115457 | AT23: 565.5582738 | AU23: 0.3 | AW23: =SUM(AW24:AW29) -> 0 | AX23: 0 | AY23: 0 | AZ23: 0 | BA23: 0 | BB23: 0 | BC23: 0 | BD23: 0 | BE23: 0 | BF23: 0 | BG23: 0 | BH23: 0 | BI23: =BJ23+BK23+BN23+BO23+BP23 -> 0 | BJ23: 0 | BK23: =BL23+BM23 -> 0 | BL23: 0 | BM23: 0 | BN23: 0 | BO23: 0 | BP23: 0 | BQ23: 0 | BR23: =SUM(BS23:CC23) -> 0 | BS23: 0 | BT23: 0 | BU23: 0 | BV23: 0 | BW23: 0 | BX23: 0 | BY23: 0 | BZ23: 0 | CA23: 0 | CB23: 0 | CC23: 0 | CD23: 0 | CE23: 0 | CF23: 0 | CG23: 565.5582738 | CH23: 0 | CI23: 1319.635972 | CJ23: 139.5043742
F24: 0 | O24: =P24+Q24+T24+U24+V24 -> 0 | Q24: =R24+S24 -> 0 | X24: =SUM(Y24:AI24) -> -1294.444725 | AB24: =(Transport!B17)*-0.000001 -> -493.2379503 | AE24: =(Transport!B16)*-0.000001 -> -801.206775 | AN24: 0 | AO24: -1294.444725 | AP24: Personbil | AQ24: PERSON | AR24: ATV | AT24: 388.3334176 | AU24: 0.3 | AZ24: 0 | BI24: =BJ24+BK24+BN24+BO24+BP24 -> 0 | BK24: =BL24+BM24 -> 0 | BR24: =SUM(BS24:CC24) -> 0 | CG24: 388.3334176 | CI24: 906.1113077 | CJ24: =-('e2g-format 2019'!C24*Emissionsfaktorer!$B$5+'e2g-format 2019'!D24*Emissionsfaktorer!$B$7+'e2g-format 2019'!E24*Emissionsfaktorer!$B$8+X24*Emissionsfaktorer!$B$6) -> 95.78890968
F25: 0 | O25: =P25+Q25+T25+U25+V25 -> 0 | Q25: =R25+S25 -> 0 | X25: =SUM(Y25:AI25) -> -499.4884116 | AB25: 0 | AE25: =(Transport!B18)*-0.000001 -> -499.4884116 | AN25: 0 | AO25: -499.4884116 | AP25: Lastbil | AQ25: LAST | AR25: ATV | AT25: 149.8465235 | AU25: 0.3 | AZ25: 0 | BI25: =BJ25+BK25+BN25+BO25+BP25 -> 0 | BK25: =BL25+BM25 -> 0 | BR25: =SUM(BS25:CC25) -> 0 | CG25: 149.8465235 | CI25: 349.6418881 | CJ25: =-('e2g-format 2019'!C25*Emissionsfaktorer!$B$5+'e2g-format 2019'!D25*Emissionsfaktorer!$B$7+'e2g-format 2019'!E25*Emissionsfaktorer!$B$8+X25*Emissionsfaktorer!$B$6) -> 36.96214246
F26: 0 | O26: 0 | Q26: 0 | X26: -57.63098699 | AB26: 0 | AE26: =(Transport!B19)*-0.000001 -> -57.63098699 | AN26: 0 | AO26: -57.63098699 | AP26: Varebil | AQ26: VARE | AR26: ATV | AT26: 17.2892961 | AU26: 0.3 | AZ26: 0 | BI26: 0 | BK26: 0 | BR26: 0 | CG26: 17.2892961 | CI26: 40.3416909 | CJ26: =-('e2g-format 2019'!C26*Emissionsfaktorer!$B$5+'e2g-format 2019'!D26*Emissionsfaktorer!$B$7+'e2g-format 2019'!E26*Emissionsfaktorer!$B$8+X26*Emissionsfaktorer!$B$6) -> 4.264693038
F27: 0 | O27: 0 | Q27: 0 | X27: 0 | AB27: =(Transport!B20)*-0.000001 -> 0 | AE27: 0 | AN27: 0 | AO27: 0 | AP27: Knallert | AQ27: KNAL | AR27: ATV | AT27: 0 | AU27: 0.3 | AZ27: 0 | BI27: 0 | BK27: 0 | BR27: 0 | CG27: 0 | CI27: 0 | CJ27: =-('e2g-format 2019'!C27*Emissionsfaktorer!$B$5+'e2g-format 2019'!D27*Emissionsfaktorer!$B$7+'e2g-format 2019'!E27*Emissionsfaktorer!$B$8+X27*Emissionsfaktorer!$B$6) -> 0
F28: 0 | O28: 0 | Q28: 0 | X28: -12.05072897 | AB28: =(Transport!B21)*-0.000001 -> -12.05072897 | AE28: 0 | AN28: 0 | AO28: -12.05072897 | AP28: Motorcykel | AQ28: MC | AR28: ATV | AT28: 3.615218692 | AU28: 0.3 | AZ28: 0 | BI28: 0 | BK28: 0 | BR28: 0 | CG28: 3.615218692 | CI28: 8.43551028 | CJ28: =-('e2g-format 2019'!C28*Emissionsfaktorer!$B$5+'e2g-format 2019'!D28*Emissionsfaktorer!$B$7+'e2g-format 2019'!E28*Emissionsfaktorer!$B$8+X28*Emissionsfaktorer!$B$6) -> 0.8917539439
F29: 0 | O29: 0 | Q29: 0 | X29: -21.57939311 | AB29: 0 | AE29: =(Transport!B22)*-0.000001 -> -21.57939311 | AN29: 0 | AO29: -21.57939311 | AP29: Bus | AQ29: BUS | AR29: ATV | AT29: 6.473817933 | AU29: 0.3 | AZ29: 0 | BI29: 0 | BK29: 0 | BR29: 0 | CG29: 6.473817933 | CI29: 15.10557518 | CJ29: =-('e2g-format 2019'!C29*Emissionsfaktorer!$B$5+'e2g-format 2019'!D29*Emissionsfaktorer!$B$7+'e2g-format 2019'!E29*Emissionsfaktorer!$B$8+X29*Emissionsfaktorer!$B$6) -> 1.59687509
C30: =SUM(C31:C36) -> 0 | D30: 0 | E30: 0 | F30: 0 | G30: 0 | H30: 0 | I30: 0 | J30: 0 | K30: 0 | L30: 0 | M30: 0 | N30: 0 | O30: =P30+Q30+T30+U30+V30 -> 0 | P30: 0 | Q30: =R30+S30 -> 0 | R30: 0 | S30: 0 | T30: 0 | U30: 0 | V30: 0 | W30: 0 | X30: =SUM(Y30:AI30) -> -47.33716983 | Y30: 0 | Z30: 0 | AA30: 0 | AB30: 0 | AC30: 0 | AD30: 0 | AE30: -47.33716983 | AF30: 0 | AG30: 0 | AH30: 0 | AI30: 0 | AJ30: -2.311708908 | AK30: 0 | AL30: 0 | AM30: =SUM(AM31:AM36) -> 0 | AN30: 0 | AO30: -49.64887874 | AP30: Tog | AQ30: ATT | AR30: AT | AS30: ='Størrelse på strømme'!E26 -> 2.364793143 | AT30: 14.89466362 | AU30: 0.3 | AW30: =SUM(AW31:AW36) -> 0 | AX30: 0 | AY30: 0 | AZ30: 0 | BA30: 0 | BB30: 0 | BC30: 0 | BD30: 0 | BE30: 0 | BF30: 0 | BG30: 0 | BH30: 0 | BI30: =BJ30+BK30+BN30+BO30+BP30 -> 0 | BJ30: 0 | BK30: =BL30+BM30 -> 0 | BL30: 0 | BM30: 0 | BN30: 0 | BO30: 0 | BP30: 0 | BQ30: 0 | BR30: =SUM(BS30:CC30) -> 0 | BS30: 0 | BT30: 0 | BU30: 0 | BV30: 0 | BW30: 0 | BX30: 0 | BY30: 0 | BZ30: 0 | CA30: 0 | CB30: 0 | CC30: 0 | CD30: 0 | CE30: 0 | CF30: 0 | CG30: 14.89466362 | CH30: 0 | CI30: 34.75421512 | CJ30: 3.502950568
F31: 0 | O31: 0 | Q31: 0 | X31: -12.08814041 | AE31: =Transport!C32*Transport!C43*-0.000001 -> -12.08814041 | AJ31: =Transport!C31*Transport!C42*-0.000001 -> -0.3993918732 | AN31: 0 | AO31: -12.48753228 | AP31: Regionaltog | AQ31: REG | AR31: ATT | AT31: 3.746259684 | AU31: 0.3 | AZ31: 0 | BI31: 0 | BK31: 0 | BR31: 0 | CG31: 3.746259684 | CI31: 8.741272597 | CJ31: =-('e2g-format 2019'!C31*Emissionsfaktorer!$B$5+'e2g-format 2019'!D31*Emissionsfaktorer!$B$7+'e2g-format 2019'!E31*Emissionsfaktorer!$B$8+X31*Emissionsfaktorer!$B$6) -> 0.8945223902
F32: 0 | O32: 0 | Q32: 0 | X32: -20.52594376 | AE32: =Transport!C34*Transport!C45*-0.000001 -> -20.52594376 | AJ32: =Transport!C33*Transport!C44*-0.000001 -> -0.6596653845 | AN32: 0 | AO32: -21.18560915 | AP32: Intercitytog | AQ32: INTERC | AR32: ATT | AT32: 6.355682744 | AU32: 0.3 | AZ32: 0 | BI32: 0 | BK32: 0 | BR32: 0 | CG32: 6.355682744 | CI32: 14.8299264 | CJ32: =-('e2g-format 2019'!C32*Emissionsfaktorer!$B$5+'e2g-format 2019'!D32*Emissionsfaktorer!$B$7+'e2g-format 2019'!E32*Emissionsfaktorer!$B$8+X32*Emissionsfaktorer!$B$6) -> 1.518919838
F33: 0 | O33: 0 | Q33: 0 | X33: -14.72308566 | AE33: =Transport!C36*Transport!C47*-0.000001 -> -14.72308566 | AJ33: =Transport!C35*Transport!C46*-0.000001 -> -1.25265165 | AN33: 0 | AO33: -15.97573731 | AP33: Lyntog | AQ33: LYN | AR33: ATT | AT33: 4.792721194 | AU33: 0.3 | AZ33: 0 | BI33: 0 | BK33: 0 | BR33: 0 | CG33: 4.792721194 | CI33: 11.18301612 | CJ33: =-('e2g-format 2019'!C33*Emissionsfaktorer!$B$5+'e2g-format 2019'!D33*Emissionsfaktorer!$B$7+'e2g-format 2019'!E33*Emissionsfaktorer!$B$8+X33*Emissionsfaktorer!$B$6) -> 1.089508339
F34: 0 | O34: 0 | Q34: 0 | X34: 0 | AE34: =Transport!C37*Transport!C48*-0.000001 -> 0 | AN34: 0 | AO34: 0 | AP34: Lokalbane | AQ34: LOKAL | AR34: ATT | AT34: 0 | AU34: 0.3 | AZ34: 0 | BI34: 0 | BK34: 0 | BR34: 0 | CG34: 0 | CI34: 0 | CJ34: =-('e2g-format 2019'!C34*Emissionsfaktorer!$B$5+'e2g-format 2019'!D34*Emissionsfaktorer!$B$7+'e2g-format 2019'!E34*Emissionsfaktorer!$B$8+X34*Emissionsfaktorer!$B$6) -> 0
F35: 0 | O35: 0 | Q35: 0 | X35: 0 | AJ35: =Transport!C38*Transport!C49*-0.000001 -> 0 | AN35: 0 | AO35: 0 | AP35: S-tog | AQ35: STOG | AR35: ATT | AT35: 0 | AU35: 0.3 | AZ35: 0 | BI35: 0 | BK35: 0 | BR35: 0 | CG35: 0 | CI35: 0 | CJ35: =-('e2g-format 2019'!C35*Emissionsfaktorer!$B$5+'e2g-format 2019'!D35*Emissionsfaktorer!$B$7+'e2g-format 2019'!E35*Emissionsfaktorer!$B$8+X35*Emissionsfaktorer!$B$6) -> 0
F36: 0 | O36: 0 | Q36: 0 | X36: 0 | AJ36: =Transport!B58/-1000 -> 0 | AN36: 0 | AO36: 0 | AP36: Metro | AQ36: METRO | AR36: ATT | AT36: 0 | AU36: 0.3 | AZ36: 0 | BI36: 0 | BK36: 0 | BR36: 0 | CG36: 0 | CI36: 0 | CJ36: =-('e2g-format 2019'!C36*Emissionsfaktorer!$B$5+'e2g-format 2019'!D36*Emissionsfaktorer!$B$7+'e2g-format 2019'!E36*Emissionsfaktorer!$B$8+X36*Emissionsfaktorer!$B$6) -> 0
C37: =C38+C39 -> 0 | D37: 0 | E37: 0 | F37: 0 | G37: 0 | H37: 0 | I37: 0 | J37: 0 | K37: 0 | L37: 0 | M37: 0 | N37: 0 | O37: =P37+Q37+T37+U37+V37 -> 0 | P37: 0 | Q37: =R37+S37 -> 0 | R37: 0 | S37: 0 | T37: 0 | U37: 0 | V37: 0 | W37: 0 | X37: =SUM(Y37:AI37) -> -110.833324 | Y37: 0 | Z37: 0 | AA37: 0 | AB37: 0 | AC37: 0 | AD37: -110.833324 | AE37: 0 | AF37: 0 | AG37: 0 | AH37: 0 | AI37: 0 | AJ37: 0 | AK37: 0 | AL37: 0 | AM37: =AM38+AM39 -> 0 | AN37: 0 | AO37: -110.833324 | AP37: Fly | AQ37: ATF | AR37: AT | AS37: ='Størrelse på strømme'!E28 -> 2.995495242 | AT37: 33.24999719 | AU37: 0.3 | AW37: =AW38+AW39 -> 0 | AX37: 0 | AY37: 0 | AZ37: 0 | BA37: 0 | BB37: 0 | BC37: 0 | BD37: 0 | BE37: 0 | BF37: 0 | BG37: 0 | BH37: 0 | BI37: =BJ37+BK37+BN37+BO37+BP37 -> 0 | BJ37: 0 | BK37: =BL37+BM37 -> 0 | BL37: 0 | BM37: 0 | BN37: 0 | BO37: 0 | BP37: 0 | BQ37: 0 | BR37: =SUM(BS37:CC37) -> 0 | BS37: 0 | BT37: 0 | BU37: 0 | BV37: 0 | BW37: 0 | BX37: 0 | BY37: 0 | BZ37: 0 | CA37: 0 | CB37: 0 | CC37: 0 | CD37: 0 | CE37: 0 | CF37: 0 | CG37: 33.24999719 | CH37: 0 | CI37: 77.58332678 | CJ37: 8.201665973
F38: 0 | O38: 0 | Q38: 0 | X38: -3.233437335 | AD38: =-Transport!C67/1000 -> -3.233437335 | AN38: 0 | AO38: -3.233437335 | AP38: Indenrigs | AQ38: INDEN | AR38: ATF | AT38: 0.9700312004 | AU38: 0.3 | AZ38: 0 | BI38: 0 | BK38: 0 | BR38: 0 | CG38: 0.9700312004 | CI38: 2.263406134 | CJ38: =-('e2g-format 2019'!C38*Emissionsfaktorer!$B$5+'e2g-format 2019'!D38*Emissionsfaktorer!$B$7+'e2g-format 2019'!E38*Emissionsfaktorer!$B$8+X38*Emissionsfaktorer!$B$6) -> 0.2392743628
F39: 0 | O39: 0 | Q39: 0 | X39: -107.5998866 | AD39: =-Transport!C68/1000 -> -107.5998866 | AN39: 0 | AO39: -107.5998866 | AP39: Udenrigs | AQ39: UDEN | AR39: ATF | AT39: 32.27996599 | AU39: 0.3 | AZ39: 0 | BI39: 0 | BK39: 0 | BR39: 0 | CG39: 32.27996599 | CI39: 75.31992064 | CJ39: =-('e2g-format 2019'!C39*Emissionsfaktorer!$B$5+'e2g-format 2019'!D39*Emissionsfaktorer!$B$7+'e2g-format 2019'!E39*Emissionsfaktorer!$B$8+X39*Emissionsfaktorer!$B$6) -> 7.962391611
F40: 0 | O40: =P40+Q40+T40+U40+V40 -> 0 | Q40: =R40+S40 -> 0 | X40: =SUM(Y40:AI40) -> 0 | AE40: =-Transport!B76/1000 -> 0 | AN40: 0 | AO40: 0 | AP40: Færge | AQ40: ATFÆRGE | AR40: AT | AT40: 0 | AU40: 0.3 | AZ40: 0 | BI40: =BJ40+BK40+BN40+BO40+BP40 -> 0 | BK40: =BL40+BM40 -> 0 | BR40: =SUM(BS40:CC40) -> 0 | CG40: 0 | CI40: 0 | CJ40: =-('e2g-format 2019'!C40*Emissionsfaktorer!$B$5+'e2g-format 2019'!D40*Emissionsfaktorer!$B$7+'e2g-format 2019'!E40*Emissionsfaktorer!$B$8+X40*Emissionsfaktorer!$B$6) -> 0
F41: 0 | O41: =P41+Q41+T41+U41+V41 -> 0 | Q41: =R41+S41 -> 0 | X41: =SUM(Y41:AI41) -> -19.24608558 | AE41: =-Transport!B81/1000 -> -19.24608558 | AN41: 0 | AO41: -19.24608558 | AP41: Fiskeri | AQ41: ATFISK | AR41: AT | AT41: 5.773825673 | AU41: 0.3 | AZ41: 0 | BI41: =BJ41+BK41+BN41+BO41+BP41 -> 0 | BK41: =BL41+BM41 -> 0 | BR41: =SUM(BS41:CC41) -> 0 | CG41: 5.773825673 | CI41: 13.4722599 | CJ41: =-('e2g-format 2019'!C41*Emissionsfaktorer!$B$5+'e2g-format 2019'!D41*Emissionsfaktorer!$B$7+'e2g-format 2019'!E41*Emissionsfaktorer!$B$8+X41*Emissionsfaktorer!$B$6) -> 1.424210333
C42: =SUM(C43:C47) -> 0 | D42: 0 | E42: 0 | F42: 0 | G42: 0 | H42: 0 | I42: 0 | J42: 0 | K42: 0 | L42: 0 | M42: 0 | N42: 0 | O42: 0 | P42: 0 | Q42: 0 | R42: 0 | S42: 0 | T42: 0 | U42: 0 | V42: 0 | W42: 0 | X42: -96.06150833 | Y42: 0 | Z42: 0 | AA42: 0 | AB42: 0 | AC42: 0 | AD42: 0 | AE42: -96.06150833 | AF42: 0 | AG42: 0 | AH42: 0 | AI42: 0 | AJ42: 0 | AK42: 0 | AL42: 0 | AM42: =SUM(AM43:AM47) -> 0 | AN42: 0 | AO42: -96.06150833 | AP42: Non-Road | AQ42: ATNONR | AR42: AT | AS42: ='Størrelse på strømme'!E30 -> 3.842460333 | AT42: 28.8184525 | AU42: 0.3 | AW42: =SUM(AW43:AW47) -> 0 | AX42: 0 | AY42: 0 | AZ42: 0 | BA42: 0 | BB42: 0 | BC42: 0 | BD42: 0 | BE42: 0 | BF42: 0 | BG42: 0 | BH42: 0 | BI42: 0 | BJ42: 0 | BK42: 0 | BL42: 0 | BM42: 0 | BN42: 0 | BO42: 0 | BP42: 0 | BQ42: 0 | BR42: 0 | BS42: 0 | BT42: 0 | BU42: 0 | BV42: 0 | BW42: 0 | BX42: 0 | BY42: 0 | BZ42: 0 | CA42: 0 | CB42: 0 | CC42: 0 | CD42: 0 | CE42: 0 | CF42: 0 | CG42: 28.8184525 | CH42: 0 | CI42: 67.24305583 | CJ42: 7.108551617
F43: 0 | O43: 0 | Q43: 0 | X43: -33.19777472 | AE43: =-Transport!B99/1000 -> -33.19777472 | AN43: 0 | AO43: -33.19777472 | AP43: Landbrug | AQ43: LANDBR | AR43: ATNONR | AT43: 9.959332415 | AU43: 0.3 | AZ43: 0 | BI43: 0 | BK43: 0 | BR43: 0 | CG43: 9.959332415 | CI43: 23.2384423 | CJ43: =-('e2g-format 2019'!C43*Emissionsfaktorer!$B$5+'e2g-format 2019'!D43*Emissionsfaktorer!$B$7+'e2g-format 2019'!E43*Emissionsfaktorer!$B$8+X43*Emissionsfaktorer!$B$6) -> 2.456635329
F44: 0 | O44: 0 | Q44: 0 | X44: -53.77225229 | AE44: =-Transport!B100/1000 -> -53.77225229 | AN44: 0 | AO44: -53.77225229 | AP44: Byggeri | AQ44: BYGGERI | AR44: ATNONR | AT44: 16.13167569 | AU44: 0.3 | AZ44: 0 | BI44: 0 | BK44: 0 | BR44: 0 | CG44: 16.13167569 | CI44: 37.6405766 | CJ44: =-('e2g-format 2019'!C44*Emissionsfaktorer!$B$5+'e2g-format 2019'!D44*Emissionsfaktorer!$B$7+'e2g-format 2019'!E44*Emissionsfaktorer!$B$8+X44*Emissionsfaktorer!$B$6) -> 3.979146669
F45: 0 | O45: 0 | Q45: 0 | X45: -0.5951583164 | AE45: =-Transport!B101/1000 -> -0.5951583164 | AN45: 0 | AO45: -0.5951583164 | AP45: Skovbrug | AQ45: SKOV | AR45: ATNONR | AT45: 0.1785474949 | AU45: 0.3 | AZ45: 0 | BI45: 0 | BK45: 0 | BR45: 0 | CG45: 0.1785474949 | CI45: 0.4166108215 | CJ45: =-('e2g-format 2019'!C45*Emissionsfaktorer!$B$5+'e2g-format 2019'!D45*Emissionsfaktorer!$B$7+'e2g-format 2019'!E45*Emissionsfaktorer!$B$8+X45*Emissionsfaktorer!$B$6) -> 0.04404171541
F46: 0 | O46: 0 | Q46: 0 | X46: -2.977136625 | AE46: =-Transport!B102/1000 -> -2.977136625 | AN46: 0 | AO46: -2.977136625 | AP46: Have/park | AQ46: HAVE | AR46: ATNONR | AT46: 0.8931409876 | AU46: 0.3 | AZ46: 0 | BI46: 0 | BK46: 0 | BR46: 0 | CG46: 0.8931409876 | CI46: 2.083995638 | CJ46: =-('e2g-format 2019'!C46*Emissionsfaktorer!$B$5+'e2g-format 2019'!D46*Emissionsfaktorer!$B$7+'e2g-format 2019'!E46*Emissionsfaktorer!$B$8+X46*Emissionsfaktorer!$B$6) -> 0.2203081103
F47: 0 | O47: 0 | Q47: 0 | X47: -5.519186385 | AE47: =-Transport!B103/1000 -> -5.519186385 | AN47: 0 | AO47: -5.519186385 | AP47: Øvrig erhverv | AQ47: ØVRIGERH | AR47: ATNONR | AT47: 1.655755915 | AU47: 0.3 | AZ47: 0 | BI47: 0 | BK47: 0 | BR47: 0 | CG47: 1.655755915 | CI47: 3.863430469 | CJ47: =-('e2g-format 2019'!C47*Emissionsfaktorer!$B$5+'e2g-format 2019'!D47*Emissionsfaktorer!$B$7+'e2g-format 2019'!E47*Emissionsfaktorer!$B$8+X47*Emissionsfaktorer!$B$6) -> 0.4084197925
C48: =SUM(C49:C55) -> -114.7565602 | D48: 0 | E48: 0 | F48: ='Justering af energiregnskab'!E4*-1 -> -360 | G48: 0 | H48: 0 | I48: 0 | J48: 0 | K48: 0 | L48: 0 | M48: 0 | N48: 0 | O48: =P48+Q48+T48+U48+V48 -> -8 | P48: ='Justering af energiregnskab'!E5*-1 -> -8 | Q48: 0 | R48: 0 | S48: 0 | T48: 0 | U48: 0 | V48: ='Justering af energiregnskab'!E6*-1 -> 0 | W48: ='Ref for justering 2019'!$AO$48*'Justering af energiregnskab'!$D$24*'Justering af energiregnskab'!$D$33 -> 0 | X48: ='Energi_bbr varmeforbrug'!B82*3.6/-1000000 -> -21.42941011 | Y48: 0 | Z48: 0 | AA48: 0 | AB48: 0 | AC48: 0 | AD48: 0 | AE48: 0 | AF48: 0 | AG48: 0 | AH48: 0 | AI48: 0 | AJ48: =Energi!B24*-0.0000036 -> -273.3900516 | AK48: -661.7684395 | AL48: 0 | AM48: 0 | AN48: 0 | AO48: -1439.344461 | AP48: Husholdninger | AQ48: AH | AR48: A | AS48: ='Størrelse på strømme'!#REF! ->  | AT48: 776.5249997 | AU48: 1 | AW48: =SUM(AW49:AW55) -> 0 | AX48: =SUM(AX49:AX55) -> 0 | AY48: 0 | AZ48: 0 | BA48: 0 | BB48: 0 | BC48: 0 | BD48: 0 | BE48: 0 | BF48: 0 | BG48: 0 | BH48: 0 | BI48: 0 | BJ48: 0 | BK48: 0 | BL48: 0 | BM48: 0 | BN48: 0 | BO48: 0 | BP48: 0 | BQ48: 0 | BR48: 0 | BS48: 0 | BT48: 0 | BU48: 0 | BV48: 0 | BW48: 0 | BX48: 0 | BY48: 0 | BZ48: 0 | CA48: 0 | CB48: 0 | CC48: 0 | CD48: 0 | CE48: 0 | CF48: 0 | CG48: 776.5249997 | CH48: 0 | CI48: 0 | CJ48: 6.541123932
C49: =(SUM('Energi_bbr varmeforbrug'!D44:Q44))*-0.0000036 -> 0 | F49: 0 | O49: =P49+Q49+T49+U49+V49 -> 0 | Q49: =R49+S49 -> 0 | X49: =SUM(Y49:AI49) -> 0 | AK49: =(SUM('Energi_bbr varmeforbrug'!D10:Q10))*-0.0000036 -> -1.066968948 | AN49: 0 | AO49: -1.066968948 | AP49: Stuehus til landbrugsejendom | AQ49: STUEHUS | AR49: AH | AT49: 1.066968948 | AU49: 1 | AZ49: 0 | BI49: 0 | BK49: 0 | BR49: 0 | CG49: =AO49*AU49*-1 -> 1.066968948 | CI49: =(AT49+AO49)*-1 -> 0 | CJ49: =-('e2g-format 2019'!C49*Emissionsfaktorer!$B$5+'e2g-format 2019'!D49*Emissionsfaktorer!$B$7+'e2g-format 2019'!E49*Emissionsfaktorer!$B$8+X49*Emissionsfaktorer!$B$6) -> 0
C50: =(SUM('Energi_bbr varmeforbrug'!D45:Q45))*-0.0000036 -> -97.9574616 | F50: 0 | O50: 0 | Q50: 0 | X50: 0 | AK50: =(SUM('Energi_bbr varmeforbrug'!D11:Q11))*-0.0000036 -> -519.9311848 | AN50: 0 | AO50: -617.8886464 | AP50: Fritliggende enfamiliehus | AQ50: ENFAMILIE | AR50: AH | AT50: 617.8886464 | AU50: 1 | AZ50: 0 | BI50: 0 | BK50: 0 | BR50: 0 | CG50: 617.8886464 | CI50: 0 | CJ50: =-('e2g-format 2019'!C50*Emissionsfaktorer!$B$5+'e2g-format 2019'!D50*Emissionsfaktorer!$B$7+'e2g-format 2019'!E50*Emissionsfaktorer!$B$8+X50*Emissionsfaktorer!$B$6) -> 5.583575311
C51: =(SUM('Energi_bbr varmeforbrug'!D46:Q46))*-0.0000036 -> 0 | F51: 0 | O51: 0 | Q51: 0 | X51: 0 | AK51: =(SUM('Energi_bbr varmeforbrug'!D12:Q12))*-0.0000036 -> 0 | AN51: 0 | AO51: 0 | AP51: Rækkehus/kædehus eller dobbelthus | AQ51: RÆKKE | AR51: AH | AT51: 0 | AU51: 1 | AZ51: 0 | BI51: 0 | BK51: 0 | BR51: 0 | CG51: 0 | CI51: 0 | CJ51: =-('e2g-format 2019'!C51*Emissionsfaktorer!$B$5+'e2g-format 2019'!D51*Emissionsfaktorer!$B$7+'e2g-format 2019'!E51*Emissionsfaktorer!$B$8+X51*Emissionsfaktorer!$B$6) -> 0
C52: =(SUM('Energi_bbr varmeforbrug'!D47:Q47))*-0.0000036 -> -16.7990986 | F52: 0 | O52: 0 | Q52: 0 | X52: 0 | AK52: =(SUM('Energi_bbr varmeforbrug'!D13:Q13))*-0.0000036 -> -106.8154962 | AN52: 0 | AO52: -123.6145948 | AP52: Etageboligbebyggelse | AQ52: ETAGE | AR52: AH | AT52: 123.6145948 | AU52: 1 | AZ52: 0 | BI52: 0 | BK52: 0 | BR52: 0 | CG52: 123.6145948 | CI52: 0 | CJ52: =-('e2g-format 2019'!C52*Emissionsfaktorer!$B$5+'e2g-format 2019'!D52*Emissionsfaktorer!$B$7+'e2g-format 2019'!E52*Emissionsfaktorer!$B$8+X52*Emissionsfaktorer!$B$6) -> 0.9575486204
C53: =(SUM('Energi_bbr varmeforbrug'!D50:Q50))*-0.0000036 -> 0 | F53: 0 | O53: 0 | Q53: 0 | X53: 0 | AK53: =(SUM('Energi_bbr varmeforbrug'!D16:Q16))*-0.0000036 -> -12.06864851 | AN53: 0 | AO53: -12.06864851 | AP53: Anden bygning til helårsbeboelse | AQ53: ANDENHEL | AR53: AH | AT53: 12.06864851 | AU53: 1 | AZ53: 0 | BI53: 0 | BK53: 0 | BR53: 0 | CG53: 12.06864851 | CI53: 0 | CJ53: =-('e2g-format 2019'!C53*Emissionsfaktorer!$B$5+'e2g-format 2019'!D53*Emissionsfaktorer!$B$7+'e2g-format 2019'!E53*Emissionsfaktorer!$B$8+X53*Emissionsfaktorer!$B$6) -> 0
C54: =(SUM('Energi_bbr varmeforbrug'!D63:Q63))*-0.0000036 -> 0 | F54: 0 | O54: 0 | Q54: 0 | X54: 0 | AK54: =(SUM('Energi_bbr varmeforbrug'!D30:Q30))*-0.0000036 -> -9.191731699 | AN54: 0 | AO54: -9.191731699 | AP54: Sommerhus | AQ54: SOMMER | AR54: AH | AT54: 9.191731699 | AU54: 1 | AZ54: 0 | BI54: 0 | BK54: 0 | BR54: 0 | CG54: 9.191731699 | CI54: 0 | CJ54: =-('e2g-format 2019'!C54*Emissionsfaktorer!$B$5+'e2g-format 2019'!D54*Emissionsfaktorer!$B$7+'e2g-format 2019'!E54*Emissionsfaktorer!$B$8+X54*Emissionsfaktorer!$B$6) -> 0
C55: =SUM(C56:C60) -> 0 | D55: 0 | E55: 0 | F55: 0 | G55: 0 | H55: 0 | I55: 0 | J55: 0 | K55: 0 | L55: 0 | M55: 0 | N55: 0 | O55: 0 | P55: 0 | Q55: 0 | R55: 0 | S55: 0 | T55: 0 | U55: 0 | V55: 0 | W55: 0 | X55: 0 | Y55: 0 | Z55: 0 | AA55: 0 | AB55: 0 | AC55: 0 | AD55: 0 | AE55: 0 | AF55: 0 | AG55: 0 | AH55: 0 | AI55: 0 | AJ55: 0 | AK55: -12.69440929 | AL55: 0 | AM55: 0 | AN55: 0 | AO55: -12.69440929 | AP55: Andre bygninger | AQ55: ANDREBYG | AR55: AH | AT55: 12.69440929 | AU55: 1 | AW55: =SUM(AW56:AW60) -> 0 | AX55: 0 | AY55: 0 | AZ55: 0 | BA55: 0 | BB55: 0 | BC55: 0 | BD55: 0 | BE55: 0 | BF55: 0 | BG55: 0 | BH55: 0 | BI55: 0 | BJ55: 0 | BK55: 0 | BL55: 0 | BM55: 0 | BN55: 0 | BO55: 0 | BP55: 0 | BQ55: 0 | BR55: 0 | BS55: 0 | BT55: 0 | BU55: 0 | BV55: 0 | BW55: 0 | BX55: 0 | BY55: 0 | BZ55: 0 | CA55: 0 | CB55: 0 | CC55: 0 | CD55: 0 | CE55: 0 | CF55: 0 | CG55: 12.69440929 | CH55: 0 | CI55: 0 | CJ55: 0
C56: =(SUM('Energi_bbr varmeforbrug'!D66:Q66))*-0.0000036 -> 0 | F56: 0 | O56: 0 | Q56: 0 | X56: 0 | AK56: =(SUM('Energi_bbr varmeforbrug'!D33:Q33))*-0.0000036 -> 0 | AN56: 0 | AO56: 0 | AP56: Kolonihavehus | AQ56: KOLONI | AR56: ANDREBYG | AT56: 0 | AU56: 1 | AZ56: 0 | BI56: 0 | BK56: 0 | BR56: 0 | CG56: =AO56*AU56*-1 -> 0 | CI56: =(AT56+AO56)*-1 -> 0 | CJ56: =-('e2g-format 2019'!C56*Emissionsfaktorer!$B$5+'e2g-format 2019'!D56*Emissionsfaktorer!$B$7+'e2g-format 2019'!E56*Emissionsfaktorer!$B$8+X56*Emissionsfaktorer!$B$6) -> 0
C57: =(SUM('Energi_bbr varmeforbrug'!D67:Q67))*-0.0000036 -> 0 | F57: 0 | O57: 0 | Q57: 0 | X57: 0 | AK57: =(SUM('Energi_bbr varmeforbrug'!D34:Q34))*-0.0000036 -> -6.127288184 | AN57: 0 | AO57: -6.127288184 | AP57: Anden bygning til fritidsformål | AQ57: ANDENF | AR57: ANDREBYG | AT57: 6.127288184 | AU57: 1 | AZ57: 0 | BI57: 0 | BK57: 0 | BR57: 0 | CG57: 6.127288184 | CI57: 0 | CJ57: =-('e2g-format 2019'!C57*Emissionsfaktorer!$B$5+'e2g-format 2019'!D57*Emissionsfaktorer!$B$7+'e2g-format 2019'!E57*Emissionsfaktorer!$B$8+X57*Emissionsfaktorer!$B$6) -> 0
C58: =(SUM('Energi_bbr varmeforbrug'!D68:Q68))*-0.0000036 -> 0 | F58: 0 | O58: 0 | Q58: 0 | X58: 0 | AK58: =(SUM('Energi_bbr varmeforbrug'!D35:Q35))*-0.0000036 -> 0 | AN58: 0 | AO58: 0 | AP58: Garage | AQ58: GARAGE | AR58: ANDREBYG | AT58: 0 | AU58: 1 | AZ58: 0 | BI58: 0 | BK58: 0 | BR58: 0 | CG58: 0 | CI58: 0 | CJ58: =-('e2g-format 2019'!C58*Emissionsfaktorer!$B$5+'e2g-format 2019'!D58*Emissionsfaktorer!$B$7+'e2g-format 2019'!E58*Emissionsfaktorer!$B$8+X58*Emissionsfaktorer!$B$6) -> 0
C59: =(SUM('Energi_bbr varmeforbrug'!D69:Q69))*-0.0000036 -> 0 | F59: 0 | O59: 0 | Q59: 0 | X59: 0 | AK59: =(SUM('Energi_bbr varmeforbrug'!D36:Q36))*-0.0000036 -> 0 | AN59: 0 | AO59: 0 | AP59: Carport | AQ59: CARPORT | AR59: ANDREBYG | AT59: 0 | AU59: 1 | AZ59: 0 | BI59: 0 | BK59: 0 | BR59: 0 | CG59: 0 | CI59: 0 | CJ59: =-('e2g-format 2019'!C59*Emissionsfaktorer!$B$5+'e2g-format 2019'!D59*Emissionsfaktorer!$B$7+'e2g-format 2019'!E59*Emissionsfaktorer!$B$8+X59*Emissionsfaktorer!$B$6) -> 0
C60: =(SUM('Energi_bbr varmeforbrug'!D70:Q70))*-0.0000036 -> 0 | F60: 0 | O60: 0 | Q60: 0 | X60: 0 | AK60: =(SUM('Energi_bbr varmeforbrug'!D37:Q37))*-0.0000036 -> -6.567121102 | AN60: 0 | AO60: -6.567121102 | AP60: Udhus | AQ60: UDHUS | AR60: ANDREBYG | AT60: 6.567121102 | AU60: 1 | AZ60: 0 | BI60: 0 | BK60: 0 | BR60: 0 | CG60: 6.567121102 | CI60: 0 | CJ60: =-('e2g-format 2019'!C60*Emissionsfaktorer!$B$5+'e2g-format 2019'!D60*Emissionsfaktorer!$B$7+'e2g-format 2019'!E60*Emissionsfaktorer!$B$8+X60*Emissionsfaktorer!$B$6) -> 0
C61: =SUM(C62:C68) -> -17.51814194 | D61: 0 | E61: 0 | F61: ='Justering af energiregnskab'!E9*-1 -> -33 | G61: 0 | H61: 0 | I61: 0 | J61: 0 | K61: 0 | L61: 0 | M61: 0 | N61: 0 | O61: =P61+Q61+T61+U61+V61 -> -2 | P61: ='Justering af energiregnskab'!E10*-1 -> -2 | Q61: 0 | R61: 0 | S61: 0 | T61: 0 | U61: 0 | V61: ='Justering af energiregnskab'!E11*-1 -> 0 | W61: 0 | X61: =('Energi_bbr varmeforbrug'!B84)*-0.0000036 -> -0.403774416 | Y61: =SUM(Y62:Y68) -> 0 | Z61: =SUM(Z62:Z68) -> 0 | AA61: 0 | AB61: 0 | AC61: 0 | AD61: 0 | AE61: 0 | AF61: 0 | AG61: 0 | AH61: 0 | AI61: 0 | AJ61: =Energi!B26*-0.0000036 -> -178.585272 | AK61: -304.8473642 | AL61: 0 | AM61: 0 | AN61: 0 | AO61: -536.3545526 | AP61: Offentlig | AQ61: AO | AR61: A | AS61: ='Størrelse på strømme'!#REF! ->  | AT61: 536.3545526 | AU61: 1 | AW61: =SUM(AW62:AW68) -> 0 | AX61: 0 | AY61: 0 | AZ61: 0 | BA61: 0 | BB61: 0 | BC61: 0 | BD61: 0 | BE61: 0 | BF61: 0 | BG61: 0 | BH61: 0 | BI61: 0 | BJ61: 0 | BK61: 0 | BL61: 0 | BM61: 0 | BN61: 0 | BO61: 0 | BP61: 0 | BQ61: 0 | BR61: 0 | BS61: 0 | BT61: 0 | BU61: 0 | BV61: 0 | BW61: 0 | BX61: 0 | BY61: 0 | BZ61: 0 | CA61: 0 | CB61: 0 | CC61: 0 | CD61: 0 | CE61: 0 | CF61: 0 | CG61: 536.3545526 | CH61: 0 | CI61: 0 | CJ61: =-('e2g-format 2019'!C61*Emissionsfaktorer!$B$5+'e2g-format 2019'!D61*Emissionsfaktorer!$B$7+'e2g-format 2019'!E61*Emissionsfaktorer!$B$8+X61*Emissionsfaktorer!$B$6) -> 1.028413397
C62: =(SUM('Energi_bbr varmeforbrug'!D48:Q48))*-0.0000036 -> -0.3244245464 | F62: 0 | O62: 0 | Q62: 0 | X62: 0 | AK62: =(SUM('Energi_bbr varmeforbrug'!D14:Q14))*-0.0000036 -> -274.2286572 | AN62: 0 | AO62: -274.5530817 | AP62: Kollegier | AQ62: KOLLEG | AR62: AO | AT62: 274.5530817 | AU62: 1 | AZ62: 0 | BI62: 0 | BK62: 0 | BR62: 0 | CG62: 274.5530817 | CI62: 0 | CJ62: =-('e2g-format 2019'!C62*Emissionsfaktorer!$B$5+'e2g-format 2019'!D62*Emissionsfaktorer!$B$7+'e2g-format 2019'!E62*Emissionsfaktorer!$B$8+X62*Emissionsfaktorer!$B$6) -> 0.01849219915
C63: =(SUM('Energi_bbr varmeforbrug'!D49:Q49))*-0.0000036 -> 0 | F63: 0 | O63: 0 | Q63: 0 | X63: 0 | AK63: =(SUM('Energi_bbr varmeforbrug'!D15:Q15))*-0.0000036 -> 0 | AN63: 0 | AO63: 0 | AP63: Døgninstitution | AQ63: DØGNIN | AR63: AO | AT63: 0 | AU63: 1 | AZ63: 0 | BI63: 0 | BK63: 0 | BR63: 0 | CG63: 0 | CI63: 0 | CJ63: =-('e2g-format 2019'!C63*Emissionsfaktorer!$B$5+'e2g-format 2019'!D63*Emissionsfaktorer!$B$7+'e2g-format 2019'!E63*Emissionsfaktorer!$B$8+X63*Emissionsfaktorer!$B$6) -> 0
C64: =(SUM('Energi_bbr varmeforbrug'!D59:Q59))*-0.0000036 -> 0 | F64: 0 | O64: 0 | Q64: 0 | X64: 0 | AK64: =(SUM('Energi_bbr varmeforbrug'!D26:Q26))*-0.0000036 -> -0.1451795497 | AN64: 0 | AO64: -0.1451795497 | AP64: Bygninger til undervisning og forskning | AQ64: UNDERVF | AR64: AO | AT64: 0.1451795497 | AU64: 1 | AZ64: 0 | BI64: 0 | BK64: 0 | BR64: 0 | CG64: 0.1451795497 | CI64: 0 | CJ64: =-('e2g-format 2019'!C64*Emissionsfaktorer!$B$5+'e2g-format 2019'!D64*Emissionsfaktorer!$B$7+'e2g-format 2019'!E64*Emissionsfaktorer!$B$8+X64*Emissionsfaktorer!$B$6) -> 0
C65: =(SUM('Energi_bbr varmeforbrug'!D60:Q60))*-0.0000036 -> -17.19371739 | F65: 0 | O65: 0 | Q65: 0 | X65: 0 | AK65: =(SUM('Energi_bbr varmeforbrug'!D27:Q27))*-0.0000036 -> -11.84897496 | AN65: 0 | AO65: -29.04269235 | AP65: Bygninger til hospital, sygehjem, fødeklinik o.lign | AQ65: HOSPITAL | AR65: AO | AT65: 29.04269235 | AU65: 1 | AZ65: 0 | BI65: 0 | BK65: 0 | BR65: 0 | CG65: 29.04269235 | CI65: 0 | CJ65: =-('e2g-format 2019'!C65*Emissionsfaktorer!$B$5+'e2g-format 2019'!D65*Emissionsfaktorer!$B$7+'e2g-format 2019'!E65*Emissionsfaktorer!$B$8+X65*Emissionsfaktorer!$B$6) -> 0.9800418913
C66: =(SUM('Energi_bbr varmeforbrug'!D61:Q61))*-0.0000036 -> 0 | F66: 0 | O66: 0 | Q66: 0 | X66: 0 | AK66: =(SUM('Energi_bbr varmeforbrug'!D28:Q28))*-0.0000036 -> -15.92101923 | AN66: 0 | AO66: -15.92101923 | AP66: Bygninger til daginstitution | AQ66: DAGINST | AR66: AO | AT66: 15.92101923 | AU66: 1 | AZ66: 0 | BI66: 0 | BK66: 0 | BR66: 0 | CG66: 15.92101923 | CI66: 0 | CJ66: =-('e2g-format 2019'!C66*Emissionsfaktorer!$B$5+'e2g-format 2019'!D66*Emissionsfaktorer!$B$7+'e2g-format 2019'!E66*Emissionsfaktorer!$B$8+X66*Emissionsfaktorer!$B$6) -> 0
C67: =(SUM('Energi_bbr varmeforbrug'!D62:Q62))*-0.0000036 -> 0 | F67: 0 | O67: 0 | Q67: 0 | X67: 0 | AK67: =(SUM('Energi_bbr varmeforbrug'!D29:Q29))*-0.0000036 -> -2.543549324 | AN67: 0 | AO67: -2.543549324 | AP67: Bygninger til anden institution, herunder kaserne, fængsel o.lign | AQ67: KASERNE | AR67: AO | AT67: 2.543549324 | AU67: 1 | AZ67: 0 | BI67: 0 | BK67: 0 | BR67: 0 | CG67: 2.543549324 | CI67: 0 | CJ67: =-('e2g-format 2019'!C67*Emissionsfaktorer!$B$5+'e2g-format 2019'!D67*Emissionsfaktorer!$B$7+'e2g-format 2019'!E67*Emissionsfaktorer!$B$8+X67*Emissionsfaktorer!$B$6) -> 0
C68: =(SUM('Energi_bbr varmeforbrug'!D65:Q65))*-0.0000036 -> 0 | F68: 0 | O68: 0 | Q68: 0 | X68: 0 | AK68: =(SUM('Energi_bbr varmeforbrug'!D32:Q32))*-0.0000036 -> -0.159984 | AN68: 0 | AO68: -0.159984 | AP68: Bygninger i forbindelse med idrætsøvelser | AQ68: IDRÆT | AR68: AO | AT68: 0.159984 | AU68: 1 | AZ68: 0 | BI68: 0 | BK68: 0 | BR68: 0 | CG68: 0.159984 | CI68: 0 | CJ68: =-('e2g-format 2019'!C68*Emissionsfaktorer!$B$5+'e2g-format 2019'!D68*Emissionsfaktorer!$B$7+'e2g-format 2019'!E68*Emissionsfaktorer!$B$8+X68*Emissionsfaktorer!$B$6) -> 0
C69: =C70+C75+C80 -> -137.4949349 | D69: =D70+D75+D80 -> 0 | E69: 0 | F69: 0 | G69: =G70+G75+G80 -> 0 | H69: =H70+H75+H80 -> 0 | I69: 0 | J69: =J70+J75+J80 -> 0 | K69: =K70+K75+K80 -> 0 | L69: 0 | M69: =M70+M75+M80 -> 0 | N69: =N70+N75+N80 -> 0 | O69: 0 | P69: =P70+P75+P80 -> 0 | Q69: =Q70+Q75+Q80 -> 0 | R69: 0 | S69: =S70+S75+S80 -> 0 | T69: =T70+T75+T80 -> 0 | U69: 0 | V69: =V70+V75+V80 -> 0 | W69: =W70+W75+W80 -> 0 | X69: ='Energi_bbr varmeforbrug'!B83*3.6/-1000000 -> -20.03647622 | Y69: =Y70+Y75+Y80 -> 0 | Z69: 0 | AA69: 0 | AB69: 0 | AC69: 0 | AD69: 0 | AE69: 0 | AF69: 0 | AG69: 0 | AH69: 0 | AI69: 0 | AJ69: =Energi!B25*-0.0000036 -> -1285.938907 | AK69: =AK70+AK75+AK80 -> -142.6477764 | AL69: 0 | AM69: 0 | AN69: 0 | AO69: =SUM(C69:F69,O69,W69,X69,AJ69:AL69) -> -1586.118095 | AP69: Erhverv | AQ69: AE | AR69: A | AS69: ='Størrelse på strømme'!#REF! ->  | AT69: =SUM(AW69:AZ69,BI69,BQ69,BR69,CD69:CG69) -> 1586.118095 | AU69: 1 | AW69: =SUM(AW71:AW83) -> 0 | AX69: 0 | AY69: 0 | AZ69: 0 | BA69: 0 | BB69: 0 | BC69: 0 | BD69: 0 | BE69: 0 | BF69: 0 | BG69: 0 | BH69: 0 | BI69: 0 | BJ69: 0 | BK69: 0 | BL69: 0 | BM69: 0 | BN69: 0 | BO69: 0 | BP69: 0 | BQ69: 0 | BR69: 0 | BS69: 0 | BT69: 0 | BU69: 0 | BV69: 0 | BW69: 0 | BX69: 0 | BY69: 0 | BZ69: 0 | CA69: 0 | CB69: 0 | CC69: 0 | CD69: 0 | CE69: 0 | CF69: 0 | CG69: 1586.118095 | CH69: =SUM(CH71:CH83) -> 0 | CI69: 0 | CJ69: =-('e2g-format 2019'!C69*Emissionsfaktorer!$B$5+'e2g-format 2019'!D69*Emissionsfaktorer!$B$7+'e2g-format 2019'!E69*Emissionsfaktorer!$B$8+X69*Emissionsfaktorer!$B$6) -> 9.31991053
C70: =SUM(C71:C74) -> -120.3012175 | D70: =SUM(D71:D74) -> 0 | E70: 0 | F70: 0 | G70: 0 | H70: 0 | I70: 0 | J70: 0 | K70: 0 | L70: 0 | M70: 0 | N70: 0 | O70: 0 | P70: 0 | Q70: 0 | R70: 0 | S70: 0 | T70: 0 | U70: 0 | V70: 0 | W70: 0 | X70: 0 | Y70: 0 | Z70: 0 | AA70: 0 | AB70: 0 | AC70: 0 | AD70: 0 | AE70: 0 | AF70: 0 | AG70: 0 | AH70: 0 | AI70: 0 | AJ70: 0 | AK70: -14.11919993 | AL70: 0 | AM70: 0 | AO70: -134.4204174 | AP70: Bygninger til produktionserhverv | AQ70: AEBE | AR70: AE | AS70: ='Størrelse på strømme'!#REF! ->  | AT70: 134.4204174 | AW70: =SUM(AW71:AW74) -> 0 | AX70: 0 | AY70: 0 | AZ70: 0 | BA70: 0 | BB70: 0 | BC70: 0 | BD70: 0 | BE70: 0 | BF70: 0 | BG70: 0 | BH70: 0 | BI70: 0 | BJ70: 0 | BK70: 0 | BL70: 0 | BM70: 0 | BN70: 0 | BO70: 0 | BP70: 0 | BQ70: 0 | BR70: 0 | BS70: 0 | BT70: 0 | BU70: 0 | BV70: 0 | BW70: 0 | BX70: 0 | BY70: 0 | BZ70: 0 | CA70: 0 | CB70: 0 | CC70: 0 | CD70: 0 | CE70: 0 | CF70: 0 | CG70: 134.4204174 | CH70: 0 | CI70: 0 | CJ70: 6.857169399
C71: =SUM('Energi_bbr varmeforbrug'!D56:'Energi_bbr varmeforbrug'!Q56)*-0.0000036 -> 0 | F71: 0 | O71: 0 | Q71: 0 | X71: 0 | AK71: =SUM('Energi_bbr varmeforbrug'!D17:Q17)*-0.0000036 -> -0.02023282325 | AN71: 0 | AO71: -0.02023282325 | AP71: Bygning til erhvervsmæssig produktion vedrørende landbrug, skovbrug, gartneri, råstofudvinding o.lign. | AQ71: ERHVERVSP | AR71: AEBE | AT71: 0.02023282325 | AU71: 1 | AZ71: 0 | BI71: 0 | BK71: 0 | BR71: 0 | CG71: =AO71*AU71*-1 -> 0.02023282325 | CI71: =(AT71+AO71)*-1 -> 0 | CJ71: =-('e2g-format 2019'!C71*Emissionsfaktorer!$B$5+'e2g-format 2019'!D71*Emissionsfaktorer!$B$7+'e2g-format 2019'!E71*Emissionsfaktorer!$B$8+X71*Emissionsfaktorer!$B$6) -> 0
C72: =SUM('Energi_bbr varmeforbrug'!D57:'Energi_bbr varmeforbrug'!Q57)*-0.0000036 -> -120.3012175 | F72: =SUM(G72:N72) -> 0 | O72: 0 | Q72: 0 | X72: 0 | AK72: =SUM('Energi_bbr varmeforbrug'!D18:Q18)*-0.0000036 -> -0.152388 | AN72: 0 | AO72: -120.4536055 | AP72: Bygning til erhvervsmæssig produktion vedrørende industri, håndværk m.v. | AQ72: ERHVSINDU | AR72: AEBE | AT72: 120.4536055 | AU72: 1 | AZ72: =SUM(BA72:BH72) -> 0 | BI72: 0 | BK72: 0 | BR72: 0 | CG72: =AO72*AU72*-1 -> 120.4536055 | CI72: =(AT72+AO72)*-1 -> 0 | CJ72: =-('e2g-format 2019'!C72*Emissionsfaktorer!$B$5+'e2g-format 2019'!D72*Emissionsfaktorer!$B$7+'e2g-format 2019'!E72*Emissionsfaktorer!$B$8+X72*Emissionsfaktorer!$B$6) -> 6.857169399
C73: =SUM('Energi_bbr varmeforbrug'!D58:'Energi_bbr varmeforbrug'!Q58)*-0.0000036 -> 0 | F73: 0 | O73: 0 | Q73: 0 | X73: 0 | AK73: =SUM('Energi_bbr varmeforbrug'!D19:Q19)*-0.0000036 -> -0.0155952 | AN73: 0 | AO73: -0.0155952 | AP73: El-, gas-, vand- eller varmeværk, forbrændingsanstalt m.v. | AQ73: ELGASVAND | AR73: AEBE | AT73: 0.0155952 | AU73: 1 | AZ73: 0 | BI73: 0 | BK73: 0 | BR73: 0 | CG73: =AO73*AU73*-1 -> 0.0155952 | CI73: =(AT73+AO73)*-1 -> 0 | CJ73: =-('e2g-format 2019'!C73*Emissionsfaktorer!$B$5+'e2g-format 2019'!D73*Emissionsfaktorer!$B$7+'e2g-format 2019'!E73*Emissionsfaktorer!$B$8+X73*Emissionsfaktorer!$B$6) -> 0
C74: =SUM('Energi_bbr varmeforbrug'!D59:'Energi_bbr varmeforbrug'!Q59)*-0.0000036 -> 0 | F74: 0 | O74: 0 | Q74: 0 | X74: 0 | AK74: =SUM('Energi_bbr varmeforbrug'!D20:Q20)*-0.0000036 -> -13.93098391 | AN74: 0 | AO74: -13.93098391 | AP74: Anden bygning til landbrug, industri etc. | AQ74: ANDENBERHV | AR74: AEBE | AT74: 13.93098391 | AU74: 1 | AZ74: 0 | BI74: 0 | BK74: 0 | BR74: 0 | CG74: =AO74*AU74*-1 -> 13.93098391 | CI74: =(AT74+AO74)*-1 -> 0 | CJ74: =-('e2g-format 2019'!C74*Emissionsfaktorer!$B$5+'e2g-format 2019'!D74*Emissionsfaktorer!$B$7+'e2g-format 2019'!E74*Emissionsfaktorer!$B$8+X74*Emissionsfaktorer!$B$6) -> 0
C75: =SUM(C76:C79) -> -17.19371739 | D75: =SUM(D76:D79) -> 0 | E75: 0 | F75: 0 | G75: 0 | H75: 0 | I75: 0 | J75: 0 | K75: 0 | L75: 0 | M75: 0 | N75: 0 | O75: 0 | P75: 0 | Q75: 0 | R75: 0 | S75: 0 | T75: 0 | U75: 0 | V75: 0 | W75: 0 | X75: 0 | Y75: 0 | Z75: 0 | AA75: 0 | AB75: 0 | AC75: 0 | AD75: 0 | AE75: 0 | AF75: 0 | AG75: 0 | AH75: 0 | AI75: 0 | AJ75: 0 | AK75: -114.2306856 | AL75: 0 | AM75: 0 | AO75: -131.424403 | AP75: Bygninger til handel og service | AQ75: AEHS | AR75: AE | AS75: ='Størrelse på strømme'!#REF! ->  | AT75: 131.424403 | AW75: =SUM(AW76:AW79) -> 0 | AX75: 0 | AY75: 0 | AZ75: 0 | BA75: 0 | BB75: 0 | BC75: 0 | BD75: 0 | BE75: 0 | BF75: 0 | BG75: 0 | BH75: 0 | BI75: 0 | BJ75: 0 | BK75: 0 | BL75: 0 | BM75: 0 | BN75: 0 | BO75: 0 | BP75: 0 | BQ75: 0 | BR75: 0 | BS75: 0 | BT75: 0 | BU75: 0 | BV75: 0 | BW75: 0 | BX75: 0 | BY75: 0 | BZ75: 0 | CA75: 0 | CB75: 0 | CC75: 0 | CD75: 0 | CE75: 0 | CF75: 0 | CG75: 131.424403 | CH75: 0 | CI75: 0 | CJ75: 0.9800418913
C76: =SUM('Energi_bbr varmeforbrug'!D60:'Energi_bbr varmeforbrug'!Q60)*-0.0000036 -> -17.19371739 | F76: 0 | O76: 0 | Q76: 0 | X76: 0 | AK76: =SUM('Energi_bbr varmeforbrug'!D21:Q21)*-0.0000036 -> -3.5811174 | AN76: 0 | AO76: -20.77483479 | AP76: Transport- og garageanlæg | AQ76: TRANSPOGARA | AR76: AEHS | AT76: 20.77483479 | AU76: 1 | AZ76: 0 | BI76: 0 | BK76: 0 | BR76: 0 | CG76: =AO76*AU76*-1 -> 20.77483479 | CI76: =(AT76+AO76)*-1 -> 0 | CJ76: =-('e2g-format 2019'!C76*Emissionsfaktorer!$B$5+'e2g-format 2019'!D76*Emissionsfaktorer!$B$7+'e2g-format 2019'!E76*Emissionsfaktorer!$B$8+X76*Emissionsfaktorer!$B$6) -> 0.9800418913
C77: =SUM('Energi_bbr varmeforbrug'!D61:'Energi_bbr varmeforbrug'!Q61)*-0.0000036 -> 0 | F77: 0 | O77: 0 | Q77: 0 | X77: 0 | AK77: =SUM('Energi_bbr varmeforbrug'!D22:Q22)*-0.0000036 -> 0 | AN77: 0 | AO77: 0 | AP77: Bygninger til kontor, handel, lager, herunder offentlig administration | AQ77: KONTORLAGERMV | AR77: AEHS | AT77: 0 | AU77: 1 | AZ77: 0 | BI77: 0 | BK77: 0 | BR77: 0 | CG77: =AO77*AU77*-1 -> 0 | CI77: =(AT77+AO77)*-1 -> 0 | CJ77: =-('e2g-format 2019'!C77*Emissionsfaktorer!$B$5+'e2g-format 2019'!D77*Emissionsfaktorer!$B$7+'e2g-format 2019'!E77*Emissionsfaktorer!$B$8+X77*Emissionsfaktorer!$B$6) -> 0
C78: =SUM('Energi_bbr varmeforbrug'!D62:'Energi_bbr varmeforbrug'!Q62)*-0.0000036 -> 0 | F78: 0 | O78: 0 | Q78: 0 | X78: 0 | AK78: =SUM('Energi_bbr varmeforbrug'!D23:Q23)*-0.0000036 -> -15.514329 | AN78: 0 | AO78: -15.514329 | AP78: Bygning til hotel, restaurant, vaskeri, frisør og anden servicevirksomhed | AQ78: HOTELVASK | AR78: AEHS | AT78: 15.514329 | AU78: 1 | AZ78: 0 | BI78: 0 | BK78: 0 | BR78: 0 | CG78: =AO78*AU78*-1 -> 15.514329 | CI78: =(AT78+AO78)*-1 -> 0 | CJ78: =-('e2g-format 2019'!C78*Emissionsfaktorer!$B$5+'e2g-format 2019'!D78*Emissionsfaktorer!$B$7+'e2g-format 2019'!E78*Emissionsfaktorer!$B$8+X78*Emissionsfaktorer!$B$6) -> 0
C79: =SUM('Energi_bbr varmeforbrug'!D63:'Energi_bbr varmeforbrug'!Q63)*-0.0000036 -> 0 | F79: 0 | O79: 0 | Q79: 0 | X79: 0 | AK79: =SUM('Energi_bbr varmeforbrug'!D24:Q24)*-0.0000036 -> -95.13523918 | AN79: 0 | AO79: -95.13523918 | AP79: Anden bygning til transport, handel etc | AQ79: ANDENHANDEL | AR79: AEHS | AT79: 95.13523918 | AU79: 1 | AZ79: 0 | BI79: 0 | BK79: 0 | BR79: 0 | CG79: =AO79*AU79*-1 -> 95.13523918 | CI79: =(AT79+AO79)*-1 -> 0 | CJ79: =-('e2g-format 2019'!C79*Emissionsfaktorer!$B$5+'e2g-format 2019'!D79*Emissionsfaktorer!$B$7+'e2g-format 2019'!E79*Emissionsfaktorer!$B$8+X79*Emissionsfaktorer!$B$6) -> 0
C80: =SUM(C81:C83) -> 0 | D80: =SUM(D81:D83) -> 0 | E80: 0 | F80: 0 | G80: 0 | H80: 0 | I80: 0 | J80: 0 | K80: 0 | L80: 0 | M80: 0 | N80: 0 | O80: 0 | P80: 0 | Q80: 0 | R80: 0 | S80: 0 | T80: 0 | U80: 0 | V80: 0 | W80: 0 | X80: 0 | Y80: 0 | Z80: 0 | AA80: 0 | AB80: 0 | AC80: 0 | AD80: 0 | AE80: 0 | AF80: 0 | AG80: 0 | AH80: 0 | AI80: 0 | AJ80: 0 | AK80: -14.29789088 | AL80: 0 | AM80: 0 | AO80: -14.29789088 | AP80: Bygninger til underholdning | AQ80: AEUN | AR80: AE | AS80: ='Størrelse på strømme'!#REF! ->  | AT80: 14.29789088 | AU80: 1 | AW80: =SUM(AW81:AW83) -> 0 | AX80: 0 | AY80: 0 | AZ80: 0 | BA80: 0 | BB80: 0 | BC80: 0 | BD80: 0 | BE80: 0 | BF80: 0 | BG80: 0 | BH80: 0 | BI80: 0 | BJ80: 0 | BK80: 0 | BL80: 0 | BM80: 0 | BN80: 0 | BO80: 0 | BP80: 0 | BQ80: 0 | BR80: 0 | BS80: 0 | BT80: 0 | BU80: 0 | BV80: 0 | BW80: 0 | BX80: 0 | BY80: 0 | BZ80: 0 | CA80: 0 | CB80: 0 | CC80: 0 | CD80: 0 | CE80: 0 | CF80: 0 | CG80: 14.29789088 | CH80: 0 | CI80: 0 | CJ80: 0
C81: =SUM('Energi_bbr varmeforbrug'!D64:'Energi_bbr varmeforbrug'!Q64)*-0.0000036 -> 0 | F81: 0 | O81: 0 | Q81: 0 | X81: 0 | AK81: =SUM('Energi_bbr varmeforbrug'!D25:Q25)*-0.0000036 -> -10.24641254 | AN81: 0 | AO81: -10.24641254 | AP81: Bygninger til biograf, teater, erhvervsmæssig udstilling, bibliotek, museum, kirke o.lign | AQ81: BIOTEA | AR81: AEUN | AT81: 10.24641254 | AU81: 1 | AZ81: 0 | BI81: 0 | BK81: 0 | BR81: 0 | CG81: =AO81*AU81*-1 -> 10.24641254 | CI81: =(AT81+AO81)*-1 -> 0 | CJ81: =-('e2g-format 2019'!C81*Emissionsfaktorer!$B$5+'e2g-format 2019'!D81*Emissionsfaktorer!$B$7+'e2g-format 2019'!E81*Emissionsfaktorer!$B$8+X81*Emissionsfaktorer!$B$6) -> 0
C82: =SUM('Energi_bbr varmeforbrug'!D69:'Energi_bbr varmeforbrug'!Q69)*-0.0000036 -> 0 | F82: 0 | O82: 0 | Q82: 0 | X82: 0 | AK82: =SUM('Energi_bbr varmeforbrug'!D31:Q31)*-0.0000036 -> -4.05147834 | AN82: 0 | AO82: -4.05147834 | AP82: Bygninger til ferieformål m.v. bortset fra sommerhus og kolonihavehus | AQ82: FERIE | AR82: AEUN | AT82: 4.05147834 | AU82: 1 | AZ82: 0 | BI82: 0 | BK82: 0 | BR82: 0 | CG82: 4.05147834 | CI82: 0 | CJ82: =-('e2g-format 2019'!C82*Emissionsfaktorer!$B$5+'e2g-format 2019'!D82*Emissionsfaktorer!$B$7+'e2g-format 2019'!E82*Emissionsfaktorer!$B$8+X82*Emissionsfaktorer!$B$6) -> 0
C83: =SUM('Energi_bbr varmeforbrug'!D77:'Energi_bbr varmeforbrug'!Q77)*-0.0000036 -> 0 | F83: 0 | O83: 0 | Q83: 0 | X83: 0 | AK83: =SUM('Energi_bbr varmeforbrug'!D38:Q38)*-0.0000036 -> 0 | AN83: 0 | AO83: 0 | AP83: Ikke oplyst | AQ83: IKKEOPL | AR83: AEUN | AT83: 0 | AU83: 1 | AZ83: 0 | BI83: 0 | BK83: 0 | BR83: 0 | CG83: 0 | CI83: 0 | CJ83: =-('e2g-format 2019'!C83*Emissionsfaktorer!$B$5+'e2g-format 2019'!D83*Emissionsfaktorer!$B$7+'e2g-format 2019'!E83*Emissionsfaktorer!$B$8+X83*Emissionsfaktorer!$B$6) -> 0
C84: =SUM(C85:C98) -> -942.5050651 | D84: -176 | E84: -31 | F84: -466 | G84: 0 | H84: 0 | I84: 0 | J84: 0 | K84: =SUM(K85:K98) -> 0 | L84: 0 | M84: 0 | N84: 0 | O84: 0 | P84: 0 | Q84: 0 | R84: 0 | S84: 0 | T84: 0 | U84: 0 | V84: 0 | W84: 0 | X84: -1114.963524 | Y84: 0 | Z84: 0 | AA84: 0 | AB84: 0 | AC84: 0 | AD84: 0 | AE84: 0 | AF84: 0 | AG84: 0 | AH84: 0 | AI84: 0 | AJ84: 0 | AK84: 0 | AL84: 0 | AM84: 0 | AN84: 0 | AO84: -2730.468589 | AP84: Energi proces | AQ84: AP | AR84: A | AS84: ='Størrelse på strømme'!#REF! ->  | AT84: 2457.42173 | AU84: 0.9 | AW84: =SUM(AW85:AW98) -> 0 | AX84: 0 | AY84: 0 | AZ84: 0 | BA84: 0 | BB84: 0 | BC84: 0 | BD84: 0 | BE84: 0 | BF84: 0 | BG84: 0 | BH84: 0 | BI84: 0 | BJ84: 0 | BK84: 0 | BL84: 0 | BM84: 0 | BN84: 0 | BO84: 0 | BP84: 0 | BQ84: 0 | BR84: 0 | BS84: 0 | BT84: 0 | BU84: 0 | BV84: 0 | BW84: 0 | BX84: 0 | BY84: 0 | BZ84: 0 | CA84: 0 | CB84: 0 | CC84: 0 | CD84: 0 | CE84: 0 | CF84: 0 | CG84: 2457.42173 | CH84: 0 | CI84: 273.0468589 | CJ84: =-('e2g-format 2019'!C84*Emissionsfaktorer!$B$5+'e2g-format 2019'!D84*Emissionsfaktorer!$B$7+'e2g-format 2019'!E84*Emissionsfaktorer!$B$8+X84*Emissionsfaktorer!$B$6) -> 155.2352895
C85: =(Energi_proces!I7)*-0.001 -> 0 | D85: =(Energi_proces!G7)*-0.001 -> 0 | E85: =(Energi_proces!J7)*-0.001 -> 0 | F85: 0 | L85: =(Energi_proces!L7)*-0.001 -> 0 | M85: =(Energi_proces!K7)*-0.001 -> 0 | O85: =(Energi_proces!M7)*-0.001 -> 0 | Q85: 0 | X85: =(Energi_proces!H7)*-0.001 -> -376.97 | AN85: 0 | AO85: -376.97 | AP85: =Energi_proces!E7 -> A/S DANSK SHELL | AQ85: AP1 | AR85: AP | AT85: 339.273 | AU85: 0.9 | AZ85: 0 | BI85: 0 | BK85: 0 | BR85: 0 | CG85: 339.273 | CI85: 37.697 | CJ85: =-('e2g-format 2019'!C85*Emissionsfaktorer!$B$5+'e2g-format 2019'!D85*Emissionsfaktorer!$B$7+'e2g-format 2019'!E85*Emissionsfaktorer!$B$8+X85*Emissionsfaktorer!$B$6) -> 27.89578
C86: =(Energi_proces!I8)*-0.001 -> -222.1852169 | D86: =(Energi_proces!G8)*-0.001 -> 0 | E86: =(Energi_proces!J8)*-0.001 -> 0 | F86: 0 | L86: =(Energi_proces!L8)*-0.001 -> 0 | M86: =(Energi_proces!K8)*-0.001 -> 0 | O86: =(Energi_proces!M8)*-0.001 -> 0 | Q86: 0 | X86: =(Energi_proces!H8)*-0.001 -> 0 | AN86: 0 | AO86: -222.1852169 | AP86: =Energi_proces!E8 -> CARLSBERG SUPPLY COMPANY DANMARK A/S | AQ86: AP2 | AR86: AP | AT86: 199.9666952 | AU86: 0.9 | AZ86: 0 | BI86: 0 | BK86: 0 | BR86: 0 | CG86: 199.9666952 | CI86: 22.21852169 | CJ86: =-('e2g-format 2019'!C86*Emissionsfaktorer!$B$5+'e2g-format 2019'!D86*Emissionsfaktorer!$B$7+'e2g-format 2019'!E86*Emissionsfaktorer!$B$8+X86*Emissionsfaktorer!$B$6) -> 12.66455737
C87: =(Energi_proces!I9)*-0.001 -> -0.00252 | D87: =(Energi_proces!G9)*-0.001 -> 0 | E87: =(Energi_proces!J9)*-0.001 -> 0 | F87: 0 | L87: =(Energi_proces!L9)*-0.001 -> 0 | M87: =(Energi_proces!K9)*-0.001 -> 0 | O87: =(Energi_proces!M9)*-0.001 -> 0 | Q87: 0 | X87: =(Energi_proces!H9)*-0.001 -> 0 | AN87: 0 | AO87: -0.00252 | AP87: =Energi_proces!E9 -> ERIK & STEEN MAGNUSSON I/S | AQ87: AP3 | AR87: AP | AT87: 0.002268 | AU87: 0.9 | AZ87: 0 | BI87: 0 | BK87: 0 | BR87: 0 | CG87: 0.002268 | CI87: 0.000252 | CJ87: =-('e2g-format 2019'!C87*Emissionsfaktorer!$B$5+'e2g-format 2019'!D87*Emissionsfaktorer!$B$7+'e2g-format 2019'!E87*Emissionsfaktorer!$B$8+X87*Emissionsfaktorer!$B$6) -> 0.00014364
C88: =IF('Justering af energiregnskab'!$E$14+SUM(C85:C87)+C69>0,('Justering af energiregnskab'!$E$14+SUM(C85:C87)+C69)*-1,0) -> -720.3173282 | D88: =IF('Justering af energiregnskab'!$E$16+SUM(D85:D87)+D69>0,('Justering af energiregnskab'!$E$16+SUM(D85:D87)+D69)*-1,0) -> -176 | E88: =IF('Justering af energiregnskab'!$E$17+SUM(E85:E87)+E69>0,('Justering af energiregnskab'!$E$17+SUM(E85:E87)+E69)*-1,0) -> -31 | F88: =IF('Justering af energiregnskab'!$E$18+SUM(F85:F87)+F69>0,('Justering af energiregnskab'!$E$18+SUM(F85:F87)+F69)*-1,0) -> -466 | L88: =(Energi_proces!L10)*-0.001 -> 0 | M88: =(Energi_proces!K10)*-0.001 -> 0 | O88: =(Energi_proces!M10)*-0.001 -> 0 | P88: =IF('Justering af energiregnskab'!$E$19+SUM(P85:P87)+P69>0,('Justering af energiregnskab'!$E$19+SUM(P85:P87)+P69)*-1,0) -> 0 | Q88: 0 | V88: =IF('Justering af energiregnskab'!$E$20+SUM(V85:V87)+V69>0,('Justering af energiregnskab'!$E$20+SUM(V85:V87)+V69)*-1,0) -> 0 | W88: =IF('Justering af energiregnskab'!$E$21+SUM(W85:W87)+W69>0,('Justering af energiregnskab'!$E$21+SUM(W85:W87)+W69)*-1,0) -> 0 | X88: =IF('Justering af energiregnskab'!$E$15+SUM(X85:X87)+X69>0,('Justering af energiregnskab'!$E$15+SUM(X85:X87)+X69)*-1,0) -> -737.9935238 | AN88: 0 | AO88: -2131.310852 | AP88: EKSTRA | AQ88: AP4 | AR88: AP | AT88: 1918.179767 | AU88: 0.9 | AZ88: 0 | BI88: 0 | BK88: 0 | BR88: 0 | CG88: 1918.179767 | CI88: 213.1310852 | CJ88: =-('e2g-format 2019'!C88*Emissionsfaktorer!$B$5+'e2g-format 2019'!D88*Emissionsfaktorer!$B$7+'e2g-format 2019'!E88*Emissionsfaktorer!$B$8+X88*Emissionsfaktorer!$B$6) -> 114.6748085
C89: =(Energi_proces!I11)*-0.001 -> 0 | D89: =(Energi_proces!G11)*-0.001 -> 0 | E89: =(Energi_proces!J11)*-0.001 -> 0 | F89: 0 | L89: =(Energi_proces!L11)*-0.001 -> 0 | M89: =(Energi_proces!K11)*-0.001 -> 0 | O89: =(Energi_proces!M11)*-0.001 -> 0 | Q89: 0 | X89: =(Energi_proces!H11)*-0.001 -> 0 | AN89: 0 | AO89: 0 | AP89: =Energi_proces!E11 -> 0 | AQ89: AP5 | AR89: AP | AT89: 0 | AU89: 0.9 | AZ89: 0 | BI89: 0 | BK89: 0 | BR89: 0 | CG89: 0 | CI89: 0 | CJ89: =-('e2g-format 2019'!C89*Emissionsfaktorer!$B$5+'e2g-format 2019'!D89*Emissionsfaktorer!$B$7+'e2g-format 2019'!E89*Emissionsfaktorer!$B$8+X89*Emissionsfaktorer!$B$6) -> 0
C90: =(Energi_proces!I12)*-0.001 -> 0 | D90: =(Energi_proces!G12)*-0.001 -> 0 | E90: =(Energi_proces!J12)*-0.001 -> 0 | F90: 0 | L90: =(Energi_proces!L12)*-0.001 -> 0 | M90: =(Energi_proces!K12)*-0.001 -> 0 | O90: =(Energi_proces!M12)*-0.001 -> 0 | Q90: 0 | X90: =(Energi_proces!H12)*-0.001 -> 0 | AN90: 0 | AO90: 0 | AP90: =Energi_proces!E12 -> 0 | AQ90: AP6 | AR90: AP | AT90: 0 | AU90: 0.9 | AZ90: 0 | BI90: 0 | BK90: 0 | BR90: 0 | CG90: 0 | CI90: 0 | CJ90: =-('e2g-format 2019'!C90*Emissionsfaktorer!$B$5+'e2g-format 2019'!D90*Emissionsfaktorer!$B$7+'e2g-format 2019'!E90*Emissionsfaktorer!$B$8+X90*Emissionsfaktorer!$B$6) -> 0
C91: =(Energi_proces!I13)*-0.001 -> 0 | D91: =(Energi_proces!G13)*-0.001 -> 0 | E91: =(Energi_proces!J13)*-0.001 -> 0 | F91: 0 | L91: =(Energi_proces!L13)*-0.001 -> 0 | M91: =(Energi_proces!K13)*-0.001 -> 0 | O91: =(Energi_proces!M13)*-0.001 -> 0 | Q91: 0 | X91: =(Energi_proces!H13)*-0.001 -> 0 | AN91: 0 | AO91: 0 | AP91: =Energi_proces!E13 -> 0 | AQ91: AP7 | AR91: AP | AT91: 0 | AU91: 0.9 | AZ91: 0 | BI91: 0 | BK91: 0 | BR91: 0 | CG91: 0 | CI91: 0 | CJ91: =-('e2g-format 2019'!C91*Emissionsfaktorer!$B$5+'e2g-format 2019'!D91*Emissionsfaktorer!$B$7+'e2g-format 2019'!E91*Emissionsfaktorer!$B$8+X91*Emissionsfaktorer!$B$6) -> 0
C92: =(Energi_proces!I14)*-0.001 -> 0 | D92: =(Energi_proces!G14)*-0.001 -> 0 | E92: =(Energi_proces!J14)*-0.001 -> 0 | F92: 0 | L92: =(Energi_proces!L14)*-0.001 -> 0 | M92: =(Energi_proces!K14)*-0.001 -> 0 | O92: =(Energi_proces!M14)*-0.001 -> 0 | Q92: 0 | X92: =(Energi_proces!H14)*-0.001 -> 0 | AN92: 0 | AO92: 0 | AP92: =Energi_proces!E14 -> 0 | AQ92: AP8 | AR92: AP | AT92: 0 | AU92: 0.9 | AZ92: 0 | BI92: 0 | BK92: 0 | BR92: 0 | CG92: 0 | CI92: 0 | CJ92: =-('e2g-format 2019'!C92*Emissionsfaktorer!$B$5+'e2g-format 2019'!D92*Emissionsfaktorer!$B$7+'e2g-format 2019'!E92*Emissionsfaktorer!$B$8+X92*Emissionsfaktorer!$B$6) -> 0
C93: =(Energi_proces!I15)*-0.001 -> 0 | D93: =(Energi_proces!G15)*-0.001 -> 0 | E93: =(Energi_proces!J15)*-0.001 -> 0 | F93: 0 | L93: =(Energi_proces!L15)*-0.001 -> 0 | M93: =(Energi_proces!K15)*-0.001 -> 0 | O93: =(Energi_proces!M15)*-0.001 -> 0 | Q93: 0 | X93: =(Energi_proces!H15)*-0.001 -> 0 | AN93: 0 | AO93: 0 | AP93: =Energi_proces!E15 -> 0 | AQ93: AP9 | AR93: AP | AT93: 0 | AU93: 0.9 | AZ93: 0 | BI93: 0 | BK93: 0 | BR93: 0 | CG93: 0 | CI93: 0 | CJ93: =-('e2g-format 2019'!C93*Emissionsfaktorer!$B$5+'e2g-format 2019'!D93*Emissionsfaktorer!$B$7+'e2g-format 2019'!E93*Emissionsfaktorer!$B$8+X93*Emissionsfaktorer!$B$6) -> 0
C94: =(Energi_proces!I16)*-0.001 -> 0 | D94: =(Energi_proces!G16)*-0.001 -> 0 | E94: =(Energi_proces!J16)*-0.001 -> 0 | F94: 0 | L94: =(Energi_proces!L16)*-0.001 -> 0 | M94: =(Energi_proces!K16)*-0.001 -> 0 | O94: =(Energi_proces!M16)*-0.001 -> 0 | Q94: 0 | X94: =(Energi_proces!H16)*-0.001 -> 0 | AN94: 0 | AO94: 0 | AP94: =Energi_proces!E16 -> 0 | AQ94: AP10 | AR94: AP | AT94: 0 | AU94: 0.9 | AZ94: 0 | BI94: 0 | BK94: 0 | BR94: 0 | CG94: 0 | CI94: 0 | CJ94: =-('e2g-format 2019'!C94*Emissionsfaktorer!$B$5+'e2g-format 2019'!D94*Emissionsfaktorer!$B$7+'e2g-format 2019'!E94*Emissionsfaktorer!$B$8+X94*Emissionsfaktorer!$B$6) -> 0
C95: =(Energi_proces!I17)*-0.001 -> 0 | D95: =(Energi_proces!G17)*-0.001 -> 0 | E95: =(Energi_proces!J17)*-0.001 -> 0 | F95: 0 | L95: =(Energi_proces!L17)*-0.001 -> 0 | M95: =(Energi_proces!K17)*-0.001 -> 0 | O95: =(Energi_proces!M17)*-0.001 -> 0 | Q95: 0 | X95: =(Energi_proces!H17)*-0.001 -> 0 | AN95: 0 | AO95: 0 | AP95: =Energi_proces!E17 -> 0 | AQ95: AP11 | AR95: AP | AT95: 0 | AU95: 0.9 | AZ95: 0 | BI95: 0 | BK95: 0 | BR95: 0 | CG95: 0 | CI95: 0 | CJ95: =-('e2g-format 2019'!C95*Emissionsfaktorer!$B$5+'e2g-format 2019'!D95*Emissionsfaktorer!$B$7+'e2g-format 2019'!E95*Emissionsfaktorer!$B$8+X95*Emissionsfaktorer!$B$6) -> 0
C96: =(Energi_proces!I18)*-0.001 -> 0 | D96: =(Energi_proces!G18)*-0.001 -> 0 | E96: =(Energi_proces!J18)*-0.001 -> 0 | F96: 0 | L96: =(Energi_proces!L18)*-0.001 -> 0 | M96: =(Energi_proces!K18)*-0.001 -> 0 | O96: =(Energi_proces!M18)*-0.001 -> 0 | Q96: 0 | X96: =(Energi_proces!H18)*-0.001 -> 0 | AN96: 0 | AO96: 0 | AP96: =Energi_proces!E18 -> 0 | AQ96: AP12 | AR96: AP | AT96: 0 | AU96: 0.9 | AZ96: 0 | BI96: 0 | BK96: 0 | BR96: 0 | CG96: 0 | CI96: 0 | CJ96: =-('e2g-format 2019'!C96*Emissionsfaktorer!$B$5+'e2g-format 2019'!D96*Emissionsfaktorer!$B$7+'e2g-format 2019'!E96*Emissionsfaktorer!$B$8+X96*Emissionsfaktorer!$B$6) -> 0
C97: =(Energi_proces!I19)*-0.001 -> 0 | D97: =(Energi_proces!G19)*-0.001 -> 0 | E97: =(Energi_proces!J19)*-0.001 -> 0 | F97: 0 | L97: =(Energi_proces!L19)*-0.001 -> 0 | M97: =(Energi_proces!K19)*-0.001 -> 0 | O97: =(Energi_proces!M19)*-0.001 -> 0 | Q97: 0 | X97: =(Energi_proces!H19)*-0.001 -> 0 | AN97: 0 | AO97: 0 | AP97: =Energi_proces!E19 -> 0 | AQ97: AP13 | AR97: AP | AT97: 0 | AU97: 0.9 | AZ97: 0 | BI97: 0 | BK97: 0 | BR97: 0 | CG97: 0 | CI97: 0 | CJ97: =-('e2g-format 2019'!C97*Emissionsfaktorer!$B$5+'e2g-format 2019'!D97*Emissionsfaktorer!$B$7+'e2g-format 2019'!E97*Emissionsfaktorer!$B$8+X97*Emissionsfaktorer!$B$6) -> 0
C98: =(Energi_proces!I20)*-0.001 -> 0 | D98: =(Energi_proces!G20)*-0.001 -> 0 | E98: =(Energi_proces!J20)*-0.001 -> 0 | F98: 0 | L98: =(Energi_proces!L20)*-0.001 -> 0 | M98: =(Energi_proces!K20)*-0.001 -> 0 | O98: =(Energi_proces!M20)*-0.001 -> 0 | Q98: 0 | X98: =(Energi_proces!H20)*-0.001 -> 0 | AN98: 0 | AO98: 0 | AP98: =Energi_proces!E20 -> 0 | AQ98: AP14 | AR98: AP | AT98: 0 | AU98: 0.9 | AZ98: 0 | BI98: 0 | BK98: 0 | BR98: 0 | CG98: 0 | CI98: 0 | CJ98: =-('e2g-format 2019'!C98*Emissionsfaktorer!$B$5+'e2g-format 2019'!D98*Emissionsfaktorer!$B$7+'e2g-format 2019'!E98*Emissionsfaktorer!$B$8+X98*Emissionsfaktorer!$B$6) -> 0
F99: 0 | X99: =SUM(Y99:AI99) -> 0 | AN99: 0 | AO99: 0 | AP99: Ikke energiformål | AQ99: AIE | AR99: A | AU99: 0.9 | CG99: 0 | CI99: 0
AP100: Energitjenester | AQ100: EN

Sheet Ref for justering 2019 (hidden)
B1: Forbrug | C1: Naturgas | D1: Kul | E1: Affald (ikke-bionedbrydeligt) | F1: Biobrændsler | G1: Halm | H1: Skovflis | I1: Brænde | J1: Træpiller | K1: Træaffald | L1: Biogas | M1: Biomasse | N1: Affald (bionedbrydeligt) | O1: Ikke-brændsel VE | P1: Sol | Q1: Vind | R1: Havvind | S1: Landvind | T1: Vand | U1: Geotermisk | V1: Varmepumpe - omgivelsesvarme | W1: Bioolie, biodiesel og bioethanol | X1: Olieprodukter | Y1: Raffinaderigas | Z1: LPG | AA1: Flybenzin | AB1: Benzin | AC1: Petroleum / Kerosen | AD1: JP1 | AE1: Gasolie/Dieselolie | AF1: Fuelolie | AG1: Spildolie | AH1: Petrokoks | AI1: Terpentin, smøreolie og bitumen | AJ1: El | AK1: Fjernvarme | AL1: Overskudsvarme | AM1: Energitjenester | AN1: Total energiforbrug | AO1: Brutto brændsel | AP1: =Andet!B4 -> Fredericia | AS1: Faktor | AT1: Brutto produktion | AU1: Virkningsgrad | AV1: Produktion | AW1: Naturgas | AX1: Kul | AY1: Affald (ikke-bionedbrydeligt) | AZ1: Biobrændsler | BA1: Halm | BB1: Skovflis | BC1: Brænde | BD1: Træpiller | BE1: Træaffald | BF1: Biogas | BG1: Biomasse | BH1: Affald (bionedbrydeligt) | BI1: Ikke-brændsel VE | BJ1: Sol | BK1: Vind | BL1: Havvind | BM1: Landvind | BN1: Vand | BO1: Geotermisk | BP1: Varmepumpe - omgivelsesvarme | BQ1: Bioolie, biodiesel og bioethanol | BR1: Olieprodukter | BS1: Raffinaderigas | BT1: LPG | BU1: Flybenzin | BV1: Benzin | BW1: Petroleum / Kerosen | BX1: JP1 | BY1: Gasolie/Dieselolie | BZ1: Fuelolie | CA1: Spildolie | CB1: Petrokoks | CC1: Terpentin, smøreolie og bitumen | CD1: El | CE1: Fjernvarme | CF1: Nyttiggjort overskudsvarme | CG1: Energitjenester | CH1: Total energiforbrug | CI1: Tab | CJ1: CO2-udledning
A2: ID | B2: F | C2: FN | D2: FK | E2: FMA | F2: FVB | G2: FB1 | H2: FB2 | I2: FB3 | J2: FB4 | K2: FB5 | L2: FB6 | M2: FB7 | N2: FB8 | O2: FLVE | P2: FLVE1 | Q2: FLVE2 | R2: FLVE21 | S2: FLVE22 | T2: FLVE3 | U2: FLVE4 | V2: FLVE5 | W2: FS | X2: FOO | Y2: FO1 | Z2: FO2 | AA2: FO3 | AB2: FO4 | AC2: FO5 | AD2: FO6 | AE2: FO7 | AF2: FO8 | AG2: FO9 | AH2: FOO1 | AI2: FOO2 | AJ2: FE | AK2: FF | AL2: FOV | AM2: FWEN | AN2: FTOTAL | AO2: fbrbr | AQ2: ID | AR2: ID Parent | AS2: factor | AT2: pbrpr | AU2: pvrkg | AV2: P | AW2: PN | AX2: PK | AY2: PMA | AZ2: PVB | BA2: PB1 | BB2: PB2 | BC2: PB3 | BD2: PB4 | BE2: PB5 | BF2: PB6 | BG2: PB7 | BH2: PB8 | BI2: PLVE | BJ2: PLVE1 | BK2: PLVE2 | BL2: PLVE21 | BM2: PLVE22 | BN2: PLVE3 | BO2: PLVE4 | BP2: PLVE5 | BQ2: PS | BR2: POO | BS2: PO1 | BT2: PO2 | BU2: PO3 | BV2: PO4 | BW2: PO5 | BX2: PO6 | BY2: PO7 | BZ2: PO8 | CA2: PO9 | CB2: POO1 | CC2: POO2 | CD2: PE | CE2: PF | CF2: POV | CG2: PWEN | CH2: PTOTAL | CI2: PTAB | CJ2: PCO2
A3: ID Parent | C3: F | D3: F | E3: F | F3: F | G3: FVB | H3: FVB | I3: FVB | J3: FVB | K3: FVB | L3: FVB | M3: FVB | N3: FVB | O3: F | P3: FLVE | Q3: FLVE | R3: FLVE2 | S3: FLVE2 | T3: FLVE | U3: FLVE | V3: FLVE | W3: F | X3: F | Y3: FOO | Z3: FOO | AA3: FOO | AB3: FOO | AC3: FOO | AD3: FOO | AE3: FOO | AF3: FOO | AG3: FOO | AH3: FOO | AI3: FOO | AJ3: F | AK3: F | AL3: F | AM3: F | AN3: F | AP3: Structures | AW3: P | AX3: P | AY3: P | AZ3: P | BA3: PVB | BB3: PVB | BC3: PVB | BD3: PVB | BE3: PVB | BF3: PVB | BG3: PVB | BH3: PVB | BI3: P | BJ3: PLVE | BK3: PLVE | BL3: PLVE2 | BM3: PLVE2 | BN3: PLVE | BO3: PLVE | BP3: PLVE | BQ3: P | BR3: P | BS3: POO | BT3: POO | BU3: POO | BV3: POO | BW3: POO | BX3: POO | BY3: POO | BZ3: POO | CA3: POO | CB3: POO | CC3: POO | CD3: P | CE3: P | CF3: P | CG3: P | CH3: P
B4: ='Størrelse på strømme'!E8 -> 497.2327402 | F4: ='Størrelse på strømme'!#REF! ->  | O4: ='Størrelse på strømme'!E19 -> 3.185 | Q4: ='Størrelse på strømme'!E19 -> 3.185 | X4: ='Størrelse på strømme'!#REF! ->  | AV4: =B4 -> 497.2327402 | AZ4: =F4 ->  | BI4: =O4 -> 3.185 | BK4: =Q4 -> 3.185 | BR4: =X4 ->  | CI4: =B4 -> 497.2327402 | CJ4: ='Størrelse på strømme'!E41 -> 11.00191283
F5: =SUM(G5:N5) -> 0 | O5: =P5+Q5+T5+U5+V5 -> 0 | Q5: =R5+S5 -> 0 | X5: =SUM(Y5:AI5) -> 0 | AN5: 0 | AO5: =SUM(C5:F5,O5,W5,X5,AJ5:AL5) -> 0 | AP5: Indgang for brændsler (bio, kul mv.) | AQ5: TP | AS5: ='Størrelse på strømme'!E36 -> 100.8736013 | AT5: =SUM(AW5:AZ5,BI5,BQ5,BR5,CD5:CG5) -> 3242.308157 | AW5: =-C6 -> 2156.70246 | AX5: 0 | AY5: 134.2841675 | AZ5: 951.3215288 | BA5: 0 | BB5: 773.1867815 | BC5: 0 | BD5: 0 | BE5: 1.080684994 | BF5: 12.92896873 | BG5: 0 | BH5: 164.1250936 | BI5: =BJ5+BK5+BN5+BO5+BP5 -> 0 | BK5: =BL5+BM5 -> 0 | BR5: =SUM(BS5:CC5) -> 0
C6: =-AW6 -> -2156.70246 | D6: =-AX6 -> 0 | E6: -134.2841675 | F6: -951.3215288 | G6: 0 | H6: -773.1867815 | I6: 0 | J6: 0 | K6: -1.080684994 | L6: -12.92896873 | M6: 0 | N6: -164.1250936 | O6: =P6+Q6+T6+U6+V6 -> 0 | Q6: 0 | X6: =SUM(Y6:AI6) -> 0 | AN6: 0 | AO6: -3242.308157 | AP6: Transport af brændsler | AQ6: TRAP | AT6: 3242.308157 | AW6: =-1*(C8+C20) -> 2156.70246 | AX6: 0 | AY6: 134.2841675 | AZ6: 951.3215288 | BA6: 0 | BB6: 773.1867815 | BC6: 0 | BD6: 0 | BE6: 1.080684994 | BF6: 12.92896873 | BG6: 0 | BH6: 164.1250936 | BI6: =BJ6+BK6+BN6+BO6+BP6 -> 0 | BK6: 0 | BR6: =SUM(BS6:CC6) -> 0
F7: =SUM(G7:N7) -> 0 | O7: =P7+Q7+T7+U7+V7 -> 0 | Q7: 0 | X7: =SUM(Y7:AI7) -> 0 | AN7: 0 | AO7: 0 | AP7: Indgang nettilsluttet VE | AQ7: TLP1 | AT7: 33.0708 | AZ7: =SUM(BA7:BH7) -> 0 | BI7: =BJ7+BK7+BN7+BO7+BP7 -> 33.0708 | BJ7: =P8*-1 -> 18.9108 | BK7: 14.16 | BL7: =R8*-1 -> 0 | BM7: =S8*-1 -> 14.16 | BR7: =SUM(BS7:CC7) -> 0
C8: =SUM(C9:C11,C14:C17) -> -1664.745086 | D8: 0 | E8: -134.2841675 | F8: -951.3215288 | G8: 0 | H8: -773.1867815 | I8: 0 | J8: 0 | K8: -1.080684994 | L8: -12.92896873 | M8: 0 | N8: -164.1250936 | O8: =P8+Q8+T8+U8+V8 -> -33.0708 | P8: -18.9108 | Q8: -14.16 | R8: 0 | S8: -14.16 | T8: 0 | U8: 0 | V8: 0 | W8: 0 | X8: 0 | Y8: 0 | Z8: 0 | AA8: 0 | AB8: 0 | AC8: 0 | AD8: 0 | AE8: 0 | AF8: 0 | AG8: 0 | AH8: 0 | AI8: 0 | AJ8: 0 | AK8: 0 | AL8: -213.758603 | AM8: =SUM(AM9:AM11,AM14:AM17) -> 0 | AN8: 0 | AO8: -2997.180186 | AP8: Indgang el, varme og olieprodukter | AQ8: TS | AS8: ='Størrelse på strømme'!E32 -> 497.2327402 | AT8: 5743.818683 | AW8: =SUM(AW9:AW11,AW14:AW17) -> 0 | AX8: 0 | AY8: 0 | AZ8: 0 | BA8: 0 | BB8: 0 | BC8: 0 | BD8: 0 | BE8: 0 | BF8: 0 | BG8: 0 | BH8: 0 | BI8: =BJ8+BK8+BN8+BO8+BP8 -> 0 | BJ8: 0 | BK8: 0 | BL8: 0 | BM8: 0 | BN8: 0 | BO8: 0 | BP8: 0 | BQ8: 0 | BR8: 2577.511994 | BS8: 0 | BT8: 0 | BU8: 0 | BV8: 505.2886793 | BW8: 0 | BX8: 110.833324 | BY8: 1542.55033 | BZ8: 0 | CA8: 0 | CB8: 0 | CC8: 0 | CD8: 1835.190393 | CE8: 1331.116296 | CF8: 0 | CG8: 0 | CH8: 0 | CI8: 1261.003788 | CJ8: 240.9810913
F9: 0 | O9: =P9+Q9+T9+U9+V9 -> 0 | Q9: 0 | X9: =SUM(Y9:AI9) -> 0 | AN9: 0 | AO9: 0 | AP9: Netto import/lager | AQ9: IMP | AR9: TS | AT9: 4007.642285 | AZ9: 0 | BI9: =BJ9+BK9+BN9+BO9+BP9 -> 0 | BK9: 0 | BR9: =IF(BR17+X18<0,(BR17+X18)*-1,0) -> 2577.511994 | BV9: =IF(BV17+AB18<0,(BV17+AB18)*-1) -> 505.2886793 | BX9: =IF(BX17+AD18<0,(BX17+AD18)*-1) -> 110.833324 | BY9: =IF(BY17+AE20<0,(BY17+AE20)*-1,0) -> 1542.55033 | CD9: =IF(CD10+CD11+CD14+AJ18<0,(CD10+CD11+CD14+AJ18)*-1,0) -> 1430.130291 | CJ9: =CD9*Emissionsfaktorer!B2 -> 136.1535929
C10: =-'Beregning for konvertering'!D21 -> -1530.493114 | D10: =-'Beregning for konvertering'!B21 -> 0 | E10: =-'Beregning for konvertering'!E21 -> -123.4549334 | F10: -874.6030015 | G10: =-'Beregning for konvertering'!F21 -> 0 | H10: =-'Beregning for konvertering'!G21 -> -710.8337815 | I10: =-'Beregning for konvertering'!H21 -> 0 | J10: =-'Beregning for konvertering'!I21 -> 0 | K10: =-'Beregning for konvertering'!J21 -> -0.9935340582 | L10: =-'Beregning for konvertering'!M21 -> -11.88632288 | M10: =-'Beregning for konvertering'!L21 -> 0 | N10: =-'Beregning for konvertering'!K21 -> -150.889363 | O10: =P10+Q10+T10+U10+V10 -> 0 | P10: =-'Beregning for konvertering'!O21 -> 0 | Q10: 0 | X10: =-'Beregning for konvertering'!C21 -> 0 | AJ10: =-'Beregning for konvertering'!P21 -> 0 | AL10: =-'Beregning for konvertering'!N21 -> 0 | AN10: 0 | AO10: -2528.551049 | AP10: El og varmeproduktion | AQ10: ELOGVARME | AR10: TS | AT10: 1289.727235 | AU10: =AT10/AO10*-1 -> 0.5100657292 | AZ10: 0 | BI10: =BJ10+BK10+BN10+BO10+BP10 -> 0 | BK10: 0 | BR10: =SUM(BS10:CC10) -> 0 | CD10: =SUM('Beregning for konvertering'!B4:Q4)*0.0000036 -> 371.9893019 | CE10: =SUM('Beregning for konvertering'!B6:Q6)*0.0000036 -> 917.7379327 | CI10: =(AT10+AO10)*-1 -> 1238.823814 | CJ10: =-('Ref for justering 2019'!C10*Emissionsfaktorer!$B$5+'Ref for justering 2019'!D10*Emissionsfaktorer!$B$7+'Ref for justering 2019'!E10*Emissionsfaktorer!$B$8+X10*Emissionsfaktorer!$B$6) -> 96.37377257
C11: =C12+C13 -> 0 | D11: 0 | E11: 0 | F11: 0 | G11: 0 | H11: 0 | I11: 0 | J11: 0 | K11: 0 | L11: 0 | M11: 0 | N11: 0 | O11: -14.16 | P11: 0 | Q11: -14.16 | R11: 0 | S11: -14.16 | T11: 0 | U11: 0 | V11: 0 | W11: 0 | X11: =SUM(Y11:AI11) -> 0 | Y11: 0 | Z11: 0 | AA11: 0 | AB11: 0 | AC11: 0 | AD11: 0 | AE11: 0 | AF11: 0 | AG11: 0 | AH11: 0 | AI11: 0 | AJ11: 0 | AK11: 0 | AL11: 0 | AM11: 0 | AN11: 0 | AO11: -14.16 | AP11: Vindmøller | AQ11: VIND | AR11: TS | AS11: ='Størrelse på strømme'!#REF! ->  | AT11: 14.16 | AW11: =AW12+AW13 -> 0 | AX11: 0 | AY11: 0 | AZ11: 0 | BA11: =BA12+BA13 -> 0 | BB11: 0 | BC11: 0 | BD11: 0 | BE11: 0 | BF11: 0 | BG11: 0 | BH11: 0 | BI11: 0 | BJ11: =BJ12+BJ13 -> 0 | BK11: 0 | BL11: =BL12+BL13 -> 0 | BM11: 0 | BN11: 0 | BO11: 0 | BP11: 0 | BQ11: 0 | BR11: 0 | BS11: =BS12+BS13 -> 0 | BT11: 0 | BU11: 0 | BV11: 0 | BW11: 0 | BX11: 0 | BY11: 0 | BZ11: 0 | CA11: 0 | CB11: 0 | CC11: 0 | CD11: 14.16 | CE11: 0 | CF11: 0 | CG11: 0 | CH11: 0 | CI11: =(AT11+AO11)*-1 -> 0 | CJ11: =-('Ref for justering 2019'!C11*Emissionsfaktorer!$B$5+'Ref for justering 2019'!D11*Emissionsfaktorer!$B$7+'Ref for justering 2019'!E11*Emissionsfaktorer!$B$8+X11*Emissionsfaktorer!$B$6) -> 0
F12: 0 | O12: =P12+Q12+T12+U12+V12 -> 0 | Q12: 0 | R12: =CD12*-1 -> 0 | X12: =SUM(Y12:AI12) -> 0 | AN12: 0 | AO12: 0 | AP12: Kystvindmøller | AQ12: KYST | AR12: VIND | AT12: 0 | AZ12: 0 | BI12: =BJ12+BK12+BN12+BO12+BP12 -> 0 | BK12: 0 | BR12: =SUM(BS12:CC12) -> 0 | CD12: =Energi!B34*0.0000036 -> 0 | CJ12: =-('Ref for justering 2019'!C12*Emissionsfaktorer!$B$5+'Ref for justering 2019'!D12*Emissionsfaktorer!$B$7+'Ref for justering 2019'!E12*Emissionsfaktorer!$B$8+X12*Emissionsfaktorer!$B$6) -> 0
F13: 0 | O13: =P13+Q13+T13+U13+V13 -> -14.16 | Q13: -14.16 | S13: =CD13*-1 -> -14.16 | X13: =SUM(Y13:AI13) -> 0 | AN13: 0 | AO13: -14.16 | AP13: Landvindmøller | AQ13: LAND | AR13: VIND | AT13: 14.16 | AZ13: 0 | BI13: =BJ13+BK13+BN13+BO13+BP13 -> 0 | BK13: 0 | BR13: =SUM(BS13:CC13) -> 0 | CD13: =Energi!B35*0.0000036 -> 14.16 | CJ13: =-('Ref for justering 2019'!C13*Emissionsfaktorer!$B$5+'Ref for justering 2019'!D13*Emissionsfaktorer!$B$7+'Ref for justering 2019'!E13*Emissionsfaktorer!$B$8+X13*Emissionsfaktorer!$B$6) -> 0
F14: 0 | O14: =P14+Q14+T14+U14+V14 -> -18.9108 | P14: =CD14*-1 -> -18.9108 | Q14: 0 | X14: =SUM(Y14:AI14) -> 0 | AN14: 0 | AO14: -18.9108 | AP14: Solceller | AQ14: SOLSTR | AR14: TS | AT14: 18.9108 | AZ14: 0 | BI14: =BJ14+BK14+BN14+BO14+BP14 -> 0 | BK14: 0 | BR14: =SUM(BS14:CC14) -> 0 | CD14: =Energi!B36*0.0000036 -> 18.9108 | CI14: =(AT14+AO14)*-1 -> 0 | CJ14: =-('Ref for justering 2019'!C14*Emissionsfaktorer!$B$5+'Ref for justering 2019'!D14*Emissionsfaktorer!$B$7+'Ref for justering 2019'!E14*Emissionsfaktorer!$B$8+X14*Emissionsfaktorer!$B$6) -> 0
C15: =-'Beregning for konvertering'!D22 -> -134.2519722 | D15: =-'Beregning for konvertering'!B22 -> 0 | E15: =-'Beregning for konvertering'!E22 -> -10.82923414 | F15: -76.71852734 | G15: =-'Beregning for konvertering'!F22 -> 0 | H15: =-'Beregning for konvertering'!G22 -> -62.35299994 | I15: =-'Beregning for konvertering'!H22 -> 0 | J15: =-'Beregning for konvertering'!I22 -> 0 | K15: =-'Beregning for konvertering'!J22 -> -0.08715093554 | L15: =-'Beregning for konvertering'!M22 -> -1.042645847 | M15: =-'Beregning for konvertering'!L22 -> 0 | N15: =-'Beregning for konvertering'!K22 -> -13.23573061 | O15: 0 | P15: =-'Beregning for konvertering'!O22 -> 0 | Q15: 0 | X15: =-'Beregning for konvertering'!C22 -> 0 | AJ15: =-'Beregning for konvertering'!P22 -> 0 | AL15: =-'Beregning for konvertering'!N22 -> 0 | AN15: 0 | AO15: -221.7997336 | AP15: Fjernvarmekedler | AQ15: KEDLER | AR15: TS | AT15: 199.6197603 | AU15: =AT15/AO15*-1 -> 0.9 | AZ15: 0 | BI15: 0 | BK15: 0 | BR15: 0 | CE15: =SUM('Beregning for konvertering'!B7:Q7)*0.0000036 -> 199.6197603 | CI15: =(AT15+AO15)*-1 -> 22.17997336 | CJ15: =-('Ref for justering 2019'!C15*Emissionsfaktorer!$B$5+'Ref for justering 2019'!D15*Emissionsfaktorer!$B$7+'Ref for justering 2019'!E15*Emissionsfaktorer!$B$8+X15*Emissionsfaktorer!$B$6) -> 8.45372574
C16: =-'Beregning for konvertering'!D23 -> 0 | D16: =-'Beregning for konvertering'!B23 -> 0 | E16: =-'Beregning for konvertering'!E23 -> 0 | F16: 0 | G16: =-'Beregning for konvertering'!F23 -> 0 | H16: =-'Beregning for konvertering'!G23 -> 0 | I16: =-'Beregning for konvertering'!H23 -> 0 | J16: =-'Beregning for konvertering'!I23 -> 0 | K16: =-'Beregning for konvertering'!J23 -> 0 | L16: =-'Beregning for konvertering'!M23 -> 0 | M16: =-'Beregning for konvertering'!L23 -> 0 | N16: =-'Beregning for konvertering'!K23 -> 0 | O16: 0 | P16: =-'Beregning for konvertering'!O23 -> 0 | Q16: 0 | X16: =-'Beregning for konvertering'!C23 -> 0 | AJ16: =-'Beregning for konvertering'!P23 -> 0 | AL16: =-'Beregning for konvertering'!N23 -> -213.758603 | AN16: 0 | AO16: -213.758603 | AP16: Anden varmeproduktion | AQ16: ANDENV | AR16: TS | AT16: 213.758603 | AU16: =AT16/AO16*-1 -> 1 | AZ16: 0 | BI16: 0 | BK16: 0 | BR16: 0 | CE16: =SUM('Beregning for konvertering'!B8:Q8)*0.0000036 -> 213.758603 | CI16: =(AT16+AO16)*-1 -> 2.842170943e-14 | CJ16: =-('Ref for justering 2019'!C16*Emissionsfaktorer!$B$5+'Ref for justering 2019'!D16*Emissionsfaktorer!$B$7+'Ref for justering 2019'!E16*Emissionsfaktorer!$B$8+X16*Emissionsfaktorer!$B$6) -> 0
F17: 0 | O17: 0 | Q17: 0 | X17: 0 | AN17: 0 | AO17: 0 | AP17: Raffinaderi | AQ17: RAF | AR17: TS | AT17: 0 | AZ17: 0 | BI17: 0 | BK17: 0 | BR17: 0 | CI17: =(AT17+AO17)*-1 -> 0 | CJ17: =-('Ref for justering 2019'!C17*Emissionsfaktorer!$B$5+'Ref for justering 2019'!D17*Emissionsfaktorer!$B$7+'Ref for justering 2019'!E17*Emissionsfaktorer!$B$8+X17*Emissionsfaktorer!$B$6) -> 0
F18: 0 | O18: =P18+Q18+T18+U18+V18 -> 0 | Q18: =R18+S18 -> 0 | X18: =BR18*-1 -> -2577.511994 | Y18: =BS18*-1 -> 0 | Z18: =BT18*-1 -> 0 | AA18: 0 | AB18: -505.2886793 | AC18: 0 | AD18: -110.833324 | AE18: -1542.55033 | AF18: 0 | AG18: 0 | AH18: 0 | AI18: 0 | AJ18: =CD18*-1*(1+Energi!B29/100) -> -1835.190393 | AK18: =-SUM('Beregning for konvertering'!B3:Q3)*0.0000036 -> -1331.116296 | AN18: 0 | AO18: -5743.818683 | AP18: Transport af el, fjernvarme, mv. | AQ18: TRAS | AS18: ='Størrelse på strømme'!E38 -> 129.2805124 | AT18: 5427.001514 | AZ18: 0 | BI18: =BJ18+BK18+BN18+BO18+BP18 -> 0 | BK18: =BL18+BM18 -> 0 | BR18: =X20*-1 -> 2577.511994 | BS18: 0 | BT18: 0 | BU18: 0 | BV18: 505.2886793 | BW18: 0 | BX18: 110.833324 | BY18: 1542.55033 | BZ18: 0 | CA18: 0 | CB18: 0 | CC18: 0 | CD18: 1740.22594 | CE18: 1109.26358 | CI18: =(AT18+AO18)*-1 -> 316.8171691
F19: 0 | O19: =P19+Q19+T19+U19+V19 -> 0 | Q19: =R19+S19 -> 0 | X19: =SUM(Y19:AI19) -> 0 | AN19: 0 | AO19: 0 | AP19: Indgang ikke-nettilsluttet VE | AQ19: TLP2 | AT19: 0 | AZ19: 0 | BI19: =BJ19+BK19+BN19+BO19+BP19 -> 0 | BK19: =BL19+BM19 -> 0 | BR19: =SUM(BS19:CC19) -> 0
C20: =SUM(C21:C22,C48,C61,C69,C84,C99) -> -491.957374 | D20: 0 | E20: 0 | F20: 0 | G20: 0 | H20: 0 | I20: 0 | J20: 0 | K20: 0 | L20: 0 | M20: 0 | N20: 0 | O20: 0 | P20: 0 | Q20: 0 | R20: 0 | S20: 0 | T20: 0 | U20: 0 | V20: 0 | W20: 0 | X20: -2577.511994 | Y20: 0 | Z20: 0 | AA20: 0 | AB20: -505.2886793 | AC20: 0 | AD20: -110.833324 | AE20: -1542.55033 | AF20: 0 | AG20: 0 | AH20: 0 | AI20: 0 | AJ20: -1740.22594 | AK20: -1109.26358 | AL20: 0 | AM20: 0 | AN20: 0 | AO20: -5918.958888 | AP20: Afgang fra energisystemet | AQ20: A | AS20: ='Størrelse på strømme'!E34 -> 234.8133755 | AT20: 4051.534823 | AW20: =SUM(AW21:AW22,AW48,AW61,AW69,AW84,AW99) -> 0 | AX20: =SUM(AX21:AX22,AX48,AX61,AX69,AX84,AX99) -> 0 | AY20: 0 | AZ20: 0 | BA20: 0 | BB20: 0 | BC20: 0 | BD20: 0 | BE20: 0 | BF20: 0 | BG20: 0 | BH20: 0 | BI20: 0 | BJ20: 0 | BK20: 0 | BL20: 0 | BM20: 0 | BN20: 0 | BO20: 0 | BP20: 0 | BQ20: 0 | BR20: 0 | BS20: 0 | BT20: 0 | BU20: 0 | BV20: 0 | BW20: 0 | BX20: 0 | BY20: 0 | BZ20: 0 | CA20: 0 | CB20: 0 | CC20: 0 | CD20: 0 | CE20: 0 | CF20: 0 | CG20: 4051.534823 | CH20: 0 | CI20: 1572.604604 | CJ20: 217.1916816
F21: 0 | O21: =P21+Q21+T21+U21+V21 -> 0 | Q21: =R21+S21 -> 0 | X21: =SUM(Y21:AI21) -> 0 | AJ21: =IF(CD10+CD11+CD14+(1+Energi!B29/100)*(AJ22+AJ48+AJ61+AJ69+AJ84)>0,(CD10+CD11+CD14+(1+Energi!B29/100)*(AJ22+AJ48+AJ61+AJ69+AJ84))*-1,0) -> 0 | AN21: 0 | AO21: 0 | AP21: Netto eksport/lager | AQ21: AES | AR21: A | AT21: 0 | AZ21: 0 | BI21: =BJ21+BK21+BN21+BO21+BP21 -> 0 | BK21: =BL21+BM21 -> 0 | BR21: =SUM(BS21:CC21) -> 0 | CI21: =(AT21+AO21)*-1 -> 0
C22: =C23+C30+C37+C40+C41+C42 -> 0 | D22: 0 | E22: 0 | F22: 0 | G22: 0 | H22: 0 | I22: 0 | J22: 0 | K22: 0 | L22: 0 | M22: 0 | N22: 0 | O22: 0 | P22: 0 | Q22: 0 | R22: 0 | S22: 0 | T22: 0 | U22: 0 | V22: 0 | W22: 0 | X22: -2158.672334 | Y22: 0 | Z22: 0 | AA22: 0 | AB22: -505.2886793 | AC22: 0 | AD22: -110.833324 | AE22: -1542.55033 | AF22: 0 | AG22: 0 | AH22: 0 | AI22: 0 | AJ22: -2.311708908 | AK22: 0 | AL22: 0 | AM22: =AM23+AM30+AM37+AM40+AM41+AM42 -> 0 | AN22: 0 | AO22: -2160.984043 | AP22: Transport | AQ22: AT | AR22: A | AS22: ='Størrelse på strømme'!E22 -> 102.9045629 | AT22: 648.2952128 | AU22: 0.3 | AW22: =AW23+AW30+AW37+AW40+AW41+AW42 -> 0 | AX22: 0 | AY22: 0 | AZ22: 0 | BA22: 0 | BB22: 0 | BC22: 0 | BD22: 0 | BE22: 0 | BF22: 0 | BG22: 0 | BH22: 0 | BI22: 0 | BJ22: 0 | BK22: 0 | BL22: 0 | BM22: 0 | BN22: 0 | BO22: 0 | BP22: 0 | BQ22: 0 | BR22: 0 | BS22: 0 | BT22: 0 | BU22: 0 | BV22: 0 | BW22: 0 | BX22: 0 | BY22: 0 | BZ22: 0 | CA22: 0 | CB22: 0 | CC22: 0 | CD22: 0 | CE22: 0 | CF22: 0 | CG22: =AO22*AU22*-1 -> 648.2952128 | CH22: 0 | CI22: 1512.68883 | CJ22: =-('Ref for justering 2019'!C22*Emissionsfaktorer!$B$5+'Ref for justering 2019'!D22*Emissionsfaktorer!$B$7+'Ref for justering 2019'!E22*Emissionsfaktorer!$B$8+X22*Emissionsfaktorer!$B$6) -> 159.7417527
C23: =SUM(C24:C29) -> 0 | D23: 0 | E23: 0 | F23: 0 | G23: 0 | H23: 0 | I23: 0 | J23: 0 | K23: 0 | L23: 0 | M23: 0 | N23: 0 | O23: =P23+Q23+T23+U23+V23 -> 0 | P23: 0 | Q23: =R23+S23 -> 0 | R23: 0 | S23: 0 | T23: 0 | U23: 0 | V23: 0 | W23: 0 | X23: =SUM(Y23:AI23) -> -1885.194246 | Y23: 0 | Z23: 0 | AA23: 0 | AB23: -505.2886793 | AC23: 0 | AD23: 0 | AE23: -1379.905567 | AF23: 0 | AG23: 0 | AH23: 0 | AI23: 0 | AJ23: 0 | AK23: 0 | AL23: 0 | AM23: =SUM(AM24:AM29) -> 0 | AN23: 0 | AO23: -1885.194246 | AP23: Vejtrafik | AQ23: ATV | AR23: AT | AS23: ='Størrelse på strømme'!E24 -> 89.77115457 | AT23: 565.5582738 | AU23: 0.3 | AW23: =SUM(AW24:AW29) -> 0 | AX23: 0 | AY23: 0 | AZ23: 0 | BA23: 0 | BB23: 0 | BC23: 0 | BD23: 0 | BE23: 0 | BF23: 0 | BG23: 0 | BH23: 0 | BI23: =BJ23+BK23+BN23+BO23+BP23 -> 0 | BJ23: 0 | BK23: =BL23+BM23 -> 0 | BL23: 0 | BM23: 0 | BN23: 0 | BO23: 0 | BP23: 0 | BQ23: 0 | BR23: =SUM(BS23:CC23) -> 0 | BS23: 0 | BT23: 0 | BU23: 0 | BV23: 0 | BW23: 0 | BX23: 0 | BY23: 0 | BZ23: 0 | CA23: 0 | CB23: 0 | CC23: 0 | CD23: 0 | CE23: 0 | CF23: 0 | CG23: 565.5582738 | CH23: 0 | CI23: 1319.635972 | CJ23: =-('Ref for justering 2019'!C23*Emissionsfaktorer!$B$5+'Ref for justering 2019'!D23*Emissionsfaktorer!$B$7+'Ref for justering 2019'!E23*Emissionsfaktorer!$B$8+X23*Emissionsfaktorer!$B$6) -> 139.5043742
F24: 0 | O24: =P24+Q24+T24+U24+V24 -> 0 | Q24: =R24+S24 -> 0 | X24: =SUM(Y24:AI24) -> -1294.444725 | AB24: =(Transport!B17)*-0.000001 -> -493.2379503 | AE24: =(Transport!B16)*-0.000001 -> -801.206775 | AN24: 0 | AO24: -1294.444725 | AP24: Personbil | AQ24: PERSON | AR24: ATV | AT24: 388.3334176 | AU24: 0.3 | AZ24: 0 | BI24: =BJ24+BK24+BN24+BO24+BP24 -> 0 | BK24: =BL24+BM24 -> 0 | BR24: =SUM(BS24:CC24) -> 0 | CG24: 388.3334176 | CI24: 906.1113077 | CJ24: =-('Ref for justering 2019'!C24*Emissionsfaktorer!$B$5+'Ref for justering 2019'!D24*Emissionsfaktorer!$B$7+'Ref for justering 2019'!E24*Emissionsfaktorer!$B$8+X24*Emissionsfaktorer!$B$6) -> 95.78890968
F25: 0 | O25: =P25+Q25+T25+U25+V25 -> 0 | Q25: =R25+S25 -> 0 | X25: =SUM(Y25:AI25) -> -499.4884116 | AB25: 0 | AE25: =(Transport!B18)*-0.000001 -> -499.4884116 | AN25: 0 | AO25: -499.4884116 | AP25: Lastbil | AQ25: LAST | AR25: ATV | AT25: 149.8465235 | AU25: 0.3 | AZ25: 0 | BI25: =BJ25+BK25+BN25+BO25+BP25 -> 0 | BK25: =BL25+BM25 -> 0 | BR25: =SUM(BS25:CC25) -> 0 | CG25: 149.8465235 | CI25: 349.6418881 | CJ25: =-('Ref for justering 2019'!C25*Emissionsfaktorer!$B$5+'Ref for justering 2019'!D25*Emissionsfaktorer!$B$7+'Ref for justering 2019'!E25*Emissionsfaktorer!$B$8+X25*Emissionsfaktorer!$B$6) -> 36.96214246
F26: 0 | O26: 0 | Q26: 0 | X26: -57.63098699 | AB26: 0 | AE26: =(Transport!B19)*-0.000001 -> -57.63098699 | AN26: 0 | AO26: -57.63098699 | AP26: Varebil | AQ26: VARE | AR26: ATV | AT26: 17.2892961 | AU26: 0.3 | AZ26: 0 | BI26: 0 | BK26: 0 | BR26: 0 | CG26: 17.2892961 | CI26: 40.3416909 | CJ26: =-('Ref for justering 2019'!C26*Emissionsfaktorer!$B$5+'Ref for justering 2019'!D26*Emissionsfaktorer!$B$7+'Ref for justering 2019'!E26*Emissionsfaktorer!$B$8+X26*Emissionsfaktorer!$B$6) -> 4.264693038
F27: 0 | O27: 0 | Q27: 0 | X27: 0 | AB27: =(Transport!B20)*-0.000001 -> 0 | AE27: 0 | AN27: 0 | AO27: 0 | AP27: Knallert | AQ27: KNAL | AR27: ATV | AT27: 0 | AU27: 0.3 | AZ27: 0 | BI27: 0 | BK27: 0 | BR27: 0 | CG27: 0 | CI27: 0 | CJ27: =-('Ref for justering 2019'!C27*Emissionsfaktorer!$B$5+'Ref for justering 2019'!D27*Emissionsfaktorer!$B$7+'Ref for justering 2019'!E27*Emissionsfaktorer!$B$8+X27*Emissionsfaktorer!$B$6) -> 0
F28: 0 | O28: 0 | Q28: 0 | X28: -12.05072897 | AB28: =(Transport!B21)*-0.000001 -> -12.05072897 | AE28: 0 | AN28: 0 | AO28: -12.05072897 | AP28: Motorcykel | AQ28: MC | AR28: ATV | AT28: 3.615218692 | AU28: 0.3 | AZ28: 0 | BI28: 0 | BK28: 0 | BR28: 0 | CG28: 3.615218692 | CI28: 8.43551028 | CJ28: =-('Ref for justering 2019'!C28*Emissionsfaktorer!$B$5+'Ref for justering 2019'!D28*Emissionsfaktorer!$B$7+'Ref for justering 2019'!E28*Emissionsfaktorer!$B$8+X28*Emissionsfaktorer!$B$6) -> 0.8917539439
F29: 0 | O29: 0 | Q29: 0 | X29: -21.57939311 | AB29: 0 | AE29: =(Transport!B22)*-0.000001 -> -21.57939311 | AN29: 0 | AO29: -21.57939311 | AP29: Bus | AQ29: BUS | AR29: ATV | AT29: 6.473817933 | AU29: 0.3 | AZ29: 0 | BI29: 0 | BK29: 0 | BR29: 0 | CG29: 6.473817933 | CI29: 15.10557518 | CJ29: =-('Ref for justering 2019'!C29*Emissionsfaktorer!$B$5+'Ref for justering 2019'!D29*Emissionsfaktorer!$B$7+'Ref for justering 2019'!E29*Emissionsfaktorer!$B$8+X29*Emissionsfaktorer!$B$6) -> 1.59687509
C30: =SUM(C31:C36) -> 0 | D30: 0 | E30: 0 | F30: 0 | G30: 0 | H30: 0 | I30: 0 | J30: 0 | K30: 0 | L30: 0 | M30: 0 | N30: 0 | O30: =P30+Q30+T30+U30+V30 -> 0 | P30: 0 | Q30: =R30+S30 -> 0 | R30: 0 | S30: 0 | T30: 0 | U30: 0 | V30: 0 | W30: 0 | X30: =SUM(Y30:AI30) -> -47.33716983 | Y30: 0 | Z30: 0 | AA30: 0 | AB30: 0 | AC30: 0 | AD30: 0 | AE30: -47.33716983 | AF30: 0 | AG30: 0 | AH30: 0 | AI30: 0 | AJ30: -2.311708908 | AK30: 0 | AL30: 0 | AM30: =SUM(AM31:AM36) -> 0 | AN30: 0 | AO30: -49.64887874 | AP30: Tog | AQ30: ATT | AR30: AT | AS30: ='Størrelse på strømme'!E26 -> 2.364793143 | AT30: 14.89466362 | AU30: 0.3 | AW30: =SUM(AW31:AW36) -> 0 | AX30: 0 | AY30: 0 | AZ30: 0 | BA30: 0 | BB30: 0 | BC30: 0 | BD30: 0 | BE30: 0 | BF30: 0 | BG30: 0 | BH30: 0 | BI30: =BJ30+BK30+BN30+BO30+BP30 -> 0 | BJ30: 0 | BK30: =BL30+BM30 -> 0 | BL30: 0 | BM30: 0 | BN30: 0 | BO30: 0 | BP30: 0 | BQ30: 0 | BR30: =SUM(BS30:CC30) -> 0 | BS30: 0 | BT30: 0 | BU30: 0 | BV30: 0 | BW30: 0 | BX30: 0 | BY30: 0 | BZ30: 0 | CA30: 0 | CB30: 0 | CC30: 0 | CD30: 0 | CE30: 0 | CF30: 0 | CG30: 14.89466362 | CH30: 0 | CI30: 34.75421512 | CJ30: =-('Ref for justering 2019'!C30*Emissionsfaktorer!$B$5+'Ref for justering 2019'!D30*Emissionsfaktorer!$B$7+'Ref for justering 2019'!E30*Emissionsfaktorer!$B$8+X30*Emissionsfaktorer!$B$6) -> 3.502950568
F31: 0 | O31: 0 | Q31: 0 | X31: -12.08814041 | AE31: =Transport!C32*Transport!C43*-0.000001 -> -12.08814041 | AJ31: =Transport!C31*Transport!C42*-0.000001 -> -0.3993918732 | AN31: 0 | AO31: -12.48753228 | AP31: Regionaltog | AQ31: REG | AR31: ATT | AT31: 3.746259684 | AU31: 0.3 | AZ31: 0 | BI31: 0 | BK31: 0 | BR31: 0 | CG31: 3.746259684 | CI31: 8.741272597 | CJ31: =-('Ref for justering 2019'!C31*Emissionsfaktorer!$B$5+'Ref for justering 2019'!D31*Emissionsfaktorer!$B$7+'Ref for justering 2019'!E31*Emissionsfaktorer!$B$8+X31*Emissionsfaktorer!$B$6) -> 0.8945223902
F32: 0 | O32: 0 | Q32: 0 | X32: -20.52594376 | AE32: =Transport!C34*Transport!C45*-0.000001 -> -20.52594376 | AJ32: =Transport!C33*Transport!C44*-0.000001 -> -0.6596653845 | AN32: 0 | AO32: -21.18560915 | AP32: Intercitytog | AQ32: INTERC | AR32: ATT | AT32: 6.355682744 | AU32: 0.3 | AZ32: 0 | BI32: 0 | BK32: 0 | BR32: 0 | CG32: 6.355682744 | CI32: 14.8299264 | CJ32: =-('Ref for justering 2019'!C32*Emissionsfaktorer!$B$5+'Ref for justering 2019'!D32*Emissionsfaktorer!$B$7+'Ref for justering 2019'!E32*Emissionsfaktorer!$B$8+X32*Emissionsfaktorer!$B$6) -> 1.518919838
F33: 0 | O33: 0 | Q33: 0 | X33: -14.72308566 | AE33: =Transport!C36*Transport!C47*-0.000001 -> -14.72308566 | AJ33: =Transport!C35*Transport!C46*-0.000001 -> -1.25265165 | AN33: 0 | AO33: -15.97573731 | AP33: Lyntog | AQ33: LYN | AR33: ATT | AT33: 4.792721194 | AU33: 0.3 | AZ33: 0 | BI33: 0 | BK33: 0 | BR33: 0 | CG33: 4.792721194 | CI33: 11.18301612 | CJ33: =-('Ref for justering 2019'!C33*Emissionsfaktorer!$B$5+'Ref for justering 2019'!D33*Emissionsfaktorer!$B$7+'Ref for justering 2019'!E33*Emissionsfaktorer!$B$8+X33*Emissionsfaktorer!$B$6) -> 1.089508339
F34: 0 | O34: 0 | Q34: 0 | X34: 0 | AE34: =Transport!C37*Transport!C48*-0.000001 -> 0 | AN34: 0 | AO34: 0 | AP34: Lokalbane | AQ34: LOKAL | AR34: ATT | AT34: 0 | AU34: 0.3 | AZ34: 0 | BI34: 0 | BK34: 0 | BR34: 0 | CG34: 0 | CI34: 0 | CJ34: =-('Ref for justering 2019'!C34*Emissionsfaktorer!$B$5+'Ref for justering 2019'!D34*Emissionsfaktorer!$B$7+'Ref for justering 2019'!E34*Emissionsfaktorer!$B$8+X34*Emissionsfaktorer!$B$6) -> 0
F35: 0 | O35: 0 | Q35: 0 | X35: 0 | AJ35: =Transport!C38*Transport!C49*-0.000001 -> 0 | AN35: 0 | AO35: 0 | AP35: S-tog | AQ35: STOG | AR35: ATT | AT35: 0 | AU35: 0.3 | AZ35: 0 | BI35: 0 | BK35: 0 | BR35: 0 | CG35: 0 | CI35: 0 | CJ35: =-('Ref for justering 2019'!C35*Emissionsfaktorer!$B$5+'Ref for justering 2019'!D35*Emissionsfaktorer!$B$7+'Ref for justering 2019'!E35*Emissionsfaktorer!$B$8+X35*Emissionsfaktorer!$B$6) -> 0
F36: 0 | O36: 0 | Q36: 0 | X36: 0 | AJ36: =Transport!B58/-1000 -> 0 | AN36: 0 | AO36: 0 | AP36: Metro | AQ36: METRO | AR36: ATT | AT36: 0 | AU36: 0.3 | AZ36: 0 | BI36: 0 | BK36: 0 | BR36: 0 | CG36: 0 | CI36: 0 | CJ36: =-('Ref for justering 2019'!C36*Emissionsfaktorer!$B$5+'Ref for justering 2019'!D36*Emissionsfaktorer!$B$7+'Ref for justering 2019'!E36*Emissionsfaktorer!$B$8+X36*Emissionsfaktorer!$B$6) -> 0
C37: =C38+C39 -> 0 | D37: 0 | E37: 0 | F37: 0 | G37: 0 | H37: 0 | I37: 0 | J37: 0 | K37: 0 | L37: 0 | M37: 0 | N37: 0 | O37: =P37+Q37+T37+U37+V37 -> 0 | P37: 0 | Q37: =R37+S37 -> 0 | R37: 0 | S37: 0 | T37: 0 | U37: 0 | V37: 0 | W37: 0 | X37: =SUM(Y37:AI37) -> -110.833324 | Y37: 0 | Z37: 0 | AA37: 0 | AB37: 0 | AC37: 0 | AD37: -110.833324 | AE37: 0 | AF37: 0 | AG37: 0 | AH37: 0 | AI37: 0 | AJ37: 0 | AK37: 0 | AL37: 0 | AM37: =AM38+AM39 -> 0 | AN37: 0 | AO37: -110.833324 | AP37: Fly | AQ37: ATF | AR37: AT | AS37: ='Størrelse på strømme'!E28 -> 2.995495242 | AT37: 33.24999719 | AU37: 0.3 | AW37: =AW38+AW39 -> 0 | AX37: 0 | AY37: 0 | AZ37: 0 | BA37: 0 | BB37: 0 | BC37: 0 | BD37: 0 | BE37: 0 | BF37: 0 | BG37: 0 | BH37: 0 | BI37: =BJ37+BK37+BN37+BO37+BP37 -> 0 | BJ37: 0 | BK37: =BL37+BM37 -> 0 | BL37: 0 | BM37: 0 | BN37: 0 | BO37: 0 | BP37: 0 | BQ37: 0 | BR37: =SUM(BS37:CC37) -> 0 | BS37: 0 | BT37: 0 | BU37: 0 | BV37: 0 | BW37: 0 | BX37: 0 | BY37: 0 | BZ37: 0 | CA37: 0 | CB37: 0 | CC37: 0 | CD37: 0 | CE37: 0 | CF37: 0 | CG37: 33.24999719 | CH37: 0 | CI37: 77.58332678 | CJ37: =-('Ref for justering 2019'!C37*Emissionsfaktorer!$B$5+'Ref for justering 2019'!D37*Emissionsfaktorer!$B$7+'Ref for justering 2019'!E37*Emissionsfaktorer!$B$8+X37*Emissionsfaktorer!$B$6) -> 8.201665973
F38: 0 | O38: 0 | Q38: 0 | X38: -3.233437335 | AD38: =-Transport!C67/1000 -> -3.233437335 | AN38: 0 | AO38: -3.233437335 | AP38: Indenrigs | AQ38: INDEN | AR38: ATF | AT38: 0.9700312004 | AU38: 0.3 | AZ38: 0 | BI38: 0 | BK38: 0 | BR38: 0 | CG38: 0.9700312004 | CI38: 2.263406134 | CJ38: =-('Ref for justering 2019'!C38*Emissionsfaktorer!$B$5+'Ref for justering 2019'!D38*Emissionsfaktorer!$B$7+'Ref for justering 2019'!E38*Emissionsfaktorer!$B$8+X38*Emissionsfaktorer!$B$6) -> 0.2392743628
F39: 0 | O39: 0 | Q39: 0 | X39: -107.5998866 | AD39: =-Transport!C68/1000 -> -107.5998866 | AN39: 0 | AO39: -107.5998866 | AP39: Udenrigs | AQ39: UDEN | AR39: ATF | AT39: 32.27996599 | AU39: 0.3 | AZ39: 0 | BI39: 0 | BK39: 0 | BR39: 0 | CG39: 32.27996599 | CI39: 75.31992064 | CJ39: =-('Ref for justering 2019'!C39*Emissionsfaktorer!$B$5+'Ref for justering 2019'!D39*Emissionsfaktorer!$B$7+'Ref for justering 2019'!E39*Emissionsfaktorer!$B$8+X39*Emissionsfaktorer!$B$6) -> 7.962391611
F40: 0 | O40: =P40+Q40+T40+U40+V40 -> 0 | Q40: =R40+S40 -> 0 | X40: =SUM(Y40:AI40) -> 0 | AE40: =-Transport!B76/1000 -> 0 | AN40: 0 | AO40: 0 | AP40: Færge | AQ40: ATFÆRGE | AR40: AT | AT40: 0 | AU40: 0.3 | AZ40: 0 | BI40: =BJ40+BK40+BN40+BO40+BP40 -> 0 | BK40: =BL40+BM40 -> 0 | BR40: =SUM(BS40:CC40) -> 0 | CG40: 0 | CI40: 0 | CJ40: =-('Ref for justering 2019'!C40*Emissionsfaktorer!$B$5+'Ref for justering 2019'!D40*Emissionsfaktorer!$B$7+'Ref for justering 2019'!E40*Emissionsfaktorer!$B$8+X40*Emissionsfaktorer!$B$6) -> 0
F41: 0 | O41: =P41+Q41+T41+U41+V41 -> 0 | Q41: =R41+S41 -> 0 | X41: =SUM(Y41:AI41) -> -19.24608558 | AE41: =-Transport!B81/1000 -> -19.24608558 | AN41: 0 | AO41: -19.24608558 | AP41: Fiskeri | AQ41: ATFISK | AR41: AT | AT41: 5.773825673 | AU41: 0.3 | AZ41: 0 | BI41: =BJ41+BK41+BN41+BO41+BP41 -> 0 | BK41: =BL41+BM41 -> 0 | BR41: =SUM(BS41:CC41) -> 0 | CG41: 5.773825673 | CI41: 13.4722599 | CJ41: =-('Ref for justering 2019'!C41*Emissionsfaktorer!$B$5+'Ref for justering 2019'!D41*Emissionsfaktorer!$B$7+'Ref for justering 2019'!E41*Emissionsfaktorer!$B$8+X41*Emissionsfaktorer!$B$6) -> 1.424210333
C42: =SUM(C43:C47) -> 0 | D42: 0 | E42: 0 | F42: 0 | G42: 0 | H42: 0 | I42: 0 | J42: 0 | K42: 0 | L42: 0 | M42: 0 | N42: 0 | O42: 0 | P42: 0 | Q42: 0 | R42: 0 | S42: 0 | T42: 0 | U42: 0 | V42: 0 | W42: 0 | X42: -96.06150833 | Y42: 0 | Z42: 0 | AA42: 0 | AB42: 0 | AC42: 0 | AD42: 0 | AE42: -96.06150833 | AF42: 0 | AG42: 0 | AH42: 0 | AI42: 0 | AJ42: 0 | AK42: 0 | AL42: 0 | AM42: =SUM(AM43:AM47) -> 0 | AN42: 0 | AO42: -96.06150833 | AP42: Non-Road | AQ42: ATNONR | AR42: AT | AS42: ='Størrelse på strømme'!E30 -> 3.842460333 | AT42: 28.8184525 | AU42: 0.3 | AW42: =SUM(AW43:AW47) -> 0 | AX42: 0 | AY42: 0 | AZ42: 0 | BA42: 0 | BB42: 0 | BC42: 0 | BD42: 0 | BE42: 0 | BF42: 0 | BG42: 0 | BH42: 0 | BI42: 0 | BJ42: 0 | BK42: 0 | BL42: 0 | BM42: 0 | BN42: 0 | BO42: 0 | BP42: 0 | BQ42: 0 | BR42: 0 | BS42: 0 | BT42: 0 | BU42: 0 | BV42: 0 | BW42: 0 | BX42: 0 | BY42: 0 | BZ42: 0 | CA42: 0 | CB42: 0 | CC42: 0 | CD42: 0 | CE42: 0 | CF42: 0 | CG42: 28.8184525 | CH42: 0 | CI42: 67.24305583 | CJ42: =-('Ref for justering 2019'!C42*Emissionsfaktorer!$B$5+'Ref for justering 2019'!D42*Emissionsfaktorer!$B$7+'Ref for justering 2019'!E42*Emissionsfaktorer!$B$8+X42*Emissionsfaktorer!$B$6) -> 7.108551617
F43: 0 | O43: 0 | Q43: 0 | X43: -33.19777472 | AE43: =-Transport!B99/1000 -> -33.19777472 | AN43: 0 | AO43: -33.19777472 | AP43: Landbrug | AQ43: LANDBR | AR43: ATNONR | AT43: 9.959332415 | AU43: 0.3 | AZ43: 0 | BI43: 0 | BK43: 0 | BR43: 0 | CG43: 9.959332415 | CI43: 23.2384423 | CJ43: =-('Ref for justering 2019'!C43*Emissionsfaktorer!$B$5+'Ref for justering 2019'!D43*Emissionsfaktorer!$B$7+'Ref for justering 2019'!E43*Emissionsfaktorer!$B$8+X43*Emissionsfaktorer!$B$6) -> 2.456635329
F44: 0 | O44: 0 | Q44: 0 | X44: -53.77225229 | AE44: =-Transport!B100/1000 -> -53.77225229 | AN44: 0 | AO44: -53.77225229 | AP44: Byggeri | AQ44: BYGGERI | AR44: ATNONR | AT44: 16.13167569 | AU44: 0.3 | AZ44: 0 | BI44: 0 | BK44: 0 | BR44: 0 | CG44: 16.13167569 | CI44: 37.6405766 | CJ44: =-('Ref for justering 2019'!C44*Emissionsfaktorer!$B$5+'Ref for justering 2019'!D44*Emissionsfaktorer!$B$7+'Ref for justering 2019'!E44*Emissionsfaktorer!$B$8+X44*Emissionsfaktorer!$B$6) -> 3.979146669
F45: 0 | O45: 0 | Q45: 0 | X45: -0.5951583164 | AE45: =-Transport!B101/1000 -> -0.5951583164 | AN45: 0 | AO45: -0.5951583164 | AP45: Skovbrug | AQ45: SKOV | AR45: ATNONR | AT45: 0.1785474949 | AU45: 0.3 | AZ45: 0 | BI45: 0 | BK45: 0 | BR45: 0 | CG45: 0.1785474949 | CI45: 0.4166108215 | CJ45: =-('Ref for justering 2019'!C45*Emissionsfaktorer!$B$5+'Ref for justering 2019'!D45*Emissionsfaktorer!$B$7+'Ref for justering 2019'!E45*Emissionsfaktorer!$B$8+X45*Emissionsfaktorer!$B$6) -> 0.04404171541
F46: 0 | O46: 0 | Q46: 0 | X46: -2.977136625 | AE46: =-Transport!B102/1000 -> -2.977136625 | AN46: 0 | AO46: -2.977136625 | AP46: Have/park | AQ46: HAVE | AR46: ATNONR | AT46: 0.8931409876 | AU46: 0.3 | AZ46: 0 | BI46: 0 | BK46: 0 | BR46: 0 | CG46: 0.8931409876 | CI46: 2.083995638 | CJ46: =-('Ref for justering 2019'!C46*Emissionsfaktorer!$B$5+'Ref for justering 2019'!D46*Emissionsfaktorer!$B$7+'Ref for justering 2019'!E46*Emissionsfaktorer!$B$8+X46*Emissionsfaktorer!$B$6) -> 0.2203081103
F47: 0 | O47: 0 | Q47: 0 | X47: -5.519186385 | AE47: =-Transport!B103/1000 -> -5.519186385 | AN47: 0 | AO47: -5.519186385 | AP47: Øvrig erhverv | AQ47: ØVRIGERH | AR47: ATNONR | AT47: 1.655755915 | AU47: 0.3 | AZ47: 0 | BI47: 0 | BK47: 0 | BR47: 0 | CG47: 1.655755915 | CI47: 3.863430469 | CJ47: =-('Ref for justering 2019'!C47*Emissionsfaktorer!$B$5+'Ref for justering 2019'!D47*Emissionsfaktorer!$B$7+'Ref for justering 2019'!E47*Emissionsfaktorer!$B$8+X47*Emissionsfaktorer!$B$6) -> 0.4084197925
C48: =SUM(C49:C55) -> -114.7565602 | D48: 0 | E48: 0 | F48: 0 | G48: 0 | H48: 0 | I48: 0 | J48: 0 | K48: 0 | L48: 0 | M48: 0 | N48: 0 | O48: 0 | P48: 0 | Q48: 0 | R48: 0 | S48: 0 | T48: 0 | U48: 0 | V48: 0 | W48: 0 | X48: ='Energi_bbr varmeforbrug'!B82*3.6/-1000000 -> -21.42941011 | Y48: 0 | Z48: 0 | AA48: 0 | AB48: 0 | AC48: 0 | AD48: 0 | AE48: 0 | AF48: 0 | AG48: 0 | AH48: 0 | AI48: 0 | AJ48: =Energi!B24*-0.0000036 -> -273.3900516 | AK48: -661.7684395 | AL48: 0 | AM48: 0 | AN48: 0 | AO48: -1071.344461 | AP48: Husholdninger | AQ48: AH | AR48: A | AS48: ='Størrelse på strømme'!#REF! ->  | AT48: 776.5249997 | AU48: 1 | AW48: =SUM(AW49:AW55) -> 0 | AX48: =SUM(AX49:AX55) -> 0 | AY48: 0 | AZ48: 0 | BA48: 0 | BB48: 0 | BC48: 0 | BD48: 0 | BE48: 0 | BF48: 0 | BG48: 0 | BH48: 0 | BI48: 0 | BJ48: 0 | BK48: 0 | BL48: 0 | BM48: 0 | BN48: 0 | BO48: 0 | BP48: 0 | BQ48: 0 | BR48: 0 | BS48: 0 | BT48: 0 | BU48: 0 | BV48: 0 | BW48: 0 | BX48: 0 | BY48: 0 | BZ48: 0 | CA48: 0 | CB48: 0 | CC48: 0 | CD48: 0 | CE48: 0 | CF48: 0 | CG48: 776.5249997 | CH48: 0 | CI48: 0 | CJ48: 6.541123932
C49: =(SUM('Energi_bbr varmeforbrug'!D44:Q44))*-0.0000036 -> 0 | F49: 0 | O49: =P49+Q49+T49+U49+V49 -> 0 | Q49: =R49+S49 -> 0 | X49: =SUM(Y49:AI49) -> 0 | AK49: =(SUM('Energi_bbr varmeforbrug'!D10:Q10))*-0.0000036 -> -1.066968948 | AN49: 0 | AO49: -1.066968948 | AP49: Stuehus til landbrugsejendom | AQ49: STUEHUS | AR49: AH | AT49: 1.066968948 | AU49: 1 | AZ49: 0 | BI49: 0 | BK49: 0 | BR49: 0 | CG49: =AO49*AU49*-1 -> 1.066968948 | CI49: =(AT49+AO49)*-1 -> 0 | CJ49: =-('Ref for justering 2019'!C49*Emissionsfaktorer!$B$5+'Ref for justering 2019'!D49*Emissionsfaktorer!$B$7+'Ref for justering 2019'!E49*Emissionsfaktorer!$B$8+X49*Emissionsfaktorer!$B$6) -> 0
C50: =(SUM('Energi_bbr varmeforbrug'!D45:Q45))*-0.0000036 -> -97.9574616 | F50: 0 | O50: 0 | Q50: 0 | X50: 0 | AK50: =(SUM('Energi_bbr varmeforbrug'!D11:Q11))*-0.0000036 -> -519.9311848 | AN50: 0 | AO50: -617.8886464 | AP50: Fritliggende enfamiliehus | AQ50: ENFAMILIE | AR50: AH | AT50: 617.8886464 | AU50: 1 | AZ50: 0 | BI50: 0 | BK50: 0 | BR50: 0 | CG50: 617.8886464 | CI50: 0 | CJ50: =-('Ref for justering 2019'!C50*Emissionsfaktorer!$B$5+'Ref for justering 2019'!D50*Emissionsfaktorer!$B$7+'Ref for justering 2019'!E50*Emissionsfaktorer!$B$8+X50*Emissionsfaktorer!$B$6) -> 5.583575311
C51: =(SUM('Energi_bbr varmeforbrug'!D46:Q46))*-0.0000036 -> 0 | F51: 0 | O51: 0 | Q51: 0 | X51: 0 | AK51: =(SUM('Energi_bbr varmeforbrug'!D12:Q12))*-0.0000036 -> 0 | AN51: 0 | AO51: 0 | AP51: Rækkehus/kædehus eller dobbelthus | AQ51: RÆKKE | AR51: AH | AT51: 0 | AU51: 1 | AZ51: 0 | BI51: 0 | BK51: 0 | BR51: 0 | CG51: 0 | CI51: 0 | CJ51: =-('Ref for justering 2019'!C51*Emissionsfaktorer!$B$5+'Ref for justering 2019'!D51*Emissionsfaktorer!$B$7+'Ref for justering 2019'!E51*Emissionsfaktorer!$B$8+X51*Emissionsfaktorer!$B$6) -> 0
C52: =(SUM('Energi_bbr varmeforbrug'!D47:Q47))*-0.0000036 -> -16.7990986 | F52: 0 | O52: 0 | Q52: 0 | X52: 0 | AK52: =(SUM('Energi_bbr varmeforbrug'!D13:Q13))*-0.0000036 -> -106.8154962 | AN52: 0 | AO52: -123.6145948 | AP52: Etageboligbebyggelse | AQ52: ETAGE | AR52: AH | AT52: 123.6145948 | AU52: 1 | AZ52: 0 | BI52: 0 | BK52: 0 | BR52: 0 | CG52: 123.6145948 | CI52: 0 | CJ52: =-('Ref for justering 2019'!C52*Emissionsfaktorer!$B$5+'Ref for justering 2019'!D52*Emissionsfaktorer!$B$7+'Ref for justering 2019'!E52*Emissionsfaktorer!$B$8+X52*Emissionsfaktorer!$B$6) -> 0.9575486204
C53: =(SUM('Energi_bbr varmeforbrug'!D50:Q50))*-0.0000036 -> 0 | F53: 0 | O53: 0 | Q53: 0 | X53: 0 | AK53: =(SUM('Energi_bbr varmeforbrug'!D16:Q16))*-0.0000036 -> -12.06864851 | AN53: 0 | AO53: -12.06864851 | AP53: Anden bygning til helårsbeboelse | AQ53: ANDENHEL | AR53: AH | AT53: 12.06864851 | AU53: 1 | AZ53: 0 | BI53: 0 | BK53: 0 | BR53: 0 | CG53: 12.06864851 | CI53: 0 | CJ53: =-('Ref for justering 2019'!C53*Emissionsfaktorer!$B$5+'Ref for justering 2019'!D53*Emissionsfaktorer!$B$7+'Ref for justering 2019'!E53*Emissionsfaktorer!$B$8+X53*Emissionsfaktorer!$B$6) -> 0
C54: =(SUM('Energi_bbr varmeforbrug'!D63:Q63))*-0.0000036 -> 0 | F54: 0 | O54: 0 | Q54: 0 | X54: 0 | AK54: =(SUM('Energi_bbr varmeforbrug'!D30:Q30))*-0.0000036 -> -9.191731699 | AN54: 0 | AO54: -9.191731699 | AP54: Sommerhus | AQ54: SOMMER | AR54: AH | AT54: 9.191731699 | AU54: 1 | AZ54: 0 | BI54: 0 | BK54: 0 | BR54: 0 | CG54: 9.191731699 | CI54: 0 | CJ54: =-('Ref for justering 2019'!C54*Emissionsfaktorer!$B$5+'Ref for justering 2019'!D54*Emissionsfaktorer!$B$7+'Ref for justering 2019'!E54*Emissionsfaktorer!$B$8+X54*Emissionsfaktorer!$B$6) -> 0
C55: =SUM(C56:C60) -> 0 | D55: 0 | E55: 0 | F55: 0 | G55: 0 | H55: 0 | I55: 0 | J55: 0 | K55: 0 | L55: 0 | M55: 0 | N55: 0 | O55: 0 | P55: 0 | Q55: 0 | R55: 0 | S55: 0 | T55: 0 | U55: 0 | V55: 0 | W55: 0 | X55: 0 | Y55: 0 | Z55: 0 | AA55: 0 | AB55: 0 | AC55: 0 | AD55: 0 | AE55: 0 | AF55: 0 | AG55: 0 | AH55: 0 | AI55: 0 | AJ55: 0 | AK55: -12.69440929 | AL55: 0 | AM55: 0 | AN55: 0 | AO55: -12.69440929 | AP55: Andre bygninger | AQ55: ANDREBYG | AR55: AH | AT55: 12.69440929 | AU55: 1 | AW55: =SUM(AW56:AW60) -> 0 | AX55: 0 | AY55: 0 | AZ55: 0 | BA55: 0 | BB55: 0 | BC55: 0 | BD55: 0 | BE55: 0 | BF55: 0 | BG55: 0 | BH55: 0 | BI55: 0 | BJ55: 0 | BK55: 0 | BL55: 0 | BM55: 0 | BN55: 0 | BO55: 0 | BP55: 0 | BQ55: 0 | BR55: 0 | BS55: 0 | BT55: 0 | BU55: 0 | BV55: 0 | BW55: 0 | BX55: 0 | BY55: 0 | BZ55: 0 | CA55: 0 | CB55: 0 | CC55: 0 | CD55: 0 | CE55: 0 | CF55: 0 | CG55: 12.69440929 | CH55: 0 | CI55: 0 | CJ55: 0
C56: =(SUM('Energi_bbr varmeforbrug'!D66:Q66))*-0.0000036 -> 0 | F56: 0 | O56: 0 | Q56: 0 | X56: 0 | AK56: =(SUM('Energi_bbr varmeforbrug'!D33:Q33))*-0.0000036 -> 0 | AN56: 0 | AO56: 0 | AP56: Kolonihavehus | AQ56: KOLONI | AR56: ANDREBYG | AT56: 0 | AU56: 1 | AZ56: 0 | BI56: 0 | BK56: 0 | BR56: 0 | CG56: =AO56*AU56*-1 -> 0 | CI56: =(AT56+AO56)*-1 -> 0 | CJ56: =-('Ref for justering 2019'!C56*Emissionsfaktorer!$B$5+'Ref for justering 2019'!D56*Emissionsfaktorer!$B$7+'Ref for justering 2019'!E56*Emissionsfaktorer!$B$8+X56*Emissionsfaktorer!$B$6) -> 0
C57: =(SUM('Energi_bbr varmeforbrug'!D67:Q67))*-0.0000036 -> 0 | F57: 0 | O57: 0 | Q57: 0 | X57: 0 | AK57: =(SUM('Energi_bbr varmeforbrug'!D34:Q34))*-0.0000036 -> -6.127288184 | AN57: 0 | AO57: -6.127288184 | AP57: Anden bygning til fritidsformål | AQ57: ANDENF | AR57: ANDREBYG | AT57: 6.127288184 | AU57: 1 | AZ57: 0 | BI57: 0 | BK57: 0 | BR57: 0 | CG57: 6.127288184 | CI57: 0 | CJ57: =-('Ref for justering 2019'!C57*Emissionsfaktorer!$B$5+'Ref for justering 2019'!D57*Emissionsfaktorer!$B$7+'Ref for justering 2019'!E57*Emissionsfaktorer!$B$8+X57*Emissionsfaktorer!$B$6) -> 0
C58: =(SUM('Energi_bbr varmeforbrug'!D68:Q68))*-0.0000036 -> 0 | F58: 0 | O58: 0 | Q58: 0 | X58: 0 | AK58: =(SUM('Energi_bbr varmeforbrug'!D35:Q35))*-0.0000036 -> 0 | AN58: 0 | AO58: 0 | AP58: Garage | AQ58: GARAGE | AR58: ANDREBYG | AT58: 0 | AU58: 1 | AZ58: 0 | BI58: 0 | BK58: 0 | BR58: 0 | CG58: 0 | CI58: 0 | CJ58: =-('Ref for justering 2019'!C58*Emissionsfaktorer!$B$5+'Ref for justering 2019'!D58*Emissionsfaktorer!$B$7+'Ref for justering 2019'!E58*Emissionsfaktorer!$B$8+X58*Emissionsfaktorer!$B$6) -> 0
C59: =(SUM('Energi_bbr varmeforbrug'!D69:Q69))*-0.0000036 -> 0 | F59: 0 | O59: 0 | Q59: 0 | X59: 0 | AK59: =(SUM('Energi_bbr varmeforbrug'!D36:Q36))*-0.0000036 -> 0 | AN59: 0 | AO59: 0 | AP59: Carport | AQ59: CARPORT | AR59: ANDREBYG | AT59: 0 | AU59: 1 | AZ59: 0 | BI59: 0 | BK59: 0 | BR59: 0 | CG59: 0 | CI59: 0 | CJ59: =-('Ref for justering 2019'!C59*Emissionsfaktorer!$B$5+'Ref for justering 2019'!D59*Emissionsfaktorer!$B$7+'Ref for justering 2019'!E59*Emissionsfaktorer!$B$8+X59*Emissionsfaktorer!$B$6) -> 0
C60: =(SUM('Energi_bbr varmeforbrug'!D70:Q70))*-0.0000036 -> 0 | F60: 0 | O60: 0 | Q60: 0 | X60: 0 | AK60: =(SUM('Energi_bbr varmeforbrug'!D37:Q37))*-0.0000036 -> -6.567121102 | AN60: 0 | AO60: -6.567121102 | AP60: Udhus | AQ60: UDHUS | AR60: ANDREBYG | AT60: 6.567121102 | AU60: 1 | AZ60: 0 | BI60: 0 | BK60: 0 | BR60: 0 | CG60: 6.567121102 | CI60: 0 | CJ60: =-('Ref for justering 2019'!C60*Emissionsfaktorer!$B$5+'Ref for justering 2019'!D60*Emissionsfaktorer!$B$7+'Ref for justering 2019'!E60*Emissionsfaktorer!$B$8+X60*Emissionsfaktorer!$B$6) -> 0
C61: =SUM(C62:C68) -> -17.51814194 | D61: 0 | E61: 0 | F61: 0 | G61: 0 | H61: 0 | I61: 0 | J61: 0 | K61: 0 | L61: 0 | M61: 0 | N61: 0 | O61: 0 | P61: 0 | Q61: 0 | R61: 0 | S61: 0 | T61: 0 | U61: 0 | V61: 0 | W61: 0 | X61: =('Energi_bbr varmeforbrug'!B84)*-0.0000036 -> -0.403774416 | Y61: =SUM(Y62:Y68) -> 0 | Z61: =SUM(Z62:Z68) -> 0 | AA61: 0 | AB61: 0 | AC61: 0 | AD61: 0 | AE61: 0 | AF61: 0 | AG61: 0 | AH61: 0 | AI61: 0 | AJ61: =Energi!B26*-0.0000036 -> -178.585272 | AK61: -304.8473642 | AL61: 0 | AM61: 0 | AN61: 0 | AO61: -501.3545526 | AP61: Offentlig | AQ61: AO | AR61: A | AS61: ='Størrelse på strømme'!#REF! ->  | AT61: 501.3545526 | AU61: 1 | AW61: =SUM(AW62:AW68) -> 0 | AX61: 0 | AY61: 0 | AZ61: 0 | BA61: 0 | BB61: 0 | BC61: 0 | BD61: 0 | BE61: 0 | BF61: 0 | BG61: 0 | BH61: 0 | BI61: 0 | BJ61: 0 | BK61: 0 | BL61: 0 | BM61: 0 | BN61: 0 | BO61: 0 | BP61: 0 | BQ61: 0 | BR61: 0 | BS61: 0 | BT61: 0 | BU61: 0 | BV61: 0 | BW61: 0 | BX61: 0 | BY61: 0 | BZ61: 0 | CA61: 0 | CB61: 0 | CC61: 0 | CD61: 0 | CE61: 0 | CF61: 0 | CG61: 501.3545526 | CH61: 0 | CI61: 0 | CJ61: =-('Ref for justering 2019'!C61*Emissionsfaktorer!$B$5+'Ref for justering 2019'!D61*Emissionsfaktorer!$B$7+'Ref for justering 2019'!E61*Emissionsfaktorer!$B$8+X61*Emissionsfaktorer!$B$6) -> 1.028413397
C62: =(SUM('Energi_bbr varmeforbrug'!D48:Q48))*-0.0000036 -> -0.3244245464 | F62: 0 | O62: 0 | Q62: 0 | X62: 0 | AK62: =(SUM('Energi_bbr varmeforbrug'!D14:Q14))*-0.0000036 -> -274.2286572 | AN62: 0 | AO62: -274.5530817 | AP62: Kollegier | AQ62: KOLLEG | AR62: AO | AT62: 274.5530817 | AU62: 1 | AZ62: 0 | BI62: 0 | BK62: 0 | BR62: 0 | CG62: 274.5530817 | CI62: 0 | CJ62: =-('Ref for justering 2019'!C62*Emissionsfaktorer!$B$5+'Ref for justering 2019'!D62*Emissionsfaktorer!$B$7+'Ref for justering 2019'!E62*Emissionsfaktorer!$B$8+X62*Emissionsfaktorer!$B$6) -> 0.01849219915
C63: =(SUM('Energi_bbr varmeforbrug'!D49:Q49))*-0.0000036 -> 0 | F63: 0 | O63: 0 | Q63: 0 | X63: 0 | AK63: =(SUM('Energi_bbr varmeforbrug'!D15:Q15))*-0.0000036 -> 0 | AN63: 0 | AO63: 0 | AP63: Døgninstitution | AQ63: DØGNIN | AR63: AO | AT63: 0 | AU63: 1 | AZ63: 0 | BI63: 0 | BK63: 0 | BR63: 0 | CG63: 0 | CI63: 0 | CJ63: =-('Ref for justering 2019'!C63*Emissionsfaktorer!$B$5+'Ref for justering 2019'!D63*Emissionsfaktorer!$B$7+'Ref for justering 2019'!E63*Emissionsfaktorer!$B$8+X63*Emissionsfaktorer!$B$6) -> 0
C64: =(SUM('Energi_bbr varmeforbrug'!D59:Q59))*-0.0000036 -> 0 | F64: 0 | O64: 0 | Q64: 0 | X64: 0 | AK64: =(SUM('Energi_bbr varmeforbrug'!D26:Q26))*-0.0000036 -> -0.1451795497 | AN64: 0 | AO64: -0.1451795497 | AP64: Bygninger til undervisning og forskning | AQ64: UNDERVF | AR64: AO | AT64: 0.1451795497 | AU64: 1 | AZ64: 0 | BI64: 0 | BK64: 0 | BR64: 0 | CG64: 0.1451795497 | CI64: 0 | CJ64: =-('Ref for justering 2019'!C64*Emissionsfaktorer!$B$5+'Ref for justering 2019'!D64*Emissionsfaktorer!$B$7+'Ref for justering 2019'!E64*Emissionsfaktorer!$B$8+X64*Emissionsfaktorer!$B$6) -> 0
C65: =(SUM('Energi_bbr varmeforbrug'!D60:Q60))*-0.0000036 -> -17.19371739 | F65: 0 | O65: 0 | Q65: 0 | X65: 0 | AK65: =(SUM('Energi_bbr varmeforbrug'!D27:Q27))*-0.0000036 -> -11.84897496 | AN65: 0 | AO65: -29.04269235 | AP65: Bygninger til hospital, sygehjem, fødeklinik o.lign | AQ65: HOSPITAL | AR65: AO | AT65: 29.04269235 | AU65: 1 | AZ65: 0 | BI65: 0 | BK65: 0 | BR65: 0 | CG65: 29.04269235 | CI65: 0 | CJ65: =-('Ref for justering 2019'!C65*Emissionsfaktorer!$B$5+'Ref for justering 2019'!D65*Emissionsfaktorer!$B$7+'Ref for justering 2019'!E65*Emissionsfaktorer!$B$8+X65*Emissionsfaktorer!$B$6) -> 0.9800418913
C66: =(SUM('Energi_bbr varmeforbrug'!D61:Q61))*-0.0000036 -> 0 | F66: 0 | O66: 0 | Q66: 0 | X66: 0 | AK66: =(SUM('Energi_bbr varmeforbrug'!D28:Q28))*-0.0000036 -> -15.92101923 | AN66: 0 | AO66: -15.92101923 | AP66: Bygninger til daginstitution | AQ66: DAGINST | AR66: AO | AT66: 15.92101923 | AU66: 1 | AZ66: 0 | BI66: 0 | BK66: 0 | BR66: 0 | CG66: 15.92101923 | CI66: 0 | CJ66: =-('Ref for justering 2019'!C66*Emissionsfaktorer!$B$5+'Ref for justering 2019'!D66*Emissionsfaktorer!$B$7+'Ref for justering 2019'!E66*Emissionsfaktorer!$B$8+X66*Emissionsfaktorer!$B$6) -> 0
C67: =(SUM('Energi_bbr varmeforbrug'!D62:Q62))*-0.0000036 -> 0 | F67: 0 | O67: 0 | Q67: 0 | X67: 0 | AK67: =(SUM('Energi_bbr varmeforbrug'!D29:Q29))*-0.0000036 -> -2.543549324 | AN67: 0 | AO67: -2.543549324 | AP67: Bygninger til anden institution, herunder kaserne, fængsel o.lign | AQ67: KASERNE | AR67: AO | AT67: 2.543549324 | AU67: 1 | AZ67: 0 | BI67: 0 | BK67: 0 | BR67: 0 | CG67: 2.543549324 | CI67: 0 | CJ67: =-('Ref for justering 2019'!C67*Emissionsfaktorer!$B$5+'Ref for justering 2019'!D67*Emissionsfaktorer!$B$7+'Ref for justering 2019'!E67*Emissionsfaktorer!$B$8+X67*Emissionsfaktorer!$B$6) -> 0
C68: =(SUM('Energi_bbr varmeforbrug'!D65:Q65))*-0.0000036 -> 0 | F68: 0 | O68: 0 | Q68: 0 | X68: 0 | AK68: =(SUM('Energi_bbr varmeforbrug'!D32:Q32))*-0.0000036 -> -0.159984 | AN68: 0 | AO68: -0.159984 | AP68: Bygninger i forbindelse med idrætsøvelser | AQ68: IDRÆT | AR68: AO | AT68: 0.159984 | AU68: 1 | AZ68: 0 | BI68: 0 | BK68: 0 | BR68: 0 | CG68: 0.159984 | CI68: 0 | CJ68: =-('Ref for justering 2019'!C68*Emissionsfaktorer!$B$5+'Ref for justering 2019'!D68*Emissionsfaktorer!$B$7+'Ref for justering 2019'!E68*Emissionsfaktorer!$B$8+X68*Emissionsfaktorer!$B$6) -> 0
C69: =C70+C75+C80 -> -137.4949349 | D69: =D70+D75+D80 -> 0 | E69: 0 | F69: 0 | G69: 0 | H69: 0 | I69: 0 | J69: 0 | K69: 0 | L69: 0 | M69: 0 | N69: 0 | O69: 0 | P69: 0 | Q69: 0 | R69: 0 | S69: 0 | T69: 0 | U69: 0 | V69: 0 | W69: 0 | X69: ='Energi_bbr varmeforbrug'!B83*3.6/-1000000 -> -20.03647622 | Y69: 0 | Z69: 0 | AA69: 0 | AB69: 0 | AC69: 0 | AD69: 0 | AE69: 0 | AF69: 0 | AG69: 0 | AH69: 0 | AI69: 0 | AJ69: =Energi!B25*-0.0000036 -> -1285.938907 | AK69: -142.6477764 | AL69: 0 | AM69: 0 | AN69: 0 | AO69: =SUM(C69:F69,O69,W69,X69,AJ69:AL69) -> -1586.118095 | AP69: Erhverv | AQ69: AE | AR69: A | AS69: ='Størrelse på strømme'!#REF! ->  | AT69: =SUM(AW69:AZ69,BI69,BQ69,BR69,CD69:CG69) -> 1586.118095 | AU69: 1 | AW69: =SUM(AW71:AW83) -> 0 | AX69: 0 | AY69: 0 | AZ69: 0 | BA69: 0 | BB69: 0 | BC69: 0 | BD69: 0 | BE69: 0 | BF69: 0 | BG69: 0 | BH69: 0 | BI69: 0 | BJ69: 0 | BK69: 0 | BL69: 0 | BM69: 0 | BN69: 0 | BO69: 0 | BP69: 0 | BQ69: 0 | BR69: 0 | BS69: 0 | BT69: 0 | BU69: 0 | BV69: 0 | BW69: 0 | BX69: 0 | BY69: 0 | BZ69: 0 | CA69: 0 | CB69: 0 | CC69: 0 | CD69: 0 | CE69: 0 | CF69: 0 | CG69: 1586.118095 | CH69: =SUM(CH71:CH83) -> 0 | CI69: 0 | CJ69: =-('Ref for justering 2019'!C69*Emissionsfaktorer!$B$5+'Ref for justering 2019'!D69*Emissionsfaktorer!$B$7+'Ref for justering 2019'!E69*Emissionsfaktorer!$B$8+X69*Emissionsfaktorer!$B$6) -> 9.31991053
C70: =SUM(C71:C74) -> -120.3012175 | D70: =SUM(D71:D74) -> 0 | E70: 0 | F70: 0 | G70: 0 | H70: 0 | I70: 0 | J70: 0 | K70: 0 | L70: 0 | M70: 0 | N70: 0 | O70: 0 | P70: 0 | Q70: 0 | R70: 0 | S70: 0 | T70: 0 | U70: 0 | V70: 0 | W70: 0 | X70: 0 | Y70: 0 | Z70: 0 | AA70: 0 | AB70: 0 | AC70: 0 | AD70: 0 | AE70: 0 | AF70: 0 | AG70: 0 | AH70: 0 | AI70: 0 | AJ70: 0 | AK70: -14.11919993 | AL70: 0 | AM70: 0 | AO70: -134.4204174 | AP70: Bygninger til produktionserhverv | AQ70: AEBE | AR70: AE | AS70: ='Størrelse på strømme'!#REF! ->  | AT70: 134.4204174 | AW70: =SUM(AW71:AW74) -> 0 | AX70: 0 | AY70: 0 | AZ70: 0 | BA70: 0 | BB70: 0 | BC70: 0 | BD70: 0 | BE70: 0 | BF70: 0 | BG70: 0 | BH70: 0 | BI70: 0 | BJ70: 0 | BK70: 0 | BL70: 0 | BM70: 0 | BN70: 0 | BO70: 0 | BP70: 0 | BQ70: 0 | BR70: 0 | BS70: 0 | BT70: 0 | BU70: 0 | BV70: 0 | BW70: 0 | BX70: 0 | BY70: 0 | BZ70: 0 | CA70: 0 | CB70: 0 | CC70: 0 | CD70: 0 | CE70: 0 | CF70: 0 | CG70: 134.4204174 | CH70: 0 | CI70: 0 | CJ70: 6.857169399
C71: =SUM('Energi_bbr varmeforbrug'!D56:'Energi_bbr varmeforbrug'!Q56)*-0.0000036 -> 0 | F71: 0 | O71: 0 | Q71: 0 | X71: 0 | AK71: =SUM('Energi_bbr varmeforbrug'!D17:Q17)*-0.0000036 -> -0.02023282325 | AN71: 0 | AO71: -0.02023282325 | AP71: Bygning til erhvervsmæssig produktion vedrørende landbrug, skovbrug, gartneri, råstofudvinding o.lign. | AQ71: ERHVERVSP | AR71: AEBE | AT71: 0.02023282325 | AU71: 1 | AZ71: 0 | BI71: 0 | BK71: 0 | BR71: 0 | CG71: =AO71*AU71*-1 -> 0.02023282325 | CI71: =(AT71+AO71)*-1 -> 0 | CJ71: =-('Ref for justering 2019'!C71*Emissionsfaktorer!$B$5+'Ref for justering 2019'!D71*Emissionsfaktorer!$B$7+'Ref for justering 2019'!E71*Emissionsfaktorer!$B$8+X71*Emissionsfaktorer!$B$6) -> 0
C72: =SUM('Energi_bbr varmeforbrug'!D57:'Energi_bbr varmeforbrug'!Q57)*-0.0000036 -> -120.3012175 | F72: =SUM(G72:N72) -> 0 | O72: 0 | Q72: 0 | X72: 0 | AK72: =SUM('Energi_bbr varmeforbrug'!D18:Q18)*-0.0000036 -> -0.152388 | AN72: 0 | AO72: -120.4536055 | AP72: Bygning til erhvervsmæssig produktion vedrørende industri, håndværk m.v. | AQ72: ERHVSINDU | AR72: AEBE | AT72: 120.4536055 | AU72: 1 | AZ72: =SUM(BA72:BH72) -> 0 | BI72: 0 | BK72: 0 | BR72: 0 | CG72: =AO72*AU72*-1 -> 120.4536055 | CI72: =(AT72+AO72)*-1 -> 0 | CJ72: =-('Ref for justering 2019'!C72*Emissionsfaktorer!$B$5+'Ref for justering 2019'!D72*Emissionsfaktorer!$B$7+'Ref for justering 2019'!E72*Emissionsfaktorer!$B$8+X72*Emissionsfaktorer!$B$6) -> 6.857169399
C73: =SUM('Energi_bbr varmeforbrug'!D58:'Energi_bbr varmeforbrug'!Q58)*-0.0000036 -> 0 | F73: 0 | O73: 0 | Q73: 0 | X73: 0 | AK73: =SUM('Energi_bbr varmeforbrug'!D19:Q19)*-0.0000036 -> -0.0155952 | AN73: 0 | AO73: -0.0155952 | AP73: El-, gas-, vand- eller varmeværk, forbrændingsanstalt m.v. | AQ73: ELGASVAND | AR73: AEBE | AT73: 0.0155952 | AU73: 1 | AZ73: 0 | BI73: 0 | BK73: 0 | BR73: 0 | CG73: =AO73*AU73*-1 -> 0.0155952 | CI73: =(AT73+AO73)*-1 -> 0 | CJ73: =-('Ref for justering 2019'!C73*Emissionsfaktorer!$B$5+'Ref for justering 2019'!D73*Emissionsfaktorer!$B$7+'Ref for justering 2019'!E73*Emissionsfaktorer!$B$8+X73*Emissionsfaktorer!$B$6) -> 0
C74: =SUM('Energi_bbr varmeforbrug'!D59:'Energi_bbr varmeforbrug'!Q59)*-0.0000036 -> 0 | F74: 0 | O74: 0 | Q74: 0 | X74: 0 | AK74: =SUM('Energi_bbr varmeforbrug'!D20:Q20)*-0.0000036 -> -13.93098391 | AN74: 0 | AO74: -13.93098391 | AP74: Anden bygning til landbrug, industri etc. | AQ74: ANDENBERHV | AR74: AEBE | AT74: 13.93098391 | AU74: 1 | AZ74: 0 | BI74: 0 | BK74: 0 | BR74: 0 | CG74: =AO74*AU74*-1 -> 13.93098391 | CI74: =(AT74+AO74)*-1 -> 0 | CJ74: =-('Ref for justering 2019'!C74*Emissionsfaktorer!$B$5+'Ref for justering 2019'!D74*Emissionsfaktorer!$B$7+'Ref for justering 2019'!E74*Emissionsfaktorer!$B$8+X74*Emissionsfaktorer!$B$6) -> 0
C75: =SUM(C76:C79) -> -17.19371739 | D75: =SUM(D76:D79) -> 0 | E75: 0 | F75: 0 | G75: 0 | H75: 0 | I75: 0 | J75: 0 | K75: 0 | L75: 0 | M75: 0 | N75: 0 | O75: 0 | P75: 0 | Q75: 0 | R75: 0 | S75: 0 | T75: 0 | U75: 0 | V75: 0 | W75: 0 | X75: 0 | Y75: 0 | Z75: 0 | AA75: 0 | AB75: 0 | AC75: 0 | AD75: 0 | AE75: 0 | AF75: 0 | AG75: 0 | AH75: 0 | AI75: 0 | AJ75: 0 | AK75: -114.2306856 | AL75: 0 | AM75: 0 | AO75: -131.424403 | AP75: Bygninger til handel og service | AQ75: AEHS | AR75: AE | AS75: ='Størrelse på strømme'!#REF! ->  | AT75: 131.424403 | AW75: =SUM(AW76:AW79) -> 0 | AX75: 0 | AY75: 0 | AZ75: 0 | BA75: 0 | BB75: 0 | BC75: 0 | BD75: 0 | BE75: 0 | BF75: 0 | BG75: 0 | BH75: 0 | BI75: 0 | BJ75: 0 | BK75: 0 | BL75: 0 | BM75: 0 | BN75: 0 | BO75: 0 | BP75: 0 | BQ75: 0 | BR75: 0 | BS75: 0 | BT75: 0 | BU75: 0 | BV75: 0 | BW75: 0 | BX75: 0 | BY75: 0 | BZ75: 0 | CA75: 0 | CB75: 0 | CC75: 0 | CD75: 0 | CE75: 0 | CF75: 0 | CG75: 131.424403 | CH75: 0 | CI75: 0 | CJ75: 0.9800418913
C76: =SUM('Energi_bbr varmeforbrug'!D60:'Energi_bbr varmeforbrug'!Q60)*-0.0000036 -> -17.19371739 | F76: 0 | O76: 0 | Q76: 0 | X76: 0 | AK76: =SUM('Energi_bbr varmeforbrug'!D21:Q21)*-0.0000036 -> -3.5811174 | AN76: 0 | AO76: -20.77483479 | AP76: Transport- og garageanlæg | AQ76: TRANSPOGARA | AR76: AEHS | AT76: 20.77483479 | AU76: 1 | AZ76: 0 | BI76: 0 | BK76: 0 | BR76: 0 | CG76: =AO76*AU76*-1 -> 20.77483479 | CI76: =(AT76+AO76)*-1 -> 0 | CJ76: =-('Ref for justering 2019'!C76*Emissionsfaktorer!$B$5+'Ref for justering 2019'!D76*Emissionsfaktorer!$B$7+'Ref for justering 2019'!E76*Emissionsfaktorer!$B$8+X76*Emissionsfaktorer!$B$6) -> 0.9800418913
C77: =SUM('Energi_bbr varmeforbrug'!D61:'Energi_bbr varmeforbrug'!Q61)*-0.0000036 -> 0 | F77: 0 | O77: 0 | Q77: 0 | X77: 0 | AK77: =SUM('Energi_bbr varmeforbrug'!D22:Q22)*-0.0000036 -> 0 | AN77: 0 | AO77: 0 | AP77: Bygninger til kontor, handel, lager, herunder offentlig administration | AQ77: KONTORLAGERMV | AR77: AEHS | AT77: 0 | AU77: 1 | AZ77: 0 | BI77: 0 | BK77: 0 | BR77: 0 | CG77: =AO77*AU77*-1 -> 0 | CI77: =(AT77+AO77)*-1 -> 0 | CJ77: =-('Ref for justering 2019'!C77*Emissionsfaktorer!$B$5+'Ref for justering 2019'!D77*Emissionsfaktorer!$B$7+'Ref for justering 2019'!E77*Emissionsfaktorer!$B$8+X77*Emissionsfaktorer!$B$6) -> 0
C78: =SUM('Energi_bbr varmeforbrug'!D62:'Energi_bbr varmeforbrug'!Q62)*-0.0000036 -> 0 | F78: 0 | O78: 0 | Q78: 0 | X78: 0 | AK78: =SUM('Energi_bbr varmeforbrug'!D23:Q23)*-0.0000036 -> -15.514329 | AN78: 0 | AO78: -15.514329 | AP78: Bygning til hotel, restaurant, vaskeri, frisør og anden servicevirksomhed | AQ78: HOTELVASK | AR78: AEHS | AT78: 15.514329 | AU78: 1 | AZ78: 0 | BI78: 0 | BK78: 0 | BR78: 0 | CG78: =AO78*AU78*-1 -> 15.514329 | CI78: =(AT78+AO78)*-1 -> 0 | CJ78: =-('Ref for justering 2019'!C78*Emissionsfaktorer!$B$5+'Ref for justering 2019'!D78*Emissionsfaktorer!$B$7+'Ref for justering 2019'!E78*Emissionsfaktorer!$B$8+X78*Emissionsfaktorer!$B$6) -> 0
C79: =SUM('Energi_bbr varmeforbrug'!D63:'Energi_bbr varmeforbrug'!Q63)*-0.0000036 -> 0 | F79: 0 | O79: 0 | Q79: 0 | X79: 0 | AK79: =SUM('Energi_bbr varmeforbrug'!D24:Q24)*-0.0000036 -> -95.13523918 | AN79: 0 | AO79: -95.13523918 | AP79: Anden bygning til transport, handel etc | AQ79: ANDENHANDEL | AR79: AEHS | AT79: 95.13523918 | AU79: 1 | AZ79: 0 | BI79: 0 | BK79: 0 | BR79: 0 | CG79: =AO79*AU79*-1 -> 95.13523918 | CI79: =(AT79+AO79)*-1 -> 0 | CJ79: =-('Ref for justering 2019'!C79*Emissionsfaktorer!$B$5+'Ref for justering 2019'!D79*Emissionsfaktorer!$B$7+'Ref for justering 2019'!E79*Emissionsfaktorer!$B$8+X79*Emissionsfaktorer!$B$6) -> 0
C80: =SUM(C81:C83) -> 0 | D80: =SUM(D81:D83) -> 0 | E80: 0 | F80: 0 | G80: 0 | H80: 0 | I80: 0 | J80: 0 | K80: 0 | L80: 0 | M80: 0 | N80: 0 | O80: 0 | P80: 0 | Q80: 0 | R80: 0 | S80: 0 | T80: 0 | U80: 0 | V80: 0 | W80: 0 | X80: 0 | Y80: 0 | Z80: 0 | AA80: 0 | AB80: 0 | AC80: 0 | AD80: 0 | AE80: 0 | AF80: 0 | AG80: 0 | AH80: 0 | AI80: 0 | AJ80: 0 | AK80: -14.29789088 | AL80: 0 | AM80: 0 | AO80: -14.29789088 | AP80: Bygninger til underholdning | AQ80: AEUN | AR80: AE | AS80: ='Størrelse på strømme'!#REF! ->  | AT80: 14.29789088 | AU80: 1 | AW80: =SUM(AW81:AW83) -> 0 | AX80: 0 | AY80: 0 | AZ80: 0 | BA80: 0 | BB80: 0 | BC80: 0 | BD80: 0 | BE80: 0 | BF80: 0 | BG80: 0 | BH80: 0 | BI80: 0 | BJ80: 0 | BK80: 0 | BL80: 0 | BM80: 0 | BN80: 0 | BO80: 0 | BP80: 0 | BQ80: 0 | BR80: 0 | BS80: 0 | BT80: 0 | BU80: 0 | BV80: 0 | BW80: 0 | BX80: 0 | BY80: 0 | BZ80: 0 | CA80: 0 | CB80: 0 | CC80: 0 | CD80: 0 | CE80: 0 | CF80: 0 | CG80: 14.29789088 | CH80: 0 | CI80: 0 | CJ80: 0
C81: =SUM('Energi_bbr varmeforbrug'!D64:'Energi_bbr varmeforbrug'!Q64)*-0.0000036 -> 0 | F81: 0 | O81: 0 | Q81: 0 | X81: 0 | AK81: =SUM('Energi_bbr varmeforbrug'!D25:Q25)*-0.0000036 -> -10.24641254 | AN81: 0 | AO81: -10.24641254 | AP81: Bygninger til biograf, teater, erhvervsmæssig udstilling, bibliotek, museum, kirke o.lign | AQ81: BIOTEA | AR81: AEUN | AT81: 10.24641254 | AU81: 1 | AZ81: 0 | BI81: 0 | BK81: 0 | BR81: 0 | CG81: =AO81*AU81*-1 -> 10.24641254 | CI81: =(AT81+AO81)*-1 -> 0 | CJ81: =-('Ref for justering 2019'!C81*Emissionsfaktorer!$B$5+'Ref for justering 2019'!D81*Emissionsfaktorer!$B$7+'Ref for justering 2019'!E81*Emissionsfaktorer!$B$8+X81*Emissionsfaktorer!$B$6) -> 0
C82: =SUM('Energi_bbr varmeforbrug'!D69:'Energi_bbr varmeforbrug'!Q69)*-0.0000036 -> 0 | F82: 0 | O82: 0 | Q82: 0 | X82: 0 | AK82: =SUM('Energi_bbr varmeforbrug'!D31:Q31)*-0.0000036 -> -4.05147834 | AN82: 0 | AO82: -4.05147834 | AP82: Bygninger til ferieformål m.v. bortset fra sommerhus og kolonihavehus | AQ82: FERIE | AR82: AEUN | AT82: 4.05147834 | AU82: 1 | AZ82: 0 | BI82: 0 | BK82: 0 | BR82: 0 | CG82: 4.05147834 | CI82: 0 | CJ82: =-('Ref for justering 2019'!C82*Emissionsfaktorer!$B$5+'Ref for justering 2019'!D82*Emissionsfaktorer!$B$7+'Ref for justering 2019'!E82*Emissionsfaktorer!$B$8+X82*Emissionsfaktorer!$B$6) -> 0
C83: =SUM('Energi_bbr varmeforbrug'!D77:'Energi_bbr varmeforbrug'!Q77)*-0.0000036 -> 0 | F83: 0 | O83: 0 | Q83: 0 | X83: 0 | AK83: =SUM('Energi_bbr varmeforbrug'!D38:Q38)*-0.0000036 -> 0 | AN83: 0 | AO83: 0 | AP83: Ikke oplyst | AQ83: IKKEOPL | AR83: AEUN | AT83: 0 | AU83: 1 | AZ83: 0 | BI83: 0 | BK83: 0 | BR83: 0 | CG83: 0 | CI83: 0 | CJ83: =-('Ref for justering 2019'!C83*Emissionsfaktorer!$B$5+'Ref for justering 2019'!D83*Emissionsfaktorer!$B$7+'Ref for justering 2019'!E83*Emissionsfaktorer!$B$8+X83*Emissionsfaktorer!$B$6) -> 0
C84: =SUM(C85:C98) -> -222.1877369 | D84: 0 | E84: 0 | F84: 0 | G84: 0 | H84: 0 | I84: 0 | J84: 0 | K84: =SUM(K85:K98) -> 0 | L84: 0 | M84: 0 | N84: 0 | O84: 0 | P84: 0 | Q84: 0 | R84: 0 | S84: 0 | T84: 0 | U84: 0 | V84: 0 | W84: 0 | X84: -376.97 | Y84: 0 | Z84: 0 | AA84: 0 | AB84: 0 | AC84: 0 | AD84: 0 | AE84: 0 | AF84: 0 | AG84: 0 | AH84: 0 | AI84: 0 | AJ84: 0 | AK84: 0 | AL84: 0 | AM84: 0 | AN84: 0 | AO84: -599.1577369 | AP84: Energi proces | AQ84: AP | AR84: A | AS84: ='Størrelse på strømme'!#REF! ->  | AT84: 539.2419632 | AU84: 0.9 | AW84: =SUM(AW85:AW98) -> 0 | AX84: 0 | AY84: 0 | AZ84: 0 | BA84: 0 | BB84: 0 | BC84: 0 | BD84: 0 | BE84: 0 | BF84: 0 | BG84: 0 | BH84: 0 | BI84: 0 | BJ84: 0 | BK84: 0 | BL84: 0 | BM84: 0 | BN84: 0 | BO84: 0 | BP84: 0 | BQ84: 0 | BR84: 0 | BS84: 0 | BT84: 0 | BU84: 0 | BV84: 0 | BW84: 0 | BX84: 0 | BY84: 0 | BZ84: 0 | CA84: 0 | CB84: 0 | CC84: 0 | CD84: 0 | CE84: 0 | CF84: 0 | CG84: 539.2419632 | CH84: 0 | CI84: 59.91577369 | CJ84: =-('Ref for justering 2019'!C84*Emissionsfaktorer!$B$5+'Ref for justering 2019'!D84*Emissionsfaktorer!$B$7+'Ref for justering 2019'!E84*Emissionsfaktorer!$B$8+X84*Emissionsfaktorer!$B$6) -> 40.56048101
C85: =(Energi_proces!I7)*-0.001 -> 0 | D85: =(Energi_proces!G7)*-0.001 -> 0 | E85: =(Energi_proces!J7)*-0.001 -> 0 | F85: 0 | L85: =(Energi_proces!L7)*-0.001 -> 0 | M85: =(Energi_proces!K7)*-0.001 -> 0 | O85: =(Energi_proces!M7)*-0.001 -> 0 | Q85: 0 | X85: =(Energi_proces!H7)*-0.001 -> -376.97 | AN85: 0 | AO85: -376.97 | AP85: =Energi_proces!E7 -> A/S DANSK SHELL | AQ85: AP1 | AR85: AP | AT85: 339.273 | AU85: 0.9 | AZ85: 0 | BI85: 0 | BK85: 0 | BR85: 0 | CG85: 339.273 | CI85: 37.697 | CJ85: =-('Ref for justering 2019'!C85*Emissionsfaktorer!$B$5+'Ref for justering 2019'!D85*Emissionsfaktorer!$B$7+'Ref for justering 2019'!E85*Emissionsfaktorer!$B$8+X85*Emissionsfaktorer!$B$6) -> 27.89578
C86: =(Energi_proces!I8)*-0.001 -> -222.1852169 | D86: =(Energi_proces!G8)*-0.001 -> 0 | E86: =(Energi_proces!J8)*-0.001 -> 0 | F86: 0 | L86: =(Energi_proces!L8)*-0.001 -> 0 | M86: =(Energi_proces!K8)*-0.001 -> 0 | O86: =(Energi_proces!M8)*-0.001 -> 0 | Q86: 0 | X86: =(Energi_proces!H8)*-0.001 -> 0 | AN86: 0 | AO86: -222.1852169 | AP86: =Energi_proces!E8 -> CARLSBERG SUPPLY COMPANY DANMARK A/S | AQ86: AP2 | AR86: AP | AT86: 199.9666952 | AU86: 0.9 | AZ86: 0 | BI86: 0 | BK86: 0 | BR86: 0 | CG86: 199.9666952 | CI86: 22.21852169 | CJ86: =-('Ref for justering 2019'!C86*Emissionsfaktorer!$B$5+'Ref for justering 2019'!D86*Emissionsfaktorer!$B$7+'Ref for justering 2019'!E86*Emissionsfaktorer!$B$8+X86*Emissionsfaktorer!$B$6) -> 12.66455737
C87: =(Energi_proces!I9)*-0.001 -> -0.00252 | D87: =(Energi_proces!G9)*-0.001 -> 0 | E87: =(Energi_proces!J9)*-0.001 -> 0 | F87: 0 | L87: =(Energi_proces!L9)*-0.001 -> 0 | M87: =(Energi_proces!K9)*-0.001 -> 0 | O87: =(Energi_proces!M9)*-0.001 -> 0 | Q87: 0 | X87: =(Energi_proces!H9)*-0.001 -> 0 | AN87: 0 | AO87: -0.00252 | AP87: =Energi_proces!E9 -> ERIK & STEEN MAGNUSSON I/S | AQ87: AP3 | AR87: AP | AT87: 0.002268 | AU87: 0.9 | AZ87: 0 | BI87: 0 | BK87: 0 | BR87: 0 | CG87: 0.002268 | CI87: 0.000252 | CJ87: =-('Ref for justering 2019'!C87*Emissionsfaktorer!$B$5+'Ref for justering 2019'!D87*Emissionsfaktorer!$B$7+'Ref for justering 2019'!E87*Emissionsfaktorer!$B$8+X87*Emissionsfaktorer!$B$6) -> 0.00014364
C88: =(Energi_proces!I10)*-0.001 -> 0 | D88: =(Energi_proces!G10)*-0.001 -> 0 | E88: =(Energi_proces!J10)*-0.001 -> 0 | F88: 0 | L88: =(Energi_proces!L10)*-0.001 -> 0 | M88: =(Energi_proces!K10)*-0.001 -> 0 | O88: =(Energi_proces!M10)*-0.001 -> 0 | Q88: 0 | X88: =(Energi_proces!H10)*-0.001 -> 0 | AN88: 0 | AO88: 0 | AP88: =Energi_proces!E10 -> 0 | AQ88: AP4 | AR88: AP | AT88: 0 | AU88: 0.9 | AZ88: 0 | BI88: 0 | BK88: 0 | BR88: 0 | CG88: 0 | CI88: 0 | CJ88: =-('Ref for justering 2019'!C88*Emissionsfaktorer!$B$5+'Ref for justering 2019'!D88*Emissionsfaktorer!$B$7+'Ref for justering 2019'!E88*Emissionsfaktorer!$B$8+X88*Emissionsfaktorer!$B$6) -> 0
C89: =(Energi_proces!I11)*-0.001 -> 0 | D89: =(Energi_proces!G11)*-0.001 -> 0 | E89: =(Energi_proces!J11)*-0.001 -> 0 | F89: 0 | L89: =(Energi_proces!L11)*-0.001 -> 0 | M89: =(Energi_proces!K11)*-0.001 -> 0 | O89: =(Energi_proces!M11)*-0.001 -> 0 | Q89: 0 | X89: =(Energi_proces!H11)*-0.001 -> 0 | AN89: 0 | AO89: 0 | AP89: =Energi_proces!E11 -> 0 | AQ89: AP5 | AR89: AP | AT89: 0 | AU89: 0.9 | AZ89: 0 | BI89: 0 | BK89: 0 | BR89: 0 | CG89: 0 | CI89: 0 | CJ89: =-('Ref for justering 2019'!C89*Emissionsfaktorer!$B$5+'Ref for justering 2019'!D89*Emissionsfaktorer!$B$7+'Ref for justering 2019'!E89*Emissionsfaktorer!$B$8+X89*Emissionsfaktorer!$B$6) -> 0
C90: =(Energi_proces!I12)*-0.001 -> 0 | D90: =(Energi_proces!G12)*-0.001 -> 0 | E90: =(Energi_proces!J12)*-0.001 -> 0 | F90: 0 | L90: =(Energi_proces!L12)*-0.001 -> 0 | M90: =(Energi_proces!K12)*-0.001 -> 0 | O90: =(Energi_proces!M12)*-0.001 -> 0 | Q90: 0 | X90: =(Energi_proces!H12)*-0.001 -> 0 | AN90: 0 | AO90: 0 | AP90: =Energi_proces!E12 -> 0 | AQ90: AP6 | AR90: AP | AT90: 0 | AU90: 0.9 | AZ90: 0 | BI90: 0 | BK90: 0 | BR90: 0 | CG90: 0 | CI90: 0 | CJ90: =-('Ref for justering 2019'!C90*Emissionsfaktorer!$B$5+'Ref for justering 2019'!D90*Emissionsfaktorer!$B$7+'Ref for justering 2019'!E90*Emissionsfaktorer!$B$8+X90*Emissionsfaktorer!$B$6) -> 0
C91: =(Energi_proces!I13)*-0.001 -> 0 | D91: =(Energi_proces!G13)*-0.001 -> 0 | E91: =(Energi_proces!J13)*-0.001 -> 0 | F91: 0 | L91: =(Energi_proces!L13)*-0.001 -> 0 | M91: =(Energi_proces!K13)*-0.001 -> 0 | O91: =(Energi_proces!M13)*-0.001 -> 0 | Q91: 0 | X91: =(Energi_proces!H13)*-0.001 -> 0 | AN91: 0 | AO91: 0 | AP91: =Energi_proces!E13 -> 0 | AQ91: AP7 | AR91: AP | AT91: 0 | AU91: 0.9 | AZ91: 0 | BI91: 0 | BK91: 0 | BR91: 0 | CG91: 0 | CI91: 0 | CJ91: =-('Ref for justering 2019'!C91*Emissionsfaktorer!$B$5+'Ref for justering 2019'!D91*Emissionsfaktorer!$B$7+'Ref for justering 2019'!E91*Emissionsfaktorer!$B$8+X91*Emissionsfaktorer!$B$6) -> 0
C92: =(Energi_proces!I14)*-0.001 -> 0 | D92: =(Energi_proces!G14)*-0.001 -> 0 | E92: =(Energi_proces!J14)*-0.001 -> 0 | F92: 0 | L92: =(Energi_proces!L14)*-0.001 -> 0 | M92: =(Energi_proces!K14)*-0.001 -> 0 | O92: =(Energi_proces!M14)*-0.001 -> 0 | Q92: 0 | X92: =(Energi_proces!H14)*-0.001 -> 0 | AN92: 0 | AO92: 0 | AP92: =Energi_proces!E14 -> 0 | AQ92: AP8 | AR92: AP | AT92: 0 | AU92: 0.9 | AZ92: 0 | BI92: 0 | BK92: 0 | BR92: 0 | CG92: 0 | CI92: 0 | CJ92: =-('Ref for justering 2019'!C92*Emissionsfaktorer!$B$5+'Ref for justering 2019'!D92*Emissionsfaktorer!$B$7+'Ref for justering 2019'!E92*Emissionsfaktorer!$B$8+X92*Emissionsfaktorer!$B$6) -> 0
C93: =(Energi_proces!I15)*-0.001 -> 0 | D93: =(Energi_proces!G15)*-0.001 -> 0 | E93: =(Energi_proces!J15)*-0.001 -> 0 | F93: 0 | L93: =(Energi_proces!L15)*-0.001 -> 0 | M93: =(Energi_proces!K15)*-0.001 -> 0 | O93: =(Energi_proces!M15)*-0.001 -> 0 | Q93: 0 | X93: =(Energi_proces!H15)*-0.001 -> 0 | AN93: 0 | AO93: 0 | AP93: =Energi_proces!E15 -> 0 | AQ93: AP9 | AR93: AP | AT93: 0 | AU93: 0.9 | AZ93: 0 | BI93: 0 | BK93: 0 | BR93: 0 | CG93: 0 | CI93: 0 | CJ93: =-('Ref for justering 2019'!C93*Emissionsfaktorer!$B$5+'Ref for justering 2019'!D93*Emissionsfaktorer!$B$7+'Ref for justering 2019'!E93*Emissionsfaktorer!$B$8+X93*Emissionsfaktorer!$B$6) -> 0
C94: =(Energi_proces!I16)*-0.001 -> 0 | D94: =(Energi_proces!G16)*-0.001 -> 0 | E94: =(Energi_proces!J16)*-0.001 -> 0 | F94: 0 | L94: =(Energi_proces!L16)*-0.001 -> 0 | M94: =(Energi_proces!K16)*-0.001 -> 0 | O94: =(Energi_proces!M16)*-0.001 -> 0 | Q94: 0 | X94: =(Energi_proces!H16)*-0.001 -> 0 | AN94: 0 | AO94: 0 | AP94: =Energi_proces!E16 -> 0 | AQ94: AP10 | AR94: AP | AT94: 0 | AU94: 0.9 | AZ94: 0 | BI94: 0 | BK94: 0 | BR94: 0 | CG94: 0 | CI94: 0 | CJ94: =-('Ref for justering 2019'!C94*Emissionsfaktorer!$B$5+'Ref for justering 2019'!D94*Emissionsfaktorer!$B$7+'Ref for justering 2019'!E94*Emissionsfaktorer!$B$8+X94*Emissionsfaktorer!$B$6) -> 0
C95: =(Energi_proces!I17)*-0.001 -> 0 | D95: =(Energi_proces!G17)*-0.001 -> 0 | E95: =(Energi_proces!J17)*-0.001 -> 0 | F95: 0 | L95: =(Energi_proces!L17)*-0.001 -> 0 | M95: =(Energi_proces!K17)*-0.001 -> 0 | O95: =(Energi_proces!M17)*-0.001 -> 0 | Q95: 0 | X95: =(Energi_proces!H17)*-0.001 -> 0 | AN95: 0 | AO95: 0 | AP95: =Energi_proces!E17 -> 0 | AQ95: AP11 | AR95: AP | AT95: 0 | AU95: 0.9 | AZ95: 0 | BI95: 0 | BK95: 0 | BR95: 0 | CG95: 0 | CI95: 0 | CJ95: =-('Ref for justering 2019'!C95*Emissionsfaktorer!$B$5+'Ref for justering 2019'!D95*Emissionsfaktorer!$B$7+'Ref for justering 2019'!E95*Emissionsfaktorer!$B$8+X95*Emissionsfaktorer!$B$6) -> 0
C96: =(Energi_proces!I18)*-0.001 -> 0 | D96: =(Energi_proces!G18)*-0.001 -> 0 | E96: =(Energi_proces!J18)*-0.001 -> 0 | F96: 0 | L96: =(Energi_proces!L18)*-0.001 -> 0 | M96: =(Energi_proces!K18)*-0.001 -> 0 | O96: =(Energi_proces!M18)*-0.001 -> 0 | Q96: 0 | X96: =(Energi_proces!H18)*-0.001 -> 0 | AN96: 0 | AO96: 0 | AP96: =Energi_proces!E18 -> 0 | AQ96: AP12 | AR96: AP | AT96: 0 | AU96: 0.9 | AZ96: 0 | BI96: 0 | BK96: 0 | BR96: 0 | CG96: 0 | CI96: 0 | CJ96: =-('Ref for justering 2019'!C96*Emissionsfaktorer!$B$5+'Ref for justering 2019'!D96*Emissionsfaktorer!$B$7+'Ref for justering 2019'!E96*Emissionsfaktorer!$B$8+X96*Emissionsfaktorer!$B$6) -> 0
C97: =(Energi_proces!I19)*-0.001 -> 0 | D97: =(Energi_proces!G19)*-0.001 -> 0 | E97: =(Energi_proces!J19)*-0.001 -> 0 | F97: 0 | L97: =(Energi_proces!L19)*-0.001 -> 0 | M97: =(Energi_proces!K19)*-0.001 -> 0 | O97: =(Energi_proces!M19)*-0.001 -> 0 | Q97: 0 | X97: =(Energi_proces!H19)*-0.001 -> 0 | AN97: 0 | AO97: 0 | AP97: =Energi_proces!E19 -> 0 | AQ97: AP13 | AR97: AP | AT97: 0 | AU97: 0.9 | AZ97: 0 | BI97: 0 | BK97: 0 | BR97: 0 | CG97: 0 | CI97: 0 | CJ97: =-('Ref for justering 2019'!C97*Emissionsfaktorer!$B$5+'Ref for justering 2019'!D97*Emissionsfaktorer!$B$7+'Ref for justering 2019'!E97*Emissionsfaktorer!$B$8+X97*Emissionsfaktorer!$B$6) -> 0
C98: =(Energi_proces!I20)*-0.001 -> 0 | D98: =(Energi_proces!G20)*-0.001 -> 0 | E98: =(Energi_proces!J20)*-0.001 -> 0 | F98: 0 | L98: =(Energi_proces!L20)*-0.001 -> 0 | M98: =(Energi_proces!K20)*-0.001 -> 0 | O98: =(Energi_proces!M20)*-0.001 -> 0 | Q98: 0 | X98: =(Energi_proces!H20)*-0.001 -> 0 | AN98: 0 | AO98: 0 | AP98: =Energi_proces!E20 -> 0 | AQ98: AP14 | AR98: AP | AT98: 0 | AU98: 0.9 | AZ98: 0 | BI98: 0 | BK98: 0 | BR98: 0 | CG98: 0 | CI98: 0 | CJ98: =-('Ref for justering 2019'!C98*Emissionsfaktorer!$B$5+'Ref for justering 2019'!D98*Emissionsfaktorer!$B$7+'Ref for justering 2019'!E98*Emissionsfaktorer!$B$8+X98*Emissionsfaktorer!$B$6) -> 0
F99: 0 | X99: =SUM(Y99:AI99) -> 0 | AN99: 0 | AO99: 0 | AP99: Ikke energiformål | AQ99: AIE | AR99: A | AU99: 0.9 | CG99: 0 | CI99: 0
AP100: Energitjenester | AQ100: EN

Sheet e2g-format 2019 (hidden)
B1: Forbrug | C1: Naturgas | D1: Kul | E1: Affald (ikke-bionedbrydeligt) | F1: Biobrændsler | G1: Halm | H1: Skovflis | I1: Brænde | J1: Træpiller | K1: Træaffald | L1: Biogas | M1: Biomasse | N1: Affald (bionedbrydeligt) | O1: Ikke-brændsel VE | P1: Sol | Q1: Vind | R1: Havvind | S1: Landvind | T1: Vand | U1: Geotermisk | V1: Varmepumpe - omgivelsesvarme | W1: Bioolie, biodiesel og bioethanol | X1: Olieprodukter | Y1: Raffinaderigas | Z1: LPG | AA1: Flybenzin | AB1: Benzin | AC1: Petroleum / Kerosen | AD1: JP1 | AE1: Gasolie/Dieselolie | AF1: Fuelolie | AG1: Spildolie | AH1: Petrokoks | AI1: Terpentin, smøreolie og bitumen | AJ1: El | AK1: Fjernvarme | AL1: Overskudsvarme | AM1: Energitjenester | AN1: Total energiforbrug | AO1: Brutto brændsel | AP1: =Andet!B4 -> Fredericia | AS1: Faktor | AT1: Brutto produktion | AU1: Virkningsgrad | AV1: Produktion | AW1: Naturgas | AX1: Kul | AY1: Affald (ikke-bionedbrydeligt) | AZ1: Biobrændsler | BA1: Halm | BB1: Skovflis | BC1: Brænde | BD1: Træpiller | BE1: Træaffald | BF1: Biogas | BG1: Biomasse | BH1: Affald (bionedbrydeligt) | BI1: Ikke-brændsel VE | BJ1: Sol | BK1: Vind | BL1: Havvind | BM1: Landvind | BN1: Vand | BO1: Geotermisk | BP1: Varmepumpe - omgivelsesvarme | BQ1: Bioolie, biodiesel og bioethanol | BR1: Olieprodukter | BS1: Raffinaderigas | BT1: LPG | BU1: Flybenzin | BV1: Benzin | BW1: Petroleum / Kerosen | BX1: JP1 | BY1: Gasolie/Dieselolie | BZ1: Fuelolie | CA1: Spildolie | CB1: Petrokoks | CC1: Terpentin, smøreolie og bitumen | CD1: El | CE1: Fjernvarme | CF1: Nyttiggjort overskudsvarme | CG1: Energitjenester | CH1: Total energiforbrug | CI1: Tab | CJ1: CO2-udledning
A2: ID | B2: F | C2: FN | D2: FK | E2: FMA | F2: FVB | G2: FB1 | H2: FB2 | I2: FB3 | J2: FB4 | K2: FB5 | L2: FB6 | M2: FB7 | N2: FB8 | O2: FLVE | P2: FLVE1 | Q2: FLVE2 | R2: FLVE21 | S2: FLVE22 | T2: FLVE3 | U2: FLVE4 | V2: FLVE5 | W2: FS | X2: FOO | Y2: FO1 | Z2: FO2 | AA2: FO3 | AB2: FO4 | AC2: FO5 | AD2: FO6 | AE2: FO7 | AF2: FO8 | AG2: FO9 | AH2: FOO1 | AI2: FOO2 | AJ2: FE | AK2: FF | AL2: FOV | AM2: FWEN | AN2: FTOTAL | AO2: fbrbr | AQ2: ID | AR2: ID Parent | AS2: factor | AT2: pbrpr | AU2: pvrkg | AV2: P | AW2: PN | AX2: PK | AY2: PMA | AZ2: PVB | BA2: PB1 | BB2: PB2 | BC2: PB3 | BD2: PB4 | BE2: PB5 | BF2: PB6 | BG2: PB7 | BH2: PB8 | BI2: PLVE | BJ2: PLVE1 | BK2: PLVE2 | BL2: PLVE21 | BM2: PLVE22 | BN2: PLVE3 | BO2: PLVE4 | BP2: PLVE5 | BQ2: PS | BR2: POO | BS2: PO1 | BT2: PO2 | BU2: PO3 | BV2: PO4 | BW2: PO5 | BX2: PO6 | BY2: PO7 | BZ2: PO8 | CA2: PO9 | CB2: POO1 | CC2: POO2 | CD2: PE | CE2: PF | CF2: POV | CG2: PWEN | CH2: PTOTAL | CI2: PTAB | CJ2: PCO2
A3: ID Parent | C3: F | D3: F | E3: F | F3: F | G3: FVB | H3: FVB | I3: FVB | J3: FVB | K3: FVB | L3: FVB | M3: FVB | N3: FVB | O3: F | P3: FLVE | Q3: FLVE | R3: FLVE2 | S3: FLVE2 | T3: FLVE | U3: FLVE | V3: FLVE | W3: F | X3: F | Y3: FOO | Z3: FOO | AA3: FOO | AB3: FOO | AC3: FOO | AD3: FOO | AE3: FOO | AF3: FOO | AG3: FOO | AH3: FOO | AI3: FOO | AJ3: F | AK3: F | AL3: F | AM3: F | AN3: F | AP3: Structures | AW3: P | AX3: P | AY3: P | AZ3: P | BA3: PVB | BB3: PVB | BC3: PVB | BD3: PVB | BE3: PVB | BF3: PVB | BG3: PVB | BH3: PVB | BI3: P | BJ3: PLVE | BK3: PLVE | BL3: PLVE2 | BM3: PLVE2 | BN3: PLVE | BO3: PLVE | BP3: PLVE | BQ3: P | BR3: P | BS3: POO | BT3: POO | BU3: POO | BV3: POO | BW3: POO | BX3: POO | BY3: POO | BZ3: POO | CA3: POO | CB3: POO | CC3: POO | CD3: P | CE3: P | CF3: P | CG3: P | CH3: P
B4: ='Størrelse på strømme'!E8 -> 497.2327402 | F4: ='Størrelse på strømme'!#REF! ->  | O4: ='Størrelse på strømme'!E19 -> 3.185 | Q4: ='Størrelse på strømme'!E19 -> 3.185 | X4: ='Størrelse på strømme'!#REF! ->  | AV4: =B4 -> 497.2327402 | AZ4: =F4 ->  | BI4: =O4 -> 3.185 | BK4: =Q4 -> 3.185 | BR4: =X4 ->  | CI4: =B4 -> 497.2327402 | CJ4: ='Størrelse på strømme'!E41 -> 11.00191283
F5: =SUM(G5:N5) -> 0 | O5: =P5+Q5+T5+U5+V5 -> 0 | Q5: =R5+S5 -> 0 | X5: =SUM(Y5:AI5) -> 0 | AN5: 0 | AO5: =SUM(C5:F5,O5,W5,X5,AJ5:AL5) -> 0 | AP5: Indgang for brændsler (bio, kul mv.) | AQ5: TP | AS5: ='Størrelse på strømme'!E36 -> 100.8736013 | AT5: =SUM(AW5:AZ5,BI5,BQ5,BR5,CD5:CG5) -> 5028.625485 | AW5: =-C6 -> 2877.019788 | AX5: 176 | AY5: 165.2841675 | AZ5: 1810.321529 | BA5: 0 | BB5: 773.1867815 | BC5: 0 | BD5: 0 | BE5: 1.080684994 | BF5: 12.92896873 | BG5: 0 | BH5: 164.1250936 | BI5: =BJ5+BK5+BN5+BO5+BP5 -> 0 | BK5: =BL5+BM5 -> 0 | BR5: =SUM(BS5:CC5) -> 0
C6: =-AW6 -> -2877.019788 | D6: =-AX6 -> -176 | E6: -165.2841675 | F6: -1810.321529 | G6: 0 | H6: -773.1867815 | I6: 0 | J6: 0 | K6: -1.080684994 | L6: -12.92896873 | M6: 0 | N6: -164.1250936 | O6: =P6+Q6+T6+U6+V6 -> 0 | Q6: 0 | X6: =SUM(Y6:AI6) -> 0 | AN6: 0 | AO6: -5028.625485 | AP6: Transport af brændsler | AQ6: TRAP | AT6: 5028.625485 | AW6: =-1*(C8+C20) -> 2877.019788 | AX6: 176 | AY6: 165.2841675 | AZ6: 1810.321529 | BA6: 0 | BB6: 773.1867815 | BC6: 0 | BD6: 0 | BE6: 1.080684994 | BF6: 12.92896873 | BG6: 0 | BH6: 164.1250936 | BI6: =BJ6+BK6+BN6+BO6+BP6 -> 0 | BK6: 0 | BR6: =SUM(BS6:CC6) -> 0
F7: =SUM(G7:N7) -> 0 | O7: =P7+Q7+T7+U7+V7 -> 0 | Q7: 0 | X7: =SUM(Y7:AI7) -> 0 | AN7: 0 | AO7: 0 | AP7: Indgang nettilsluttet VE | AQ7: TLP1 | AT7: 33.0708 | AZ7: =SUM(BA7:BH7) -> 0 | BI7: =BJ7+BK7+BN7+BO7+BP7 -> 33.0708 | BJ7: =P8*-1 -> 18.9108 | BK7: 14.16 | BL7: =R8*-1 -> 0 | BM7: =S8*-1 -> 14.16 | BR7: =SUM(BS7:CC7) -> 0
C8: =SUM(C9:C11,C14:C17) -> -1664.745086 | D8: 0 | E8: -134.2841675 | F8: -951.3215288 | G8: 0 | H8: -773.1867815 | I8: 0 | J8: 0 | K8: -1.080684994 | L8: -12.92896873 | M8: 0 | N8: -164.1250936 | O8: =P8+Q8+T8+U8+V8 -> -33.0708 | P8: -18.9108 | Q8: -14.16 | R8: 0 | S8: -14.16 | T8: 0 | U8: 0 | V8: 0 | W8: 0 | X8: 0 | Y8: 0 | Z8: 0 | AA8: 0 | AB8: 0 | AC8: 0 | AD8: 0 | AE8: 0 | AF8: 0 | AG8: 0 | AH8: 0 | AI8: 0 | AJ8: 0 | AK8: 0 | AL8: -213.758603 | AM8: =SUM(AM9:AM11,AM14:AM17) -> 0 | AN8: 0 | AO8: -2997.180186 | AP8: Indgang el, varme og olieprodukter | AQ8: TS | AS8: ='Størrelse på strømme'!E32 -> 497.2327402 | AT8: 6481.812207 | AW8: =SUM(AW9:AW11,AW14:AW17) -> 0 | AX8: 0 | AY8: 0 | AZ8: 0 | BA8: 0 | BB8: 0 | BC8: 0 | BD8: 0 | BE8: 0 | BF8: 0 | BG8: 0 | BH8: 0 | BI8: =BJ8+BK8+BN8+BO8+BP8 -> 0 | BJ8: 0 | BK8: 0 | BL8: 0 | BM8: 0 | BN8: 0 | BO8: 0 | BP8: 0 | BQ8: 0 | BR8: 3315.505518 | BS8: 0 | BT8: 0 | BU8: 0 | BV8: 505.2886793 | BW8: 0 | BX8: 110.833324 | BY8: 1542.55033 | BZ8: 0 | CA8: 0 | CB8: 0 | CC8: 0 | CD8: 1835.190393 | CE8: 1331.116296 | CF8: 0 | CG8: 0 | CH8: 0 | CI8: 1261.003788 | CJ8: 240.9810913
F9: 0 | O9: =P9+Q9+T9+U9+V9 -> 0 | Q9: 0 | X9: =SUM(Y9:AI9) -> 0 | AN9: 0 | AO9: 0 | AP9: Netto import/lager | AQ9: IMP | AR9: TS | AT9: 4745.635809 | AZ9: 0 | BI9: =BJ9+BK9+BN9+BO9+BP9 -> 0 | BK9: 0 | BR9: =IF(BR17+X18<0,(BR17+X18)*-1,0) -> 3315.505518 | BV9: =IF(BV17+AB18<0,(BV17+AB18)*-1) -> 505.2886793 | BX9: =IF(BX17+AD18<0,(BX17+AD18)*-1) -> 110.833324 | BY9: =IF(BY17+AE20<0,(BY17+AE20)*-1,0) -> 1542.55033 | CD9: =IF(CD10+CD11+CD14+AJ18<0,(CD10+CD11+CD14+AJ18)*-1,0) -> 1430.130291 | CJ9: =CD9*Emissionsfaktorer!B2+CE9*Emissionsfaktorer!B4 -> 136.1535929
C10: =-'Beregning for konvertering'!D21 -> -1530.493114 | D10: =-'Beregning for konvertering'!B21 -> 0 | E10: =-'Beregning for konvertering'!E21 -> -123.4549334 | F10: -874.6030015 | G10: =-'Beregning for konvertering'!F21 -> 0 | H10: =-'Beregning for konvertering'!G21 -> -710.8337815 | I10: =-'Beregning for konvertering'!H21 -> 0 | J10: =-'Beregning for konvertering'!I21 -> 0 | K10: =-'Beregning for konvertering'!J21 -> -0.9935340582 | L10: =-'Beregning for konvertering'!M21 -> -11.88632288 | M10: =-'Beregning for konvertering'!L21 -> 0 | N10: =-'Beregning for konvertering'!K21 -> -150.889363 | O10: =P10+Q10+T10+U10+V10 -> 0 | P10: =-'Beregning for konvertering'!O21 -> 0 | Q10: 0 | X10: =-'Beregning for konvertering'!C21 -> 0 | AJ10: =-'Beregning for konvertering'!P21 -> 0 | AL10: =-'Beregning for konvertering'!N21 -> 0 | AN10: 0 | AO10: -2528.551049 | AP10: El og varmeproduktion | AQ10: ELOGVARME | AR10: TS | AT10: 1289.727235 | AU10: =AT10/AO10*-1 -> 0.5100657292 | AZ10: 0 | BI10: =BJ10+BK10+BN10+BO10+BP10 -> 0 | BK10: 0 | BR10: =SUM(BS10:CC10) -> 0 | CD10: =SUM('Beregning for konvertering'!B4:Q4)*0.0000036 -> 371.9893019 | CE10: =SUM('Beregning for konvertering'!B6:Q6)*0.0000036 -> 917.7379327 | CI10: =(AT10+AO10)*-1 -> 1238.823814 | CJ10: =-('e2g-format 2019'!C10*Emissionsfaktorer!$B$5+'e2g-format 2019'!D10*Emissionsfaktorer!$B$7+'e2g-format 2019'!E10*Emissionsfaktorer!$B$8+X10*Emissionsfaktorer!$B$6) -> 96.37377257
C11: =C12+C13 -> 0 | D11: 0 | E11: 0 | F11: 0 | G11: 0 | H11: 0 | I11: 0 | J11: 0 | K11: 0 | L11: 0 | M11: 0 | N11: 0 | O11: -14.16 | P11: 0 | Q11: -14.16 | R11: 0 | S11: -14.16 | T11: 0 | U11: 0 | V11: 0 | W11: 0 | X11: =SUM(Y11:AI11) -> 0 | Y11: 0 | Z11: 0 | AA11: 0 | AB11: 0 | AC11: 0 | AD11: 0 | AE11: 0 | AF11: 0 | AG11: 0 | AH11: 0 | AI11: 0 | AJ11: 0 | AK11: 0 | AL11: 0 | AM11: 0 | AN11: 0 | AO11: -14.16 | AP11: Vindmøller | AQ11: VIND | AR11: TS | AS11: ='Størrelse på strømme'!#REF! ->  | AT11: 14.16 | AW11: =AW12+AW13 -> 0 | AX11: =AX12+AX13 -> 0 | AY11: =AY12+AY13 -> 0 | AZ11: 0 | BA11: =BA12+BA13 -> 0 | BB11: =BB12+BB13 -> 0 | BC11: =BC12+BC13 -> 0 | BD11: =BD12+BD13 -> 0 | BE11: =BE12+BE13 -> 0 | BF11: =BF12+BF13 -> 0 | BG11: =BG12+BG13 -> 0 | BH11: =BH12+BH13 -> 0 | BI11: 0 | BJ11: =BJ12+BJ13 -> 0 | BK11: 0 | BL11: =BL12+BL13 -> 0 | BM11: =BM12+BM13 -> 0 | BN11: =BN12+BN13 -> 0 | BO11: =BO12+BO13 -> 0 | BP11: =BP12+BP13 -> 0 | BQ11: =BQ12+BQ13 -> 0 | BR11: 0 | BS11: =BS12+BS13 -> 0 | BT11: =BT12+BT13 -> 0 | BU11: =BU12+BU13 -> 0 | BV11: =BV12+BV13 -> 0 | BW11: =BW12+BW13 -> 0 | BX11: =BX12+BX13 -> 0 | BY11: =BY12+BY13 -> 0 | BZ11: =BZ12+BZ13 -> 0 | CA11: =CA12+CA13 -> 0 | CB11: =CB12+CB13 -> 0 | CC11: =CC12+CC13 -> 0 | CD11: =CD12+CD13 -> 14.16 | CE11: =CE12+CE13 -> 0 | CF11: =CF12+CF13 -> 0 | CG11: =CG12+CG13 -> 0 | CH11: =CH12+CH13 -> 0 | CI11: 0 | CJ11: 0
F12: 0 | O12: =P12+Q12+T12+U12+V12 -> 0 | Q12: 0 | R12: =CD12*-1 -> 0 | X12: =SUM(Y12:AI12) -> 0 | AN12: 0 | AO12: 0 | AP12: Kystvindmøller | AQ12: KYST | AR12: VIND | AT12: 0 | AZ12: 0 | BI12: =BJ12+BK12+BN12+BO12+BP12 -> 0 | BK12: 0 | BR12: =SUM(BS12:CC12) -> 0 | CD12: =Energi!B34*0.0000036 -> 0 | CI12: =(AT12+AO12)*-1 -> 0 | CJ12: =-('e2g-format 2019'!C12*Emissionsfaktorer!$B$5+'e2g-format 2019'!D12*Emissionsfaktorer!$B$7+'e2g-format 2019'!E12*Emissionsfaktorer!$B$8+X12*Emissionsfaktorer!$B$6) -> 0
F13: 0 | O13: =P13+Q13+T13+U13+V13 -> -14.16 | Q13: -14.16 | S13: =CD13*-1 -> -14.16 | X13: =SUM(Y13:AI13) -> 0 | AN13: 0 | AO13: -14.16 | AP13: Landvindmøller | AQ13: LAND | AR13: VIND | AT13: 14.16 | AZ13: 0 | BI13: =BJ13+BK13+BN13+BO13+BP13 -> 0 | BK13: 0 | BR13: =SUM(BS13:CC13) -> 0 | CD13: =Energi!B35*0.0000036 -> 14.16 | CI13: 0 | CJ13: =-('e2g-format 2019'!C13*Emissionsfaktorer!$B$5+'e2g-format 2019'!D13*Emissionsfaktorer!$B$7+'e2g-format 2019'!E13*Emissionsfaktorer!$B$8+X13*Emissionsfaktorer!$B$6) -> 0
F14: 0 | O14: =P14+Q14+T14+U14+V14 -> -18.9108 | P14: =CD14*-1 -> -18.9108 | Q14: 0 | X14: =SUM(Y14:AI14) -> 0 | AN14: 0 | AO14: -18.9108 | AP14: Solceller | AQ14: SOLSTR | AR14: TS | AT14: 18.9108 | AZ14: 0 | BI14: =BJ14+BK14+BN14+BO14+BP14 -> 0 | BK14: 0 | BR14: =SUM(BS14:CC14) -> 0 | CD14: =Energi!B36*0.0000036 -> 18.9108 | CI14: =(AT14+AO14)*-1 -> 0 | CJ14: =-('e2g-format 2019'!C14*Emissionsfaktorer!$B$5+'e2g-format 2019'!D14*Emissionsfaktorer!$B$7+'e2g-format 2019'!E14*Emissionsfaktorer!$B$8+X14*Emissionsfaktorer!$B$6) -> 0
C15: =-'Beregning for konvertering'!D22 -> -134.2519722 | D15: =-'Beregning for konvertering'!B22 -> 0 | E15: =-'Beregning for konvertering'!E22 -> -10.82923414 | F15: -76.71852734 | G15: =-'Beregning for konvertering'!F22 -> 0 | H15: =-'Beregning for konvertering'!G22 -> -62.35299994 | I15: =-'Beregning for konvertering'!H22 -> 0 | J15: =-'Beregning for konvertering'!I22 -> 0 | K15: =-'Beregning for konvertering'!J22 -> -0.08715093554 | L15: =-'Beregning for konvertering'!M22 -> -1.042645847 | M15: =-'Beregning for konvertering'!L22 -> 0 | N15: =-'Beregning for konvertering'!K22 -> -13.23573061 | O15: 0 | P15: =-'Beregning for konvertering'!O22 -> 0 | Q15: =R15+S15 -> 0 | X15: =-'Beregning for konvertering'!C22 -> 0 | AJ15: =-'Beregning for konvertering'!P22 -> 0 | AL15: =-'Beregning for konvertering'!N22 -> 0 | AN15: 0 | AO15: -221.7997336 | AP15: Fjernvarmekedler | AQ15: KEDLER | AR15: TS | AT15: 199.6197603 | AU15: =AT15/AO15*-1 -> 0.9 | AZ15: 0 | BI15: 0 | BK15: =BL15+BM15 -> 0 | BR15: 0 | CE15: =SUM('Beregning for konvertering'!B7:Q7)*0.0000036 -> 199.6197603 | CI15: =(AT15+AO15)*-1 -> 22.17997336 | CJ15: =-('e2g-format 2019'!C15*Emissionsfaktorer!$B$5+'e2g-format 2019'!D15*Emissionsfaktorer!$B$7+'e2g-format 2019'!E15*Emissionsfaktorer!$B$8+X15*Emissionsfaktorer!$B$6) -> 8.45372574
C16: =-'Beregning for konvertering'!D23 -> 0 | D16: =-'Beregning for konvertering'!B23 -> 0 | E16: =-'Beregning for konvertering'!E23 -> 0 | F16: 0 | G16: =-'Beregning for konvertering'!F23 -> 0 | H16: =-'Beregning for konvertering'!G23 -> 0 | I16: =-'Beregning for konvertering'!H23 -> 0 | J16: =-'Beregning for konvertering'!I23 -> 0 | K16: =-'Beregning for konvertering'!J23 -> 0 | L16: =-'Beregning for konvertering'!M23 -> 0 | M16: =-'Beregning for konvertering'!L23 -> 0 | N16: =-'Beregning for konvertering'!K23 -> 0 | O16: 0 | P16: =-'Beregning for konvertering'!O23 -> 0 | Q16: 0 | X16: =-'Beregning for konvertering'!C23 -> 0 | AJ16: =-'Beregning for konvertering'!P23 -> 0 | AL16: =-'Beregning for konvertering'!N23 -> -213.758603 | AN16: 0 | AO16: -213.758603 | AP16: Anden varmeproduktion | AQ16: ANDENV | AR16: TS | AT16: 213.758603 | AU16: =AT16/AO16*-1 -> 1 | AZ16: 0 | BI16: 0 | BK16: 0 | BR16: 0 | CE16: =SUM('Beregning for konvertering'!B8:Q8)*0.0000036 -> 213.758603 | CI16: =(AT16+AO16)*-1 -> 2.842170943e-14 | CJ16: =-('e2g-format 2019'!C16*Emissionsfaktorer!$B$5+'e2g-format 2019'!D16*Emissionsfaktorer!$B$7+'e2g-format 2019'!E16*Emissionsfaktorer!$B$8+X16*Emissionsfaktorer!$B$6) -> 0
F17: 0 | O17: 0 | Q17: 0 | X17: 0 | AN17: 0 | AO17: 0 | AP17: Raffinaderi | AQ17: RAF | AR17: TS | AT17: 0 | AZ17: 0 | BI17: 0 | BK17: 0 | BR17: 0 | CI17: =(AT17+AO17)*-1 -> 0 | CJ17: =-('e2g-format 2019'!C17*Emissionsfaktorer!$B$5+'e2g-format 2019'!D17*Emissionsfaktorer!$B$7+'e2g-format 2019'!E17*Emissionsfaktorer!$B$8+X17*Emissionsfaktorer!$B$6) -> 0
F18: 0 | O18: =P18+Q18+T18+U18+V18 -> 0 | Q18: =R18+S18 -> 0 | X18: =BR18*-1 -> -3315.505518 | Y18: =BS18*-1 -> 0 | Z18: =BT18*-1 -> 0 | AA18: 0 | AB18: -505.2886793 | AC18: 0 | AD18: -110.833324 | AE18: -1542.55033 | AF18: 0 | AG18: 0 | AH18: 0 | AI18: 0 | AJ18: =CD18*-1*(1+Energi!B29/100) -> -1835.190393 | AK18: =-SUM('Beregning for konvertering'!B3:Q3)*0.0000036 -> -1331.116296 | AN18: 0 | AO18: -6481.812207 | AP18: Transport af el, fjernvarme, mv. | AQ18: TRAS | AS18: ='Størrelse på strømme'!E38 -> 129.2805124 | AT18: 6164.995038 | AZ18: 0 | BI18: =BJ18+BK18+BN18+BO18+BP18 -> 0 | BK18: =BL18+BM18 -> 0 | BR18: =X20*-1 -> 3315.505518 | BS18: 0 | BT18: 0 | BU18: 0 | BV18: 505.2886793 | BW18: 0 | BX18: 110.833324 | BY18: 1542.55033 | BZ18: 0 | CA18: 0 | CB18: 0 | CC18: 0 | CD18: 1740.22594 | CE18: 1109.26358 | CI18: =(AT18+AO18)*-1 -> 316.8171691
F19: 0 | O19: =P19+Q19+T19+U19+V19 -> 0 | Q19: =R19+S19 -> 0 | X19: =SUM(Y19:AI19) -> 0 | AN19: 0 | AO19: 0 | AP19: Indgang ikke-nettilsluttet VE | AQ19: TLP2 | AT19: 0 | AZ19: 0 | BI19: =BJ19+BK19+BN19+BO19+BP19 -> 0 | BK19: =BL19+BM19 -> 0 | BR19: =SUM(BS19:CC19) -> 0
C20: =SUM(C21:C22,C48,C61,C69,C84,C99) -> -1212.274702 | D20: -176 | E20: -31 | F20: -859 | G20: 0 | H20: 0 | I20: 0 | J20: 0 | K20: 0 | L20: 0 | M20: 0 | N20: 0 | O20: -10 | P20: =SUM(P21:P22,P48,P61,P69,P84,P99) -> -10 | Q20: =SUM(Q21:Q22,Q48,Q61,Q69,Q84,Q99) -> 0 | R20: =SUM(R21:R22,R48,R61,R69,R84,R99) -> 0 | S20: =SUM(S21:S22,S48,S61,S69,S84,S99) -> 0 | T20: =SUM(T21:T22,T48,T61,T69,T84,T99) -> 0 | U20: =SUM(U21:U22,U48,U61,U69,U84,U99) -> 0 | V20: =SUM(V21:V22,V48,V61,V69,V84,V99) -> 0 | W20: =SUM(W21:W22,W48,W61,W69,W84,W99) -> 0 | X20: =SUM(X21:X22,X48,X61,X69,X84,X99) -> -3315.505518 | Y20: =SUM(Y21:Y22,Y48,Y61,Y69,Y84,Y99) -> 0 | Z20: =SUM(Z21:Z22,Z48,Z61,Z69,Z84,Z99) -> 0 | AA20: =SUM(AA21:AA22,AA48,AA61,AA69,AA84,AA99) -> 0 | AB20: =SUM(AB21:AB22,AB48,AB61,AB69,AB84,AB99) -> -505.2886793 | AC20: 0 | AD20: =SUM(AD21:AD22,AD48,AD61,AD69,AD84,AD99) -> -110.833324 | AE20: =SUM(AE21:AE22,AE48,AE61,AE69,AE84,AE99) -> -1542.55033 | AF20: =SUM(AF21:AF22,AF48,AF61,AF69,AF84,AF99) -> 0 | AG20: =SUM(AG21:AG22,AG48,AG61,AG69,AG84,AG99) -> 0 | AH20: =SUM(AH21:AH22,AH48,AH61,AH69,AH84,AH99) -> 0 | AI20: =SUM(AI21:AI22,AI48,AI61,AI69,AI84,AI99) -> 0 | AJ20: =SUM(AJ21:AJ22,AJ48,AJ61,AJ69,AJ84,AJ99) -> -1740.22594 | AK20: =SUM(AK21:AK22,AK48,AK61,AK69,AK84,AK99) -> -1109.26358 | AL20: =SUM(AL21:AL22,AL48,AL61,AL69,AL84,AL99) -> 0 | AM20: =SUM(AM21:AM22,AM48,AM61,AM69,AM84,AM99) -> 0 | AN20: 0 | AO20: -8453.26974 | AP20: Afgang fra energisystemet | AQ20: A | AS20: ='Størrelse på strømme'!E34 -> 234.8133755 | AT20: 6004.71459 | AW20: =SUM(AW21:AW22,AW48,AW61,AW69,AW84,AW99) -> 0 | AX20: =SUM(AX21:AX22,AX48,AX61,AX69,AX84,AX99) -> 0 | AY20: 0 | AZ20: 0 | BA20: 0 | BB20: 0 | BC20: 0 | BD20: 0 | BE20: 0 | BF20: 0 | BG20: 0 | BH20: 0 | BI20: 0 | BJ20: 0 | BK20: 0 | BL20: 0 | BM20: 0 | BN20: 0 | BO20: 0 | BP20: 0 | BQ20: 0 | BR20: 0 | BS20: 0 | BT20: 0 | BU20: 0 | BV20: 0 | BW20: 0 | BX20: 0 | BY20: 0 | BZ20: 0 | CA20: 0 | CB20: 0 | CC20: 0 | CD20: 0 | CE20: 0 | CF20: 0 | CG20: 6004.71459 | CH20: 0 | CI20: 1785.735689 | CJ20: 331.86649
F21: 0 | O21: =P21+Q21+T21+U21+V21 -> 0 | Q21: =R21+S21 -> 0 | X21: =SUM(Y21:AI21) -> 0 | AJ21: =IF(CD10+CD11+CD14+(1+Energi!B29/100)*(AJ22+AJ48+AJ61+AJ69+AJ84)>0,(CD10+CD11+CD14+(1+Energi!B29/100)*(AJ22+AJ48+AJ61+AJ69+AJ84))*-1,0) -> 0 | AN21: 0 | AO21: 0 | AP21: Netto eksport/lager | AQ21: AES | AR21: A | AT21: 0 | AZ21: 0 | BI21: =BJ21+BK21+BN21+BO21+BP21 -> 0 | BK21: =BL21+BM21 -> 0 | BR21: =SUM(BS21:CC21) -> 0 | CI21: =(AT21+AO21)*-1 -> 0 | CJ21: =AJ21*Emissionsfaktorer!B2+AK21*Emissionsfaktorer!B4 -> 0
C22: =C23+C30+C37+C40+C41+C42 -> 0 | D22: 0 | E22: 0 | F22: 0 | G22: 0 | H22: 0 | I22: 0 | J22: 0 | K22: 0 | L22: 0 | M22: 0 | N22: 0 | O22: 0 | P22: 0 | Q22: 0 | R22: 0 | S22: 0 | T22: 0 | U22: 0 | V22: 0 | W22: 0 | X22: -2158.672334 | Y22: 0 | Z22: 0 | AA22: 0 | AB22: -505.2886793 | AC22: 0 | AD22: -110.833324 | AE22: -1542.55033 | AF22: 0 | AG22: 0 | AH22: 0 | AI22: 0 | AJ22: -2.311708908 | AK22: 0 | AL22: 0 | AM22: =AM23+AM30+AM37+AM40+AM41+AM42 -> 0 | AN22: 0 | AO22: -2160.984043 | AP22: Transport | AQ22: AT | AR22: A | AS22: ='Størrelse på strømme'!E22 -> 102.9045629 | AT22: 648.2952128 | AU22: 0.3 | AW22: =AW23+AW30+AW37+AW40+AW41+AW42 -> 0 | AX22: 0 | AY22: 0 | AZ22: 0 | BA22: 0 | BB22: 0 | BC22: 0 | BD22: 0 | BE22: 0 | BF22: 0 | BG22: 0 | BH22: 0 | BI22: 0 | BJ22: 0 | BK22: 0 | BL22: 0 | BM22: 0 | BN22: 0 | BO22: 0 | BP22: 0 | BQ22: 0 | BR22: 0 | BS22: 0 | BT22: 0 | BU22: 0 | BV22: 0 | BW22: 0 | BX22: 0 | BY22: 0 | BZ22: 0 | CA22: 0 | CB22: 0 | CC22: 0 | CD22: 0 | CE22: 0 | CF22: 0 | CG22: =AO22*AU22*-1 -> 648.2952128 | CH22: 0 | CI22: 1512.68883 | CJ22: 159.7417527
C23: =SUM(C24:C29) -> 0 | D23: 0 | E23: 0 | F23: 0 | G23: 0 | H23: 0 | I23: 0 | J23: 0 | K23: 0 | L23: 0 | M23: 0 | N23: 0 | O23: =P23+Q23+T23+U23+V23 -> 0 | P23: 0 | Q23: =R23+S23 -> 0 | R23: 0 | S23: 0 | T23: 0 | U23: 0 | V23: 0 | W23: 0 | X23: =SUM(Y23:AI23) -> -1885.194246 | Y23: 0 | Z23: 0 | AA23: 0 | AB23: -505.2886793 | AC23: 0 | AD23: 0 | AE23: -1379.905567 | AF23: 0 | AG23: 0 | AH23: 0 | AI23: 0 | AJ23: 0 | AK23: 0 | AL23: 0 | AM23: =SUM(AM24:AM29) -> 0 | AN23: 0 | AO23: -1885.194246 | AP23: Vejtrafik | AQ23: ATV | AR23: AT | AS23: ='Størrelse på strømme'!E24 -> 89.77115457 | AT23: 565.5582738 | AU23: 0.3 | AW23: =SUM(AW24:AW29) -> 0 | AX23: 0 | AY23: 0 | AZ23: 0 | BA23: 0 | BB23: 0 | BC23: 0 | BD23: 0 | BE23: 0 | BF23: 0 | BG23: 0 | BH23: 0 | BI23: =BJ23+BK23+BN23+BO23+BP23 -> 0 | BJ23: 0 | BK23: =BL23+BM23 -> 0 | BL23: 0 | BM23: 0 | BN23: 0 | BO23: 0 | BP23: 0 | BQ23: 0 | BR23: =SUM(BS23:CC23) -> 0 | BS23: 0 | BT23: 0 | BU23: 0 | BV23: 0 | BW23: 0 | BX23: 0 | BY23: 0 | BZ23: 0 | CA23: 0 | CB23: 0 | CC23: 0 | CD23: 0 | CE23: 0 | CF23: 0 | CG23: 565.5582738 | CH23: 0 | CI23: 1319.635972 | CJ23: 139.5043742
F24: 0 | O24: =P24+Q24+T24+U24+V24 -> 0 | Q24: =R24+S24 -> 0 | X24: =SUM(Y24:AI24) -> -1294.444725 | AB24: =(Transport!B17)*-0.000001 -> -493.2379503 | AE24: =(Transport!B16)*-0.000001 -> -801.206775 | AN24: 0 | AO24: -1294.444725 | AP24: Personbil | AQ24: PERSON | AR24: ATV | AT24: 388.3334176 | AU24: 0.3 | AZ24: 0 | BI24: =BJ24+BK24+BN24+BO24+BP24 -> 0 | BK24: =BL24+BM24 -> 0 | BR24: =SUM(BS24:CC24) -> 0 | CG24: 388.3334176 | CI24: 906.1113077 | CJ24: =-('e2g-format 2019'!C24*Emissionsfaktorer!$B$5+'e2g-format 2019'!D24*Emissionsfaktorer!$B$7+'e2g-format 2019'!E24*Emissionsfaktorer!$B$8+X24*Emissionsfaktorer!$B$6) -> 95.78890968
F25: 0 | O25: =P25+Q25+T25+U25+V25 -> 0 | Q25: =R25+S25 -> 0 | X25: =SUM(Y25:AI25) -> -499.4884116 | AB25: 0 | AE25: =(Transport!B18)*-0.000001 -> -499.4884116 | AN25: 0 | AO25: -499.4884116 | AP25: Lastbil | AQ25: LAST | AR25: ATV | AT25: 149.8465235 | AU25: 0.3 | AZ25: 0 | BI25: =BJ25+BK25+BN25+BO25+BP25 -> 0 | BK25: =BL25+BM25 -> 0 | BR25: =SUM(BS25:CC25) -> 0 | CG25: 149.8465235 | CI25: 349.6418881 | CJ25: =-('e2g-format 2019'!C25*Emissionsfaktorer!$B$5+'e2g-format 2019'!D25*Emissionsfaktorer!$B$7+'e2g-format 2019'!E25*Emissionsfaktorer!$B$8+X25*Emissionsfaktorer!$B$6) -> 36.96214246
F26: 0 | O26: 0 | Q26: 0 | X26: -57.63098699 | AB26: 0 | AE26: =(Transport!B19)*-0.000001 -> -57.63098699 | AN26: 0 | AO26: -57.63098699 | AP26: Varebil | AQ26: VARE | AR26: ATV | AT26: 17.2892961 | AU26: 0.3 | AZ26: 0 | BI26: 0 | BK26: 0 | BR26: 0 | CG26: 17.2892961 | CI26: 40.3416909 | CJ26: =-('e2g-format 2019'!C26*Emissionsfaktorer!$B$5+'e2g-format 2019'!D26*Emissionsfaktorer!$B$7+'e2g-format 2019'!E26*Emissionsfaktorer!$B$8+X26*Emissionsfaktorer!$B$6) -> 4.264693038
F27: 0 | O27: 0 | Q27: 0 | X27: 0 | AB27: =(Transport!B20)*-0.000001 -> 0 | AE27: 0 | AN27: 0 | AO27: 0 | AP27: Knallert | AQ27: KNAL | AR27: ATV | AT27: 0 | AU27: 0.3 | AZ27: 0 | BI27: 0 | BK27: 0 | BR27: 0 | CG27: 0 | CI27: 0 | CJ27: =-('e2g-format 2019'!C27*Emissionsfaktorer!$B$5+'e2g-format 2019'!D27*Emissionsfaktorer!$B$7+'e2g-format 2019'!E27*Emissionsfaktorer!$B$8+X27*Emissionsfaktorer!$B$6) -> 0
F28: 0 | O28: 0 | Q28: 0 | X28: -12.05072897 | AB28: =(Transport!B21)*-0.000001 -> -12.05072897 | AE28: 0 | AN28: 0 | AO28: -12.05072897 | AP28: Motorcykel | AQ28: MC | AR28: ATV | AT28: 3.615218692 | AU28: 0.3 | AZ28: 0 | BI28: 0 | BK28: 0 | BR28: 0 | CG28: 3.615218692 | CI28: 8.43551028 | CJ28: =-('e2g-format 2019'!C28*Emissionsfaktorer!$B$5+'e2g-format 2019'!D28*Emissionsfaktorer!$B$7+'e2g-format 2019'!E28*Emissionsfaktorer!$B$8+X28*Emissionsfaktorer!$B$6) -> 0.8917539439
F29: 0 | O29: 0 | Q29: 0 | X29: -21.57939311 | AB29: 0 | AE29: =(Transport!B22)*-0.000001 -> -21.57939311 | AN29: 0 | AO29: -21.57939311 | AP29: Bus | AQ29: BUS | AR29: ATV | AT29: 6.473817933 | AU29: 0.3 | AZ29: 0 | BI29: 0 | BK29: 0 | BR29: 0 | CG29: 6.473817933 | CI29: 15.10557518 | CJ29: =-('e2g-format 2019'!C29*Emissionsfaktorer!$B$5+'e2g-format 2019'!D29*Emissionsfaktorer!$B$7+'e2g-format 2019'!E29*Emissionsfaktorer!$B$8+X29*Emissionsfaktorer!$B$6) -> 1.59687509
C30: =SUM(C31:C36) -> 0 | D30: 0 | E30: 0 | F30: 0 | G30: 0 | H30: 0 | I30: 0 | J30: 0 | K30: 0 | L30: 0 | M30: 0 | N30: 0 | O30: =P30+Q30+T30+U30+V30 -> 0 | P30: 0 | Q30: =R30+S30 -> 0 | R30: 0 | S30: 0 | T30: 0 | U30: 0 | V30: 0 | W30: 0 | X30: =SUM(Y30:AI30) -> -47.33716983 | Y30: 0 | Z30: 0 | AA30: 0 | AB30: 0 | AC30: 0 | AD30: 0 | AE30: -47.33716983 | AF30: 0 | AG30: 0 | AH30: 0 | AI30: 0 | AJ30: -2.311708908 | AK30: 0 | AL30: 0 | AM30: =SUM(AM31:AM36) -> 0 | AN30: 0 | AO30: -49.64887874 | AP30: Tog | AQ30: ATT | AR30: AT | AS30: ='Størrelse på strømme'!E26 -> 2.364793143 | AT30: 14.89466362 | AU30: 0.3 | AW30: =SUM(AW31:AW36) -> 0 | AX30: 0 | AY30: 0 | AZ30: 0 | BA30: 0 | BB30: 0 | BC30: 0 | BD30: 0 | BE30: 0 | BF30: 0 | BG30: 0 | BH30: 0 | BI30: =BJ30+BK30+BN30+BO30+BP30 -> 0 | BJ30: 0 | BK30: =BL30+BM30 -> 0 | BL30: 0 | BM30: 0 | BN30: 0 | BO30: 0 | BP30: 0 | BQ30: 0 | BR30: =SUM(BS30:CC30) -> 0 | BS30: 0 | BT30: 0 | BU30: 0 | BV30: 0 | BW30: 0 | BX30: 0 | BY30: 0 | BZ30: 0 | CA30: 0 | CB30: 0 | CC30: 0 | CD30: 0 | CE30: 0 | CF30: 0 | CG30: 14.89466362 | CH30: 0 | CI30: 34.75421512 | CJ30: 3.502950568
F31: 0 | O31: 0 | Q31: 0 | X31: -12.08814041 | AE31: =Transport!C32*Transport!C43*-0.000001 -> -12.08814041 | AJ31: =Transport!C31*Transport!C42*-0.000001 -> -0.3993918732 | AN31: 0 | AO31: -12.48753228 | AP31: Regionaltog | AQ31: REG | AR31: ATT | AT31: 3.746259684 | AU31: 0.3 | AZ31: 0 | BI31: 0 | BK31: 0 | BR31: 0 | CG31: 3.746259684 | CI31: 8.741272597 | CJ31: =-('e2g-format 2019'!C31*Emissionsfaktorer!$B$5+'e2g-format 2019'!D31*Emissionsfaktorer!$B$7+'e2g-format 2019'!E31*Emissionsfaktorer!$B$8+X31*Emissionsfaktorer!$B$6) -> 0.8945223902
F32: 0 | O32: 0 | Q32: 0 | X32: -20.52594376 | AE32: =Transport!C34*Transport!C45*-0.000001 -> -20.52594376 | AJ32: =Transport!C33*Transport!C44*-0.000001 -> -0.6596653845 | AN32: 0 | AO32: -21.18560915 | AP32: Intercitytog | AQ32: INTERC | AR32: ATT | AT32: 6.355682744 | AU32: 0.3 | AZ32: 0 | BI32: 0 | BK32: 0 | BR32: 0 | CG32: 6.355682744 | CI32: 14.8299264 | CJ32: =-('e2g-format 2019'!C32*Emissionsfaktorer!$B$5+'e2g-format 2019'!D32*Emissionsfaktorer!$B$7+'e2g-format 2019'!E32*Emissionsfaktorer!$B$8+X32*Emissionsfaktorer!$B$6) -> 1.518919838
F33: 0 | O33: 0 | Q33: 0 | X33: -14.72308566 | AE33: =Transport!C36*Transport!C47*-0.000001 -> -14.72308566 | AJ33: =Transport!C35*Transport!C46*-0.000001 -> -1.25265165 | AN33: 0 | AO33: -15.97573731 | AP33: Lyntog | AQ33: LYN | AR33: ATT | AT33: 4.792721194 | AU33: 0.3 | AZ33: 0 | BI33: 0 | BK33: 0 | BR33: 0 | CG33: 4.792721194 | CI33: 11.18301612 | CJ33: =-('e2g-format 2019'!C33*Emissionsfaktorer!$B$5+'e2g-format 2019'!D33*Emissionsfaktorer!$B$7+'e2g-format 2019'!E33*Emissionsfaktorer!$B$8+X33*Emissionsfaktorer!$B$6) -> 1.089508339
F34: 0 | O34: 0 | Q34: 0 | X34: 0 | AE34: =Transport!C37*Transport!C48*-0.000001 -> 0 | AN34: 0 | AO34: 0 | AP34: Lokalbane | AQ34: LOKAL | AR34: ATT | AT34: 0 | AU34: 0.3 | AZ34: 0 | BI34: 0 | BK34: 0 | BR34: 0 | CG34: 0 | CI34: 0 | CJ34: =-('e2g-format 2019'!C34*Emissionsfaktorer!$B$5+'e2g-format 2019'!D34*Emissionsfaktorer!$B$7+'e2g-format 2019'!E34*Emissionsfaktorer!$B$8+X34*Emissionsfaktorer!$B$6) -> 0
F35: 0 | O35: 0 | Q35: 0 | X35: 0 | AJ35: =Transport!C38*Transport!C49*-0.000001 -> 0 | AN35: 0 | AO35: 0 | AP35: S-tog | AQ35: STOG | AR35: ATT | AT35: 0 | AU35: 0.3 | AZ35: 0 | BI35: 0 | BK35: 0 | BR35: 0 | CG35: 0 | CI35: 0 | CJ35: =-('e2g-format 2019'!C35*Emissionsfaktorer!$B$5+'e2g-format 2019'!D35*Emissionsfaktorer!$B$7+'e2g-format 2019'!E35*Emissionsfaktorer!$B$8+X35*Emissionsfaktorer!$B$6) -> 0
F36: 0 | O36: 0 | Q36: 0 | X36: 0 | AJ36: =Transport!B58/-1000 -> 0 | AN36: 0 | AO36: 0 | AP36: Metro | AQ36: METRO | AR36: ATT | AT36: 0 | AU36: 0.3 | AZ36: 0 | BI36: 0 | BK36: 0 | BR36: 0 | CG36: 0 | CI36: 0 | CJ36: =-('e2g-format 2019'!C36*Emissionsfaktorer!$B$5+'e2g-format 2019'!D36*Emissionsfaktorer!$B$7+'e2g-format 2019'!E36*Emissionsfaktorer!$B$8+X36*Emissionsfaktorer!$B$6) -> 0
C37: =C38+C39 -> 0 | D37: 0 | E37: 0 | F37: 0 | G37: 0 | H37: 0 | I37: 0 | J37: 0 | K37: 0 | L37: 0 | M37: 0 | N37: 0 | O37: =P37+Q37+T37+U37+V37 -> 0 | P37: 0 | Q37: =R37+S37 -> 0 | R37: 0 | S37: 0 | T37: 0 | U37: 0 | V37: 0 | W37: 0 | X37: =SUM(Y37:AI37) -> -110.833324 | Y37: 0 | Z37: 0 | AA37: 0 | AB37: 0 | AC37: 0 | AD37: -110.833324 | AE37: 0 | AF37: 0 | AG37: 0 | AH37: 0 | AI37: 0 | AJ37: 0 | AK37: 0 | AL37: 0 | AM37: =AM38+AM39 -> 0 | AN37: 0 | AO37: =SUM(C37:F37,O37,W37,X37,AJ37:AL37) -> -110.833324 | AP37: Fly | AQ37: ATF | AR37: AT | AS37: ='Størrelse på strømme'!E28 -> 2.995495242 | AT37: =SUM(AW37:AZ37,BI37,BQ37,BR37,CD37:CG37) -> 33.24999719 | AU37: 0.3 | AW37: =AW38+AW39 -> 0 | AX37: 0 | AY37: 0 | AZ37: 0 | BA37: 0 | BB37: 0 | BC37: 0 | BD37: 0 | BE37: 0 | BF37: 0 | BG37: 0 | BH37: 0 | BI37: =BJ37+BK37+BN37+BO37+BP37 -> 0 | BJ37: 0 | BK37: =BL37+BM37 -> 0 | BL37: 0 | BM37: 0 | BN37: 0 | BO37: 0 | BP37: 0 | BQ37: 0 | BR37: =SUM(BS37:CC37) -> 0 | BS37: 0 | BT37: 0 | BU37: 0 | BV37: 0 | BW37: 0 | BX37: 0 | BY37: 0 | BZ37: 0 | CA37: 0 | CB37: 0 | CC37: 0 | CD37: 0 | CE37: 0 | CF37: 0 | CG37: 33.24999719 | CH37: 0 | CI37: 77.58332678 | CJ37: 8.201665973
F38: 0 | O38: 0 | Q38: 0 | X38: -3.233437335 | AD38: =-Transport!C67/1000 -> -3.233437335 | AN38: 0 | AO38: -3.233437335 | AP38: Indenrigs | AQ38: INDEN | AR38: ATF | AT38: 0.9700312004 | AU38: 0.3 | AZ38: 0 | BI38: 0 | BK38: 0 | BR38: 0 | CG38: 0.9700312004 | CI38: 2.263406134 | CJ38: =-('e2g-format 2019'!C38*Emissionsfaktorer!$B$5+'e2g-format 2019'!D38*Emissionsfaktorer!$B$7+'e2g-format 2019'!E38*Emissionsfaktorer!$B$8+X38*Emissionsfaktorer!$B$6) -> 0.2392743628
F39: 0 | O39: 0 | Q39: 0 | X39: -107.5998866 | AD39: =-Transport!C68/1000 -> -107.5998866 | AN39: 0 | AO39: -107.5998866 | AP39: Udenrigs | AQ39: UDEN | AR39: ATF | AT39: 32.27996599 | AU39: 0.3 | AZ39: 0 | BI39: 0 | BK39: 0 | BR39: 0 | CG39: 32.27996599 | CI39: 75.31992064 | CJ39: =-('e2g-format 2019'!C39*Emissionsfaktorer!$B$5+'e2g-format 2019'!D39*Emissionsfaktorer!$B$7+'e2g-format 2019'!E39*Emissionsfaktorer!$B$8+X39*Emissionsfaktorer!$B$6) -> 7.962391611
F40: 0 | O40: =P40+Q40+T40+U40+V40 -> 0 | Q40: =R40+S40 -> 0 | X40: =SUM(Y40:AI40) -> 0 | AE40: =-Transport!B76/1000 -> 0 | AN40: 0 | AO40: 0 | AP40: Færge | AQ40: ATFÆRGE | AR40: AT | AT40: 0 | AU40: 0.3 | AZ40: 0 | BI40: =BJ40+BK40+BN40+BO40+BP40 -> 0 | BK40: =BL40+BM40 -> 0 | BR40: =SUM(BS40:CC40) -> 0 | CG40: 0 | CI40: 0 | CJ40: =-('e2g-format 2019'!C40*Emissionsfaktorer!$B$5+'e2g-format 2019'!D40*Emissionsfaktorer!$B$7+'e2g-format 2019'!E40*Emissionsfaktorer!$B$8+X40*Emissionsfaktorer!$B$6) -> 0
F41: 0 | O41: =P41+Q41+T41+U41+V41 -> 0 | Q41: =R41+S41 -> 0 | X41: =SUM(Y41:AI41) -> -19.24608558 | AE41: =-Transport!B81/1000 -> -19.24608558 | AN41: 0 | AO41: -19.24608558 | AP41: Fiskeri | AQ41: ATFISK | AR41: AT | AT41: 5.773825673 | AU41: 0.3 | AZ41: 0 | BI41: =BJ41+BK41+BN41+BO41+BP41 -> 0 | BK41: =BL41+BM41 -> 0 | BR41: =SUM(BS41:CC41) -> 0 | CG41: 5.773825673 | CI41: 13.4722599 | CJ41: =-('e2g-format 2019'!C41*Emissionsfaktorer!$B$5+'e2g-format 2019'!D41*Emissionsfaktorer!$B$7+'e2g-format 2019'!E41*Emissionsfaktorer!$B$8+X41*Emissionsfaktorer!$B$6) -> 1.424210333
C42: =SUM(C43:C47) -> 0 | D42: 0 | E42: 0 | F42: 0 | G42: 0 | H42: 0 | I42: 0 | J42: 0 | K42: 0 | L42: 0 | M42: 0 | N42: 0 | O42: 0 | P42: 0 | Q42: 0 | R42: 0 | S42: 0 | T42: 0 | U42: 0 | V42: 0 | W42: 0 | X42: -96.06150833 | Y42: 0 | Z42: 0 | AA42: 0 | AB42: 0 | AC42: 0 | AD42: 0 | AE42: -96.06150833 | AF42: 0 | AG42: 0 | AH42: 0 | AI42: 0 | AJ42: 0 | AK42: 0 | AL42: 0 | AM42: =SUM(AM43:AM47) -> 0 | AN42: 0 | AO42: -96.06150833 | AP42: Non-Road | AQ42: ATNONR | AR42: AT | AS42: ='Størrelse på strømme'!E30 -> 3.842460333 | AT42: 28.8184525 | AU42: 0.3 | AW42: =SUM(AW43:AW47) -> 0 | AX42: 0 | AY42: 0 | AZ42: 0 | BA42: 0 | BB42: 0 | BC42: 0 | BD42: 0 | BE42: 0 | BF42: 0 | BG42: 0 | BH42: 0 | BI42: 0 | BJ42: 0 | BK42: 0 | BL42: 0 | BM42: 0 | BN42: 0 | BO42: 0 | BP42: 0 | BQ42: 0 | BR42: 0 | BS42: 0 | BT42: 0 | BU42: 0 | BV42: 0 | BW42: 0 | BX42: 0 | BY42: 0 | BZ42: 0 | CA42: 0 | CB42: 0 | CC42: 0 | CD42: 0 | CE42: 0 | CF42: 0 | CG42: 28.8184525 | CH42: 0 | CI42: 67.24305583 | CJ42: 7.108551617
F43: 0 | O43: 0 | Q43: 0 | X43: -33.19777472 | AE43: =-Transport!B99/1000 -> -33.19777472 | AN43: 0 | AO43: -33.19777472 | AP43: Landbrug | AQ43: LANDBR | AR43: ATNONR | AT43: 9.959332415 | AU43: 0.3 | AZ43: 0 | BI43: 0 | BK43: 0 | BR43: 0 | CG43: 9.959332415 | CI43: 23.2384423 | CJ43: =-('e2g-format 2019'!C43*Emissionsfaktorer!$B$5+'e2g-format 2019'!D43*Emissionsfaktorer!$B$7+'e2g-format 2019'!E43*Emissionsfaktorer!$B$8+X43*Emissionsfaktorer!$B$6) -> 2.456635329
F44: 0 | O44: 0 | Q44: 0 | X44: -53.77225229 | AE44: =-Transport!B100/1000 -> -53.77225229 | AN44: 0 | AO44: -53.77225229 | AP44: Byggeri | AQ44: BYGGERI | AR44: ATNONR | AT44: 16.13167569 | AU44: 0.3 | AZ44: 0 | BI44: 0 | BK44: 0 | BR44: 0 | CG44: 16.13167569 | CI44: 37.6405766 | CJ44: =-('e2g-format 2019'!C44*Emissionsfaktorer!$B$5+'e2g-format 2019'!D44*Emissionsfaktorer!$B$7+'e2g-format 2019'!E44*Emissionsfaktorer!$B$8+X44*Emissionsfaktorer!$B$6) -> 3.979146669
F45: 0 | O45: 0 | Q45: 0 | X45: -0.5951583164 | AE45: =-Transport!B101/1000 -> -0.5951583164 | AN45: 0 | AO45: -0.5951583164 | AP45: Skovbrug | AQ45: SKOV | AR45: ATNONR | AT45: 0.1785474949 | AU45: 0.3 | AZ45: 0 | BI45: 0 | BK45: 0 | BR45: 0 | CG45: 0.1785474949 | CI45: 0.4166108215 | CJ45: =-('e2g-format 2019'!C45*Emissionsfaktorer!$B$5+'e2g-format 2019'!D45*Emissionsfaktorer!$B$7+'e2g-format 2019'!E45*Emissionsfaktorer!$B$8+X45*Emissionsfaktorer!$B$6) -> 0.04404171541
F46: 0 | O46: 0 | Q46: 0 | X46: -2.977136625 | AE46: =-Transport!B102/1000 -> -2.977136625 | AN46: 0 | AO46: -2.977136625 | AP46: Have/park | AQ46: HAVE | AR46: ATNONR | AT46: 0.8931409876 | AU46: 0.3 | AZ46: 0 | BI46: 0 | BK46: 0 | BR46: 0 | CG46: 0.8931409876 | CI46: 2.083995638 | CJ46: =-('e2g-format 2019'!C46*Emissionsfaktorer!$B$5+'e2g-format 2019'!D46*Emissionsfaktorer!$B$7+'e2g-format 2019'!E46*Emissionsfaktorer!$B$8+X46*Emissionsfaktorer!$B$6) -> 0.2203081103
F47: 0 | O47: 0 | Q47: 0 | X47: -5.519186385 | AE47: =-Transport!B103/1000 -> -5.519186385 | AN47: 0 | AO47: -5.519186385 | AP47: Øvrig erhverv | AQ47: ØVRIGERH | AR47: ATNONR | AT47: 1.655755915 | AU47: 0.3 | AZ47: 0 | BI47: 0 | BK47: 0 | BR47: 0 | CG47: 1.655755915 | CI47: 3.863430469 | CJ47: =-('e2g-format 2019'!C47*Emissionsfaktorer!$B$5+'e2g-format 2019'!D47*Emissionsfaktorer!$B$7+'e2g-format 2019'!E47*Emissionsfaktorer!$B$8+X47*Emissionsfaktorer!$B$6) -> 0.4084197925
C48: =SUM(C49:C55) -> -114.7565602 | D48: 0 | E48: 0 | F48: ='Justering af energiregnskab'!E4*-1 -> -360 | G48: 0 | H48: 0 | I48: 0 | J48: 0 | K48: 0 | L48: 0 | M48: 0 | N48: 0 | O48: =P48+Q48+T48+U48+V48 -> -8 | P48: ='Justering af energiregnskab'!E5*-1 -> -8 | Q48: 0 | R48: 0 | S48: 0 | T48: 0 | U48: 0 | V48: ='Justering af energiregnskab'!E6*-1 -> 0 | W48: 0 | X48: ='Energi_bbr varmeforbrug'!B82*3.6/-1000000 -> -21.42941011 | Y48: 0 | Z48: 0 | AA48: 0 | AB48: 0 | AC48: 0 | AD48: 0 | AE48: 0 | AF48: 0 | AG48: 0 | AH48: 0 | AI48: 0 | AJ48: =Energi!B24*-0.0000036 -> -273.3900516 | AK48: -661.7684395 | AL48: 0 | AM48: 0 | AN48: 0 | AO48: -1439.344461 | AP48: Husholdninger | AQ48: AH | AR48: A | AS48: ='Størrelse på strømme'!#REF! ->  | AT48: 776.5249997 | AU48: 1 | AW48: =SUM(AW49:AW55) -> 0 | AX48: =SUM(AX49:AX55) -> 0 | AY48: =SUM(AY49:AY55) -> 0 | AZ48: =SUM(AZ49:AZ55) -> 0 | BA48: =SUM(BA49:BA55) -> 0 | BB48: =SUM(BB49:BB55) -> 0 | BC48: =SUM(BC49:BC55) -> 0 | BD48: =SUM(BD49:BD55) -> 0 | BE48: =SUM(BE49:BE55) -> 0 | BF48: =SUM(BF49:BF55) -> 0 | BG48: =SUM(BG49:BG55) -> 0 | BH48: =SUM(BH49:BH55) -> 0 | BI48: =SUM(BI49:BI55) -> 0 | BJ48: =SUM(BJ49:BJ55) -> 0 | BK48: =SUM(BK49:BK55) -> 0 | BL48: =SUM(BL49:BL55) -> 0 | BM48: =SUM(BM49:BM55) -> 0 | BN48: =SUM(BN49:BN55) -> 0 | BO48: =SUM(BO49:BO55) -> 0 | BP48: =SUM(BP49:BP55) -> 0 | BQ48: =SUM(BQ49:BQ55) -> 0 | BR48: =SUM(BR49:BR55) -> 0 | BS48: =SUM(BS49:BS55) -> 0 | BT48: =SUM(BT49:BT55) -> 0 | BU48: =SUM(BU49:BU55) -> 0 | BV48: =SUM(BV49:BV55) -> 0 | BW48: =SUM(BW49:BW55) -> 0 | BX48: =SUM(BX49:BX55) -> 0 | BY48: =SUM(BY49:BY55) -> 0 | BZ48: =SUM(BZ49:BZ55) -> 0 | CA48: =SUM(CA49:CA55) -> 0 | CB48: =SUM(CB49:CB55) -> 0 | CC48: =SUM(CC49:CC55) -> 0 | CD48: =SUM(CD49:CD55) -> 0 | CE48: =SUM(CE49:CE55) -> 0 | CF48: =SUM(CF49:CF55) -> 0 | CG48: =SUM(CG49:CG55) -> 776.5249997 | CH48: =SUM(CH49:CH55) -> 0 | CI48: =SUM(CI49:CI55) -> 0 | CJ48: =SUM(CJ49:CJ55) -> 6.541123932
C49: =(SUM('Energi_bbr varmeforbrug'!D44:Q44))*-0.0000036 -> 0 | F49: 0 | O49: =P49+Q49+T49+U49+V49 -> 0 | Q49: =R49+S49 -> 0 | X49: =SUM(Y49:AI49) -> 0 | AK49: =(SUM('Energi_bbr varmeforbrug'!D10:Q10))*-0.0000036 -> -1.066968948 | AN49: 0 | AO49: -1.066968948 | AP49: Stuehus til landbrugsejendom | AQ49: STUEHUS | AR49: AH | AT49: 1.066968948 | AU49: 1 | AZ49: 0 | BI49: 0 | BK49: 0 | BR49: 0 | CG49: =AO49*AU49*-1 -> 1.066968948 | CI49: =(AT49+AO49)*-1 -> 0 | CJ49: =-('e2g-format 2019'!C49*Emissionsfaktorer!$B$5+'e2g-format 2019'!D49*Emissionsfaktorer!$B$7+'e2g-format 2019'!E49*Emissionsfaktorer!$B$8+X49*Emissionsfaktorer!$B$6) -> 0
C50: =(SUM('Energi_bbr varmeforbrug'!D45:Q45))*-0.0000036 -> -97.9574616 | F50: 0 | O50: 0 | Q50: 0 | X50: 0 | AK50: =(SUM('Energi_bbr varmeforbrug'!D11:Q11))*-0.0000036 -> -519.9311848 | AN50: 0 | AO50: -617.8886464 | AP50: Fritliggende enfamiliehus | AQ50: ENFAMILIE | AR50: AH | AT50: 617.8886464 | AU50: 1 | AZ50: 0 | BI50: 0 | BK50: 0 | BR50: 0 | CG50: 617.8886464 | CI50: 0 | CJ50: =-('e2g-format 2019'!C50*Emissionsfaktorer!$B$5+'e2g-format 2019'!D50*Emissionsfaktorer!$B$7+'e2g-format 2019'!E50*Emissionsfaktorer!$B$8+X50*Emissionsfaktorer!$B$6) -> 5.583575311
C51: =(SUM('Energi_bbr varmeforbrug'!D46:Q46))*-0.0000036 -> 0 | F51: 0 | O51: 0 | Q51: 0 | X51: 0 | AK51: =(SUM('Energi_bbr varmeforbrug'!D12:Q12))*-0.0000036 -> 0 | AN51: 0 | AO51: 0 | AP51: Rækkehus/kædehus eller dobbelthus | AQ51: RÆKKE | AR51: AH | AT51: 0 | AU51: 1 | AZ51: 0 | BI51: 0 | BK51: 0 | BR51: 0 | CG51: 0 | CI51: 0 | CJ51: =-('e2g-format 2019'!C51*Emissionsfaktorer!$B$5+'e2g-format 2019'!D51*Emissionsfaktorer!$B$7+'e2g-format 2019'!E51*Emissionsfaktorer!$B$8+X51*Emissionsfaktorer!$B$6) -> 0
C52: =(SUM('Energi_bbr varmeforbrug'!D47:Q47))*-0.0000036 -> -16.7990986 | F52: 0 | O52: 0 | Q52: 0 | X52: 0 | AK52: =(SUM('Energi_bbr varmeforbrug'!D13:Q13))*-0.0000036 -> -106.8154962 | AN52: 0 | AO52: -123.6145948 | AP52: Etageboligbebyggelse | AQ52: ETAGE | AR52: AH | AT52: 123.6145948 | AU52: 1 | AZ52: 0 | BI52: 0 | BK52: 0 | BR52: 0 | CG52: 123.6145948 | CI52: 0 | CJ52: =-('e2g-format 2019'!C52*Emissionsfaktorer!$B$5+'e2g-format 2019'!D52*Emissionsfaktorer!$B$7+'e2g-format 2019'!E52*Emissionsfaktorer!$B$8+X52*Emissionsfaktorer!$B$6) -> 0.9575486204
C53: =(SUM('Energi_bbr varmeforbrug'!D50:Q50))*-0.0000036 -> 0 | F53: 0 | O53: 0 | Q53: 0 | X53: 0 | AK53: =(SUM('Energi_bbr varmeforbrug'!D16:Q16))*-0.0000036 -> -12.06864851 | AN53: 0 | AO53: -12.06864851 | AP53: Anden bygning til helårsbeboelse | AQ53: ANDENHEL | AR53: AH | AT53: 12.06864851 | AU53: 1 | AZ53: 0 | BI53: 0 | BK53: 0 | BR53: 0 | CG53: 12.06864851 | CI53: 0 | CJ53: =-('e2g-format 2019'!C53*Emissionsfaktorer!$B$5+'e2g-format 2019'!D53*Emissionsfaktorer!$B$7+'e2g-format 2019'!E53*Emissionsfaktorer!$B$8+X53*Emissionsfaktorer!$B$6) -> 0
C54: =(SUM('Energi_bbr varmeforbrug'!D63:Q63))*-0.0000036 -> 0 | F54: 0 | O54: 0 | Q54: 0 | X54: 0 | AK54: =(SUM('Energi_bbr varmeforbrug'!D30:Q30))*-0.0000036 -> -9.191731699 | AN54: 0 | AO54: -9.191731699 | AP54: Sommerhus | AQ54: SOMMER | AR54: AH | AT54: 9.191731699 | AU54: 1 | AZ54: 0 | BI54: 0 | BK54: 0 | BR54: 0 | CG54: 9.191731699 | CI54: 0 | CJ54: =-('e2g-format 2019'!C54*Emissionsfaktorer!$B$5+'e2g-format 2019'!D54*Emissionsfaktorer!$B$7+'e2g-format 2019'!E54*Emissionsfaktorer!$B$8+X54*Emissionsfaktorer!$B$6) -> 0
C55: =SUM(C56:C60) -> 0 | D55: 0 | E55: 0 | F55: 0 | G55: 0 | H55: 0 | I55: 0 | J55: 0 | K55: 0 | L55: 0 | M55: 0 | N55: 0 | O55: 0 | P55: 0 | Q55: 0 | R55: 0 | S55: 0 | T55: 0 | U55: 0 | V55: 0 | W55: 0 | X55: 0 | Y55: 0 | Z55: 0 | AA55: 0 | AB55: 0 | AC55: 0 | AD55: 0 | AE55: 0 | AF55: 0 | AG55: 0 | AH55: 0 | AI55: 0 | AJ55: 0 | AK55: -12.69440929 | AL55: 0 | AM55: 0 | AN55: 0 | AO55: -12.69440929 | AP55: Andre bygninger | AQ55: ANDREBYG | AR55: AH | AT55: 12.69440929 | AU55: 1 | AW55: =SUM(AW56:AW60) -> 0 | AX55: 0 | AY55: 0 | AZ55: 0 | BA55: 0 | BB55: 0 | BC55: 0 | BD55: 0 | BE55: 0 | BF55: 0 | BG55: 0 | BH55: 0 | BI55: 0 | BJ55: 0 | BK55: 0 | BL55: 0 | BM55: 0 | BN55: 0 | BO55: 0 | BP55: 0 | BQ55: 0 | BR55: 0 | BS55: 0 | BT55: 0 | BU55: 0 | BV55: 0 | BW55: 0 | BX55: 0 | BY55: 0 | BZ55: 0 | CA55: 0 | CB55: 0 | CC55: 0 | CD55: 0 | CE55: 0 | CF55: 0 | CG55: 12.69440929 | CH55: 0 | CI55: 0 | CJ55: 0
C56: =(SUM('Energi_bbr varmeforbrug'!D66:Q66))*-0.0000036 -> 0 | F56: 0 | O56: 0 | Q56: 0 | X56: 0 | AK56: =(SUM('Energi_bbr varmeforbrug'!D33:Q33))*-0.0000036 -> 0 | AN56: 0 | AO56: 0 | AP56: Kolonihavehus | AQ56: KOLONI | AR56: ANDREBYG | AT56: 0 | AU56: 1 | AZ56: 0 | BI56: 0 | BK56: 0 | BR56: 0 | CG56: =AO56*AU56*-1 -> 0 | CI56: =(AT56+AO56)*-1 -> 0 | CJ56: =-('e2g-format 2019'!C56*Emissionsfaktorer!$B$5+'e2g-format 2019'!D56*Emissionsfaktorer!$B$7+'e2g-format 2019'!E56*Emissionsfaktorer!$B$8+X56*Emissionsfaktorer!$B$6) -> 0
C57: =(SUM('Energi_bbr varmeforbrug'!D67:Q67))*-0.0000036 -> 0 | F57: 0 | O57: 0 | Q57: 0 | X57: 0 | AK57: =(SUM('Energi_bbr varmeforbrug'!D34:Q34))*-0.0000036 -> -6.127288184 | AN57: 0 | AO57: -6.127288184 | AP57: Anden bygning til fritidsformål | AQ57: ANDENF | AR57: ANDREBYG | AT57: 6.127288184 | AU57: 1 | AZ57: 0 | BI57: 0 | BK57: 0 | BR57: 0 | CG57: 6.127288184 | CI57: 0 | CJ57: =-('e2g-format 2019'!C57*Emissionsfaktorer!$B$5+'e2g-format 2019'!D57*Emissionsfaktorer!$B$7+'e2g-format 2019'!E57*Emissionsfaktorer!$B$8+X57*Emissionsfaktorer!$B$6) -> 0
C58: =(SUM('Energi_bbr varmeforbrug'!D68:Q68))*-0.0000036 -> 0 | F58: 0 | O58: 0 | Q58: 0 | X58: 0 | AK58: =(SUM('Energi_bbr varmeforbrug'!D35:Q35))*-0.0000036 -> 0 | AN58: 0 | AO58: 0 | AP58: Garage | AQ58: GARAGE | AR58: ANDREBYG | AT58: 0 | AU58: 1 | AZ58: 0 | BI58: 0 | BK58: 0 | BR58: 0 | CG58: 0 | CI58: 0 | CJ58: =-('e2g-format 2019'!C58*Emissionsfaktorer!$B$5+'e2g-format 2019'!D58*Emissionsfaktorer!$B$7+'e2g-format 2019'!E58*Emissionsfaktorer!$B$8+X58*Emissionsfaktorer!$B$6) -> 0
C59: =(SUM('Energi_bbr varmeforbrug'!D69:Q69))*-0.0000036 -> 0 | F59: 0 | O59: 0 | Q59: 0 | X59: 0 | AK59: =(SUM('Energi_bbr varmeforbrug'!D36:Q36))*-0.0000036 -> 0 | AN59: 0 | AO59: 0 | AP59: Carport | AQ59: CARPORT | AR59: ANDREBYG | AT59: 0 | AU59: 1 | AZ59: 0 | BI59: 0 | BK59: 0 | BR59: 0 | CG59: 0 | CI59: 0 | CJ59: =-('e2g-format 2019'!C59*Emissionsfaktorer!$B$5+'e2g-format 2019'!D59*Emissionsfaktorer!$B$7+'e2g-format 2019'!E59*Emissionsfaktorer!$B$8+X59*Emissionsfaktorer!$B$6) -> 0
C60: =(SUM('Energi_bbr varmeforbrug'!D70:Q70))*-0.0000036 -> 0 | F60: 0 | O60: 0 | Q60: 0 | X60: 0 | AK60: =(SUM('Energi_bbr varmeforbrug'!D37:Q37))*-0.0000036 -> -6.567121102 | AN60: 0 | AO60: -6.567121102 | AP60: Udhus | AQ60: UDHUS | AR60: ANDREBYG | AT60: 6.567121102 | AU60: 1 | AZ60: 0 | BI60: 0 | BK60: 0 | BR60: 0 | CG60: 6.567121102 | CI60: 0 | CJ60: =-('e2g-format 2019'!C60*Emissionsfaktorer!$B$5+'e2g-format 2019'!D60*Emissionsfaktorer!$B$7+'e2g-format 2019'!E60*Emissionsfaktorer!$B$8+X60*Emissionsfaktorer!$B$6) -> 0
C61: =SUM(C62:C68) -> -17.51814194 | D61: 0 | E61: 0 | F61: ='Justering af energiregnskab'!E9*-1 -> -33 | G61: 0 | H61: 0 | I61: 0 | J61: 0 | K61: 0 | L61: 0 | M61: 0 | N61: 0 | O61: =P61+Q61+T61+U61+V61 -> -2 | P61: ='Justering af energiregnskab'!E10*-1 -> -2 | Q61: 0 | R61: 0 | S61: 0 | T61: 0 | U61: 0 | V61: ='Justering af energiregnskab'!E11*-1 -> 0 | W61: 0 | X61: =('Energi_bbr varmeforbrug'!B84)*-0.0000036 -> -0.403774416 | Y61: =SUM(Y62:Y68) -> 0 | Z61: =SUM(Z62:Z68) -> 0 | AA61: 0 | AB61: 0 | AC61: 0 | AD61: 0 | AE61: 0 | AF61: 0 | AG61: 0 | AH61: 0 | AI61: 0 | AJ61: =Energi!B26*-0.0000036 -> -178.585272 | AK61: -304.8473642 | AL61: 0 | AM61: 0 | AN61: 0 | AO61: -536.3545526 | AP61: Offentlig | AQ61: AO | AR61: A | AS61: ='Størrelse på strømme'!#REF! ->  | AT61: 536.3545526 | AU61: 1 | AW61: =SUM(AW62:AW68) -> 0 | AX61: 0 | AY61: 0 | AZ61: 0 | BA61: 0 | BB61: 0 | BC61: 0 | BD61: 0 | BE61: 0 | BF61: 0 | BG61: 0 | BH61: 0 | BI61: 0 | BJ61: 0 | BK61: 0 | BL61: 0 | BM61: 0 | BN61: 0 | BO61: 0 | BP61: 0 | BQ61: 0 | BR61: 0 | BS61: 0 | BT61: 0 | BU61: 0 | BV61: 0 | BW61: 0 | BX61: 0 | BY61: 0 | BZ61: 0 | CA61: 0 | CB61: 0 | CC61: 0 | CD61: 0 | CE61: 0 | CF61: 0 | CG61: 536.3545526 | CH61: 0 | CI61: 0 | CJ61: =-('e2g-format 2019'!C61*Emissionsfaktorer!$B$5+'e2g-format 2019'!D61*Emissionsfaktorer!$B$7+'e2g-format 2019'!E61*Emissionsfaktorer!$B$8+X61*Emissionsfaktorer!$B$6) -> 1.028413397
C62: =(SUM('Energi_bbr varmeforbrug'!D48:Q48))*-0.0000036 -> -0.3244245464 | F62: 0 | O62: 0 | Q62: 0 | X62: 0 | AK62: =(SUM('Energi_bbr varmeforbrug'!D14:Q14))*-0.0000036 -> -274.2286572 | AN62: 0 | AO62: -274.5530817 | AP62: Kollegier | AQ62: KOLLEG | AR62: AO | AT62: 274.5530817 | AU62: 1 | AZ62: 0 | BI62: 0 | BK62: 0 | BR62: 0 | CG62: 274.5530817 | CI62: 0 | CJ62: =-('e2g-format 2019'!C62*Emissionsfaktorer!$B$5+'e2g-format 2019'!D62*Emissionsfaktorer!$B$7+'e2g-format 2019'!E62*Emissionsfaktorer!$B$8+X62*Emissionsfaktorer!$B$6) -> 0.01849219915
C63: =(SUM('Energi_bbr varmeforbrug'!D49:Q49))*-0.0000036 -> 0 | F63: 0 | O63: 0 | Q63: 0 | X63: 0 | AK63: =(SUM('Energi_bbr varmeforbrug'!D15:Q15))*-0.0000036 -> 0 | AN63: 0 | AO63: 0 | AP63: Døgninstitution | AQ63: DØGNIN | AR63: AO | AT63: 0 | AU63: 1 | AZ63: 0 | BI63: 0 | BK63: 0 | BR63: 0 | CG63: 0 | CI63: 0 | CJ63: =-('e2g-format 2019'!C63*Emissionsfaktorer!$B$5+'e2g-format 2019'!D63*Emissionsfaktorer!$B$7+'e2g-format 2019'!E63*Emissionsfaktorer!$B$8+X63*Emissionsfaktorer!$B$6) -> 0
C64: =(SUM('Energi_bbr varmeforbrug'!D59:Q59))*-0.0000036 -> 0 | F64: 0 | O64: 0 | Q64: 0 | X64: 0 | AK64: =(SUM('Energi_bbr varmeforbrug'!D26:Q26))*-0.0000036 -> -0.1451795497 | AN64: 0 | AO64: -0.1451795497 | AP64: Bygninger til undervisning og forskning | AQ64: UNDERVF | AR64: AO | AT64: 0.1451795497 | AU64: 1 | AZ64: 0 | BI64: 0 | BK64: 0 | BR64: 0 | CG64: 0.1451795497 | CI64: 0 | CJ64: =-('e2g-format 2019'!C64*Emissionsfaktorer!$B$5+'e2g-format 2019'!D64*Emissionsfaktorer!$B$7+'e2g-format 2019'!E64*Emissionsfaktorer!$B$8+X64*Emissionsfaktorer!$B$6) -> 0
C65: =(SUM('Energi_bbr varmeforbrug'!D60:Q60))*-0.0000036 -> -17.19371739 | F65: 0 | O65: 0 | Q65: 0 | X65: 0 | AK65: =(SUM('Energi_bbr varmeforbrug'!D27:Q27))*-0.0000036 -> -11.84897496 | AN65: 0 | AO65: -29.04269235 | AP65: Bygninger til hospital, sygehjem, fødeklinik o.lign | AQ65: HOSPITAL | AR65: AO | AT65: 29.04269235 | AU65: 1 | AZ65: 0 | BI65: 0 | BK65: 0 | BR65: 0 | CG65: 29.04269235 | CI65: 0 | CJ65: =-('e2g-format 2019'!C65*Emissionsfaktorer!$B$5+'e2g-format 2019'!D65*Emissionsfaktorer!$B$7+'e2g-format 2019'!E65*Emissionsfaktorer!$B$8+X65*Emissionsfaktorer!$B$6) -> 0.9800418913
C66: =(SUM('Energi_bbr varmeforbrug'!D61:Q61))*-0.0000036 -> 0 | F66: 0 | O66: 0 | Q66: 0 | X66: 0 | AK66: =(SUM('Energi_bbr varmeforbrug'!D28:Q28))*-0.0000036 -> -15.92101923 | AN66: 0 | AO66: -15.92101923 | AP66: Bygninger til daginstitution | AQ66: DAGINST | AR66: AO | AT66: 15.92101923 | AU66: 1 | AZ66: 0 | BI66: 0 | BK66: 0 | BR66: 0 | CG66: 15.92101923 | CI66: 0 | CJ66: =-('e2g-format 2019'!C66*Emissionsfaktorer!$B$5+'e2g-format 2019'!D66*Emissionsfaktorer!$B$7+'e2g-format 2019'!E66*Emissionsfaktorer!$B$8+X66*Emissionsfaktorer!$B$6) -> 0
C67: =(SUM('Energi_bbr varmeforbrug'!D62:Q62))*-0.0000036 -> 0 | F67: 0 | O67: 0 | Q67: 0 | X67: 0 | AK67: =(SUM('Energi_bbr varmeforbrug'!D29:Q29))*-0.0000036 -> -2.543549324 | AN67: 0 | AO67: -2.543549324 | AP67: Bygninger til anden institution, herunder kaserne, fængsel o.lign | AQ67: KASERNE | AR67: AO | AT67: 2.543549324 | AU67: 1 | AZ67: 0 | BI67: 0 | BK67: 0 | BR67: 0 | CG67: 2.543549324 | CI67: 0 | CJ67: =-('e2g-format 2019'!C67*Emissionsfaktorer!$B$5+'e2g-format 2019'!D67*Emissionsfaktorer!$B$7+'e2g-format 2019'!E67*Emissionsfaktorer!$B$8+X67*Emissionsfaktorer!$B$6) -> 0
C68: =(SUM('Energi_bbr varmeforbrug'!D65:Q65))*-0.0000036 -> 0 | F68: 0 | O68: 0 | Q68: 0 | X68: 0 | AK68: =(SUM('Energi_bbr varmeforbrug'!D32:Q32))*-0.0000036 -> -0.159984 | AN68: 0 | AO68: -0.159984 | AP68: Bygninger i forbindelse med idrætsøvelser | AQ68: IDRÆT | AR68: AO | AT68: 0.159984 | AU68: 1 | AZ68: 0 | BI68: 0 | BK68: 0 | BR68: 0 | CG68: 0.159984 | CI68: 0 | CJ68: =-('e2g-format 2019'!C68*Emissionsfaktorer!$B$5+'e2g-format 2019'!D68*Emissionsfaktorer!$B$7+'e2g-format 2019'!E68*Emissionsfaktorer!$B$8+X68*Emissionsfaktorer!$B$6) -> 0
C69: =C70+C75+C80 -> -137.4949349 | D69: =D70+D75+D80 -> 0 | E69: 0 | F69: 0 | G69: 0 | H69: 0 | I69: 0 | J69: 0 | K69: 0 | L69: 0 | M69: 0 | N69: 0 | O69: 0 | P69: 0 | Q69: 0 | R69: 0 | S69: 0 | T69: 0 | U69: 0 | V69: 0 | W69: 0 | X69: ='Energi_bbr varmeforbrug'!B83*3.6/-1000000 -> -20.03647622 | Y69: =Y70+Y75+Y80 -> 0 | Z69: 0 | AA69: 0 | AB69: 0 | AC69: 0 | AD69: 0 | AE69: 0 | AF69: 0 | AG69: 0 | AH69: 0 | AI69: 0 | AJ69: =Energi!B25*-0.0000036 -> -1285.938907 | AK69: =AK70+AK75+AK80 -> -142.6477764 | AL69: =AL70+AL75+AL80 -> 0 | AM69: =AM70+AM75+AM80 -> 0 | AN69: 0 | AO69: =SUM(C69:F69,O69,W69,X69,AJ69:AL69) -> -1586.118095 | AP69: Erhverv | AQ69: AE | AR69: A | AS69: ='Størrelse på strømme'!#REF! ->  | AT69: =SUM(AW69:AZ69,BI69,BQ69,BR69,CD69:CG69) -> 1586.118095 | AU69: 1 | AW69: =SUM(AW71:AW83) -> 0 | AX69: 0 | AY69: 0 | AZ69: 0 | BA69: 0 | BB69: 0 | BC69: 0 | BD69: 0 | BE69: 0 | BF69: 0 | BG69: 0 | BH69: 0 | BI69: 0 | BJ69: 0 | BK69: 0 | BL69: 0 | BM69: 0 | BN69: 0 | BO69: 0 | BP69: 0 | BQ69: 0 | BR69: 0 | BS69: 0 | BT69: 0 | BU69: 0 | BV69: 0 | BW69: 0 | BX69: 0 | BY69: 0 | BZ69: 0 | CA69: 0 | CB69: 0 | CC69: 0 | CD69: 0 | CE69: 0 | CF69: 0 | CG69: 1586.118095 | CH69: =SUM(CH71:CH83) -> 0 | CI69: 0 | CJ69: =-('e2g-format 2019'!C69*Emissionsfaktorer!$B$5+'e2g-format 2019'!D69*Emissionsfaktorer!$B$7+'e2g-format 2019'!E69*Emissionsfaktorer!$B$8+X69*Emissionsfaktorer!$B$6) -> 9.31991053
C70: =SUM(C71:C74) -> -120.3012175 | D70: =SUM(D71:D74) -> 0 | E70: 0 | F70: 0 | G70: 0 | H70: 0 | I70: 0 | J70: 0 | K70: 0 | L70: 0 | M70: 0 | N70: 0 | O70: 0 | P70: 0 | Q70: 0 | R70: 0 | S70: 0 | T70: 0 | U70: 0 | V70: 0 | W70: 0 | X70: 0 | Y70: 0 | Z70: 0 | AA70: 0 | AB70: 0 | AC70: 0 | AD70: 0 | AE70: 0 | AF70: 0 | AG70: 0 | AH70: 0 | AI70: 0 | AJ70: 0 | AK70: -14.11919993 | AL70: 0 | AM70: 0 | AO70: -134.4204174 | AP70: Bygninger til produktionserhverv | AQ70: AEBE | AR70: AE | AS70: ='Størrelse på strømme'!#REF! ->  | AT70: 134.4204174 | AW70: =SUM(AW71:AW74) -> 0 | AX70: =SUM(AX71:AX74) -> 0 | AY70: =SUM(AY71:AY74) -> 0 | AZ70: =SUM(AZ71:AZ74) -> 0 | BA70: =SUM(BA71:BA74) -> 0 | BB70: =SUM(BB71:BB74) -> 0 | BC70: =SUM(BC71:BC74) -> 0 | BD70: =SUM(BD71:BD74) -> 0 | BE70: =SUM(BE71:BE74) -> 0 | BF70: =SUM(BF71:BF74) -> 0 | BG70: =SUM(BG71:BG74) -> 0 | BH70: =SUM(BH71:BH74) -> 0 | BI70: =SUM(BI71:BI74) -> 0 | BJ70: =SUM(BJ71:BJ74) -> 0 | BK70: =SUM(BK71:BK74) -> 0 | BL70: =SUM(BL71:BL74) -> 0 | BM70: =SUM(BM71:BM74) -> 0 | BN70: =SUM(BN71:BN74) -> 0 | BO70: =SUM(BO71:BO74) -> 0 | BP70: =SUM(BP71:BP74) -> 0 | BQ70: =SUM(BQ71:BQ74) -> 0 | BR70: =SUM(BR71:BR74) -> 0 | BS70: =SUM(BS71:BS74) -> 0 | BT70: =SUM(BT71:BT74) -> 0 | BU70: =SUM(BU71:BU74) -> 0 | BV70: =SUM(BV71:BV74) -> 0 | BW70: =SUM(BW71:BW74) -> 0 | BX70: =SUM(BX71:BX74) -> 0 | BY70: =SUM(BY71:BY74) -> 0 | BZ70: =SUM(BZ71:BZ74) -> 0 | CA70: =SUM(CA71:CA74) -> 0 | CB70: =SUM(CB71:CB74) -> 0 | CC70: =SUM(CC71:CC74) -> 0 | CD70: =SUM(CD71:CD74) -> 0 | CE70: =SUM(CE71:CE74) -> 0 | CF70: =SUM(CF71:CF74) -> 0 | CG70: =SUM(CG71:CG74) -> 134.4204174 | CH70: =SUM(CH71:CH74) -> 0 | CI70: =SUM(CI71:CI74) -> 0 | CJ70: =SUM(CJ71:CJ74) -> 6.857169399
C71: =SUM('Energi_bbr varmeforbrug'!D56:'Energi_bbr varmeforbrug'!Q56)*-0.0000036 -> 0 | F71: 0 | O71: 0 | Q71: 0 | X71: 0 | AK71: =SUM('Energi_bbr varmeforbrug'!D17:Q17)*-0.0000036 -> -0.02023282325 | AN71: 0 | AO71: -0.02023282325 | AP71: Bygning til erhvervsmæssig produktion vedrørende landbrug, skovbrug, gartneri, råstofudvinding o.lign. | AQ71: ERHVERVSP | AR71: AEBE | AT71: 0.02023282325 | AU71: 1 | AZ71: 0 | BI71: 0 | BK71: 0 | BR71: 0 | CG71: =AO71*AU71*-1 -> 0.02023282325 | CI71: =(AT71+AO71)*-1 -> 0 | CJ71: =-('e2g-format 2019'!C71*Emissionsfaktorer!$B$5+'e2g-format 2019'!D71*Emissionsfaktorer!$B$7+'e2g-format 2019'!E71*Emissionsfaktorer!$B$8+X71*Emissionsfaktorer!$B$6) -> 0
C72: =SUM('Energi_bbr varmeforbrug'!D57:'Energi_bbr varmeforbrug'!Q57)*-0.0000036 -> -120.3012175 | F72: =SUM(G72:N72) -> 0 | O72: 0 | Q72: 0 | X72: 0 | AK72: =SUM('Energi_bbr varmeforbrug'!D18:Q18)*-0.0000036 -> -0.152388 | AN72: 0 | AO72: -120.4536055 | AP72: Bygning til erhvervsmæssig produktion vedrørende industri, håndværk m.v. | AQ72: ERHVSINDU | AR72: AEBE | AT72: 120.4536055 | AU72: 1 | AZ72: =SUM(BA72:BH72) -> 0 | BI72: 0 | BK72: 0 | BR72: 0 | CG72: =AO72*AU72*-1 -> 120.4536055 | CI72: =(AT72+AO72)*-1 -> 0 | CJ72: =-('e2g-format 2019'!C72*Emissionsfaktorer!$B$5+'e2g-format 2019'!D72*Emissionsfaktorer!$B$7+'e2g-format 2019'!E72*Emissionsfaktorer!$B$8+X72*Emissionsfaktorer!$B$6) -> 6.857169399
C73: =SUM('Energi_bbr varmeforbrug'!D58:'Energi_bbr varmeforbrug'!Q58)*-0.0000036 -> 0 | F73: 0 | O73: 0 | Q73: 0 | X73: 0 | AK73: =SUM('Energi_bbr varmeforbrug'!D19:Q19)*-0.0000036 -> -0.0155952 | AN73: 0 | AO73: -0.0155952 | AP73: El-, gas-, vand- eller varmeværk, forbrændingsanstalt m.v. | AQ73: ELGASVAND | AR73: AEBE | AT73: 0.0155952 | AU73: 1 | AZ73: 0 | BI73: 0 | BK73: 0 | BR73: 0 | CG73: =AO73*AU73*-1 -> 0.0155952 | CI73: =(AT73+AO73)*-1 -> 0 | CJ73: =-('e2g-format 2019'!C73*Emissionsfaktorer!$B$5+'e2g-format 2019'!D73*Emissionsfaktorer!$B$7+'e2g-format 2019'!E73*Emissionsfaktorer!$B$8+X73*Emissionsfaktorer!$B$6) -> 0
C74: =SUM('Energi_bbr varmeforbrug'!D59:'Energi_bbr varmeforbrug'!Q59)*-0.0000036 -> 0 | F74: 0 | O74: 0 | Q74: 0 | X74: 0 | AK74: =SUM('Energi_bbr varmeforbrug'!D20:Q20)*-0.0000036 -> -13.93098391 | AN74: 0 | AO74: -13.93098391 | AP74: Anden bygning til landbrug, industri etc. | AQ74: ANDENBERHV | AR74: AEBE | AT74: 13.93098391 | AU74: 1 | AZ74: 0 | BI74: 0 | BK74: 0 | BR74: 0 | CG74: =AO74*AU74*-1 -> 13.93098391 | CI74: =(AT74+AO74)*-1 -> 0 | CJ74: =-('e2g-format 2019'!C74*Emissionsfaktorer!$B$5+'e2g-format 2019'!D74*Emissionsfaktorer!$B$7+'e2g-format 2019'!E74*Emissionsfaktorer!$B$8+X74*Emissionsfaktorer!$B$6) -> 0
C75: =SUM(C76:C79) -> -17.19371739 | D75: =SUM(D76:D79) -> 0 | E75: 0 | F75: 0 | G75: 0 | H75: 0 | I75: 0 | J75: 0 | K75: 0 | L75: 0 | M75: 0 | N75: 0 | O75: 0 | P75: 0 | Q75: 0 | R75: 0 | S75: 0 | T75: 0 | U75: 0 | V75: 0 | W75: 0 | X75: 0 | Y75: 0 | Z75: 0 | AA75: 0 | AB75: 0 | AC75: 0 | AD75: 0 | AE75: 0 | AF75: 0 | AG75: 0 | AH75: 0 | AI75: 0 | AJ75: 0 | AK75: -114.2306856 | AL75: 0 | AM75: 0 | AO75: -131.424403 | AP75: Bygninger til handel og service | AQ75: AEHS | AR75: AE | AS75: ='Størrelse på strømme'!#REF! ->  | AT75: 131.424403 | AW75: =SUM(AW76:AW79) -> 0 | AX75: =SUM(AX76:AX79) -> 0 | AY75: =SUM(AY76:AY79) -> 0 | AZ75: =SUM(AZ76:AZ79) -> 0 | BA75: =SUM(BA76:BA79) -> 0 | BB75: =SUM(BB76:BB79) -> 0 | BC75: =SUM(BC76:BC79) -> 0 | BD75: =SUM(BD76:BD79) -> 0 | BE75: =SUM(BE76:BE79) -> 0 | BF75: =SUM(BF76:BF79) -> 0 | BG75: =SUM(BG76:BG79) -> 0 | BH75: =SUM(BH76:BH79) -> 0 | BI75: =SUM(BI76:BI79) -> 0 | BJ75: =SUM(BJ76:BJ79) -> 0 | BK75: =SUM(BK76:BK79) -> 0 | BL75: =SUM(BL76:BL79) -> 0 | BM75: =SUM(BM76:BM79) -> 0 | BN75: =SUM(BN76:BN79) -> 0 | BO75: =SUM(BO76:BO79) -> 0 | BP75: =SUM(BP76:BP79) -> 0 | BQ75: =SUM(BQ76:BQ79) -> 0 | BR75: =SUM(BR76:BR79) -> 0 | BS75: =SUM(BS76:BS79) -> 0 | BT75: =SUM(BT76:BT79) -> 0 | BU75: =SUM(BU76:BU79) -> 0 | BV75: =SUM(BV76:BV79) -> 0 | BW75: =SUM(BW76:BW79) -> 0 | BX75: =SUM(BX76:BX79) -> 0 | BY75: =SUM(BY76:BY79) -> 0 | BZ75: =SUM(BZ76:BZ79) -> 0 | CA75: =SUM(CA76:CA79) -> 0 | CB75: =SUM(CB76:CB79) -> 0 | CC75: =SUM(CC76:CC79) -> 0 | CD75: =SUM(CD76:CD79) -> 0 | CE75: =SUM(CE76:CE79) -> 0 | CF75: =SUM(CF76:CF79) -> 0 | CG75: =SUM(CG76:CG79) -> 131.424403 | CH75: =SUM(CH76:CH79) -> 0 | CI75: =SUM(CI76:CI79) -> 0 | CJ75: =SUM(CJ76:CJ79) -> 0.9800418913
C76: =SUM('Energi_bbr varmeforbrug'!D60:'Energi_bbr varmeforbrug'!Q60)*-0.0000036 -> -17.19371739 | F76: 0 | O76: 0 | Q76: 0 | X76: 0 | AK76: =SUM('Energi_bbr varmeforbrug'!D21:Q21)*-0.0000036 -> -3.5811174 | AN76: 0 | AO76: -20.77483479 | AP76: Transport- og garageanlæg | AQ76: TRANSPOGARA | AR76: AEHS | AT76: 20.77483479 | AU76: 1 | AZ76: 0 | BI76: 0 | BK76: 0 | BR76: 0 | CG76: =AO76*AU76*-1 -> 20.77483479 | CI76: =(AT76+AO76)*-1 -> 0 | CJ76: =-('e2g-format 2019'!C76*Emissionsfaktorer!$B$5+'e2g-format 2019'!D76*Emissionsfaktorer!$B$7+'e2g-format 2019'!E76*Emissionsfaktorer!$B$8+X76*Emissionsfaktorer!$B$6) -> 0.9800418913
C77: =SUM('Energi_bbr varmeforbrug'!D61:'Energi_bbr varmeforbrug'!Q61)*-0.0000036 -> 0 | F77: 0 | O77: 0 | Q77: 0 | X77: 0 | AK77: =SUM('Energi_bbr varmeforbrug'!D22:Q22)*-0.0000036 -> 0 | AN77: 0 | AO77: 0 | AP77: Bygninger til kontor, handel, lager, herunder offentlig administration | AQ77: KONTORLAGERMV | AR77: AEHS | AT77: 0 | AU77: 1 | AZ77: 0 | BI77: 0 | BK77: 0 | BR77: 0 | CG77: =AO77*AU77*-1 -> 0 | CI77: =(AT77+AO77)*-1 -> 0 | CJ77: =-('e2g-format 2019'!C77*Emissionsfaktorer!$B$5+'e2g-format 2019'!D77*Emissionsfaktorer!$B$7+'e2g-format 2019'!E77*Emissionsfaktorer!$B$8+X77*Emissionsfaktorer!$B$6) -> 0
C78: =SUM('Energi_bbr varmeforbrug'!D62:'Energi_bbr varmeforbrug'!Q62)*-0.0000036 -> 0 | F78: 0 | O78: 0 | Q78: 0 | X78: 0 | AK78: =SUM('Energi_bbr varmeforbrug'!D23:Q23)*-0.0000036 -> -15.514329 | AN78: 0 | AO78: -15.514329 | AP78: Bygning til hotel, restaurant, vaskeri, frisør og anden servicevirksomhed | AQ78: HOTELVASK | AR78: AEHS | AT78: 15.514329 | AU78: 1 | AZ78: 0 | BI78: 0 | BK78: 0 | BR78: 0 | CG78: =AO78*AU78*-1 -> 15.514329 | CI78: =(AT78+AO78)*-1 -> 0 | CJ78: =-('e2g-format 2019'!C78*Emissionsfaktorer!$B$5+'e2g-format 2019'!D78*Emissionsfaktorer!$B$7+'e2g-format 2019'!E78*Emissionsfaktorer!$B$8+X78*Emissionsfaktorer!$B$6) -> 0
C79: =SUM('Energi_bbr varmeforbrug'!D63:'Energi_bbr varmeforbrug'!Q63)*-0.0000036 -> 0 | F79: 0 | O79: 0 | Q79: 0 | X79: 0 | AK79: =SUM('Energi_bbr varmeforbrug'!D24:Q24)*-0.0000036 -> -95.13523918 | AN79: 0 | AO79: -95.13523918 | AP79: Anden bygning til transport, handel etc | AQ79: ANDENHANDEL | AR79: AEHS | AT79: 95.13523918 | AU79: 1 | AZ79: 0 | BI79: 0 | BK79: 0 | BR79: 0 | CG79: =AO79*AU79*-1 -> 95.13523918 | CI79: =(AT79+AO79)*-1 -> 0 | CJ79: =-('e2g-format 2019'!C79*Emissionsfaktorer!$B$5+'e2g-format 2019'!D79*Emissionsfaktorer!$B$7+'e2g-format 2019'!E79*Emissionsfaktorer!$B$8+X79*Emissionsfaktorer!$B$6) -> 0
C80: =SUM(C81:C83) -> 0 | D80: =SUM(D81:D83) -> 0 | E80: 0 | F80: 0 | G80: 0 | H80: 0 | I80: 0 | J80: 0 | K80: 0 | L80: 0 | M80: 0 | N80: 0 | O80: 0 | P80: 0 | Q80: 0 | R80: 0 | S80: 0 | T80: 0 | U80: 0 | V80: 0 | W80: 0 | X80: 0 | Y80: 0 | Z80: 0 | AA80: 0 | AB80: 0 | AC80: 0 | AD80: 0 | AE80: 0 | AF80: 0 | AG80: 0 | AH80: 0 | AI80: 0 | AJ80: 0 | AK80: -14.29789088 | AL80: 0 | AM80: 0 | AO80: -14.29789088 | AP80: Bygninger til underholdning | AQ80: AEUN | AR80: AE | AS80: ='Størrelse på strømme'!#REF! ->  | AT80: 14.29789088 | AU80: 1 | AW80: =SUM(AW81:AW83) -> 0 | AX80: =SUM(AX81:AX83) -> 0 | AY80: =SUM(AY81:AY83) -> 0 | AZ80: =SUM(AZ81:AZ83) -> 0 | BA80: =SUM(BA81:BA83) -> 0 | BB80: =SUM(BB81:BB83) -> 0 | BC80: =SUM(BC81:BC83) -> 0 | BD80: =SUM(BD81:BD83) -> 0 | BE80: =SUM(BE81:BE83) -> 0 | BF80: =SUM(BF81:BF83) -> 0 | BG80: =SUM(BG81:BG83) -> 0 | BH80: =SUM(BH81:BH83) -> 0 | BI80: =SUM(BI81:BI83) -> 0 | BJ80: =SUM(BJ81:BJ83) -> 0 | BK80: =SUM(BK81:BK83) -> 0 | BL80: =SUM(BL81:BL83) -> 0 | BM80: =SUM(BM81:BM83) -> 0 | BN80: =SUM(BN81:BN83) -> 0 | BO80: =SUM(BO81:BO83) -> 0 | BP80: =SUM(BP81:BP83) -> 0 | BQ80: =SUM(BQ81:BQ83) -> 0 | BR80: =SUM(BR81:BR83) -> 0 | BS80: =SUM(BS81:BS83) -> 0 | BT80: =SUM(BT81:BT83) -> 0 | BU80: =SUM(BU81:BU83) -> 0 | BV80: =SUM(BV81:BV83) -> 0 | BW80: =SUM(BW81:BW83) -> 0 | BX80: =SUM(BX81:BX83) -> 0 | BY80: =SUM(BY81:BY83) -> 0 | BZ80: =SUM(BZ81:BZ83) -> 0 | CA80: =SUM(CA81:CA83) -> 0 | CB80: =SUM(CB81:CB83) -> 0 | CC80: =SUM(CC81:CC83) -> 0 | CD80: =SUM(CD81:CD83) -> 0 | CE80: =SUM(CE81:CE83) -> 0 | CF80: =SUM(CF81:CF83) -> 0 | CG80: =SUM(CG81:CG83) -> 14.29789088 | CH80: =SUM(CH81:CH83) -> 0 | CI80: =SUM(CI81:CI83) -> 0 | CJ80: =SUM(CJ81:CJ83) -> 0
C81: =SUM('Energi_bbr varmeforbrug'!D64:'Energi_bbr varmeforbrug'!Q64)*-0.0000036 -> 0 | F81: 0 | O81: 0 | Q81: 0 | X81: 0 | AK81: =SUM('Energi_bbr varmeforbrug'!D25:Q25)*-0.0000036 -> -10.24641254 | AN81: 0 | AO81: -10.24641254 | AP81: Bygninger til biograf, teater, erhvervsmæssig udstilling, bibliotek, museum, kirke o.lign | AQ81: BIOTEA | AR81: AEUN | AT81: 10.24641254 | AU81: 1 | AZ81: 0 | BI81: 0 | BK81: 0 | BR81: 0 | CG81: =AO81*AU81*-1 -> 10.24641254 | CI81: =(AT81+AO81)*-1 -> 0 | CJ81: =-('e2g-format 2019'!C81*Emissionsfaktorer!$B$5+'e2g-format 2019'!D81*Emissionsfaktorer!$B$7+'e2g-format 2019'!E81*Emissionsfaktorer!$B$8+X81*Emissionsfaktorer!$B$6) -> 0
C82: =SUM('Energi_bbr varmeforbrug'!D69:'Energi_bbr varmeforbrug'!Q69)*-0.0000036 -> 0 | F82: 0 | O82: 0 | Q82: 0 | X82: 0 | AK82: =SUM('Energi_bbr varmeforbrug'!D31:Q31)*-0.0000036 -> -4.05147834 | AN82: 0 | AO82: -4.05147834 | AP82: Bygninger til ferieformål m.v. bortset fra sommerhus og kolonihavehus | AQ82: FERIE | AR82: AEUN | AT82: 4.05147834 | AU82: 1 | AZ82: 0 | BI82: 0 | BK82: 0 | BR82: 0 | CG82: 4.05147834 | CI82: 0 | CJ82: =-('e2g-format 2019'!C82*Emissionsfaktorer!$B$5+'e2g-format 2019'!D82*Emissionsfaktorer!$B$7+'e2g-format 2019'!E82*Emissionsfaktorer!$B$8+X82*Emissionsfaktorer!$B$6) -> 0
C83: =SUM('Energi_bbr varmeforbrug'!D77:'Energi_bbr varmeforbrug'!Q77)*-0.0000036 -> 0 | F83: 0 | O83: 0 | Q83: 0 | X83: 0 | AK83: =SUM('Energi_bbr varmeforbrug'!D38:Q38)*-0.0000036 -> 0 | AN83: 0 | AO83: 0 | AP83: Ikke oplyst | AQ83: IKKEOPL | AR83: AEUN | AT83: 0 | AU83: 1 | AZ83: 0 | BI83: 0 | BK83: 0 | BR83: 0 | CG83: 0 | CI83: 0 | CJ83: =-('e2g-format 2019'!C83*Emissionsfaktorer!$B$5+'e2g-format 2019'!D83*Emissionsfaktorer!$B$7+'e2g-format 2019'!E83*Emissionsfaktorer!$B$8+X83*Emissionsfaktorer!$B$6) -> 0
C84: =SUM(C85:C98) -> -942.5050651 | D84: -176 | E84: -31 | F84: -466 | G84: 0 | H84: 0 | I84: 0 | J84: 0 | K84: =SUM(K85:K98) -> 0 | L84: =SUM(L85:L98) -> 0 | M84: =SUM(M85:M98) -> 0 | N84: =SUM(N85:N98) -> 0 | O84: =SUM(O85:O98) -> 0 | P84: =SUM(P85:P98) -> 0 | Q84: =SUM(Q85:Q98) -> 0 | R84: =SUM(R85:R98) -> 0 | S84: =SUM(S85:S98) -> 0 | T84: =SUM(T85:T98) -> 0 | U84: =SUM(U85:U98) -> 0 | V84: =SUM(V85:V98) -> 0 | W84: =SUM(W85:W98) -> 0 | X84: =SUM(X85:X98) -> -1114.963524 | Y84: =SUM(Y85:Y98) -> 0 | Z84: =SUM(Z85:Z98) -> 0 | AA84: =SUM(AA85:AA98) -> 0 | AB84: =SUM(AB85:AB98) -> 0 | AC84: =SUM(AC85:AC98) -> 0 | AD84: =SUM(AD85:AD98) -> 0 | AE84: =SUM(AE85:AE98) -> 0 | AF84: =SUM(AF85:AF98) -> 0 | AG84: =SUM(AG85:AG98) -> 0 | AH84: =SUM(AH85:AH98) -> 0 | AI84: =SUM(AI85:AI98) -> 0 | AJ84: =SUM(AJ85:AJ98) -> 0 | AK84: =SUM(AK85:AK98) -> 0 | AL84: =SUM(AL85:AL98) -> 0 | AM84: =SUM(AM85:AM98) -> 0 | AN84: 0 | AO84: -2730.468589 | AP84: Energi proces | AQ84: AP | AR84: A | AS84: ='Størrelse på strømme'!#REF! ->  | AT84: 2457.42173 | AU84: 0.9 | AW84: =SUM(AW85:AW98) -> 0 | AX84: 0 | AY84: 0 | AZ84: 0 | BA84: 0 | BB84: 0 | BC84: 0 | BD84: 0 | BE84: 0 | BF84: 0 | BG84: 0 | BH84: 0 | BI84: 0 | BJ84: 0 | BK84: 0 | BL84: 0 | BM84: 0 | BN84: 0 | BO84: 0 | BP84: 0 | BQ84: 0 | BR84: 0 | BS84: 0 | BT84: 0 | BU84: 0 | BV84: 0 | BW84: 0 | BX84: 0 | BY84: 0 | BZ84: 0 | CA84: 0 | CB84: 0 | CC84: 0 | CD84: 0 | CE84: 0 | CF84: 0 | CG84: 2457.42173 | CH84: 0 | CI84: 273.0468589 | CJ84: =-('e2g-format 2019'!C84*Emissionsfaktorer!$B$5+'e2g-format 2019'!D84*Emissionsfaktorer!$B$7+'e2g-format 2019'!E84*Emissionsfaktorer!$B$8+X84*Emissionsfaktorer!$B$6) -> 155.2352895
C85: =(Energi_proces!I7)*-0.001 -> 0 | D85: =(Energi_proces!G7)*-0.001 -> 0 | E85: =(Energi_proces!J7)*-0.001 -> 0 | F85: 0 | L85: =(Energi_proces!L7)*-0.001 -> 0 | M85: =(Energi_proces!K7)*-0.001 -> 0 | O85: =(Energi_proces!M7)*-0.001 -> 0 | Q85: 0 | X85: =(Energi_proces!H7)*-0.001 -> -376.97 | AN85: 0 | AO85: -376.97 | AP85: =Energi_proces!E7 -> A/S DANSK SHELL | AQ85: AP1 | AR85: AP | AT85: 339.273 | AU85: 0.9 | AZ85: 0 | BI85: 0 | BK85: 0 | BR85: 0 | CG85: 339.273 | CI85: 37.697 | CJ85: =-('e2g-format 2019'!C85*Emissionsfaktorer!$B$5+'e2g-format 2019'!D85*Emissionsfaktorer!$B$7+'e2g-format 2019'!E85*Emissionsfaktorer!$B$8+X85*Emissionsfaktorer!$B$6) -> 27.89578
C86: =(Energi_proces!I8)*-0.001 -> -222.1852169 | D86: =(Energi_proces!G8)*-0.001 -> 0 | E86: =(Energi_proces!J8)*-0.001 -> 0 | F86: 0 | L86: =(Energi_proces!L8)*-0.001 -> 0 | M86: =(Energi_proces!K8)*-0.001 -> 0 | O86: =(Energi_proces!M8)*-0.001 -> 0 | Q86: 0 | X86: =(Energi_proces!H8)*-0.001 -> 0 | AN86: 0 | AO86: -222.1852169 | AP86: =Energi_proces!E8 -> CARLSBERG SUPPLY COMPANY DANMARK A/S | AQ86: AP2 | AR86: AP | AT86: 199.9666952 | AU86: 0.9 | AZ86: 0 | BI86: 0 | BK86: 0 | BR86: 0 | CG86: 199.9666952 | CI86: 22.21852169 | CJ86: =-('e2g-format 2019'!C86*Emissionsfaktorer!$B$5+'e2g-format 2019'!D86*Emissionsfaktorer!$B$7+'e2g-format 2019'!E86*Emissionsfaktorer!$B$8+X86*Emissionsfaktorer!$B$6) -> 12.66455737
C87: =(Energi_proces!I9)*-0.001 -> -0.00252 | D87: =(Energi_proces!G9)*-0.001 -> 0 | E87: =(Energi_proces!J9)*-0.001 -> 0 | F87: 0 | L87: =(Energi_proces!L9)*-0.001 -> 0 | M87: =(Energi_proces!K9)*-0.001 -> 0 | O87: =(Energi_proces!M9)*-0.001 -> 0 | Q87: 0 | X87: =(Energi_proces!H9)*-0.001 -> 0 | AN87: 0 | AO87: -0.00252 | AP87: =Energi_proces!E9 -> ERIK & STEEN MAGNUSSON I/S | AQ87: AP3 | AR87: AP | AT87: 0.002268 | AU87: 0.9 | AZ87: 0 | BI87: 0 | BK87: 0 | BR87: 0 | CG87: 0.002268 | CI87: 0.000252 | CJ87: =-('e2g-format 2019'!C87*Emissionsfaktorer!$B$5+'e2g-format 2019'!D87*Emissionsfaktorer!$B$7+'e2g-format 2019'!E87*Emissionsfaktorer!$B$8+X87*Emissionsfaktorer!$B$6) -> 0.00014364
C88: =IF('Justering af energiregnskab'!$E$14+SUM(C85:C87)+C69>0,('Justering af energiregnskab'!$E$14+SUM(C85:C87)+C69)*-1,0) -> -720.3173282 | D88: =IF('Justering af energiregnskab'!$E$16+SUM(D85:D87)+D69>0,('Justering af energiregnskab'!$E$16+SUM(D85:D87)+D69)*-1,0) -> -176 | E88: =IF('Justering af energiregnskab'!$E$17+SUM(E85:E87)+E69>0,('Justering af energiregnskab'!$E$17+SUM(E85:E87)+E69)*-1,0) -> -31 | F88: =IF('Justering af energiregnskab'!$E$18+SUM(F85:F87)+F69>0,('Justering af energiregnskab'!$E$18+SUM(F85:F87)+F69)*-1,0) -> -466 | L88: =(Energi_proces!L10)*-0.001 -> 0 | M88: =(Energi_proces!K10)*-0.001 -> 0 | O88: =(Energi_proces!M10)*-0.001 -> 0 | P88: =IF('Justering af energiregnskab'!$E$19+SUM(P85:P87)+P69>0,('Justering af energiregnskab'!$E$19+SUM(P85:P87)+P69)*-1,0) -> 0 | Q88: 0 | V88: =IF('Justering af energiregnskab'!$E$20+SUM(V85:V87)+V69>0,('Justering af energiregnskab'!$E$20+SUM(V85:V87)+V69)*-1,0) -> 0 | W88: =IF('Justering af energiregnskab'!$E$21+SUM(W85:W87)+W69>0,('Justering af energiregnskab'!$E$21+SUM(W85:W87)+W69)*-1,0) -> 0 | X88: =IF('Justering af energiregnskab'!$E$15+SUM(X85:X87)+X69>0,('Justering af energiregnskab'!$E$15+SUM(X85:X87)+X69)*-1,0) -> -737.9935238 | AN88: 0 | AO88: -2131.310852 | AP88: EKSTRA | AQ88: AP4 | AR88: AP | AT88: 1918.179767 | AU88: 0.9 | AZ88: 0 | BI88: 0 | BK88: 0 | BR88: 0 | CG88: 1918.179767 | CI88: 213.1310852 | CJ88: =-('e2g-format 2019'!C88*Emissionsfaktorer!$B$5+'e2g-format 2019'!D88*Emissionsfaktorer!$B$7+'e2g-format 2019'!E88*Emissionsfaktorer!$B$8+X88*Emissionsfaktorer!$B$6) -> 114.6748085
C89: =(Energi_proces!I11)*-0.001 -> 0 | D89: =(Energi_proces!G11)*-0.001 -> 0 | E89: =(Energi_proces!J11)*-0.001 -> 0 | F89: 0 | L89: =(Energi_proces!L11)*-0.001 -> 0 | M89: =(Energi_proces!K11)*-0.001 -> 0 | O89: =(Energi_proces!M11)*-0.001 -> 0 | Q89: 0 | X89: =(Energi_proces!H11)*-0.001 -> 0 | AN89: 0 | AO89: 0 | AP89: =Energi_proces!E11 -> 0 | AQ89: AP5 | AR89: AP | AT89: 0 | AU89: 0.9 | AZ89: 0 | BI89: 0 | BK89: 0 | BR89: 0 | CG89: 0 | CI89: 0 | CJ89: =-('e2g-format 2019'!C89*Emissionsfaktorer!$B$5+'e2g-format 2019'!D89*Emissionsfaktorer!$B$7+'e2g-format 2019'!E89*Emissionsfaktorer!$B$8+X89*Emissionsfaktorer!$B$6) -> 0
C90: =(Energi_proces!I12)*-0.001 -> 0 | D90: =(Energi_proces!G12)*-0.001 -> 0 | E90: =(Energi_proces!J12)*-0.001 -> 0 | F90: 0 | L90: =(Energi_proces!L12)*-0.001 -> 0 | M90: =(Energi_proces!K12)*-0.001 -> 0 | O90: =(Energi_proces!M12)*-0.001 -> 0 | Q90: 0 | X90: =(Energi_proces!H12)*-0.001 -> 0 | AN90: 0 | AO90: 0 | AP90: =Energi_proces!E12 -> 0 | AQ90: AP6 | AR90: AP | AT90: 0 | AU90: 0.9 | AZ90: 0 | BI90: 0 | BK90: 0 | BR90: 0 | CG90: 0 | CI90: 0 | CJ90: =-('e2g-format 2019'!C90*Emissionsfaktorer!$B$5+'e2g-format 2019'!D90*Emissionsfaktorer!$B$7+'e2g-format 2019'!E90*Emissionsfaktorer!$B$8+X90*Emissionsfaktorer!$B$6) -> 0
C91: =(Energi_proces!I13)*-0.001 -> 0 | D91: =(Energi_proces!G13)*-0.001 -> 0 | E91: =(Energi_proces!J13)*-0.001 -> 0 | F91: 0 | L91: =(Energi_proces!L13)*-0.001 -> 0 | M91: =(Energi_proces!K13)*-0.001 -> 0 | O91: =(Energi_proces!M13)*-0.001 -> 0 | Q91: 0 | X91: =(Energi_proces!H13)*-0.001 -> 0 | AN91: 0 | AO91: 0 | AP91: =Energi_proces!E13 -> 0 | AQ91: AP7 | AR91: AP | AT91: 0 | AU91: 0.9 | AZ91: 0 | BI91: 0 | BK91: 0 | BR91: 0 | CG91: 0 | CI91: 0 | CJ91: =-('e2g-format 2019'!C91*Emissionsfaktorer!$B$5+'e2g-format 2019'!D91*Emissionsfaktorer!$B$7+'e2g-format 2019'!E91*Emissionsfaktorer!$B$8+X91*Emissionsfaktorer!$B$6) -> 0
C92: =(Energi_proces!I14)*-0.001 -> 0 | D92: =(Energi_proces!G14)*-0.001 -> 0 | E92: =(Energi_proces!J14)*-0.001 -> 0 | F92: 0 | L92: =(Energi_proces!L14)*-0.001 -> 0 | M92: =(Energi_proces!K14)*-0.001 -> 0 | O92: =(Energi_proces!M14)*-0.001 -> 0 | Q92: 0 | X92: =(Energi_proces!H14)*-0.001 -> 0 | AN92: 0 | AO92: 0 | AP92: =Energi_proces!E14 -> 0 | AQ92: AP8 | AR92: AP | AT92: 0 | AU92: 0.9 | AZ92: 0 | BI92: 0 | BK92: 0 | BR92: 0 | CG92: 0 | CI92: 0 | CJ92: =-('e2g-format 2019'!C92*Emissionsfaktorer!$B$5+'e2g-format 2019'!D92*Emissionsfaktorer!$B$7+'e2g-format 2019'!E92*Emissionsfaktorer!$B$8+X92*Emissionsfaktorer!$B$6) -> 0
C93: =(Energi_proces!I15)*-0.001 -> 0 | D93: =(Energi_proces!G15)*-0.001 -> 0 | E93: =(Energi_proces!J15)*-0.001 -> 0 | F93: 0 | L93: =(Energi_proces!L15)*-0.001 -> 0 | M93: =(Energi_proces!K15)*-0.001 -> 0 | O93: =(Energi_proces!M15)*-0.001 -> 0 | Q93: 0 | X93: =(Energi_proces!H15)*-0.001 -> 0 | AN93: 0 | AO93: 0 | AP93: =Energi_proces!E15 -> 0 | AQ93: AP9 | AR93: AP | AT93: 0 | AU93: 0.9 | AZ93: 0 | BI93: 0 | BK93: 0 | BR93: 0 | CG93: 0 | CI93: 0 | CJ93: =-('e2g-format 2019'!C93*Emissionsfaktorer!$B$5+'e2g-format 2019'!D93*Emissionsfaktorer!$B$7+'e2g-format 2019'!E93*Emissionsfaktorer!$B$8+X93*Emissionsfaktorer!$B$6) -> 0
C94: =(Energi_proces!I16)*-0.001 -> 0 | D94: =(Energi_proces!G16)*-0.001 -> 0 | E94: =(Energi_proces!J16)*-0.001 -> 0 | F94: 0 | L94: =(Energi_proces!L16)*-0.001 -> 0 | M94: =(Energi_proces!K16)*-0.001 -> 0 | O94: =(Energi_proces!M16)*-0.001 -> 0 | Q94: 0 | X94: =(Energi_proces!H16)*-0.001 -> 0 | AN94: 0 | AO94: 0 | AP94: =Energi_proces!E16 -> 0 | AQ94: AP10 | AR94: AP | AT94: 0 | AU94: 0.9 | AZ94: 0 | BI94: 0 | BK94: 0 | BR94: 0 | CG94: 0 | CI94: 0 | CJ94: =-('e2g-format 2019'!C94*Emissionsfaktorer!$B$5+'e2g-format 2019'!D94*Emissionsfaktorer!$B$7+'e2g-format 2019'!E94*Emissionsfaktorer!$B$8+X94*Emissionsfaktorer!$B$6) -> 0
C95: =(Energi_proces!I17)*-0.001 -> 0 | D95: =(Energi_proces!G17)*-0.001 -> 0 | E95: =(Energi_proces!J17)*-0.001 -> 0 | F95: 0 | L95: =(Energi_proces!L17)*-0.001 -> 0 | M95: =(Energi_proces!K17)*-0.001 -> 0 | O95: =(Energi_proces!M17)*-0.001 -> 0 | Q95: 0 | X95: =(Energi_proces!H17)*-0.001 -> 0 | AN95: 0 | AO95: 0 | AP95: =Energi_proces!E17 -> 0 | AQ95: AP11 | AR95: AP | AT95: 0 | AU95: 0.9 | AZ95: 0 | BI95: 0 | BK95: 0 | BR95: 0 | CG95: 0 | CI95: 0 | CJ95: =-('e2g-format 2019'!C95*Emissionsfaktorer!$B$5+'e2g-format 2019'!D95*Emissionsfaktorer!$B$7+'e2g-format 2019'!E95*Emissionsfaktorer!$B$8+X95*Emissionsfaktorer!$B$6) -> 0
C96: =(Energi_proces!I18)*-0.001 -> 0 | D96: =(Energi_proces!G18)*-0.001 -> 0 | E96: =(Energi_proces!J18)*-0.001 -> 0 | F96: 0 | L96: =(Energi_proces!L18)*-0.001 -> 0 | M96: =(Energi_proces!K18)*-0.001 -> 0 | O96: =(Energi_proces!M18)*-0.001 -> 0 | Q96: 0 | X96: =(Energi_proces!H18)*-0.001 -> 0 | AN96: 0 | AO96: 0 | AP96: =Energi_proces!E18 -> 0 | AQ96: AP12 | AR96: AP | AT96: 0 | AU96: 0.9 | AZ96: 0 | BI96: 0 | BK96: 0 | BR96: 0 | CG96: 0 | CI96: 0 | CJ96: =-('e2g-format 2019'!C96*Emissionsfaktorer!$B$5+'e2g-format 2019'!D96*Emissionsfaktorer!$B$7+'e2g-format 2019'!E96*Emissionsfaktorer!$B$8+X96*Emissionsfaktorer!$B$6) -> 0
C97: =(Energi_proces!I19)*-0.001 -> 0 | D97: =(Energi_proces!G19)*-0.001 -> 0 | E97: =(Energi_proces!J19)*-0.001 -> 0 | F97: 0 | L97: =(Energi_proces!L19)*-0.001 -> 0 | M97: =(Energi_proces!K19)*-0.001 -> 0 | O97: =(Energi_proces!M19)*-0.001 -> 0 | Q97: 0 | X97: =(Energi_proces!H19)*-0.001 -> 0 | AN97: 0 | AO97: 0 | AP97: =Energi_proces!E19 -> 0 | AQ97: AP13 | AR97: AP | AT97: 0 | AU97: 0.9 | AZ97: 0 | BI97: 0 | BK97: 0 | BR97: 0 | CG97: 0 | CI97: 0 | CJ97: =-('e2g-format 2019'!C97*Emissionsfaktorer!$B$5+'e2g-format 2019'!D97*Emissionsfaktorer!$B$7+'e2g-format 2019'!E97*Emissionsfaktorer!$B$8+X97*Emissionsfaktorer!$B$6) -> 0
C98: =(Energi_proces!I20)*-0.001 -> 0 | D98: =(Energi_proces!G20)*-0.001 -> 0 | E98: =(Energi_proces!J20)*-0.001 -> 0 | F98: 0 | L98: =(Energi_proces!L20)*-0.001 -> 0 | M98: =(Energi_proces!K20)*-0.001 -> 0 | O98: =(Energi_proces!M20)*-0.001 -> 0 | Q98: 0 | X98: =(Energi_proces!H20)*-0.001 -> 0 | AN98: 0 | AO98: 0 | AP98: =Energi_proces!E20 -> 0 | AQ98: AP14 | AR98: AP | AT98: 0 | AU98: 0.9 | AZ98: 0 | BI98: 0 | BK98: 0 | BR98: 0 | CG98: 0 | CI98: 0 | CJ98: =-('e2g-format 2019'!C98*Emissionsfaktorer!$B$5+'e2g-format 2019'!D98*Emissionsfaktorer!$B$7+'e2g-format 2019'!E98*Emissionsfaktorer!$B$8+X98*Emissionsfaktorer!$B$6) -> 0
F99: 0 | X99: =SUM(Y99:AI99) -> 0 | AN99: 0 | AO99: 0 | AP99: Ikke energiformål | AQ99: AIE | AR99: A | AU99: 0.9 | CG99: 0 | CI99: 0
AP100: Energitjenester | AQ100: EN

Sheet Indholdsfortegnelse

Sheet Oversigt - Introduktion

Sheet Oversigt - Kommune

Sheet Slutforbrug - Justering
Q19: 12500
Q20: 22913.98299 | R20: 0
H36: 167000
E68: 3 | I68: 91.7246696 | M68: 5 | Q68: 0.2753303965
H102: 4475

Sheet Justering - husholdning
O26: =Elapparater!L1 -> 255.2769712 | Q26: ='Aktuel overblik'!L9 -> 240.5959841
N27: =Elapparater!H1 -> 496.6765478 | O27: =Elapparater!J1 -> 478.6750229 | Q27: ='Justering af energiregnskab'!F1 -> 364.9576088
H35: ='Justering af energiregnskab'!E4 -> 360
H36: 181600
E68: =F68 -> 3 | F68: 3 | I68: 91.7246696 | M68: 5 | Q68: 0.2753303965
H72: ='Justering af energiregnskab'!E5 -> 8
H109: ='Justering af energiregnskab'!E6 -> 0

Sheet Justering - Offentlig
Q26: ='Aktuel overblik'!L9 -> 240.5959841
Q27: ='Justering af energiregnskab'!F1 -> 364.9576088
P28: =Elapparater!L1 -> 255.2769712
O29: =Elapparater!H1 -> 496.6765478 | P29: =Elapparater!J1 -> 478.6750229
H35: ='Justering af energiregnskab'!E9 -> 33
E68: =F68 -> 3 | F68: 3 | I68: 91.7246696 | M68: 5 | Q68: 0.2753303965
H72: ='Justering af energiregnskab'!E10 -> 2
H109: ='Justering af energiregnskab'!E11 -> 0

Sheet Justering - Energi Proces
T25: =Elapparater!L1 -> 255.2769712
Q26: ='Aktuel overblik'!L9 -> 240.5959841 | S26: =Elapparater!H1 -> 496.6765478 | T26: =Elapparater!J1 -> 478.6750229
Q27: ='Justering af energiregnskab'!F1 -> 364.9576088
F35: ='Justering af energiregnskab'!E14 -> 1080 | H35: ='Justering af energiregnskab'!E9 -> 33 | I35: ='Justering af energiregnskab'!E15 -> 1135 | L35: ='Justering af energiregnskab'!E16 -> 176 | O35: ='Justering af energiregnskab'!E17 -> 31 | R35: ='Justering af energiregnskab'!E18 -> 466
E68: =F68 -> 3 | F68: 3 | I68: 91.7246696 | M68: 5 | Q68: 0.2753303965
H72: ='Justering af energiregnskab'!E10 -> 2
T97: ='Justering af energiregnskab'!E19 -> 0 | W97: ='Justering af energiregnskab'!E20 -> 0 | Z97: ='Justering af energiregnskab'!E21 -> 0
H109: ='Justering af energiregnskab'!E11 -> 0

Sheet Slutforbrug - elapparater
F17: ='Samlet Nøgletal'!E8 -> 0.05
Q19: 12500
Q20: 22913.98299 | R20: 0
F22: ='Samlet Nøgletal'!F8 -> 0.05
H36: 167000
E68: 3 | I68: 91.7246696 | M68: 5 | Q68: 0.2753303965
H102: 4475

Sheet elapparater - husholdning
P26: =Elapparater!L1 -> 255.2769712 | Q26: ='Aktuel overblik'!L9 -> 240.5959841
O27: =Elapparater!H1 -> 496.6765478 | P27: =Elapparater!J1 -> 478.6750229 | Q27: ='Justering af energiregnskab'!F1 -> 364.9576088
F35: =Elapparater!I4 -> 0 | H35: ='Justering af energiregnskab'!E4 -> 360
H36: 181600
F40: =Elapparater!K4 -> 0
E68: =F68 -> 3 | F68: 3 | I68: 91.7246696 | M68: 5 | Q68: 0.2753303965
H72: ='Justering af energiregnskab'!E5 -> 8
H109: ='Justering af energiregnskab'!E6 -> 0

Sheet elapparater - offentlig
P26: =Elapparater!L1 -> 255.2769712 | Q26: ='Aktuel overblik'!L9 -> 240.5959841
O27: =Elapparater!H1 -> 496.6765478 | P27: =Elapparater!J1 -> 478.6750229 | Q27: ='Justering af energiregnskab'!F1 -> 364.9576088
F35: =Elapparater!I5 -> 0 | H35: ='Justering af energiregnskab'!E4 -> 360
H36: 181600
F40: =Elapparater!K5 -> 0
E68: =F68 -> 3 | F68: 3 | I68: 91.7246696 | M68: 5 | Q68: 0.2753303965
H72: ='Justering af energiregnskab'!E5 -> 8
H109: ='Justering af energiregnskab'!E6 -> 0

Sheet elapparater - erhverv
P26: =Elapparater!L1 -> 255.2769712 | Q26: ='Aktuel overblik'!L9 -> 240.5959841
O27: =Elapparater!H1 -> 496.6765478 | P27: =Elapparater!J1 -> 478.6750229 | Q27: ='Justering af energiregnskab'!F1 -> 364.9576088
F35: =Elapparater!I6 -> 0 | H35: ='Justering af energiregnskab'!E4 -> 360
H36: 181600
F40: =Elapparater!K6 -> 0
E68: =F68 -> 3 | F68: 3 | I68: 91.7246696 | M68: 5 | Q68: 0.2753303965
H72: ='Justering af energiregnskab'!E5 -> 8
H109: ='Justering af energiregnskab'!E6 -> 0

Sheet Slutforbrug - Fjernvarme
F17: ='Samlet Nøgletal'!E23 -> 0.2
Q19: 12500
Q20: 22913.98299 | R20: 0
F22: ='Samlet Nøgletal'!F23 -> 0.2
H36: 167000
E68: 3 | I68: 91.7246696 | M68: 5 | Q68: 0.2753303965
H102: 4475

Sheet Fjernvarme - husholdning
P26: =Elapparater!L1 -> 255.2769712 | Q26: ='Aktuel overblik'!L9 -> 240.5959841
O27: =Elapparater!H1 -> 496.6765478 | P27: =Elapparater!J1 -> 478.6750229 | Q27: ='Justering af energiregnskab'!F1 -> 364.9576088
F35: =Fjernvarme!I4 -> 0 | H35: ='Justering af energiregnskab'!E4 -> 360
H36: 181600
F40: =Fjernvarme!K4 -> 0
E68: =F68 -> 3 | F68: 3 | I68: 91.7246696 | M68: 5 | Q68: 0.2753303965
H72: ='Justering af energiregnskab'!E5 -> 8
H109: ='Justering af energiregnskab'!E6 -> 0

Sheet Fjernvarme - offentlig
P26: =Elapparater!L1 -> 255.2769712 | Q26: ='Aktuel overblik'!L9 -> 240.5959841
O27: =Elapparater!H1 -> 496.6765478 | P27: =Elapparater!J1 -> 478.6750229 | Q27: ='Justering af energiregnskab'!F1 -> 364.9576088
F35: =Fjernvarme!I5 -> 0 | H35: ='Justering af energiregnskab'!E4 -> 360
H36: 181600
F40: =Fjernvarme!K5 -> 0
E68: =F68 -> 3 | F68: 3 | I68: 91.7246696 | M68: 5 | Q68: 0.2753303965
H72: ='Justering af energiregnskab'!E5 -> 8
H109: ='Justering af energiregnskab'!E6 -> 0

Sheet Fjernvarme - erhverv
P26: =Elapparater!L1 -> 255.2769712 | Q26: ='Aktuel overblik'!L9 -> 240.5959841
O27: =Elapparater!H1 -> 496.6765478 | P27: =Elapparater!J1 -> 478.6750229 | Q27: ='Justering af energiregnskab'!F1 -> 364.9576088
F35: =Fjernvarme!I6 -> 0 | H35: ='Justering af energiregnskab'!E4 -> 360
H36: 181600
F40: =Fjernvarme!K6 -> 0
E68: =F68 -> 3 | F68: 3 | I68: 91.7246696 | M68: 5 | Q68: 0.2753303965
H72: ='Justering af energiregnskab'!E5 -> 8
H109: ='Justering af energiregnskab'!E6 -> 0

Sheet Slutforbrug - Opvarming&Proces
F17: ='Samlet Nøgletal'!E23 -> 0.2
Q19: 12500
Q20: 22913.98299 | R20: 0
F22: ='Samlet Nøgletal'!F23 -> 0.2
H36: 167000
E68: 3 | I68: 91.7246696 | M68: 5 | Q68: 0.2753303965
H102: 4475

Sheet Opvarming - husholdning
P26: =Elapparater!L1 -> 255.2769712 | Q26: ='Aktuel overblik'!L9 -> 240.5959841
O27: =Elapparater!H1 -> 496.6765478 | P27: =Elapparater!J1 -> 478.6750229 | Q27: ='Justering af energiregnskab'!F1 -> 364.9576088
F35: ='Opvarmning og proces'!I4 -> 0 | H35: ='Justering af energiregnskab'!E4 -> 360
H36: 181600
F40: ='Opvarmning og proces'!K4 -> 0
E68: =F68 -> 3 | F68: 3 | I68: 91.7246696 | M68: 5 | Q68: 0.2753303965
H72: ='Justering af energiregnskab'!E5 -> 8
H109: ='Justering af energiregnskab'!E6 -> 0

Sheet Husholdninger - Fordeling
P26: =Elapparater!L1 -> 255.2769712 | Q26: ='Aktuel overblik'!L9 -> 240.5959841
O27: =Elapparater!H1 -> 496.6765478 | P27: =Elapparater!J1 -> 478.6750229 | Q27: ='Justering af energiregnskab'!F1 -> 364.9576088
F35: ='Opvarmning og proces'!I4 -> 0 | H35: ='Justering af energiregnskab'!E4 -> 360
H36: 181600
F40: ='Opvarmning og proces'!K4 -> 0
B42: Naturgas | D42: ='Samlet Nøgletal'!E45 -> 0.24 | E42: ='Samlet Nøgletal'!F45 -> 0.24
B43: Kul | D43: ='Samlet Nøgletal'!E46 -> 0 | E43: ='Samlet Nøgletal'!F46 -> 0
B44: Affald | D44: ='Samlet Nøgletal'!E47 -> 0 | E44: ='Samlet Nøgletal'!F47 -> 0
B45: Bio | D45: ='Samlet Nøgletal'!E48 -> 0.71 | E45: ='Samlet Nøgletal'!F48 -> 0.71
B46: Sol | D46: ='Samlet Nøgletal'!E49 -> 0.01 | E46: ='Samlet Nøgletal'!F49 -> 0.01
B47: Syntetiske | D47: ='Samlet Nøgletal'!E50 -> 0 | E47: ='Samlet Nøgletal'!F50 -> 0
B48: Olieprod | D48: ='Samlet Nøgletal'!E51 -> 0.04 | E48: ='Samlet Nøgletal'!F51 -> 0.04
B49: El | D49: ='Samlet Nøgletal'!E52 -> 0 | E49: ='Samlet Nøgletal'!F52 -> 0
E68: =F68 -> 3 | F68: 3 | I68: 91.7246696 | M68: 5 | Q68: 0.2753303965
H72: ='Justering af energiregnskab'!E5 -> 8
H109: ='Justering af energiregnskab'!E6 -> 0

Sheet Opvarmning - offentlig
P26: =Elapparater!L1 -> 255.2769712 | Q26: ='Aktuel overblik'!L9 -> 240.5959841
O27: =Elapparater!H1 -> 496.6765478 | P27: =Elapparater!J1 -> 478.6750229 | Q27: ='Justering af energiregnskab'!F1 -> 364.9576088
F35: ='Opvarmning og proces'!I5 -> 0 | H35: ='Justering af energiregnskab'!E4 -> 360
H36: 181600
F40: ='Opvarmning og proces'!K5 -> 0
E68: =F68 -> 3 | F68: 3 | I68: 91.7246696 | M68: 5 | Q68: 0.2753303965
H72: ='Justering af energiregnskab'!E5 -> 8
H109: ='Justering af energiregnskab'!E6 -> 0

Sheet Offentlig - Fordeling
P26: =Elapparater!L1 -> 255.2769712 | Q26: ='Aktuel overblik'!L9 -> 240.5959841
O27: =Elapparater!H1 -> 496.6765478 | P27: =Elapparater!J1 -> 478.6750229 | Q27: ='Justering af energiregnskab'!F1 -> 364.9576088
F35: ='Opvarmning og proces'!I4 -> 0 | H35: ='Justering af energiregnskab'!E4 -> 360
H36: 181600
F40: ='Opvarmning og proces'!K4 -> 0
B42: Naturgas | D42: ='Samlet Nøgletal'!E54 -> 0.33 | E42: ='Samlet Nøgletal'!F54 -> 0.33
B43: Kul | D43: ='Samlet Nøgletal'!E55 -> 0 | E43: ='Samlet Nøgletal'!F55 -> 0
B44: Affald | D44: ='Samlet Nøgletal'!E56 -> 0 | E44: ='Samlet Nøgletal'!F56 -> 0
B45: Bio | D45: ='Samlet Nøgletal'!E57 -> 0.62 | E45: ='Samlet Nøgletal'!F57 -> 0.62
B46: Sol | D46: ='Samlet Nøgletal'!E58 -> 0.04 | E46: ='Samlet Nøgletal'!F58 -> 0.04
B47: Syntetiske | D47: ='Samlet Nøgletal'!E59 -> 0 | E47: ='Samlet Nøgletal'!F59 -> 0
B48: Olieprod | D48: ='Samlet Nøgletal'!E60 -> 0.01 | E48: ='Samlet Nøgletal'!F60 -> 0.01
B49: El | D49: ='Samlet Nøgletal'!E61 -> 0 | E49: ='Samlet Nøgletal'!F61 -> 0
E68: =F68 -> 3 | F68: 3 | I68: 91.7246696 | M68: 5 | Q68: 0.2753303965
H72: ='Justering af energiregnskab'!E5 -> 8
H109: ='Justering af energiregnskab'!E6 -> 0

Sheet Opvarmning - erhverv
P26: =Elapparater!L1 -> 255.2769712 | Q26: ='Aktuel overblik'!L9 -> 240.5959841
O27: =Elapparater!H1 -> 496.6765478 | P27: =Elapparater!J1 -> 478.6750229 | Q27: ='Justering af energiregnskab'!F1 -> 364.9576088
F35: ='Opvarmning og proces'!I6 -> 0 | H35: ='Justering af energiregnskab'!E4 -> 360
H36: 181600
F40: ='Opvarmning og proces'!K6 -> 0
E68: =F68 -> 3 | F68: 3 | I68: 91.7246696 | M68: 5 | Q68: 0.2753303965
H72: ='Justering af energiregnskab'!E5 -> 8
H109: ='Justering af energiregnskab'!E6 -> 0

Sheet erhverv - Fordeling
P26: =Elapparater!L1 -> 255.2769712 | Q26: ='Aktuel overblik'!L9 -> 240.5959841
O27: =Elapparater!H1 -> 496.6765478 | P27: =Elapparater!J1 -> 478.6750229 | Q27: ='Justering af energiregnskab'!F1 -> 364.9576088
F35: ='Opvarmning og proces'!I4 -> 0 | H35: ='Justering af energiregnskab'!E4 -> 360
H36: 181600
F40: ='Opvarmning og proces'!K4 -> 0
B42: Naturgas | D42: ='Samlet Nøgletal'!E63 -> 0.39 | E42: ='Samlet Nøgletal'!F63 -> 0.38
B43: Kul | D43: ='Samlet Nøgletal'!E64 -> 0.06 | E43: ='Samlet Nøgletal'!F64 -> 0.06
B44: Affald | D44: ='Samlet Nøgletal'!E65 -> 0 | E44: ='Samlet Nøgletal'!F65 -> 0.01
B45: Bio | D45: ='Samlet Nøgletal'!E66 -> 0.16 | E45: ='Samlet Nøgletal'!F66 -> 0.16
B46: Sol | D46: ='Samlet Nøgletal'!E67 -> 0 | E46: ='Samlet Nøgletal'!F67 -> 0
B47: Syntetiske | D47: ='Samlet Nøgletal'!E68 -> 0 | E47: ='Samlet Nøgletal'!F68 -> 0
B48: Olieprod | D48: ='Samlet Nøgletal'!E69 -> 0.39 | E48: ='Samlet Nøgletal'!F69 -> 0.39
B49: El | D49: ='Samlet Nøgletal'!E70 -> 0 | E49: ='Samlet Nøgletal'!F70 -> 0
E68: =F68 -> 3 | F68: 3 | I68: 91.7246696 | M68: 5 | Q68: 0.2753303965
H72: ='Justering af energiregnskab'!E5 -> 8
H109: ='Justering af energiregnskab'!E6 -> 0

Sheet Slutforbrug - Transport
F17: ='Samlet Nøgletal'!E23 -> 0.2
Q19: 12500
Q20: 22913.98299 | R20: 0
F22: ='Samlet Nøgletal'!F23 -> 0.2
H36: 167000
E68: 3 | I68: 91.7246696 | M68: 5 | Q68: 0.2753303965
H102: 4475

Sheet Transport - Vejtrafik
P26: =Elapparater!L1 -> 255.2769712 | Q26: ='Aktuel overblik'!L9 -> 240.5959841
O27: =Elapparater!H1 -> 496.6765478 | P27: =Elapparater!J1 -> 478.6750229 | Q27: ='Justering af energiregnskab'!F1 -> 364.9576088
F35: ='Transport modes'!I5 -> 0 | H35: ='Justering af energiregnskab'!E4 -> 360
H36: 181600
F40: ='Transport modes'!K5 -> 0
E68: =F68 -> 3 | F68: 3 | I68: 91.7246696 | M68: 5 | Q68: 0.2753303965
H72: ='Justering af energiregnskab'!E5 -> 8
H109: ='Justering af energiregnskab'!E6 -> 0

Sheet Vejtrafik - Fordeling
P26: =Elapparater!L1 -> 255.2769712 | Q26: ='Aktuel overblik'!L9 -> 240.5959841
O27: =Elapparater!H1 -> 496.6765478 | P27: =Elapparater!J1 -> 478.6750229 | Q27: ='Justering af energiregnskab'!F1 -> 364.9576088
F35: ='Opvarmning og proces'!I4 -> 0 | H35: ='Justering af energiregnskab'!E4 -> 360
H36: 181600
F40: ='Opvarmning og proces'!K4 -> 0
B42: Personbil | D42: ='Samlet Nøgletal'!E92 -> 0.7 | E42: ='Samlet Nøgletal'!F92 -> 0.69
B43: Lastbil | D43: ='Samlet Nøgletal'!E93 -> 0.26 | E43: ='Samlet Nøgletal'!F93 -> 0.26
B44: Varebil | D44: ='Samlet Nøgletal'!E94 -> 0.03 | E44: ='Samlet Nøgletal'!F94 -> 0.03
B45: Knallert | D45: ='Samlet Nøgletal'!E95 -> 0 | E45: ='Samlet Nøgletal'!F95 -> 0
B46: Motorcykel | D46: ='Samlet Nøgletal'!E96 -> 0 | E46: ='Samlet Nøgletal'!F96 -> 0.01
B47: Bus | D47: ='Samlet Nøgletal'!E97 -> 0.01 | E47: ='Samlet Nøgletal'!F97 -> 0.01
E68: =F68 -> 3 | F68: 3 | I68: 91.7246696 | M68: 5 | Q68: 0.2753303965
H72: ='Justering af energiregnskab'!E5 -> 8
H109: ='Justering af energiregnskab'!E6 -> 0

Sheet Transport - Tog
P26: =Elapparater!L1 -> 255.2769712 | Q26: ='Aktuel overblik'!L9 -> 240.5959841
O27: =Elapparater!H1 -> 496.6765478 | P27: =Elapparater!J1 -> 478.6750229 | Q27: ='Justering af energiregnskab'!F1 -> 364.9576088
F35: ='Transport modes'!I6 -> 0 | H35: ='Justering af energiregnskab'!E4 -> 360
H36: 181600
F40: ='Transport modes'!K6 -> 0
E68: =F68 -> 3 | F68: 3 | I68: 91.7246696 | M68: 5 | Q68: 0.2753303965
H72: ='Justering af energiregnskab'!E5 -> 8
H109: ='Justering af energiregnskab'!E6 -> 0

Sheet Tog - Fordeling
P26: =Elapparater!L1 -> 255.2769712 | Q26: ='Aktuel overblik'!L9 -> 240.5959841
O27: =Elapparater!H1 -> 496.6765478 | P27: =Elapparater!J1 -> 478.6750229 | Q27: ='Justering af energiregnskab'!F1 -> 364.9576088
F35: ='Opvarmning og proces'!I4 -> 0 | H35: ='Justering af energiregnskab'!E4 -> 360
H36: 181600
F40: ='Opvarmning og proces'!K4 -> 0
D42: ='Samlet Nøgletal'!E99 -> 0.25 | E42: ='Samlet Nøgletal'!F99 -> 0.25
D43: ='Samlet Nøgletal'!E100 -> 0.43 | E43: ='Samlet Nøgletal'!F100 -> 0.43
D44: ='Samlet Nøgletal'!E101 -> 0.32 | E44: ='Samlet Nøgletal'!F101 -> 0.32
D45: ='Samlet Nøgletal'!E102 -> 0 | E45: ='Samlet Nøgletal'!F102 -> 0
D46: ='Samlet Nøgletal'!E103 -> 0 | E46: ='Samlet Nøgletal'!F103 -> 0
D47: ='Samlet Nøgletal'!E104 -> 0 | E47: ='Samlet Nøgletal'!F104 -> 0
E68: =F68 -> 3 | F68: 3 | I68: 91.7246696 | M68: 5 | Q68: 0.2753303965
H72: ='Justering af energiregnskab'!E5 -> 8
H109: ='Justering af energiregnskab'!E6 -> 0

Sheet Transport - Fly
P26: =Elapparater!L1 -> 255.2769712 | Q26: ='Aktuel overblik'!L9 -> 240.5959841
O27: =Elapparater!H1 -> 496.6765478 | P27: =Elapparater!J1 -> 478.6750229 | Q27: ='Justering af energiregnskab'!F1 -> 364.9576088
F35: ='Transport modes'!I7 -> 0 | H35: ='Justering af energiregnskab'!E4 -> 360
H36: 181600
F40: ='Transport modes'!K7 -> 0
E68: =F68 -> 3 | F68: 3 | I68: 91.7246696 | M68: 5 | Q68: 0.2753303965
H72: ='Justering af energiregnskab'!E5 -> 8
H109: ='Justering af energiregnskab'!E6 -> 0

Sheet Fly - Fordeling
P26: =Elapparater!L1 -> 255.2769712 | Q26: ='Aktuel overblik'!L9 -> 240.5959841
O27: =Elapparater!H1 -> 496.6765478 | P27: =Elapparater!J1 -> 478.6750229 | Q27: ='Justering af energiregnskab'!F1 -> 364.9576088
F35: ='Opvarmning og proces'!I4 -> 0 | H35: ='Justering af energiregnskab'!E4 -> 360
H36: 181600
F40: ='Opvarmning og proces'!K4 -> 0
D42: ='Samlet Nøgletal'!E107 -> 0.97 | E42: ='Samlet Nøgletal'!F107 -> 0.97
D43: ='Samlet Nøgletal'!E106 -> 0.03 | E43: ='Samlet Nøgletal'!F106 -> 0.03
E68: =F68 -> 3 | F68: 3 | I68: 91.7246696 | M68: 5 | Q68: 0.2753303965
H72: ='Justering af energiregnskab'!E5 -> 8
H109: ='Justering af energiregnskab'!E6 -> 0

Sheet Transport - Færge
P26: =Elapparater!L1 -> 255.2769712 | Q26: ='Aktuel overblik'!L9 -> 240.5959841
O27: =Elapparater!H1 -> 496.6765478 | P27: =Elapparater!J1 -> 478.6750229 | Q27: ='Justering af energiregnskab'!F1 -> 364.9576088
F35: ='Samlet Nøgletal'!E87 -> 0 | H35: ='Justering af energiregnskab'!E4 -> 360
H36: 181600
F40: ='Samlet Nøgletal'!F87 -> 0
E68: =F68 -> 3 | F68: 3 | I68: 91.7246696 | M68: 5 | Q68: 0.2753303965
H72: ='Justering af energiregnskab'!E5 -> 8
H109: ='Justering af energiregnskab'!E6 -> 0

Sheet Transport - Fiskeri
P26: =Elapparater!L1 -> 255.2769712 | Q26: ='Aktuel overblik'!L9 -> 240.5959841
O27: =Elapparater!H1 -> 496.6765478 | P27: =Elapparater!J1 -> 478.6750229 | Q27: ='Justering af energiregnskab'!F1 -> 364.9576088
F35: ='Transport modes'!I9 -> 0 | H35: ='Justering af energiregnskab'!E4 -> 360
H36: 181600
F40: ='Transport modes'!K9 -> 0
E68: =F68 -> 3 | F68: 3 | I68: 91.7246696 | M68: 5 | Q68: 0.2753303965
H72: ='Justering af energiregnskab'!E5 -> 8
H109: ='Justering af energiregnskab'!E6 -> 0

Sheet Transport - Non-road
P26: =Elapparater!L1 -> 255.2769712 | Q26: ='Aktuel overblik'!L9 -> 240.5959841
O27: =Elapparater!H1 -> 496.6765478 | P27: =Elapparater!J1 -> 478.6750229 | Q27: ='Justering af energiregnskab'!F1 -> 364.9576088
F35: ='Transport modes'!I10 -> 0 | H35: ='Justering af energiregnskab'!E4 -> 360
H36: 181600
F40: ='Transport modes'!K10 -> 0
E68: =F68 -> 3 | F68: 3 | I68: 91.7246696 | M68: 5 | Q68: 0.2753303965
H72: ='Justering af energiregnskab'!E5 -> 8
H109: ='Justering af energiregnskab'!E6 -> 0

Sheet Non-road - Fordeling
P26: =Elapparater!L1 -> 255.2769712 | Q26: ='Aktuel overblik'!L9 -> 240.5959841
O27: =Elapparater!H1 -> 496.6765478 | P27: =Elapparater!J1 -> 478.6750229 | Q27: ='Justering af energiregnskab'!F1 -> 364.9576088
F35: ='Opvarmning og proces'!I4 -> 0 | H35: ='Justering af energiregnskab'!E4 -> 360
H36: 181600
F40: ='Opvarmning og proces'!K4 -> 0
D42: ='Samlet Nøgletal'!E109 -> 0.34 | E42: ='Samlet Nøgletal'!F109 -> 0.34
D43: ='Samlet Nøgletal'!E110 -> 0.56 | E43: ='Samlet Nøgletal'!F110 -> 0.56
D44: ='Samlet Nøgletal'!E111 -> 0.01 | E44: ='Samlet Nøgletal'!F111 -> 0.01
D45: ='Samlet Nøgletal'!E112 -> 0.03 | E45: ='Samlet Nøgletal'!F112 -> 0.03
D46: ='Samlet Nøgletal'!E113 -> 0.06 | E46: ='Samlet Nøgletal'!F113 -> 0.06
E68: =F68 -> 3 | F68: 3 | I68: 91.7246696 | M68: 5 | Q68: 0.2753303965
H72: ='Justering af energiregnskab'!E5 -> 8
H109: ='Justering af energiregnskab'!E6 -> 0

Sheet Transport - Teknologivalg
F17: ='Samlet Nøgletal'!E23 -> 0.2
Q19: 12500
Q20: 22913.98299 | R20: 0
F22: ='Samlet Nøgletal'!F23 -> 0.2
H36: 167000
E68: 3 | I68: 91.7246696 | M68: 5 | Q68: 0.2753303965
H102: 4475

Sheet Vejtrafik - Ned
F17: ='Samlet Nøgletal'!E23 -> 0.2
Q19: 12500
Q20: 22913.98299 | R20: 0
F22: ='Samlet Nøgletal'!F23 -> 0.2
H36: 167000
E68: 3 | I68: 91.7246696 | M68: 5 | Q68: 0.2753303965
H102: 4475

Sheet Personbil - Fordeling
P26: =Elapparater!L1 -> 255.2769712 | Q26: ='Aktuel overblik'!L9 -> 240.5959841
O27: =Elapparater!H1 -> 496.6765478 | P27: =Elapparater!J1 -> 478.6750229 | Q27: ='Justering af energiregnskab'!F1 -> 364.9576088
F35: ='Opvarmning og proces'!I4 -> 0 | H35: ='Justering af energiregnskab'!E4 -> 360
H36: 181600
F40: ='Opvarmning og proces'!K4 -> 0
B42: Naturgas | D42: ='Samlet Nøgletal'!E127 -> 0 | E42: ='Samlet Nøgletal'!F127 -> 0
B43: Bio | D43: ='Samlet Nøgletal'!E128 -> 0 | E43: ='Samlet Nøgletal'!F128 -> 0
B44: Synteteske | D44: ='Samlet Nøgletal'!E129 -> 0 | E44: ='Samlet Nøgletal'!F129 -> 0
B45: Olie | D45: ='Samlet Nøgletal'!E130 -> 1 | E45: ='Samlet Nøgletal'!F130 -> 1
B46: El | D46: ='Samlet Nøgletal'!E131 -> 0 | E46: ='Samlet Nøgletal'!F131 -> 0
E47: ='Samlet Nøgletal'!F97 -> 0.01
E68: =F68 -> 3 | F68: 3 | I68: 91.7246696 | M68: 5 | Q68: 0.2753303965
H72: ='Justering af energiregnskab'!E5 -> 8
H109: ='Justering af energiregnskab'!E6 -> 0

Sheet Lastbil - Fordeling
P26: =Elapparater!L1 -> 255.2769712 | Q26: ='Aktuel overblik'!L9 -> 240.5959841
O27: =Elapparater!H1 -> 496.6765478 | P27: =Elapparater!J1 -> 478.6750229 | Q27: ='Justering af energiregnskab'!F1 -> 364.9576088
F35: ='Opvarmning og proces'!I4 -> 0 | H35: ='Justering af energiregnskab'!E4 -> 360
H36: 181600
F40: ='Opvarmning og proces'!K4 -> 0
B42: Naturgas | D42: ='Samlet Nøgletal'!E133 -> 0 | E42: ='Samlet Nøgletal'!F133 -> 0
B43: Bio | D43: ='Samlet Nøgletal'!E134 -> 0 | E43: ='Samlet Nøgletal'!F134 -> 0
B44: Synteteske | D44: ='Samlet Nøgletal'!E135 -> 0 | E44: ='Samlet Nøgletal'!F135 -> 0
B45: Olie | D45: ='Samlet Nøgletal'!E136 -> 1 | E45: ='Samlet Nøgletal'!F136 -> 1
B46: El | D46: ='Samlet Nøgletal'!E137 -> 0 | E46: ='Samlet Nøgletal'!F137 -> 0
E47: ='Samlet Nøgletal'!F97 -> 0.01
E68: =F68 -> 3 | F68: 3 | I68: 91.7246696 | M68: 5 | Q68: 0.2753303965
H72: ='Justering af energiregnskab'!E5 -> 8
H109: ='Justering af energiregnskab'!E6 -> 0

Sheet Varebil - Fordeling
P26: =Elapparater!L1 -> 255.2769712 | Q26: ='Aktuel overblik'!L9 -> 240.5959841
O27: =Elapparater!H1 -> 496.6765478 | P27: =Elapparater!J1 -> 478.6750229 | Q27: ='Justering af energiregnskab'!F1 -> 364.9576088
F35: ='Opvarmning og proces'!I4 -> 0 | H35: ='Justering af energiregnskab'!E4 -> 360
H36: 181600
F40: ='Opvarmning og proces'!K4 -> 0
B42: Naturgas | D42: ='Samlet Nøgletal'!E139 -> 0 | E42: ='Samlet Nøgletal'!F139 -> 0
B43: Bio | D43: ='Samlet Nøgletal'!E140 -> 0 | E43: ='Samlet Nøgletal'!F140 -> 0
B44: Synteteske | D44: ='Samlet Nøgletal'!E141 -> 0 | E44: ='Samlet Nøgletal'!F141 -> 0
B45: Olie | D45: ='Samlet Nøgletal'!E142 -> 1 | E45: ='Samlet Nøgletal'!F142 -> 1
B46: El | D46: ='Samlet Nøgletal'!E143 -> 0 | E46: ='Samlet Nøgletal'!F143 -> 0
E47: ='Samlet Nøgletal'!F97 -> 0.01
E68: =F68 -> 3 | F68: 3 | I68: 91.7246696 | M68: 5 | Q68: 0.2753303965
H72: ='Justering af energiregnskab'!E5 -> 8
H109: ='Justering af energiregnskab'!E6 -> 0

Sheet Knallert - Fordeling
P26: =Elapparater!L1 -> 255.2769712 | Q26: ='Aktuel overblik'!L9 -> 240.5959841
O27: =Elapparater!H1 -> 496.6765478 | P27: =Elapparater!J1 -> 478.6750229 | Q27: ='Justering af energiregnskab'!F1 -> 364.9576088
F35: ='Opvarmning og proces'!I4 -> 0 | H35: ='Justering af energiregnskab'!E4 -> 360
H36: 181600
F40: ='Opvarmning og proces'!K4 -> 0
B42: Naturgas | D42: ='Samlet Nøgletal'!E145 -> 0 | E42: ='Samlet Nøgletal'!F145 -> 0
B43: Bio | D43: ='Samlet Nøgletal'!E146 -> 0 | E43: ='Samlet Nøgletal'!F146 -> 0
B44: Synteteske | D44: ='Samlet Nøgletal'!E147 -> 0 | E44: ='Samlet Nøgletal'!F147 -> 0
B45: Olie | D45: ='Samlet Nøgletal'!E148 -> 1 | E45: ='Samlet Nøgletal'!F148 -> 1
B46: El | D46: ='Samlet Nøgletal'!E149 -> 0 | E46: ='Samlet Nøgletal'!F149 -> 0
E47: ='Samlet Nøgletal'!F97 -> 0.01
E68: =F68 -> 3 | F68: 3 | I68: 91.7246696 | M68: 5 | Q68: 0.2753303965
H72: ='Justering af energiregnskab'!E5 -> 8
H109: ='Justering af energiregnskab'!E6 -> 0

Sheet Motorcykel - Fordeling
P26: =Elapparater!L1 -> 255.2769712 | Q26: ='Aktuel overblik'!L9 -> 240.5959841
